Workbook

Sheet Cover
B6: Official Statistics Release
B7: Policy area: | C7: Local authorities and children's homes in England inspections and outcomes Autumn 2017
B8: Theme: | C8: Social care
B9: Published on: | C9: 20 December 2017
B10: Coverage: | C10: England
B11: Period covered: | C11: Inspection outcomes for local authority children’s services inspections, as at 31 October 2017, published by 8 December 2017
C12: ="Inspection outcomes for all children's homes, "&Inspections_From &" to "&Inspections_To &", published by "&Published_By -> Inspection outcomes for all children's homes, 01 April 2017 to 30 September 2017, published by 31 October 2017
C13: ="Inspection outcome of most recent inspection for all children’s homes, as at "&Inspections_To &", published by " &Published_By -> Inspection outcome of most recent inspection for all children’s homes, as at 30 September 2017, published by 31 October 2017
B14: Status: | C14: Final - inspections local authority of children’s homes, as at 31 October 2017
C15: ="Provisional - inspection outcome of the most recent inspection of children’s homes, " &Inspections_From &" to " &Inspections_To -> Provisional - inspection outcome of the most recent inspection of children’s homes, 01 April 2017 to 30 September 2017
C16: ="Final - inspections of children’s homes, as at " &Inspections_To -> Final - inspections of children’s homes, as at 30 September 2017
C17: Revised - inspections of regulated, and other, children's social care provision, 1 April 2016 to 31 March 2017, published by 31 October 2017
B18: Issued by: | C18: Office for Standards in Education, Children’s Services and Skills (Ofsted) 125 Kingsway London WC2B 6SE
B22: Chief Statistician: | C22: Helen Barugh
B23: Statistician: | C23: Adam King
B24: Public enquiries: | C24: If you have any comments or feedback on this publication, please contact the Social Care Data Team on 03000 130 020 or socialcaredata@ofsted.gov.uk
B25: Press enquiries: | C25: pressenquiries@ofsted.gov.uk
B26: Publication frequency: | C26: Annual
B27: Schedule of publication: | C27: www.gov.uk/government/statistics/announcements?utf8=%E2%9C%93&organisations%5B%5D=ofsted
B29: © Crown copyright 2017 You may use and re-use this information (not including logos) free of charge in any format or medium, under the terms of the Open Government Licence. To view this licence, visit: www.nationalarchives.gov.uk/doc/open-government-licence/
B30: Or write to the Information Policy Team, The National Archives, Kew, London, TW9 4DU
B31: Or email: psi@nationalarchives.gsi.gov.uk

Sheet Contents
B1: Contents
B3: Worksheet title and link | C3: Description of contents of worksheet
B5: Notes | C5: These are notes about the document and data within it to aid the use and interpretation of the data.
B7: Glossary | C7: This is a list of terms found in the document with further explanations about what they mean.
B9: Meta-data | C9: This is a headline guide to what data is contained in each tab, with direct links to the tabs.
B11: LA Inspection | C11: This is an interactive table which shows inspection judgements for local authority inspections. It covers the current and two previous inspection frameworks. It has drop down options for: England; region; local authority; and inspection type.
B13: Children's homes | C13: This is an interactive table which shows inspection judgements for all children's homes inspections. It has numerous drop down options including; England/region/local authority, inspection period, children's homes type and inspection type.
B15: Sub-Judgements | C15: This is an interactive table which shows inspection sub-judgements for all children's homes inspections. It has numerous drop down options including: England; region; local authority; inspection period; children's homes type; and sector.
B17: LA level at 30 Sep 2017 | C17: This is a list of all the local authorities in England. Where they have received an inspection in the current SIF cycle, their inspection judgements are shown. If an LA has been inspected more than once in the cycle it has an entry for each SIF inspection.
B19: Provider level at 30 Sep 2017 | C19: ="This is a list of all active inspected children's homes as at " & Inspections_To & " with the inspection judgements from their most recent full inspection." -> This is a list of all active inspected children's homes as at 30 September 2017 with the inspection judgements from their most recent full inspection.
B21: Provider level in year 2017-18 | C21: ="This is a list of all children's homes inspected between " & Inspections_From & " and " & Inspections_To & " with the inspection judgements from all the different types of inspections/visits. If a provision is inspected more than once in the year it has an entry for each inspection." -> This is a list of all children's homes inspected between 01 April 2017 and 30 September 2017 with the inspection judgements from all the different types of inspections/visits. If a provision is inspected more than once in the year it has an entry for each inspection.
B23: Revised 2016-17 in year data | C23: ="This is a list of inspections of all regulated, and other, children's social care provision between 01 April 2016 and 31 March 2017, published by 31 October 2017." -> This is a list of inspections of all regulated, and other, children's social care provision between 01 April 2016 and 31 March 2017, published by 31 October 2017.
B25: Latest OE 30 Sep Time Series | C25: This is an interactive time series table and chart showing overall effectiveness of all the different types of children's homes, as at 31 March each year and 30 September 2017.
B27: In year Time Series | C27: This is a group of time series tables and charts showing overall effectiveness of all types of children's homes inspected each year and broken down by children's homes sub-type.
B29: SIF sub-judgements | C29: This is a colour coded list showing the SIF key-judgements for local authorities. It can be used as a useful visual guide to see if/where an LA's key and sub judgements differ from its overall effectiveness judgement.
B31: Social Care in England 2017 data | C31: This is an external link to the Social Care in England 2017 data for comparison.

Sheet Notes
B3: Data
B4: The inspection outcomes data relates to inspections of:
B6: Local authority (LA) services for children who need help and protection, children looked after and care leavers. The inspections of LA children’s services are carried out under the Single Inspection Framework (SIF).
B8: Children's homes of all types.
B10: Notes to help use/interpret the data
B11: Where the term 'Residential special school (registered as a children's home)' is used, this refers to residential special schools that are registered as children's homes as they care for pupils for more than 295 days in a year.
B13: Some children's home interim inspections have an overall effectiveness outcome of 'not judged'. This is because the home had no children present at the time of inspection and so could not receive an inspection judgement.
B15: Monitoring visits of children's homes very rarely have an overall effectiveness judgement, but where on has been made it will be included in the interactive tables. Where no judgement is made the visits are still included in the tables.
B17: In the Provider level at 30 September 2017 data we have used the social care single inspection framework's sub judgement wording rather than the wording at the time of inspection.
B19: Caution should be used when comparing inspection judgements from year to year in the time series charts and tables. Inspection framework changes may have an impact on inspection judgements and so a changing grade profile from one year to the next may not solely indicate a change in the quality of provisions.
B21: The data relating to the owner of the children's home is taken as at 31 October 2017 and so it may be possible that this is different to the point at which the home was inspected.
B23: The worksheet called 'LA Inspection' shows the most recent inspection for each LA under each inspection framework. To see previous SIF inspections for LAs you must use the worksheet called 'LA level at 30 Sep 2017'.
B25: Revisions
B26: Any revisions to the inspection data for April to September 2017 will be included in the Children's social care in England national statistics, published in July/August each year. This will include advisory notes about any impact to figures and findings from the first full release of provisional data. Revisions are published in line with Ofsted’s revisions policy for official statistics. For more information about the policy, please visit the Ofsted website or access the policy via the following link:
B27: www.gov.uk/government/publications/ofsted-standards-for-official-statistics
B29: Other available data
B30: Previously published data regarding LA inspections, children’s social care inspections and providers and places can be found at the following links on GOV.UK:
B31: www.gov.uk/government/collections/childrens-social-care-statistics
B32: and in the National Archives:
B33: www.webarchive.nationalarchives.gov.uk/20141124154759/http:/www.ofsted.gov.uk/resources/statistics
B34: These pages also contain data on adoption, fostering, children looked after placements and serious incident notifications which the reader may find relevant.
B36: Quality Report
B37: An explanation about key uses of this data and further contextual information is provided in the accompanying Quality and Methodology report. The report also provides information about the arrangements for quality assurance, strengths and limitations of the statistics:
B38: www.gov.uk/government/collections/childrens-social-care-statistics

Sheet Glossary
B1: Glossary
B3: Adoption agencies
B4: The focus of all adoption agencies is on placing children successfully into adoptive families who the agency recruits, assesses, prepares and supports, so they will meet the children’s needs and enable them to develop and achieve throughout their lives. The services maintained by local authorities are described in section 3(1) of the Adoption and Children Act 2002. Local authorities place children with adoptive families recruited and approved by themselves, by other local authorities or by voluntary adoption agencies who must register with Ofsted. Adoption agencies may also provide birth records, counselling and intermediary services to adoptees and birth relatives. There are three branches of voluntary adoption agencies in Wales which are inspected by Ofsted because their head offices are in England. These are not included in this publication.
B6: Adoption support agencies
B7: Adoption support agencies are defined by section 8 of the Adoption and Children Act 2002 and provide services to anyone touched by adoption and are registered with Ofsted. This includes counselling and help for children and adults to gain information about their adoption or to trace birth relatives. Adoption support agencies can be either organisations or individuals, and may be contracted by a local authority to provide support services.
B9: Boarding schools
B10: The majority of boarding schools are independent and belong to associations which are members of the Independent Schools Council. As both education and welfare in these schools are inspected by their own inspectorate, Ofsted does not inspect these schools and so they are not included in the data. The remainder are maintained and independent boarding schools where both education and the welfare of boarders are the subject of Ofsted inspection and independent boarding schools which are members of the Schools Inspection Service and who receive their education inspections by this organisation and their welfare inspections by Ofsted.
B12: Children’s homes
B13: A children’s home is defined in section 1 of the Care Standards Act 2000, and is an establishment that provides care and accommodation wholly or mainly for children. Children’s homes vary in size and nature. They fulfil a range of purposes designed to meet the different needs of those children and young people who are assessed as needing a residential care placement. Some homes, for example, provide short-breaks which are needed to help support children and their family. Some residential special schools are registered as children’s homes because boarders are resident for more than 295 days per year.
B15: Fostering agencies
B16: Local authority fostering services are defined by section 4 of the Care Standards Act 2000. Local authority fostering agencies and independent fostering agencies recruit, prepare, assess, train and support foster carers. Independent fostering agencies (IFAs) are private companies or charities, which are registered with Ofsted and provide placements to children and young people with foster carers approved by them. IFAs work closely with local authorities to deliver these placements.
B18: Further education colleges with residential accommodation
B19: The care provision of further education colleges that provide, or arrange, residential accommodation for one or more students under the age of 18 years. Ofsted inspects these colleges under section 87 of the children act 1989 as amended by the Care Standards Act 2000. Where a college is registered as a care home, the residential provision is inspected by the Care Quality Commission rather than by Ofsted.
B21: Places
B22: The term ‘places’ used in this report refers to the number of places for which the social care provider has capacity. This number usually will not, therefore, be the same as the actual number of children who are receiving services from the provider. Ofsted holds data relating to places for: children's homes; secure children's homes; residential special schools; residential family centres; boarding schools; and further education colleges. For some of these providers Ofsted does not hold data relating to places. Where this is the case, the number of places has been estimated. For all other provision types, and aggregated provision types, places data is not available.
B24: Providers
B25: Children’s social care providers are those institutions or organisations or agencies that provide services to the relevant children and young people. The providers commented on within this report include children’s homes, secure children’s homes, residential special schools, residential family centres, boarding schools, residential further education colleges, secure training centres, residential holiday schemes for disabled children, adoption support agencies, voluntary adoption agencies, and independent fostering services.
B27: Residential family centres
B28: Residential family centres are defined in section 4(2) of the Care Standards Act 2000 as establishments at which: a) accommodation is provided for children and their parents; b) the parents’ capacity to respond to the children’s needs and to safeguard their welfare is monitored and assessed; and c) the parents are given such advice, guidance and counselling is considered necessary.
B30: Residential holiday schemes for disabled children
B31: A residential holiday scheme for disabled children provides care and accommodation wholly or mainly for disabled children for a specified period for the purposes of a holiday, or for recreational, sporting, cultural or educational purposes. Ofsted inspects these schemes under the Care Standards Act 2000, Part 2 (Extension of the Application of Part 2 to Holiday Schemes for Disabled Children) (England) Regulations 2013.
B33: Residential special schools
B34: Residential special schools are defined in section 59 of the Safeguarding Vulnerable Groups Act 2006. They vary in size and nature. The sector includes large non-maintained special schools which make provision for very specific needs and take children as full boarders from all over the country, to smaller more local providers catering for children with a range of different special needs and disabilities who may be resident at the school only during the week. Some residential special schools are registered as children’s homes because boarders are resident for more than 295 days per year. There are also a small number of independent residential special schools who also tend to cater for children with very specialist needs.
B36: Sector
B37: Sector refers to the type of provider that owns the children’s social care provision.
B39: Academy
B40: These are publicly funded independent schools who are run by trusts.
B42: Health Authority
B43: These are NHS Trust-run.
B45: Local Authority
B46: These are public bodies responsible for the children’s social care provision.
B48: Private
B49: These are for-profit organisations mostly with limited company status. These can also though be individually owned children’s social care provision and run for profit.
B51: Voluntary
B52: These are mostly not-for-profit organisations, mainly with charitable status. These can also be individually owned children’s social care provision and run on a not-for-profit basis.
B54: Secure children’s homes
B55: Secure children’s homes are defined by section 25 of the Children Act 1989. They accommodate children and young people who are remanded or have been sentenced for committing a criminal offence. They also accommodate children and young people who are placed there by a court because their behaviour is deemed to present a significant and immediate threat to their safety or the safety of others, unless they are placed in a secure environment. Ofsted inspections are conducted in accordance with the Care Standards Act 2000 and judgements in reports are made in relation to the outcomes for children set out in the Children Act 2004. The criteria are the same as those used to inspect non-secure children’s homes.
B57: Secure training centres
B58: Secure training centres are defined by section 43(1) (d) of the Prison Act 1952, as amended by Section 6(2) of the Criminal Justice and Public Order Act 1994. Ofsted has the power to inspect under section 146 Education and Inspections Act 2006 and inspects both the care and educational provision for children in three secure training centres. They accommodate young people between the ages of 12 and 17 who have been remanded or sentenced by the courts. The centres are under contract to the Youth Justice Board, which monitors their compliance with requirements. Ofsted does not regulate secure training centres but has an agreement with the Youth Justice Board to inspect care twice a year and education once a year.

Sheet Meta-data
C1: Type of data shown in each tab
C2: Local authorities | D2: Children's homes only | E2: All social care providers | F2: In year/period | G2: State of the nation
B3: LA inspection | C3: R | F3: R | G3: R
B4: Children's homes | D4: R | F4: R | G4: R
B5: Sub-judgements | D5: R | F5: R | G5: R
B6: LA level at 30 Sep 2017 | C6: R | F6: R | G6: R
B7: Provider level at 30 Sep 2017 | D7: R | G7: R
B8: Provider level in year 2017-18 | D8: R | F8: R
B9: Revised 2016-17 in year data | E9: R | F9: R
B10: Latest OE 30 Sep Time Series | D10: R | G10: R
B11: In Year Time series | D11: R | F11: R
B12: SIF sub-judgements | C12: R | G12: R

Sheet LA Inspection
B2: ="Statistical First Release Local Authority Inspections as at "&Inspections_To -> Statistical First Release Local Authority Inspections as at 30 September 2017
B4: Region: | E4: Local Authority:
B5: All | E5: All | G5: =IF(B5="All",TRUE,NOT(ISERROR(MATCH(E5,INDIRECT(SUBSTITUTE(SUBSTITUTE(B5," ","_"),",","")),0)))) -> TRUE
E7: Inspection Type:
E8: Single inspection framework
B10: Judgements | C10: Inspection Outcomes
C11: Outstanding | D11: Good | E11: Requires improvement / adequate | F11: Inadequate | G11: Not judged
B14: Overall Effectiveness (OE) | C14: =IF(ISERROR( VLOOKUP($E$8&$B$9&IF($E$5<>"All","All",$B$5)&$E$5,'LA FINAL RAW DATA'!$A:$I,5,0))=TRUE,0, VLOOKUP($E$8&$B$9&IF($E$5<>"All","All",$B$5)&$E$5,'LA FINAL RAW DATA'!$A:$I,5,0)) -> 3 | D14: =IF(ISERROR( VLOOKUP($E$8&$B$9&IF($E$5<>"All","All",$B$5)&$E$5,'LA FINAL RAW DATA'!$A:$I,6,0))=TRUE,0, VLOOKUP($E$8&$B$9&IF($E$5<>"All","All",$B$5)&$E$5,'LA FINAL RAW DATA'!$A:$I,6,0)) -> 52 | E14: =IF(ISERROR( VLOOKUP($E$8&$B$9&IF($E$5<>"All","All",$B$5)&$E$5,'LA FINAL RAW DATA'!$A:$I,7,0))=TRUE,0, VLOOKUP($E$8&$B$9&IF($E$5<>"All","All",$B$5)&$E$5,'LA FINAL RAW DATA'!$A:$I,7,0)) -> 68 | F14: =IF(ISERROR( VLOOKUP($E$8&$B$9&IF($E$5<>"All","All",$B$5)&$E$5,'LA FINAL RAW DATA'!$A:$I,8,0))=TRUE,0, VLOOKUP($E$8&$B$9&IF($E$5<>"All","All",$B$5)&$E$5,'LA FINAL RAW DATA'!$A:$I,8,0)) -> 29 | G14: =IF(ISERROR( VLOOKUP($E$8&$B$9&IF($E$5<>"All","All",$B$5)&$E$5,'LA FINAL RAW DATA'!$A:$I,9,0))=TRUE,0, VLOOKUP($E$8&$B$9&IF($E$5<>"All","All",$B$5)&$E$5,'LA FINAL RAW DATA'!$A:$I,9,0)) -> 0
B16: Children who need help and protection | C16: =IF(ISERROR( VLOOKUP($E$8&$B$9&" ["&$B16&"]"&IF($E$5<>"All","All",ddla)&$E$5,'LA FINAL RAW DATA'!$A:$I,5,0)),"", VLOOKUP($E$8&$B$9&" ["&$B16&"]"&IF($E$5<>"All","All",ddla)&$E$5,'LA FINAL RAW DATA'!$A:$I,5,0)) -> 0 | D16: =IF(ISERROR( VLOOKUP($E$8&$B$9&" ["&$B16&"]"&IF($E$5<>"All","All",ddla)&$E$5,'LA FINAL RAW DATA'!$A:$I,5,0)),"", VLOOKUP($E$8&$B$9&" ["&$B16&"]"&IF($E$5<>"All","All",ddla)&$E$5,'LA FINAL RAW DATA'!$A:$I,6,0)) -> 42 | E16: =IF(ISERROR( VLOOKUP($E$8&$B$9&" ["&$B16&"]"&IF($E$5<>"All","All",ddla)&$E$5,'LA FINAL RAW DATA'!$A:$I,5,0)),"", VLOOKUP($E$8&$B$9&" ["&$B16&"]"&IF($E$5<>"All","All",ddla)&$E$5,'LA FINAL RAW DATA'!$A:$I,7,0)) -> 84 | F16: =IF(ISERROR( VLOOKUP($E$8&$B$9&" ["&$B16&"]"&IF($E$5<>"All","All",ddla)&$E$5,'LA FINAL RAW DATA'!$A:$I,5,0)),"", VLOOKUP($E$8&$B$9&" ["&$B16&"]"&IF($E$5<>"All","All",ddla)&$E$5,'LA FINAL RAW DATA'!$A:$I,8,0)) -> 26 | G16: =IF(ISERROR( VLOOKUP($E$8&$B$9&" ["&$B16&"]"&IF($E$5<>"All","All",ddla)&$E$5,'LA FINAL RAW DATA'!$A:$I,5,0)),"", VLOOKUP($E$8&$B$9&" ["&$B16&"]"&IF($E$5<>"All","All",ddla)&$E$5,'LA FINAL RAW DATA'!$A:$I,9,0)) -> 0
B18: Children looked after and achieving permanence | C18: =IF(ISERROR( VLOOKUP($E$8&$B$9&" ["&$B18&"]"&IF($E$5<>"All","All",ddla)&$E$5,'LA FINAL RAW DATA'!$A:$I,5,0)),"", VLOOKUP($E$8&$B$9&" ["&$B18&"]"&IF($E$5<>"All","All",ddla)&$E$5,'LA FINAL RAW DATA'!$A:$I,5,0)) -> 4 | D18: =IF(ISERROR( VLOOKUP($E$8&$B$9&" ["&$B18&"]"&IF($E$5<>"All","All",ddla)&$E$5,'LA FINAL RAW DATA'!$A:$I,5,0)),"", VLOOKUP($E$8&$B$9&" ["&$B18&"]"&IF($E$5<>"All","All",ddla)&$E$5,'LA FINAL RAW DATA'!$A:$I,6,0)) -> 54 | E18: =IF(ISERROR( VLOOKUP($E$8&$B$9&" ["&$B18&"]"&IF($E$5<>"All","All",ddla)&$E$5,'LA FINAL RAW DATA'!$A:$I,5,0)),"", VLOOKUP($E$8&$B$9&" ["&$B18&"]"&IF($E$5<>"All","All",ddla)&$E$5,'LA FINAL RAW DATA'!$A:$I,7,0)) -> 78 | F18: =IF(ISERROR( VLOOKUP($E$8&$B$9&" ["&$B18&"]"&IF($E$5<>"All","All",ddla)&$E$5,'LA FINAL RAW DATA'!$A:$I,5,0)),"", VLOOKUP($E$8&$B$9&" ["&$B18&"]"&IF($E$5<>"All","All",ddla)&$E$5,'LA FINAL RAW DATA'!$A:$I,8,0)) -> 15 | G18: =IF(ISERROR( VLOOKUP($E$8&$B$9&" ["&$B18&"]"&IF($E$5<>"All","All",ddla)&$E$5,'LA FINAL RAW DATA'!$A:$I,5,0)),"", VLOOKUP($E$8&$B$9&" ["&$B18&"]"&IF($E$5<>"All","All",ddla)&$E$5,'LA FINAL RAW DATA'!$A:$I,9,0)) -> 0
B20: Adoption Performance | C20: =IF(ISERROR( VLOOKUP($E$8&$B$9&" [CLA Sub: "&$B20&"]"&IF($E$5<>"All","All",ddla)&$E$5,'LA FINAL RAW DATA'!$A:$I,5,0)),"", VLOOKUP($E$8&$B$9&" [CLA Sub: "&$B20&"]"&IF($E$5<>"All","All",ddla)&$E$5,'LA FINAL RAW DATA'!$A:$I,5,0)) -> 16 | D20: =IF(ISERROR( VLOOKUP($E$8&$B$9&" [CLA Sub: "&$B20&"]"&IF($E$5<>"All","All",ddla)&$E$5,'LA FINAL RAW DATA'!$A:$I,5,0)),"", VLOOKUP($E$8&$B$9&" [CLA Sub: "&$B20&"]"&IF($E$5<>"All","All",ddla)&$E$5,'LA FINAL RAW DATA'!$A:$I,6,0)) -> 79 | E20: =IF(ISERROR( VLOOKUP($E$8&$B$9&" [CLA Sub: "&$B20&"]"&IF($E$5<>"All","All",ddla)&$E$5,'LA FINAL RAW DATA'!$A:$I,5,0)),"", VLOOKUP($E$8&$B$9&" [CLA Sub: "&$B20&"]"&IF($E$5<>"All","All",ddla)&$E$5,'LA FINAL RAW DATA'!$A:$I,7,0)) -> 49 | F20: =IF(ISERROR( VLOOKUP($E$8&$B$9&" [CLA Sub: "&$B20&"]"&IF($E$5<>"All","All",ddla)&$E$5,'LA FINAL RAW DATA'!$A:$I,5,0)),"", VLOOKUP($E$8&$B$9&" [CLA Sub: "&$B20&"]"&IF($E$5<>"All","All",ddla)&$E$5,'LA FINAL RAW DATA'!$A:$I,8,0)) -> 6 | G20: =IF(ISERROR( VLOOKUP($E$8&$B$9&" [CLA Sub: "&$B20&"]"&IF($E$5<>"All","All",ddla)&$E$5,'LA FINAL RAW DATA'!$A:$I,5,0)),"", VLOOKUP($E$8&$B$9&" [CLA Sub: "&$B20&"]"&IF($E$5<>"All","All",ddla)&$E$5,'LA FINAL RAW DATA'!$A:$I,9,0)) -> 0
B22: Experiences and progress of care leavers | C22: =IF(ISERROR( VLOOKUP($E$8&$B$9&" [CLA Sub: "&$B22&"]"&IF($E$5<>"All","All",ddla)&$E$5,'LA FINAL RAW DATA'!$A:$I,5,0)),"", VLOOKUP($E$8&$B$9&" [CLA Sub: "&$B22&"]"&IF($E$5<>"All","All",ddla)&$E$5,'LA FINAL RAW DATA'!$A:$I,5,0)) -> 9 | D22: =IF(ISERROR( VLOOKUP($E$8&$B$9&" [CLA Sub: "&$B22&"]"&IF($E$5<>"All","All",ddla)&$E$5,'LA FINAL RAW DATA'!$A:$I,5,0)),"", VLOOKUP($E$8&$B$9&" [CLA Sub: "&$B22&"]"&IF($E$5<>"All","All",ddla)&$E$5,'LA FINAL RAW DATA'!$A:$I,6,0)) -> 61 | E22: =IF(ISERROR( VLOOKUP($E$8&$B$9&" [CLA Sub: "&$B22&"]"&IF($E$5<>"All","All",ddla)&$E$5,'LA FINAL RAW DATA'!$A:$I,5,0)),"", VLOOKUP($E$8&$B$9&" [CLA Sub: "&$B22&"]"&IF($E$5<>"All","All",ddla)&$E$5,'LA FINAL RAW DATA'!$A:$I,7,0)) -> 66 | F22: =IF(ISERROR( VLOOKUP($E$8&$B$9&" [CLA Sub: "&$B22&"]"&IF($E$5<>"All","All",ddla)&$E$5,'LA FINAL RAW DATA'!$A:$I,5,0)),"", VLOOKUP($E$8&$B$9&" [CLA Sub: "&$B22&"]"&IF($E$5<>"All","All",ddla)&$E$5,'LA FINAL RAW DATA'!$A:$I,8,0)) -> 15 | G22: =IF(ISERROR( VLOOKUP($E$8&$B$9&" [CLA Sub: "&$B22&"]"&IF($E$5<>"All","All",ddla)&$E$5,'LA FINAL RAW DATA'!$A:$I,5,0)),"", VLOOKUP($E$8&$B$9&" [CLA Sub: "&$B22&"]"&IF($E$5<>"All","All",ddla)&$E$5,'LA FINAL RAW DATA'!$A:$I,9,0)) -> 0
B24: Leadership, management and governance | C24: =IF(ISERROR( VLOOKUP($E$8&$B$9&" ["&$B24&"]"&IF($E$5<>"All","All",ddla)&$E$5,'LA FINAL RAW DATA'!$A:$I,5,0)),"", VLOOKUP($E$8&$B$9&" ["&$B24&"]"&IF($E$5<>"All","All",ddla)&$E$5,'LA FINAL RAW DATA'!$A:$I,5,0)) -> 12 | D24: =IF(ISERROR( VLOOKUP($E$8&$B$9&" ["&$B24&"]"&IF($E$5<>"All","All",ddla)&$E$5,'LA FINAL RAW DATA'!$A:$I,5,0)),"", VLOOKUP($E$8&$B$9&" ["&$B24&"]"&IF($E$5<>"All","All",ddla)&$E$5,'LA FINAL RAW DATA'!$A:$I,6,0)) -> 51 | E24: =IF(ISERROR( VLOOKUP($E$8&$B$9&" ["&$B24&"]"&IF($E$5<>"All","All",ddla)&$E$5,'LA FINAL RAW DATA'!$A:$I,5,0)),"", VLOOKUP($E$8&$B$9&" ["&$B24&"]"&IF($E$5<>"All","All",ddla)&$E$5,'LA FINAL RAW DATA'!$A:$I,7,0)) -> 62 | F24: =IF(ISERROR( VLOOKUP($E$8&$B$9&" ["&$B24&"]"&IF($E$5<>"All","All",ddla)&$E$5,'LA FINAL RAW DATA'!$A:$I,5,0)),"", VLOOKUP($E$8&$B$9&" ["&$B24&"]"&IF($E$5<>"All","All",ddla)&$E$5,'LA FINAL RAW DATA'!$A:$I,8,0)) -> 27 | G24: =IF(ISERROR( VLOOKUP($E$8&$B$9&" ["&$B24&"]"&IF($E$5<>"All","All",ddla)&$E$5,'LA FINAL RAW DATA'!$A:$I,5,0)),"", VLOOKUP($E$8&$B$9&" ["&$B24&"]"&IF($E$5<>"All","All",ddla)&$E$5,'LA FINAL RAW DATA'!$A:$I,9,0)) -> 0
B29: =IF(B5<>"All",B5,IF(E5<>"All",VLOOKUP(E5,'Region Lookups'!C:D,2,0),"All")) -> All
D31: Total number inspected | F31: Outstanding | H31: Good | J31: Requires Improvement/ Adequate | M31: Inadequate
F32: 6 | H32: 7 | J32: 8 | M32: 9
B33: England | D33: =SUM(F33:M33) -> 152 | F33: =IF(ISERROR(VLOOKUP($E$8&$B$9&"ALL"&"ALL",'LA FINAL RAW DATA'!$A:$I,5,0))=TRUE,"",VLOOKUP($E$8&$B$9&"ALL"&"ALL",'LA FINAL RAW DATA'!$A:$I,5,0)) -> 3 | H33: =IF(ISERROR(VLOOKUP($E$8&$B$9&"ALL"&"ALL",'LA FINAL RAW DATA'!$A:$I,6,0))=TRUE,"",VLOOKUP($E$8&$B$9&"ALL"&"ALL",'LA FINAL RAW DATA'!$A:$I,6,0)) -> 52 | J33: =IF(ISERROR(VLOOKUP($E$8&$B$9&"ALL"&"ALL",'LA FINAL RAW DATA'!$A:$I,7,0))=TRUE,"",VLOOKUP($E$8&$B$9&"ALL"&"ALL",'LA FINAL RAW DATA'!$A:$I,7,0)) -> 68 | M33: =IF(ISERROR(VLOOKUP($E$8&$B$9&"ALL"&"ALL",'LA FINAL RAW DATA'!$A:$I,8,0))=TRUE,"",VLOOKUP($E$8&$B$9&"ALL"&"ALL",'LA FINAL RAW DATA'!$A:$I,8,0)) -> 29
B35: =IFERROR(IF(B29="All",NA(),B29),"") ->  | D35: =IF(ISERROR(VLOOKUP($E$8&B35&"All",'LA FINAL RAW DATA'!$A:$I,5,0)),"",SUM(F35:M35)) ->  | F35: =IF(ISERROR(VLOOKUP($E$8&$B$9&$B$35&"ALL",'LA FINAL RAW DATA'!$A:$I,5,0))=TRUE,"",VLOOKUP($E$8&$B$9&$B$35&"ALL",'LA FINAL RAW DATA'!$A:$I,5,0)) ->  | H35: =IF(ISERROR(VLOOKUP($E$8&$B$9&$B$35&"ALL",'LA FINAL RAW DATA'!$A:$I,6,0))=TRUE,"",VLOOKUP($E$8&$B$9&$B$35&"ALL",'LA FINAL RAW DATA'!$A:$I,6,0)) ->  | J35: =IF(ISERROR(VLOOKUP($E$8&$B$9&$B$35&"ALL",'LA FINAL RAW DATA'!$A:$I,7,0))=TRUE,"",VLOOKUP($E$8&$B$9&$B$35&"ALL",'LA FINAL RAW DATA'!$A:$I,7,0)) ->  | M35: =IF(ISERROR(VLOOKUP($E$8&$B$9&$B$35&"ALL",'LA FINAL RAW DATA'!$A:$I,8,0))=TRUE,"",VLOOKUP($E$8&$B$9&$B$35&"ALL",'LA FINAL RAW DATA'!$A:$I,8,0)) -> 
A36: 1 | B36: =IFERROR(VLOOKUP($B$29&A36,'Region Lookups'!A:C,3,0),"") ->  | D36: =IF(ISERROR(VLOOKUP($E$8&"All"&$B36,'LA FINAL RAW DATA'!$A:$I,5,0)),"",SUM(F36:N36)) ->  | F36: =IF(ISERROR(VLOOKUP($E$8&$B$9&IF($B36<>"All","All",$B$5)&$B36,'LA FINAL RAW DATA'!$A:$I,5,0))=TRUE,IF(B36="","",0),VLOOKUP($E$8&$B$9&IF($B36<>"All","All",$B$5)&$B36,'LA FINAL RAW DATA'!$A:$I,5,0)) ->  | H36: =IF(ISERROR(VLOOKUP($E$8&$B$9&IF($B36<>"All","All",$B$5)&$B36,'LA FINAL RAW DATA'!$A:$I,6,0))=TRUE,IF(B36="","",0),VLOOKUP($E$8&$B$9&IF($B36<>"All","All",$B$5)&$B36,'LA FINAL RAW DATA'!$A:$I,6,0)) ->  | J36: =IF(ISERROR(VLOOKUP($E$8&$B$9&IF($B36<>"All","All",$B$5)&$B36,'LA FINAL RAW DATA'!$A:$I,7,0))=TRUE,IF(B36="","",0),VLOOKUP($E$8&$B$9&IF($B36<>"All","All",$B$5)&$B36,'LA FINAL RAW DATA'!$A:$I,7,0)) ->  | M36: =IF(ISERROR(VLOOKUP($E$8&$B$9&IF($B36<>"All","All",$B$5)&$B36,'LA FINAL RAW DATA'!$A:$I,8,0))=TRUE,IF(B36="","",0),VLOOKUP($E$8&$B$9&IF($B36<>"All","All",$B$5)&$B36,'LA FINAL RAW DATA'!$A:$I,8,0)) -> 
A37: 2 | B37: =IFERROR(VLOOKUP($B$29&A37,'Region Lookups'!A:C,3,0),"") ->  | D37: =IF(ISERROR(VLOOKUP($E$8&"All"&$B37,'LA FINAL RAW DATA'!$A:$I,5,0)),"",SUM(F37:N37)) ->  | F37: =IF(ISERROR(VLOOKUP($E$8&$B$9&IF($B37<>"All","All",$B$5)&$B37,'LA FINAL RAW DATA'!$A:$I,5,0))=TRUE,IF(B37="","",0),VLOOKUP($E$8&$B$9&IF($B37<>"All","All",$B$5)&$B37,'LA FINAL RAW DATA'!$A:$I,5,0)) ->  | H37: =IF(ISERROR(VLOOKUP($E$8&$B$9&IF($B37<>"All","All",$B$5)&$B37,'LA FINAL RAW DATA'!$A:$I,6,0))=TRUE,IF(B37="","",0),VLOOKUP($E$8&$B$9&IF($B37<>"All","All",$B$5)&$B37,'LA FINAL RAW DATA'!$A:$I,6,0)) ->  | J37: =IF(ISERROR(VLOOKUP($E$8&$B$9&IF($B37<>"All","All",$B$5)&$B37,'LA FINAL RAW DATA'!$A:$I,7,0))=TRUE,IF(B37="","",0),VLOOKUP($E$8&$B$9&IF($B37<>"All","All",$B$5)&$B37,'LA FINAL RAW DATA'!$A:$I,7,0)) ->  | M37: =IF(ISERROR(VLOOKUP($E$8&$B$9&IF($B37<>"All","All",$B$5)&$B37,'LA FINAL RAW DATA'!$A:$I,8,0))=TRUE,IF(B37="","",0),VLOOKUP($E$8&$B$9&IF($B37<>"All","All",$B$5)&$B37,'LA FINAL RAW DATA'!$A:$I,8,0)) -> 
A38: 3 | B38: =IFERROR(VLOOKUP($B$29&A38,'Region Lookups'!A:C,3,0),"") ->  | D38: =IF(ISERROR(VLOOKUP($E$8&"All"&$B38,'LA FINAL RAW DATA'!$A:$I,5,0)),"",SUM(F38:N38)) ->  | F38: =IF(ISERROR(VLOOKUP($E$8&$B$9&IF($B38<>"All","All",$B$5)&$B38,'LA FINAL RAW DATA'!$A:$I,5,0))=TRUE,IF(B38="","",0),VLOOKUP($E$8&$B$9&IF($B38<>"All","All",$B$5)&$B38,'LA FINAL RAW DATA'!$A:$I,5,0)) ->  | H38: =IF(ISERROR(VLOOKUP($E$8&$B$9&IF($B38<>"All","All",$B$5)&$B38,'LA FINAL RAW DATA'!$A:$I,6,0))=TRUE,IF(B38="","",0),VLOOKUP($E$8&$B$9&IF($B38<>"All","All",$B$5)&$B38,'LA FINAL RAW DATA'!$A:$I,6,0)) ->  | J38: =IF(ISERROR(VLOOKUP($E$8&$B$9&IF($B38<>"All","All",$B$5)&$B38,'LA FINAL RAW DATA'!$A:$I,7,0))=TRUE,IF(B38="","",0),VLOOKUP($E$8&$B$9&IF($B38<>"All","All",$B$5)&$B38,'LA FINAL RAW DATA'!$A:$I,7,0)) ->  | M38: =IF(ISERROR(VLOOKUP($E$8&$B$9&IF($B38<>"All","All",$B$5)&$B38,'LA FINAL RAW DATA'!$A:$I,8,0))=TRUE,IF(B38="","",0),VLOOKUP($E$8&$B$9&IF($B38<>"All","All",$B$5)&$B38,'LA FINAL RAW DATA'!$A:$I,8,0)) -> 
A39: 4 | B39: =IFERROR(VLOOKUP($B$29&A39,'Region Lookups'!A:C,3,0),"") ->  | D39: =IF(ISERROR(VLOOKUP($E$8&"All"&$B39,'LA FINAL RAW DATA'!$A:$I,5,0)),"",SUM(F39:N39)) ->  | F39: =IF(ISERROR(VLOOKUP($E$8&$B$9&IF($B39<>"All","All",$B$5)&$B39,'LA FINAL RAW DATA'!$A:$I,5,0))=TRUE,IF(B39="","",0),VLOOKUP($E$8&$B$9&IF($B39<>"All","All",$B$5)&$B39,'LA FINAL RAW DATA'!$A:$I,5,0)) ->  | H39: =IF(ISERROR(VLOOKUP($E$8&$B$9&IF($B39<>"All","All",$B$5)&$B39,'LA FINAL RAW DATA'!$A:$I,6,0))=TRUE,IF(B39="","",0),VLOOKUP($E$8&$B$9&IF($B39<>"All","All",$B$5)&$B39,'LA FINAL RAW DATA'!$A:$I,6,0)) ->  | J39: =IF(ISERROR(VLOOKUP($E$8&$B$9&IF($B39<>"All","All",$B$5)&$B39,'LA FINAL RAW DATA'!$A:$I,7,0))=TRUE,IF(B39="","",0),VLOOKUP($E$8&$B$9&IF($B39<>"All","All",$B$5)&$B39,'LA FINAL RAW DATA'!$A:$I,7,0)) ->  | M39: =IF(ISERROR(VLOOKUP($E$8&$B$9&IF($B39<>"All","All",$B$5)&$B39,'LA FINAL RAW DATA'!$A:$I,8,0))=TRUE,IF(B39="","",0),VLOOKUP($E$8&$B$9&IF($B39<>"All","All",$B$5)&$B39,'LA FINAL RAW DATA'!$A:$I,8,0)) -> 
A40: 5 | B40: =IFERROR(VLOOKUP($B$29&A40,'Region Lookups'!A:C,3,0),"") ->  | D40: =IF(ISERROR(VLOOKUP($E$8&"All"&$B40,'LA FINAL RAW DATA'!$A:$I,5,0)),"",SUM(F40:N40)) ->  | F40: =IF(ISERROR(VLOOKUP($E$8&$B$9&IF($B40<>"All","All",$B$5)&$B40,'LA FINAL RAW DATA'!$A:$I,5,0))=TRUE,IF(B40="","",0),VLOOKUP($E$8&$B$9&IF($B40<>"All","All",$B$5)&$B40,'LA FINAL RAW DATA'!$A:$I,5,0)) ->  | H40: =IF(ISERROR(VLOOKUP($E$8&$B$9&IF($B40<>"All","All",$B$5)&$B40,'LA FINAL RAW DATA'!$A:$I,6,0))=TRUE,IF(B40="","",0),VLOOKUP($E$8&$B$9&IF($B40<>"All","All",$B$5)&$B40,'LA FINAL RAW DATA'!$A:$I,6,0)) ->  | J40: =IF(ISERROR(VLOOKUP($E$8&$B$9&IF($B40<>"All","All",$B$5)&$B40,'LA FINAL RAW DATA'!$A:$I,7,0))=TRUE,IF(B40="","",0),VLOOKUP($E$8&$B$9&IF($B40<>"All","All",$B$5)&$B40,'LA FINAL RAW DATA'!$A:$I,7,0)) ->  | M40: =IF(ISERROR(VLOOKUP($E$8&$B$9&IF($B40<>"All","All",$B$5)&$B40,'LA FINAL RAW DATA'!$A:$I,8,0))=TRUE,IF(B40="","",0),VLOOKUP($E$8&$B$9&IF($B40<>"All","All",$B$5)&$B40,'LA FINAL RAW DATA'!$A:$I,8,0)) -> 
A41: 6 | B41: =IFERROR(VLOOKUP($B$29&A41,'Region Lookups'!A:C,3,0),"") ->  | D41: =IF(ISERROR(VLOOKUP($E$8&"All"&$B41,'LA FINAL RAW DATA'!$A:$I,5,0)),"",SUM(F41:N41)) ->  | F41: =IF(ISERROR(VLOOKUP($E$8&$B$9&IF($B41<>"All","All",$B$5)&$B41,'LA FINAL RAW DATA'!$A:$I,5,0))=TRUE,IF(B41="","",0),VLOOKUP($E$8&$B$9&IF($B41<>"All","All",$B$5)&$B41,'LA FINAL RAW DATA'!$A:$I,5,0)) ->  | H41: =IF(ISERROR(VLOOKUP($E$8&$B$9&IF($B41<>"All","All",$B$5)&$B41,'LA FINAL RAW DATA'!$A:$I,6,0))=TRUE,IF(B41="","",0),VLOOKUP($E$8&$B$9&IF($B41<>"All","All",$B$5)&$B41,'LA FINAL RAW DATA'!$A:$I,6,0)) ->  | J41: =IF(ISERROR(VLOOKUP($E$8&$B$9&IF($B41<>"All","All",$B$5)&$B41,'LA FINAL RAW DATA'!$A:$I,7,0))=TRUE,IF(B41="","",0),VLOOKUP($E$8&$B$9&IF($B41<>"All","All",$B$5)&$B41,'LA FINAL RAW DATA'!$A:$I,7,0)) ->  | M41: =IF(ISERROR(VLOOKUP($E$8&$B$9&IF($B41<>"All","All",$B$5)&$B41,'LA FINAL RAW DATA'!$A:$I,8,0))=TRUE,IF(B41="","",0),VLOOKUP($E$8&$B$9&IF($B41<>"All","All",$B$5)&$B41,'LA FINAL RAW DATA'!$A:$I,8,0)) -> 
A42: 7 | B42: =IFERROR(VLOOKUP($B$29&A42,'Region Lookups'!A:C,3,0),"") ->  | D42: =IF(ISERROR(VLOOKUP($E$8&"All"&$B42,'LA FINAL RAW DATA'!$A:$I,5,0)),"",SUM(F42:N42)) ->  | F42: =IF(ISERROR(VLOOKUP($E$8&$B$9&IF($B42<>"All","All",$B$5)&$B42,'LA FINAL RAW DATA'!$A:$I,5,0))=TRUE,IF(B42="","",0),VLOOKUP($E$8&$B$9&IF($B42<>"All","All",$B$5)&$B42,'LA FINAL RAW DATA'!$A:$I,5,0)) ->  | H42: =IF(ISERROR(VLOOKUP($E$8&$B$9&IF($B42<>"All","All",$B$5)&$B42,'LA FINAL RAW DATA'!$A:$I,6,0))=TRUE,IF(B42="","",0),VLOOKUP($E$8&$B$9&IF($B42<>"All","All",$B$5)&$B42,'LA FINAL RAW DATA'!$A:$I,6,0)) ->  | J42: =IF(ISERROR(VLOOKUP($E$8&$B$9&IF($B42<>"All","All",$B$5)&$B42,'LA FINAL RAW DATA'!$A:$I,7,0))=TRUE,IF(B42="","",0),VLOOKUP($E$8&$B$9&IF($B42<>"All","All",$B$5)&$B42,'LA FINAL RAW DATA'!$A:$I,7,0)) ->  | M42: =IF(ISERROR(VLOOKUP($E$8&$B$9&IF($B42<>"All","All",$B$5)&$B42,'LA FINAL RAW DATA'!$A:$I,8,0))=TRUE,IF(B42="","",0),VLOOKUP($E$8&$B$9&IF($B42<>"All","All",$B$5)&$B42,'LA FINAL RAW DATA'!$A:$I,8,0)) -> 
A43: 8 | B43: =IFERROR(VLOOKUP($B$29&A43,'Region Lookups'!A:C,3,0),"") ->  | D43: =IF(ISERROR(VLOOKUP($E$8&"All"&$B43,'LA FINAL RAW DATA'!$A:$I,5,0)),"",SUM(F43:N43)) ->  | F43: =IF(ISERROR(VLOOKUP($E$8&$B$9&IF($B43<>"All","All",$B$5)&$B43,'LA FINAL RAW DATA'!$A:$I,5,0))=TRUE,IF(B43="","",0),VLOOKUP($E$8&$B$9&IF($B43<>"All","All",$B$5)&$B43,'LA FINAL RAW DATA'!$A:$I,5,0)) ->  | H43: =IF(ISERROR(VLOOKUP($E$8&$B$9&IF($B43<>"All","All",$B$5)&$B43,'LA FINAL RAW DATA'!$A:$I,6,0))=TRUE,IF(B43="","",0),VLOOKUP($E$8&$B$9&IF($B43<>"All","All",$B$5)&$B43,'LA FINAL RAW DATA'!$A:$I,6,0)) ->  | J43: =IF(ISERROR(VLOOKUP($E$8&$B$9&IF($B43<>"All","All",$B$5)&$B43,'LA FINAL RAW DATA'!$A:$I,7,0))=TRUE,IF(B43="","",0),VLOOKUP($E$8&$B$9&IF($B43<>"All","All",$B$5)&$B43,'LA FINAL RAW DATA'!$A:$I,7,0)) ->  | M43: =IF(ISERROR(VLOOKUP($E$8&$B$9&IF($B43<>"All","All",$B$5)&$B43,'LA FINAL RAW DATA'!$A:$I,8,0))=TRUE,IF(B43="","",0),VLOOKUP($E$8&$B$9&IF($B43<>"All","All",$B$5)&$B43,'LA FINAL RAW DATA'!$A:$I,8,0)) -> 
A44: 9 | B44: =IFERROR(VLOOKUP($B$29&A44,'Region Lookups'!A:C,3,0),"") ->  | D44: =IF(ISERROR(VLOOKUP($E$8&"All"&$B44,'LA FINAL RAW DATA'!$A:$I,5,0)),"",SUM(F44:N44)) ->  | F44: =IF(ISERROR(VLOOKUP($E$8&$B$9&IF($B44<>"All","All",$B$5)&$B44,'LA FINAL RAW DATA'!$A:$I,5,0))=TRUE,IF(B44="","",0),VLOOKUP($E$8&$B$9&IF($B44<>"All","All",$B$5)&$B44,'LA FINAL RAW DATA'!$A:$I,5,0)) ->  | H44: =IF(ISERROR(VLOOKUP($E$8&$B$9&IF($B44<>"All","All",$B$5)&$B44,'LA FINAL RAW DATA'!$A:$I,6,0))=TRUE,IF(B44="","",0),VLOOKUP($E$8&$B$9&IF($B44<>"All","All",$B$5)&$B44,'LA FINAL RAW DATA'!$A:$I,6,0)) ->  | J44: =IF(ISERROR(VLOOKUP($E$8&$B$9&IF($B44<>"All","All",$B$5)&$B44,'LA FINAL RAW DATA'!$A:$I,7,0))=TRUE,IF(B44="","",0),VLOOKUP($E$8&$B$9&IF($B44<>"All","All",$B$5)&$B44,'LA FINAL RAW DATA'!$A:$I,7,0)) ->  | M44: =IF(ISERROR(VLOOKUP($E$8&$B$9&IF($B44<>"All","All",$B$5)&$B44,'LA FINAL RAW DATA'!$A:$I,8,0))=TRUE,IF(B44="","",0),VLOOKUP($E$8&$B$9&IF($B44<>"All","All",$B$5)&$B44,'LA FINAL RAW DATA'!$A:$I,8,0)) -> 
A45: 10 | B45: =IFERROR(VLOOKUP($B$29&A45,'Region Lookups'!A:C,3,0),"") ->  | D45: =IF(ISERROR(VLOOKUP($E$8&"All"&$B45,'LA FINAL RAW DATA'!$A:$I,5,0)),"",SUM(F45:N45)) ->  | F45: =IF(ISERROR(VLOOKUP($E$8&$B$9&IF($B45<>"All","All",$B$5)&$B45,'LA FINAL RAW DATA'!$A:$I,5,0))=TRUE,IF(B45="","",0),VLOOKUP($E$8&$B$9&IF($B45<>"All","All",$B$5)&$B45,'LA FINAL RAW DATA'!$A:$I,5,0)) ->  | H45: =IF(ISERROR(VLOOKUP($E$8&$B$9&IF($B45<>"All","All",$B$5)&$B45,'LA FINAL RAW DATA'!$A:$I,6,0))=TRUE,IF(B45="","",0),VLOOKUP($E$8&$B$9&IF($B45<>"All","All",$B$5)&$B45,'LA FINAL RAW DATA'!$A:$I,6,0)) ->  | J45: =IF(ISERROR(VLOOKUP($E$8&$B$9&IF($B45<>"All","All",$B$5)&$B45,'LA FINAL RAW DATA'!$A:$I,7,0))=TRUE,IF(B45="","",0),VLOOKUP($E$8&$B$9&IF($B45<>"All","All",$B$5)&$B45,'LA FINAL RAW DATA'!$A:$I,7,0)) ->  | M45: =IF(ISERROR(VLOOKUP($E$8&$B$9&IF($B45<>"All","All",$B$5)&$B45,'LA FINAL RAW DATA'!$A:$I,8,0))=TRUE,IF(B45="","",0),VLOOKUP($E$8&$B$9&IF($B45<>"All","All",$B$5)&$B45,'LA FINAL RAW DATA'!$A:$I,8,0)) -> 
A46: 11 | B46: =IFERROR(VLOOKUP($B$29&A46,'Region Lookups'!A:C,3,0),"") ->  | D46: =IF(ISERROR(VLOOKUP($E$8&"All"&$B46,'LA FINAL RAW DATA'!$A:$I,5,0)),"",SUM(F46:N46)) ->  | F46: =IF(ISERROR(VLOOKUP($E$8&$B$9&IF($B46<>"All","All",$B$5)&$B46,'LA FINAL RAW DATA'!$A:$I,5,0))=TRUE,IF(B46="","",0),VLOOKUP($E$8&$B$9&IF($B46<>"All","All",$B$5)&$B46,'LA FINAL RAW DATA'!$A:$I,5,0)) ->  | H46: =IF(ISERROR(VLOOKUP($E$8&$B$9&IF($B46<>"All","All",$B$5)&$B46,'LA FINAL RAW DATA'!$A:$I,6,0))=TRUE,IF(B46="","",0),VLOOKUP($E$8&$B$9&IF($B46<>"All","All",$B$5)&$B46,'LA FINAL RAW DATA'!$A:$I,6,0)) ->  | J46: =IF(ISERROR(VLOOKUP($E$8&$B$9&IF($B46<>"All","All",$B$5)&$B46,'LA FINAL RAW DATA'!$A:$I,7,0))=TRUE,IF(B46="","",0),VLOOKUP($E$8&$B$9&IF($B46<>"All","All",$B$5)&$B46,'LA FINAL RAW DATA'!$A:$I,7,0)) ->  | M46: =IF(ISERROR(VLOOKUP($E$8&$B$9&IF($B46<>"All","All",$B$5)&$B46,'LA FINAL RAW DATA'!$A:$I,8,0))=TRUE,IF(B46="","",0),VLOOKUP($E$8&$B$9&IF($B46<>"All","All",$B$5)&$B46,'LA FINAL RAW DATA'!$A:$I,8,0)) -> 
A47: 12 | B47: =IFERROR(VLOOKUP($B$29&A47,'Region Lookups'!A:C,3,0),"") ->  | D47: =IF(ISERROR(VLOOKUP($E$8&"All"&$B47,'LA FINAL RAW DATA'!$A:$I,5,0)),"",SUM(F47:N47)) ->  | F47: =IF(ISERROR(VLOOKUP($E$8&$B$9&IF($B47<>"All","All",$B$5)&$B47,'LA FINAL RAW DATA'!$A:$I,5,0))=TRUE,IF(B47="","",0),VLOOKUP($E$8&$B$9&IF($B47<>"All","All",$B$5)&$B47,'LA FINAL RAW DATA'!$A:$I,5,0)) ->  | H47: =IF(ISERROR(VLOOKUP($E$8&$B$9&IF($B47<>"All","All",$B$5)&$B47,'LA FINAL RAW DATA'!$A:$I,6,0))=TRUE,IF(B47="","",0),VLOOKUP($E$8&$B$9&IF($B47<>"All","All",$B$5)&$B47,'LA FINAL RAW DATA'!$A:$I,6,0)) ->  | J47: =IF(ISERROR(VLOOKUP($E$8&$B$9&IF($B47<>"All","All",$B$5)&$B47,'LA FINAL RAW DATA'!$A:$I,7,0))=TRUE,IF(B47="","",0),VLOOKUP($E$8&$B$9&IF($B47<>"All","All",$B$5)&$B47,'LA FINAL RAW DATA'!$A:$I,7,0)) ->  | M47: =IF(ISERROR(VLOOKUP($E$8&$B$9&IF($B47<>"All","All",$B$5)&$B47,'LA FINAL RAW DATA'!$A:$I,8,0))=TRUE,IF(B47="","",0),VLOOKUP($E$8&$B$9&IF($B47<>"All","All",$B$5)&$B47,'LA FINAL RAW DATA'!$A:$I,8,0)) -> 
A48: 13 | B48: =IFERROR(VLOOKUP($B$29&A48,'Region Lookups'!A:C,3,0),"") ->  | D48: =IF(ISERROR(VLOOKUP($E$8&"All"&$B48,'LA FINAL RAW DATA'!$A:$I,5,0)),"",SUM(F48:N48)) ->  | F48: =IF(ISERROR(VLOOKUP($E$8&$B$9&IF($B48<>"All","All",$B$5)&$B48,'LA FINAL RAW DATA'!$A:$I,5,0))=TRUE,IF(B48="","",0),VLOOKUP($E$8&$B$9&IF($B48<>"All","All",$B$5)&$B48,'LA FINAL RAW DATA'!$A:$I,5,0)) ->  | H48: =IF(ISERROR(VLOOKUP($E$8&$B$9&IF($B48<>"All","All",$B$5)&$B48,'LA FINAL RAW DATA'!$A:$I,6,0))=TRUE,IF(B48="","",0),VLOOKUP($E$8&$B$9&IF($B48<>"All","All",$B$5)&$B48,'LA FINAL RAW DATA'!$A:$I,6,0)) ->  | J48: =IF(ISERROR(VLOOKUP($E$8&$B$9&IF($B48<>"All","All",$B$5)&$B48,'LA FINAL RAW DATA'!$A:$I,7,0))=TRUE,IF(B48="","",0),VLOOKUP($E$8&$B$9&IF($B48<>"All","All",$B$5)&$B48,'LA FINAL RAW DATA'!$A:$I,7,0)) ->  | M48: =IF(ISERROR(VLOOKUP($E$8&$B$9&IF($B48<>"All","All",$B$5)&$B48,'LA FINAL RAW DATA'!$A:$I,8,0))=TRUE,IF(B48="","",0),VLOOKUP($E$8&$B$9&IF($B48<>"All","All",$B$5)&$B48,'LA FINAL RAW DATA'!$A:$I,8,0)) -> 
A49: 14 | B49: =IFERROR(VLOOKUP($B$29&A49,'Region Lookups'!A:C,3,0),"") ->  | D49: =IF(ISERROR(VLOOKUP($E$8&"All"&$B49,'LA FINAL RAW DATA'!$A:$I,5,0)),"",SUM(F49:N49)) ->  | F49: =IF(ISERROR(VLOOKUP($E$8&$B$9&IF($B49<>"All","All",$B$5)&$B49,'LA FINAL RAW DATA'!$A:$I,5,0))=TRUE,IF(B49="","",0),VLOOKUP($E$8&$B$9&IF($B49<>"All","All",$B$5)&$B49,'LA FINAL RAW DATA'!$A:$I,5,0)) ->  | H49: =IF(ISERROR(VLOOKUP($E$8&$B$9&IF($B49<>"All","All",$B$5)&$B49,'LA FINAL RAW DATA'!$A:$I,6,0))=TRUE,IF(B49="","",0),VLOOKUP($E$8&$B$9&IF($B49<>"All","All",$B$5)&$B49,'LA FINAL RAW DATA'!$A:$I,6,0)) ->  | J49: =IF(ISERROR(VLOOKUP($E$8&$B$9&IF($B49<>"All","All",$B$5)&$B49,'LA FINAL RAW DATA'!$A:$I,7,0))=TRUE,IF(B49="","",0),VLOOKUP($E$8&$B$9&IF($B49<>"All","All",$B$5)&$B49,'LA FINAL RAW DATA'!$A:$I,7,0)) ->  | M49: =IF(ISERROR(VLOOKUP($E$8&$B$9&IF($B49<>"All","All",$B$5)&$B49,'LA FINAL RAW DATA'!$A:$I,8,0))=TRUE,IF(B49="","",0),VLOOKUP($E$8&$B$9&IF($B49<>"All","All",$B$5)&$B49,'LA FINAL RAW DATA'!$A:$I,8,0)) -> 
A50: 15 | B50: =IFERROR(VLOOKUP($B$29&A50,'Region Lookups'!A:C,3,0),"") ->  | D50: =IF(ISERROR(VLOOKUP($E$8&"All"&$B50,'LA FINAL RAW DATA'!$A:$I,5,0)),"",SUM(F50:N50)) ->  | F50: =IF(ISERROR(VLOOKUP($E$8&$B$9&IF($B50<>"All","All",$B$5)&$B50,'LA FINAL RAW DATA'!$A:$I,5,0))=TRUE,IF(B50="","",0),VLOOKUP($E$8&$B$9&IF($B50<>"All","All",$B$5)&$B50,'LA FINAL RAW DATA'!$A:$I,5,0)) ->  | H50: =IF(ISERROR(VLOOKUP($E$8&$B$9&IF($B50<>"All","All",$B$5)&$B50,'LA FINAL RAW DATA'!$A:$I,6,0))=TRUE,IF(B50="","",0),VLOOKUP($E$8&$B$9&IF($B50<>"All","All",$B$5)&$B50,'LA FINAL RAW DATA'!$A:$I,6,0)) ->  | J50: =IF(ISERROR(VLOOKUP($E$8&$B$9&IF($B50<>"All","All",$B$5)&$B50,'LA FINAL RAW DATA'!$A:$I,7,0))=TRUE,IF(B50="","",0),VLOOKUP($E$8&$B$9&IF($B50<>"All","All",$B$5)&$B50,'LA FINAL RAW DATA'!$A:$I,7,0)) ->  | M50: =IF(ISERROR(VLOOKUP($E$8&$B$9&IF($B50<>"All","All",$B$5)&$B50,'LA FINAL RAW DATA'!$A:$I,8,0))=TRUE,IF(B50="","",0),VLOOKUP($E$8&$B$9&IF($B50<>"All","All",$B$5)&$B50,'LA FINAL RAW DATA'!$A:$I,8,0)) -> 
A51: 16 | B51: =IFERROR(VLOOKUP($B$29&A51,'Region Lookups'!A:C,3,0),"") ->  | D51: =IF(ISERROR(VLOOKUP($E$8&"All"&$B51,'LA FINAL RAW DATA'!$A:$I,5,0)),"",SUM(F51:N51)) ->  | F51: =IF(ISERROR(VLOOKUP($E$8&$B$9&IF($B51<>"All","All",$B$5)&$B51,'LA FINAL RAW DATA'!$A:$I,5,0))=TRUE,IF(B51="","",0),VLOOKUP($E$8&$B$9&IF($B51<>"All","All",$B$5)&$B51,'LA FINAL RAW DATA'!$A:$I,5,0)) ->  | H51: =IF(ISERROR(VLOOKUP($E$8&$B$9&IF($B51<>"All","All",$B$5)&$B51,'LA FINAL RAW DATA'!$A:$I,6,0))=TRUE,IF(B51="","",0),VLOOKUP($E$8&$B$9&IF($B51<>"All","All",$B$5)&$B51,'LA FINAL RAW DATA'!$A:$I,6,0)) ->  | J51: =IF(ISERROR(VLOOKUP($E$8&$B$9&IF($B51<>"All","All",$B$5)&$B51,'LA FINAL RAW DATA'!$A:$I,7,0))=TRUE,IF(B51="","",0),VLOOKUP($E$8&$B$9&IF($B51<>"All","All",$B$5)&$B51,'LA FINAL RAW DATA'!$A:$I,7,0)) ->  | M51: =IF(ISERROR(VLOOKUP($E$8&$B$9&IF($B51<>"All","All",$B$5)&$B51,'LA FINAL RAW DATA'!$A:$I,8,0))=TRUE,IF(B51="","",0),VLOOKUP($E$8&$B$9&IF($B51<>"All","All",$B$5)&$B51,'LA FINAL RAW DATA'!$A:$I,8,0)) -> 
A52: 17 | B52: =IFERROR(VLOOKUP($B$29&A52,'Region Lookups'!A:C,3,0),"") ->  | D52: =IF(ISERROR(VLOOKUP($E$8&"All"&$B52,'LA FINAL RAW DATA'!$A:$I,5,0)),"",SUM(F52:N52)) ->  | F52: =IF(ISERROR(VLOOKUP($E$8&$B$9&IF($B52<>"All","All",$B$5)&$B52,'LA FINAL RAW DATA'!$A:$I,5,0))=TRUE,IF(B52="","",0),VLOOKUP($E$8&$B$9&IF($B52<>"All","All",$B$5)&$B52,'LA FINAL RAW DATA'!$A:$I,5,0)) ->  | H52: =IF(ISERROR(VLOOKUP($E$8&$B$9&IF($B52<>"All","All",$B$5)&$B52,'LA FINAL RAW DATA'!$A:$I,6,0))=TRUE,IF(B52="","",0),VLOOKUP($E$8&$B$9&IF($B52<>"All","All",$B$5)&$B52,'LA FINAL RAW DATA'!$A:$I,6,0)) ->  | J52: =IF(ISERROR(VLOOKUP($E$8&$B$9&IF($B52<>"All","All",$B$5)&$B52,'LA FINAL RAW DATA'!$A:$I,7,0))=TRUE,IF(B52="","",0),VLOOKUP($E$8&$B$9&IF($B52<>"All","All",$B$5)&$B52,'LA FINAL RAW DATA'!$A:$I,7,0)) ->  | M52: =IF(ISERROR(VLOOKUP($E$8&$B$9&IF($B52<>"All","All",$B$5)&$B52,'LA FINAL RAW DATA'!$A:$I,8,0))=TRUE,IF(B52="","",0),VLOOKUP($E$8&$B$9&IF($B52<>"All","All",$B$5)&$B52,'LA FINAL RAW DATA'!$A:$I,8,0)) -> 
A53: 18 | B53: =IFERROR(VLOOKUP($B$29&A53,'Region Lookups'!A:C,3,0),"") ->  | D53: =IF(ISERROR(VLOOKUP($E$8&"All"&$B53,'LA FINAL RAW DATA'!$A:$I,5,0)),"",SUM(F53:N53)) ->  | F53: =IF(ISERROR(VLOOKUP($E$8&$B$9&IF($B53<>"All","All",$B$5)&$B53,'LA FINAL RAW DATA'!$A:$I,5,0))=TRUE,IF(B53="","",0),VLOOKUP($E$8&$B$9&IF($B53<>"All","All",$B$5)&$B53,'LA FINAL RAW DATA'!$A:$I,5,0)) ->  | H53: =IF(ISERROR(VLOOKUP($E$8&$B$9&IF($B53<>"All","All",$B$5)&$B53,'LA FINAL RAW DATA'!$A:$I,6,0))=TRUE,IF(B53="","",0),VLOOKUP($E$8&$B$9&IF($B53<>"All","All",$B$5)&$B53,'LA FINAL RAW DATA'!$A:$I,6,0)) ->  | J53: =IF(ISERROR(VLOOKUP($E$8&$B$9&IF($B53<>"All","All",$B$5)&$B53,'LA FINAL RAW DATA'!$A:$I,7,0))=TRUE,IF(B53="","",0),VLOOKUP($E$8&$B$9&IF($B53<>"All","All",$B$5)&$B53,'LA FINAL RAW DATA'!$A:$I,7,0)) ->  | M53: =IF(ISERROR(VLOOKUP($E$8&$B$9&IF($B53<>"All","All",$B$5)&$B53,'LA FINAL RAW DATA'!$A:$I,8,0))=TRUE,IF(B53="","",0),VLOOKUP($E$8&$B$9&IF($B53<>"All","All",$B$5)&$B53,'LA FINAL RAW DATA'!$A:$I,8,0)) -> 
A54: 19 | B54: =IFERROR(VLOOKUP($B$29&A54,'Region Lookups'!A:C,3,0),"") ->  | D54: =IF(ISERROR(VLOOKUP($E$8&"All"&$B54,'LA FINAL RAW DATA'!$A:$I,5,0)),"",SUM(F54:N54)) ->  | F54: =IF(ISERROR(VLOOKUP($E$8&$B$9&IF($B54<>"All","All",$B$5)&$B54,'LA FINAL RAW DATA'!$A:$I,5,0))=TRUE,IF(B54="","",0),VLOOKUP($E$8&$B$9&IF($B54<>"All","All",$B$5)&$B54,'LA FINAL RAW DATA'!$A:$I,5,0)) ->  | H54: =IF(ISERROR(VLOOKUP($E$8&$B$9&IF($B54<>"All","All",$B$5)&$B54,'LA FINAL RAW DATA'!$A:$I,6,0))=TRUE,IF(B54="","",0),VLOOKUP($E$8&$B$9&IF($B54<>"All","All",$B$5)&$B54,'LA FINAL RAW DATA'!$A:$I,6,0)) ->  | J54: =IF(ISERROR(VLOOKUP($E$8&$B$9&IF($B54<>"All","All",$B$5)&$B54,'LA FINAL RAW DATA'!$A:$I,7,0))=TRUE,IF(B54="","",0),VLOOKUP($E$8&$B$9&IF($B54<>"All","All",$B$5)&$B54,'LA FINAL RAW DATA'!$A:$I,7,0)) ->  | M54: =IF(ISERROR(VLOOKUP($E$8&$B$9&IF($B54<>"All","All",$B$5)&$B54,'LA FINAL RAW DATA'!$A:$I,8,0))=TRUE,IF(B54="","",0),VLOOKUP($E$8&$B$9&IF($B54<>"All","All",$B$5)&$B54,'LA FINAL RAW DATA'!$A:$I,8,0)) -> 
A55: 20 | B55: =IFERROR(VLOOKUP($B$29&A55,'Region Lookups'!A:C,3,0),"") ->  | D55: =IF(ISERROR(VLOOKUP($E$8&"All"&$B55,'LA FINAL RAW DATA'!$A:$I,5,0)),"",SUM(F55:N55)) ->  | F55: =IF(ISERROR(VLOOKUP($E$8&$B$9&IF($B55<>"All","All",$B$5)&$B55,'LA FINAL RAW DATA'!$A:$I,5,0))=TRUE,IF(B55="","",0),VLOOKUP($E$8&$B$9&IF($B55<>"All","All",$B$5)&$B55,'LA FINAL RAW DATA'!$A:$I,5,0)) ->  | H55: =IF(ISERROR(VLOOKUP($E$8&$B$9&IF($B55<>"All","All",$B$5)&$B55,'LA FINAL RAW DATA'!$A:$I,6,0))=TRUE,IF(B55="","",0),VLOOKUP($E$8&$B$9&IF($B55<>"All","All",$B$5)&$B55,'LA FINAL RAW DATA'!$A:$I,6,0)) ->  | J55: =IF(ISERROR(VLOOKUP($E$8&$B$9&IF($B55<>"All","All",$B$5)&$B55,'LA FINAL RAW DATA'!$A:$I,7,0))=TRUE,IF(B55="","",0),VLOOKUP($E$8&$B$9&IF($B55<>"All","All",$B$5)&$B55,'LA FINAL RAW DATA'!$A:$I,7,0)) ->  | M55: =IF(ISERROR(VLOOKUP($E$8&$B$9&IF($B55<>"All","All",$B$5)&$B55,'LA FINAL RAW DATA'!$A:$I,8,0))=TRUE,IF(B55="","",0),VLOOKUP($E$8&$B$9&IF($B55<>"All","All",$B$5)&$B55,'LA FINAL RAW DATA'!$A:$I,8,0)) -> 
A56: 21 | B56: =IFERROR(VLOOKUP($B$29&A56,'Region Lookups'!A:C,3,0),"") ->  | D56: =IF(ISERROR(VLOOKUP($E$8&"All"&$B56,'LA FINAL RAW DATA'!$A:$I,5,0)),"",SUM(F56:N56)) ->  | F56: =IF(ISERROR(VLOOKUP($E$8&$B$9&IF($B56<>"All","All",$B$5)&$B56,'LA FINAL RAW DATA'!$A:$I,5,0))=TRUE,IF(B56="","",0),VLOOKUP($E$8&$B$9&IF($B56<>"All","All",$B$5)&$B56,'LA FINAL RAW DATA'!$A:$I,5,0)) ->  | H56: =IF(ISERROR(VLOOKUP($E$8&$B$9&IF($B56<>"All","All",$B$5)&$B56,'LA FINAL RAW DATA'!$A:$I,6,0))=TRUE,IF(B56="","",0),VLOOKUP($E$8&$B$9&IF($B56<>"All","All",$B$5)&$B56,'LA FINAL RAW DATA'!$A:$I,6,0)) ->  | J56: =IF(ISERROR(VLOOKUP($E$8&$B$9&IF($B56<>"All","All",$B$5)&$B56,'LA FINAL RAW DATA'!$A:$I,7,0))=TRUE,IF(B56="","",0),VLOOKUP($E$8&$B$9&IF($B56<>"All","All",$B$5)&$B56,'LA FINAL RAW DATA'!$A:$I,7,0)) ->  | M56: =IF(ISERROR(VLOOKUP($E$8&$B$9&IF($B56<>"All","All",$B$5)&$B56,'LA FINAL RAW DATA'!$A:$I,8,0))=TRUE,IF(B56="","",0),VLOOKUP($E$8&$B$9&IF($B56<>"All","All",$B$5)&$B56,'LA FINAL RAW DATA'!$A:$I,8,0)) -> 
A57: 22 | B57: =IFERROR(VLOOKUP($B$29&A57,'Region Lookups'!A:C,3,0),"") ->  | D57: =IF(ISERROR(VLOOKUP($E$8&"All"&$B57,'LA FINAL RAW DATA'!$A:$I,5,0)),"",SUM(F57:N57)) ->  | F57: =IF(ISERROR(VLOOKUP($E$8&$B$9&IF($B57<>"All","All",$B$5)&$B57,'LA FINAL RAW DATA'!$A:$I,5,0))=TRUE,IF(B57="","",0),VLOOKUP($E$8&$B$9&IF($B57<>"All","All",$B$5)&$B57,'LA FINAL RAW DATA'!$A:$I,5,0)) ->  | H57: =IF(ISERROR(VLOOKUP($E$8&$B$9&IF($B57<>"All","All",$B$5)&$B57,'LA FINAL RAW DATA'!$A:$I,6,0))=TRUE,IF(B57="","",0),VLOOKUP($E$8&$B$9&IF($B57<>"All","All",$B$5)&$B57,'LA FINAL RAW DATA'!$A:$I,6,0)) ->  | J57: =IF(ISERROR(VLOOKUP($E$8&$B$9&IF($B57<>"All","All",$B$5)&$B57,'LA FINAL RAW DATA'!$A:$I,7,0))=TRUE,IF(B57="","",0),VLOOKUP($E$8&$B$9&IF($B57<>"All","All",$B$5)&$B57,'LA FINAL RAW DATA'!$A:$I,7,0)) ->  | M57: =IF(ISERROR(VLOOKUP($E$8&$B$9&IF($B57<>"All","All",$B$5)&$B57,'LA FINAL RAW DATA'!$A:$I,8,0))=TRUE,IF(B57="","",0),VLOOKUP($E$8&$B$9&IF($B57<>"All","All",$B$5)&$B57,'LA FINAL RAW DATA'!$A:$I,8,0)) -> 
A58: 23 | B58: =IFERROR(VLOOKUP($B$29&A58,'Region Lookups'!A:C,3,0),"") ->  | D58: =IF(ISERROR(VLOOKUP($E$8&"All"&$B58,'LA FINAL RAW DATA'!$A:$I,5,0)),"",SUM(F58:N58)) ->  | F58: =IF(ISERROR(VLOOKUP($E$8&$B$9&IF($B58<>"All","All",$B$5)&$B58,'LA FINAL RAW DATA'!$A:$I,5,0))=TRUE,IF(B58="","",0),VLOOKUP($E$8&$B$9&IF($B58<>"All","All",$B$5)&$B58,'LA FINAL RAW DATA'!$A:$I,5,0)) ->  | H58: =IF(ISERROR(VLOOKUP($E$8&$B$9&IF($B58<>"All","All",$B$5)&$B58,'LA FINAL RAW DATA'!$A:$I,6,0))=TRUE,IF(B58="","",0),VLOOKUP($E$8&$B$9&IF($B58<>"All","All",$B$5)&$B58,'LA FINAL RAW DATA'!$A:$I,6,0)) ->  | J58: =IF(ISERROR(VLOOKUP($E$8&$B$9&IF($B58<>"All","All",$B$5)&$B58,'LA FINAL RAW DATA'!$A:$I,7,0))=TRUE,IF(B58="","",0),VLOOKUP($E$8&$B$9&IF($B58<>"All","All",$B$5)&$B58,'LA FINAL RAW DATA'!$A:$I,7,0)) ->  | M58: =IF(ISERROR(VLOOKUP($E$8&$B$9&IF($B58<>"All","All",$B$5)&$B58,'LA FINAL RAW DATA'!$A:$I,8,0))=TRUE,IF(B58="","",0),VLOOKUP($E$8&$B$9&IF($B58<>"All","All",$B$5)&$B58,'LA FINAL RAW DATA'!$A:$I,8,0)) -> 
A59: 24 | B59: =IFERROR(VLOOKUP($B$29&A59,'Region Lookups'!A:C,3,0),"") ->  | D59: =IF(ISERROR(VLOOKUP($E$8&"All"&$B59,'LA FINAL RAW DATA'!$A:$I,5,0)),"",SUM(F59:N59)) ->  | F59: =IF(ISERROR(VLOOKUP($E$8&$B$9&IF($B59<>"All","All",$B$5)&$B59,'LA FINAL RAW DATA'!$A:$I,5,0))=TRUE,IF(B59="","",0),VLOOKUP($E$8&$B$9&IF($B59<>"All","All",$B$5)&$B59,'LA FINAL RAW DATA'!$A:$I,5,0)) ->  | H59: =IF(ISERROR(VLOOKUP($E$8&$B$9&IF($B59<>"All","All",$B$5)&$B59,'LA FINAL RAW DATA'!$A:$I,6,0))=TRUE,IF(B59="","",0),VLOOKUP($E$8&$B$9&IF($B59<>"All","All",$B$5)&$B59,'LA FINAL RAW DATA'!$A:$I,6,0)) ->  | J59: =IF(ISERROR(VLOOKUP($E$8&$B$9&IF($B59<>"All","All",$B$5)&$B59,'LA FINAL RAW DATA'!$A:$I,7,0))=TRUE,IF(B59="","",0),VLOOKUP($E$8&$B$9&IF($B59<>"All","All",$B$5)&$B59,'LA FINAL RAW DATA'!$A:$I,7,0)) ->  | M59: =IF(ISERROR(VLOOKUP($E$8&$B$9&IF($B59<>"All","All",$B$5)&$B59,'LA FINAL RAW DATA'!$A:$I,8,0))=TRUE,IF(B59="","",0),VLOOKUP($E$8&$B$9&IF($B59<>"All","All",$B$5)&$B59,'LA FINAL RAW DATA'!$A:$I,8,0)) -> 
A60: 25 | B60: =IFERROR(VLOOKUP($B$29&A60,'Region Lookups'!A:C,3,0),"") ->  | D60: =IF(ISERROR(VLOOKUP($E$8&"All"&$B60,'LA FINAL RAW DATA'!$A:$I,5,0)),"",SUM(F60:N60)) ->  | F60: =IF(ISERROR(VLOOKUP($E$8&$B$9&IF($B60<>"All","All",$B$5)&$B60,'LA FINAL RAW DATA'!$A:$I,5,0))=TRUE,IF(B60="","",0),VLOOKUP($E$8&$B$9&IF($B60<>"All","All",$B$5)&$B60,'LA FINAL RAW DATA'!$A:$I,5,0)) ->  | H60: =IF(ISERROR(VLOOKUP($E$8&$B$9&IF($B60<>"All","All",$B$5)&$B60,'LA FINAL RAW DATA'!$A:$I,6,0))=TRUE,IF(B60="","",0),VLOOKUP($E$8&$B$9&IF($B60<>"All","All",$B$5)&$B60,'LA FINAL RAW DATA'!$A:$I,6,0)) ->  | J60: =IF(ISERROR(VLOOKUP($E$8&$B$9&IF($B60<>"All","All",$B$5)&$B60,'LA FINAL RAW DATA'!$A:$I,7,0))=TRUE,IF(B60="","",0),VLOOKUP($E$8&$B$9&IF($B60<>"All","All",$B$5)&$B60,'LA FINAL RAW DATA'!$A:$I,7,0)) ->  | M60: =IF(ISERROR(VLOOKUP($E$8&$B$9&IF($B60<>"All","All",$B$5)&$B60,'LA FINAL RAW DATA'!$A:$I,8,0))=TRUE,IF(B60="","",0),VLOOKUP($E$8&$B$9&IF($B60<>"All","All",$B$5)&$B60,'LA FINAL RAW DATA'!$A:$I,8,0)) -> 
A61: 26 | B61: =IFERROR(VLOOKUP($B$29&A61,'Region Lookups'!A:C,3,0),"") ->  | D61: =IF(ISERROR(VLOOKUP($E$8&"All"&$B61,'LA FINAL RAW DATA'!$A:$I,5,0)),"",SUM(F61:N61)) ->  | F61: =IF(ISERROR(VLOOKUP($E$8&$B$9&IF($B61<>"All","All",$B$5)&$B61,'LA FINAL RAW DATA'!$A:$I,5,0))=TRUE,IF(B61="","",0),VLOOKUP($E$8&$B$9&IF($B61<>"All","All",$B$5)&$B61,'LA FINAL RAW DATA'!$A:$I,5,0)) ->  | H61: =IF(ISERROR(VLOOKUP($E$8&$B$9&IF($B61<>"All","All",$B$5)&$B61,'LA FINAL RAW DATA'!$A:$I,6,0))=TRUE,IF(B61="","",0),VLOOKUP($E$8&$B$9&IF($B61<>"All","All",$B$5)&$B61,'LA FINAL RAW DATA'!$A:$I,6,0)) ->  | J61: =IF(ISERROR(VLOOKUP($E$8&$B$9&IF($B61<>"All","All",$B$5)&$B61,'LA FINAL RAW DATA'!$A:$I,7,0))=TRUE,IF(B61="","",0),VLOOKUP($E$8&$B$9&IF($B61<>"All","All",$B$5)&$B61,'LA FINAL RAW DATA'!$A:$I,7,0)) ->  | M61: =IF(ISERROR(VLOOKUP($E$8&$B$9&IF($B61<>"All","All",$B$5)&$B61,'LA FINAL RAW DATA'!$A:$I,8,0))=TRUE,IF(B61="","",0),VLOOKUP($E$8&$B$9&IF($B61<>"All","All",$B$5)&$B61,'LA FINAL RAW DATA'!$A:$I,8,0)) -> 
A62: 27 | B62: =IFERROR(VLOOKUP($B$29&A62,'Region Lookups'!A:C,3,0),"") ->  | D62: =IF(ISERROR(VLOOKUP($E$8&"All"&$B62,'LA FINAL RAW DATA'!$A:$I,5,0)),"",SUM(F62:N62)) ->  | F62: =IF(ISERROR(VLOOKUP($E$8&$B$9&IF($B62<>"All","All",$B$5)&$B62,'LA FINAL RAW DATA'!$A:$I,5,0))=TRUE,IF(B62="","",0),VLOOKUP($E$8&$B$9&IF($B62<>"All","All",$B$5)&$B62,'LA FINAL RAW DATA'!$A:$I,5,0)) ->  | H62: =IF(ISERROR(VLOOKUP($E$8&$B$9&IF($B62<>"All","All",$B$5)&$B62,'LA FINAL RAW DATA'!$A:$I,6,0))=TRUE,IF(B62="","",0),VLOOKUP($E$8&$B$9&IF($B62<>"All","All",$B$5)&$B62,'LA FINAL RAW DATA'!$A:$I,6,0)) ->  | J62: =IF(ISERROR(VLOOKUP($E$8&$B$9&IF($B62<>"All","All",$B$5)&$B62,'LA FINAL RAW DATA'!$A:$I,7,0))=TRUE,IF(B62="","",0),VLOOKUP($E$8&$B$9&IF($B62<>"All","All",$B$5)&$B62,'LA FINAL RAW DATA'!$A:$I,7,0)) ->  | M62: =IF(ISERROR(VLOOKUP($E$8&$B$9&IF($B62<>"All","All",$B$5)&$B62,'LA FINAL RAW DATA'!$A:$I,8,0))=TRUE,IF(B62="","",0),VLOOKUP($E$8&$B$9&IF($B62<>"All","All",$B$5)&$B62,'LA FINAL RAW DATA'!$A:$I,8,0)) -> 
A63: 28 | B63: =IFERROR(VLOOKUP($B$29&A63,'Region Lookups'!A:C,3,0),"") ->  | D63: =IF(ISERROR(VLOOKUP($E$8&"All"&$B63,'LA FINAL RAW DATA'!$A:$I,5,0)),"",SUM(F63:N63)) ->  | F63: =IF(ISERROR(VLOOKUP($E$8&$B$9&IF($B63<>"All","All",$B$5)&$B63,'LA FINAL RAW DATA'!$A:$I,5,0))=TRUE,IF(B63="","",0),VLOOKUP($E$8&$B$9&IF($B63<>"All","All",$B$5)&$B63,'LA FINAL RAW DATA'!$A:$I,5,0)) ->  | H63: =IF(ISERROR(VLOOKUP($E$8&$B$9&IF($B63<>"All","All",$B$5)&$B63,'LA FINAL RAW DATA'!$A:$I,6,0))=TRUE,IF(B63="","",0),VLOOKUP($E$8&$B$9&IF($B63<>"All","All",$B$5)&$B63,'LA FINAL RAW DATA'!$A:$I,6,0)) ->  | J63: =IF(ISERROR(VLOOKUP($E$8&$B$9&IF($B63<>"All","All",$B$5)&$B63,'LA FINAL RAW DATA'!$A:$I,7,0))=TRUE,IF(B63="","",0),VLOOKUP($E$8&$B$9&IF($B63<>"All","All",$B$5)&$B63,'LA FINAL RAW DATA'!$A:$I,7,0)) ->  | M63: =IF(ISERROR(VLOOKUP($E$8&$B$9&IF($B63<>"All","All",$B$5)&$B63,'LA FINAL RAW DATA'!$A:$I,8,0))=TRUE,IF(B63="","",0),VLOOKUP($E$8&$B$9&IF($B63<>"All","All",$B$5)&$B63,'LA FINAL RAW DATA'!$A:$I,8,0)) -> 
A64: 29 | B64: =IFERROR(VLOOKUP($B$29&A64,'Region Lookups'!A:C,3,0),"") ->  | D64: =IF(ISERROR(VLOOKUP($E$8&"All"&$B64,'LA FINAL RAW DATA'!$A:$I,5,0)),"",SUM(F64:N64)) ->  | F64: =IF(ISERROR(VLOOKUP($E$8&$B$9&IF($B64<>"All","All",$B$5)&$B64,'LA FINAL RAW DATA'!$A:$I,5,0))=TRUE,IF(B64="","",0),VLOOKUP($E$8&$B$9&IF($B64<>"All","All",$B$5)&$B64,'LA FINAL RAW DATA'!$A:$I,5,0)) ->  | H64: =IF(ISERROR(VLOOKUP($E$8&$B$9&IF($B64<>"All","All",$B$5)&$B64,'LA FINAL RAW DATA'!$A:$I,6,0))=TRUE,IF(B64="","",0),VLOOKUP($E$8&$B$9&IF($B64<>"All","All",$B$5)&$B64,'LA FINAL RAW DATA'!$A:$I,6,0)) ->  | J64: =IF(ISERROR(VLOOKUP($E$8&$B$9&IF($B64<>"All","All",$B$5)&$B64,'LA FINAL RAW DATA'!$A:$I,7,0))=TRUE,IF(B64="","",0),VLOOKUP($E$8&$B$9&IF($B64<>"All","All",$B$5)&$B64,'LA FINAL RAW DATA'!$A:$I,7,0)) ->  | M64: =IF(ISERROR(VLOOKUP($E$8&$B$9&IF($B64<>"All","All",$B$5)&$B64,'LA FINAL RAW DATA'!$A:$I,8,0))=TRUE,IF(B64="","",0),VLOOKUP($E$8&$B$9&IF($B64<>"All","All",$B$5)&$B64,'LA FINAL RAW DATA'!$A:$I,8,0)) -> 
A65: 30 | B65: =IFERROR(VLOOKUP($B$29&A65,'Region Lookups'!A:C,3,0),"") ->  | D65: =IF(ISERROR(VLOOKUP($E$8&"All"&$B65,'LA FINAL RAW DATA'!$A:$I,5,0)),"",SUM(F65:N65)) ->  | F65: =IF(ISERROR(VLOOKUP($E$8&$B$9&IF($B65<>"All","All",$B$5)&$B65,'LA FINAL RAW DATA'!$A:$I,5,0))=TRUE,IF(B65="","",0),VLOOKUP($E$8&$B$9&IF($B65<>"All","All",$B$5)&$B65,'LA FINAL RAW DATA'!$A:$I,5,0)) ->  | H65: =IF(ISERROR(VLOOKUP($E$8&$B$9&IF($B65<>"All","All",$B$5)&$B65,'LA FINAL RAW DATA'!$A:$I,6,0))=TRUE,IF(B65="","",0),VLOOKUP($E$8&$B$9&IF($B65<>"All","All",$B$5)&$B65,'LA FINAL RAW DATA'!$A:$I,6,0)) ->  | J65: =IF(ISERROR(VLOOKUP($E$8&$B$9&IF($B65<>"All","All",$B$5)&$B65,'LA FINAL RAW DATA'!$A:$I,7,0))=TRUE,IF(B65="","",0),VLOOKUP($E$8&$B$9&IF($B65<>"All","All",$B$5)&$B65,'LA FINAL RAW DATA'!$A:$I,7,0)) ->  | M65: =IF(ISERROR(VLOOKUP($E$8&$B$9&IF($B65<>"All","All",$B$5)&$B65,'LA FINAL RAW DATA'!$A:$I,8,0))=TRUE,IF(B65="","",0),VLOOKUP($E$8&$B$9&IF($B65<>"All","All",$B$5)&$B65,'LA FINAL RAW DATA'!$A:$I,8,0)) -> 
A66: 31 | B66: =IFERROR(VLOOKUP($B$29&A66,'Region Lookups'!A:C,3,0),"") ->  | D66: =IF(ISERROR(VLOOKUP($E$8&"All"&$B66,'LA FINAL RAW DATA'!$A:$I,5,0)),"",SUM(F66:N66)) ->  | F66: =IF(ISERROR(VLOOKUP($E$8&$B$9&IF($B66<>"All","All",$B$5)&$B66,'LA FINAL RAW DATA'!$A:$I,5,0))=TRUE,IF(B66="","",0),VLOOKUP($E$8&$B$9&IF($B66<>"All","All",$B$5)&$B66,'LA FINAL RAW DATA'!$A:$I,5,0)) ->  | H66: =IF(ISERROR(VLOOKUP($E$8&$B$9&IF($B66<>"All","All",$B$5)&$B66,'LA FINAL RAW DATA'!$A:$I,6,0))=TRUE,IF(B66="","",0),VLOOKUP($E$8&$B$9&IF($B66<>"All","All",$B$5)&$B66,'LA FINAL RAW DATA'!$A:$I,6,0)) ->  | J66: =IF(ISERROR(VLOOKUP($E$8&$B$9&IF($B66<>"All","All",$B$5)&$B66,'LA FINAL RAW DATA'!$A:$I,7,0))=TRUE,IF(B66="","",0),VLOOKUP($E$8&$B$9&IF($B66<>"All","All",$B$5)&$B66,'LA FINAL RAW DATA'!$A:$I,7,0)) ->  | M66: =IF(ISERROR(VLOOKUP($E$8&$B$9&IF($B66<>"All","All",$B$5)&$B66,'LA FINAL RAW DATA'!$A:$I,8,0))=TRUE,IF(B66="","",0),VLOOKUP($E$8&$B$9&IF($B66<>"All","All",$B$5)&$B66,'LA FINAL RAW DATA'!$A:$I,8,0)) -> 
A67: 32 | B67: =IFERROR(VLOOKUP($B$29&A67,'Region Lookups'!A:C,3,0),"") ->  | D67: =IF(ISERROR(VLOOKUP($E$8&"All"&$B67,'LA FINAL RAW DATA'!$A:$I,5,0)),"",SUM(F67:N67)) ->  | F67: =IF(ISERROR(VLOOKUP($E$8&$B$9&IF($B67<>"All","All",$B$5)&$B67,'LA FINAL RAW DATA'!$A:$I,5,0))=TRUE,IF(B67="","",0),VLOOKUP($E$8&$B$9&IF($B67<>"All","All",$B$5)&$B67,'LA FINAL RAW DATA'!$A:$I,5,0)) ->  | H67: =IF(ISERROR(VLOOKUP($E$8&$B$9&IF($B67<>"All","All",$B$5)&$B67,'LA FINAL RAW DATA'!$A:$I,6,0))=TRUE,IF(B67="","",0),VLOOKUP($E$8&$B$9&IF($B67<>"All","All",$B$5)&$B67,'LA FINAL RAW DATA'!$A:$I,6,0)) ->  | J67: =IF(ISERROR(VLOOKUP($E$8&$B$9&IF($B67<>"All","All",$B$5)&$B67,'LA FINAL RAW DATA'!$A:$I,7,0))=TRUE,IF(B67="","",0),VLOOKUP($E$8&$B$9&IF($B67<>"All","All",$B$5)&$B67,'LA FINAL RAW DATA'!$A:$I,7,0)) ->  | M67: =IF(ISERROR(VLOOKUP($E$8&$B$9&IF($B67<>"All","All",$B$5)&$B67,'LA FINAL RAW DATA'!$A:$I,8,0))=TRUE,IF(B67="","",0),VLOOKUP($E$8&$B$9&IF($B67<>"All","All",$B$5)&$B67,'LA FINAL RAW DATA'!$A:$I,8,0)) -> 
A68: 33 | B68: =IFERROR(VLOOKUP($B$29&A68,'Region Lookups'!A:C,3,0),"") ->  | D68: =IF(ISERROR(VLOOKUP($E$8&"All"&$B68,'LA FINAL RAW DATA'!$A:$I,5,0)),"",SUM(F68:N68)) ->  | F68: =IF(ISERROR(VLOOKUP($E$8&$B$9&IF($B68<>"All","All",$B$5)&$B68,'LA FINAL RAW DATA'!$A:$I,5,0))=TRUE,IF(B68="","",0),VLOOKUP($E$8&$B$9&IF($B68<>"All","All",$B$5)&$B68,'LA FINAL RAW DATA'!$A:$I,5,0)) ->  | H68: =IF(ISERROR(VLOOKUP($E$8&$B$9&IF($B68<>"All","All",$B$5)&$B68,'LA FINAL RAW DATA'!$A:$I,6,0))=TRUE,IF(B68="","",0),VLOOKUP($E$8&$B$9&IF($B68<>"All","All",$B$5)&$B68,'LA FINAL RAW DATA'!$A:$I,6,0)) ->  | J68: =IF(ISERROR(VLOOKUP($E$8&$B$9&IF($B68<>"All","All",$B$5)&$B68,'LA FINAL RAW DATA'!$A:$I,7,0))=TRUE,IF(B68="","",0),VLOOKUP($E$8&$B$9&IF($B68<>"All","All",$B$5)&$B68,'LA FINAL RAW DATA'!$A:$I,7,0)) ->  | M68: =IF(ISERROR(VLOOKUP($E$8&$B$9&IF($B68<>"All","All",$B$5)&$B68,'LA FINAL RAW DATA'!$A:$I,8,0))=TRUE,IF(B68="","",0),VLOOKUP($E$8&$B$9&IF($B68<>"All","All",$B$5)&$B68,'LA FINAL RAW DATA'!$A:$I,8,0)) -> 
B69: =IFERROR(VLOOKUP($B$29&A69,'Region Lookups'!A:C,3,0),"") ->  | J69: =IF(ISERROR(VLOOKUP($E$8&$B$9&IF($B69<>"All","All",$B$5)&$B69,'LA FINAL RAW DATA'!$A:$I,7,0))=TRUE,"",VLOOKUP($E$8&$B$9&IF($B69<>"All","All",$B$5)&$B69,'LA FINAL RAW DATA'!$A:$I,7,0)) -> 
B70: =IFERROR(VLOOKUP($B$29&A70,'Region Lookups'!A:C,3,0),"") ->  | J70: =IF(ISERROR(VLOOKUP($E$8&$B$9&IF($B70<>"All","All",$B$5)&$B70,'LA FINAL RAW DATA'!$A:$I,7,0))=TRUE,"",VLOOKUP($E$8&$B$9&IF($B70<>"All","All",$B$5)&$B70,'LA FINAL RAW DATA'!$A:$I,7,0)) -> 
B71: =IFERROR(VLOOKUP($B$29&A71,'Region Lookups'!A:C,3,0),"") ->  | J71: =IF(ISERROR(VLOOKUP($E$8&$B$9&IF($B71<>"All","All",$B$5)&$B71,'LA FINAL RAW DATA'!$A:$I,7,0))=TRUE,"",VLOOKUP($E$8&$B$9&IF($B71<>"All","All",$B$5)&$B71,'LA FINAL RAW DATA'!$A:$I,7,0)) -> 
B72: =IFERROR(VLOOKUP($B$29&A72,'Region Lookups'!A:C,3,0),"") ->  | J72: =IF(ISERROR(VLOOKUP($E$8&$B$9&IF($B72<>"All","All",$B$5)&$B72,'LA FINAL RAW DATA'!$A:$I,7,0))=TRUE,"",VLOOKUP($E$8&$B$9&IF($B72<>"All","All",$B$5)&$B72,'LA FINAL RAW DATA'!$A:$I,7,0)) -> 
B73: =IFERROR(VLOOKUP($B$29&A73,'Region Lookups'!A:C,3,0),"") ->  | J73: =IF(ISERROR(VLOOKUP($E$8&$B$9&IF($B73<>"All","All",$B$5)&$B73,'LA FINAL RAW DATA'!$A:$I,7,0))=TRUE,"",VLOOKUP($E$8&$B$9&IF($B73<>"All","All",$B$5)&$B73,'LA FINAL RAW DATA'!$A:$I,7,0)) -> 
B74: =IFERROR(VLOOKUP($B$29&A74,'Region Lookups'!A:C,3,0),"") ->  | J74: =IF(ISERROR(VLOOKUP($E$8&$B$9&IF($B74<>"All","All",$B$5)&$B74,'LA FINAL RAW DATA'!$A:$I,7,0))=TRUE,"",VLOOKUP($E$8&$B$9&IF($B74<>"All","All",$B$5)&$B74,'LA FINAL RAW DATA'!$A:$I,7,0)) -> 
B75: =IFERROR(VLOOKUP($B$29&A75,'Region Lookups'!A:C,3,0),"") ->  | J75: =IF(ISERROR(VLOOKUP($E$8&$B$9&IF($B75<>"All","All",$B$5)&$B75,'LA FINAL RAW DATA'!$A:$I,7,0))=TRUE,"",VLOOKUP($E$8&$B$9&IF($B75<>"All","All",$B$5)&$B75,'LA FINAL RAW DATA'!$A:$I,7,0)) -> 
B76: =IFERROR(VLOOKUP($B$29&A76,'Region Lookups'!A:C,3,0),"") ->  | J76: =IF(ISERROR(VLOOKUP($E$8&$B$9&IF($B76<>"All","All",$B$5)&$B76,'LA FINAL RAW DATA'!$A:$I,7,0))=TRUE,"",VLOOKUP($E$8&$B$9&IF($B76<>"All","All",$B$5)&$B76,'LA FINAL RAW DATA'!$A:$I,7,0)) -> 
B77: =IFERROR(VLOOKUP($B$29&A77,'Region Lookups'!A:C,3,0),"") ->  | J77: =IF(ISERROR(VLOOKUP($E$8&$B$9&IF($B77<>"All","All",$B$5)&$B77,'LA FINAL RAW DATA'!$A:$I,7,0))=TRUE,"",VLOOKUP($E$8&$B$9&IF($B77<>"All","All",$B$5)&$B77,'LA FINAL RAW DATA'!$A:$I,7,0)) -> 
B78: =IFERROR(VLOOKUP($B$29&A78,'Region Lookups'!A:C,3,0),"") ->  | J78: =IF(ISERROR(VLOOKUP($E$8&$B$9&IF($B78<>"All","All",$B$5)&$B78,'LA FINAL RAW DATA'!$A:$I,7,0))=TRUE,"",VLOOKUP($E$8&$B$9&IF($B78<>"All","All",$B$5)&$B78,'LA FINAL RAW DATA'!$A:$I,7,0)) -> 
B79: =IFERROR(VLOOKUP($B$29&A79,'Region Lookups'!A:C,3,0),"") ->  | J79: =IF(ISERROR(VLOOKUP($E$8&$B$9&IF($B79<>"All","All",$B$5)&$B79,'LA FINAL RAW DATA'!$A:$I,7,0))=TRUE,"",VLOOKUP($E$8&$B$9&IF($B79<>"All","All",$B$5)&$B79,'LA FINAL RAW DATA'!$A:$I,7,0)) -> 
B80: =IFERROR(VLOOKUP($B$29&A80,'Region Lookups'!A:C,3,0),"") ->  | J80: =IF(ISERROR(VLOOKUP($E$8&$B$9&IF($B80<>"All","All",$B$5)&$B80,'LA FINAL RAW DATA'!$A:$I,7,0))=TRUE,"",VLOOKUP($E$8&$B$9&IF($B80<>"All","All",$B$5)&$B80,'LA FINAL RAW DATA'!$A:$I,7,0)) -> 
B81: =IFERROR(VLOOKUP($B$29&A81,'Region Lookups'!A:C,3,0),"") ->  | J81: =IF(ISERROR(VLOOKUP($E$8&$B$9&IF($B81<>"All","All",$B$5)&$B81,'LA FINAL RAW DATA'!$A:$I,7,0))=TRUE,"",VLOOKUP($E$8&$B$9&IF($B81<>"All","All",$B$5)&$B81,'LA FINAL RAW DATA'!$A:$I,7,0)) -> 
B82: =IFERROR(VLOOKUP($B$29&A82,'Region Lookups'!A:C,3,0),"") ->  | J82: =IF(ISERROR(VLOOKUP($E$8&$B$9&IF($B82<>"All","All",$B$5)&$B82,'LA FINAL RAW DATA'!$A:$I,7,0))=TRUE,"",VLOOKUP($E$8&$B$9&IF($B82<>"All","All",$B$5)&$B82,'LA FINAL RAW DATA'!$A:$I,7,0)) -> 
B83: =IFERROR(VLOOKUP($B$29&A83,'Region Lookups'!A:C,3,0),"") ->  | J83: =IF(ISERROR(VLOOKUP($E$8&$B$9&IF($B83<>"All","All",$B$5)&$B83,'LA FINAL RAW DATA'!$A:$I,7,0))=TRUE,"",VLOOKUP($E$8&$B$9&IF($B83<>"All","All",$B$5)&$B83,'LA FINAL RAW DATA'!$A:$I,7,0)) -> 
B84: =IFERROR(VLOOKUP($B$29&A84,'Region Lookups'!A:C,3,0),"") ->  | J84: =IF(ISERROR(VLOOKUP($E$8&$B$9&IF($B84<>"All","All",$B$5)&$B84,'LA FINAL RAW DATA'!$A:$I,7,0))=TRUE,"",VLOOKUP($E$8&$B$9&IF($B84<>"All","All",$B$5)&$B84,'LA FINAL RAW DATA'!$A:$I,7,0)) -> 
B85: =IFERROR(VLOOKUP($B$29&A85,'Region Lookups'!A:C,3,0),"") ->  | J85: =IF(ISERROR(VLOOKUP($E$8&$B$9&IF($B85<>"All","All",$B$5)&$B85,'LA FINAL RAW DATA'!$A:$I,7,0))=TRUE,"",VLOOKUP($E$8&$B$9&IF($B85<>"All","All",$B$5)&$B85,'LA FINAL RAW DATA'!$A:$I,7,0)) -> 
B86: =IFERROR(VLOOKUP($B$29&A86,'Region Lookups'!A:C,3,0),"") ->  | J86: =IF(ISERROR(VLOOKUP($E$8&$B$9&IF($B86<>"All","All",$B$5)&$B86,'LA FINAL RAW DATA'!$A:$I,7,0))=TRUE,"",VLOOKUP($E$8&$B$9&IF($B86<>"All","All",$B$5)&$B86,'LA FINAL RAW DATA'!$A:$I,7,0)) -> 
B87: =IFERROR(VLOOKUP($B$29&A87,'Region Lookups'!A:C,3,0),"") ->  | J87: =IF(ISERROR(VLOOKUP($E$8&$B$9&IF($B87<>"All","All",$B$5)&$B87,'LA FINAL RAW DATA'!$A:$I,7,0))=TRUE,"",VLOOKUP($E$8&$B$9&IF($B87<>"All","All",$B$5)&$B87,'LA FINAL RAW DATA'!$A:$I,7,0)) -> 
B88: =IFERROR(VLOOKUP($B$29&A88,'Region Lookups'!A:C,3,0),"") ->  | J88: =IF(ISERROR(VLOOKUP($E$8&$B$9&IF($B88<>"All","All",$B$5)&$B88,'LA FINAL RAW DATA'!$A:$I,7,0))=TRUE,"",VLOOKUP($E$8&$B$9&IF($B88<>"All","All",$B$5)&$B88,'LA FINAL RAW DATA'!$A:$I,7,0)) -> 
B89: =IFERROR(VLOOKUP($B$29&A89,'Region Lookups'!A:C,3,0),"") -> 
B90: =IFERROR(VLOOKUP($B$29&A90,'Region Lookups'!A:C,3,0),"") -> 

Sheet Children's homes
B2: Statistical First Release - Children's Homes
D4: Region: | G4: Local Authority:
D5: All | G5: All | I5: =IF(D5="All",TRUE,NOT(ISERROR(MATCH(G5,INDIRECT(SUBSTITUTE(SUBSTITUTE(D5," ","_"),",","")),0)))) -> TRUE
D7: Date: | G7: Provision Type: | J7: Inspection Type:
D8: as at 30 September 2017 | G8: All children's homes | J8: Full Inspection
C9: =IF(LEFT(D8,5) = "as at","","year") ->  | D9: =VLOOKUP(D8,_PeriodLookup,2,0) -> 2017 | H9: =IF(LEFT(D8,5)="as at",TRUE,FALSE) -> TRUE
B10: Sector | C10: Total number of inspections | D10: Inspection Outcomes | H10: Number not inspected
D11: =VLOOKUP(J8,_InspectionOutcomes,2,0) -> Outstanding | E11: =VLOOKUP(J8,_InspectionOutcomes,3,0) -> Good | F11: =VLOOKUP(J8,_InspectionOutcomes,4,0) -> Requires Improvement | G11: =VLOOKUP(J8,_InspectionOutcomes,5,0) -> Inadequate | I11: Total provisions
A13: =$G$8&$G$5&$D$5&$B$13&$J$8&$D$9 -> All children's homesAllAllAllFull Inspection2017 | B13: All | C13: =IF(OR($J$8="Emergency Inspection",$J$8="Monitoring Inspection"), IFERROR(VLOOKUP(A13,'Inspection Outcome data'!$A:$L,12,0),0), SUM(D13,E13,F13,G13)) -> 2065 | D13: =IF(ISERROR( VLOOKUP(A13,'Inspection Outcome data'!$A:$L,8,0))=TRUE,0, VLOOKUP(A13,'Inspection Outcome data'!$A:$L,8,0)) -> 378 | E13: =IF(ISERROR( VLOOKUP(A13,'Inspection Outcome data'!$A:$K,9,0))=TRUE,0, VLOOKUP(A13,'Inspection Outcome data'!$A:$K,9,0)) -> 1323 | F13: =IF(ISERROR( VLOOKUP(A13,'Inspection Outcome data'!$A:$K,10,0))=TRUE,0, VLOOKUP(A13,'Inspection Outcome data'!$A:$K,10,0)) -> 298 | G13: =IF(ISERROR( VLOOKUP(A13,'Inspection Outcome data'!$A:$K,11,0))=TRUE,0, VLOOKUP(A13,'Inspection Outcome data'!$A:$K,11,0)) -> 66 | H13: =IF($H$9,I13-C13,"") -> 125 | I13: =SUM(I15,I17,I19,I21) -> 2190 | J13: =$G$8&$G$5&$D$5&$D$9 -> All children's homesAllAll2017 | K13: AllAllAllAll2016
A15: =$G$8&$G$5&$D$5&$B$15&$J$8&$D$9 -> All children's homesAllAllLocal AuthorityFull Inspection2017 | B15: Local Authority | C15: =IF(OR($J$8="Emergency Inspection",$J$8="Monitoring Inspection"), IFERROR(VLOOKUP(A15,'Inspection Outcome data'!$A:$L,12,0),0), SUM(D15,E15,F15,G15)) -> 418 | D15: =IF(ISERROR( VLOOKUP(A15,'Inspection Outcome data'!$A:$L,8,0))=TRUE,0, VLOOKUP(A15,'Inspection Outcome data'!$A:$L,8,0)) -> 112 | E15: =IF(ISERROR( VLOOKUP(A15,'Inspection Outcome data'!$A:$K,9,0))=TRUE,0, VLOOKUP(A15,'Inspection Outcome data'!$A:$K,9,0)) -> 246 | F15: =IF(ISERROR( VLOOKUP(A15,'Inspection Outcome data'!$A:$K,10,0))=TRUE,0, VLOOKUP(A15,'Inspection Outcome data'!$A:$K,10,0)) -> 50 | G15: =IF(ISERROR( VLOOKUP(A15,'Inspection Outcome data'!$A:$K,11,0))=TRUE,0, VLOOKUP(A15,'Inspection Outcome data'!$A:$K,11,0)) -> 10 | H15: =IF(AND($H$9,$C15=0),0,IF($H9,IFERROR(I15-C15,""),"")) -> 9 | I15: =IF($H$9,IF(ISERROR( VLOOKUP($J15,pandp!$A:$J,7,0))=TRUE,0, VLOOKUP($J15,pandp!$A:$J,7,0)),"") -> 427 | J15: =$G$8&$G$5&$D$5&$D$9 -> All children's homesAllAll2017 | K15: AllAllAllLocal Authority2016
A17: =$G$8&$G$5&$D$5&$B$17&$J$8&$D$9 -> All children's homesAllAllPrivateFull Inspection2017 | B17: Private | C17: =IF(OR($J$8="Emergency Inspection",$J$8="Monitoring Inspection"), IFERROR(VLOOKUP(A17,'Inspection Outcome data'!$A:$L,12,0),0), SUM(D17,E17,F17,G17)) -> 1489 | D17: =IF(ISERROR( VLOOKUP(A17,'Inspection Outcome data'!$A:$K,8,0))=TRUE,0, VLOOKUP(A17,'Inspection Outcome data'!$A:$K,8,0)) -> 237 | E17: =IF(ISERROR( VLOOKUP(A17,'Inspection Outcome data'!$A:$K,9,0))=TRUE,0, VLOOKUP(A17,'Inspection Outcome data'!$A:$K,9,0)) -> 975 | F17: =IF(ISERROR( VLOOKUP(A17,'Inspection Outcome data'!$A:$K,10,0))=TRUE,0, VLOOKUP(A17,'Inspection Outcome data'!$A:$K,10,0)) -> 222 | G17: =IF(ISERROR( VLOOKUP(A17,'Inspection Outcome data'!$A:$K,11,0))=TRUE,0, VLOOKUP(A17,'Inspection Outcome data'!$A:$K,11,0)) -> 55 | H17: =IF(AND($H$9,$C17 = 0),0,IF($H9,IFERROR(I17-C17,""),"")) -> 112 | I17: =IF($H$9,IF(ISERROR( VLOOKUP($J17,pandp!$A:$J,8,0))=TRUE,0, VLOOKUP($J17,pandp!$A:$J,8,0)),"") -> 1601 | J17: =$G$8&$G$5&$D$5&$D$9 -> All children's homesAllAll2017 | K17: AllAllAllPrivate2016
A19: =$G$8&$G$5&$D$5&$B$19&$J$8&$D$9 -> All children's homesAllAllVoluntaryFull Inspection2017 | B19: Voluntary | C19: =IF(OR($J$8="Emergency Inspection",$J$8="Monitoring Inspection"), IFERROR(VLOOKUP(A19,'Inspection Outcome data'!$A:$L,12,0),0), SUM(D19,E19,F19,G19)) -> 150 | D19: =IF(ISERROR( VLOOKUP(A19,'Inspection Outcome data'!$A:$K,8,0))=TRUE,0, VLOOKUP(A19,'Inspection Outcome data'!$A:$K,8,0)) -> 29 | E19: =IF(ISERROR( VLOOKUP(A19,'Inspection Outcome data'!$A:$K,9,0))=TRUE,0, VLOOKUP(A19,'Inspection Outcome data'!$A:$K,9,0)) -> 95 | F19: =IF(ISERROR( VLOOKUP(A19,'Inspection Outcome data'!$A:$K,10,0))=TRUE,0, VLOOKUP(A19,'Inspection Outcome data'!$A:$K,10,0)) -> 25 | G19: =IF(ISERROR( VLOOKUP(A19,'Inspection Outcome data'!$A:$K,11,0))=TRUE,0, VLOOKUP(A19,'Inspection Outcome data'!$A:$K,11,0)) -> 1 | H19: =IF(AND($H$9,$C19 = 0),0,IF($H9,IFERROR(I19-C19,""),"")) -> 2 | I19: =IF($H$9,IF(ISERROR( VLOOKUP($J19,pandp!$A:$J,9,0))=TRUE,0, VLOOKUP($J19,pandp!$A:$J,9,0)),"") -> 152 | J19: =$G$8&$G$5&$D$5&$D$9 -> All children's homesAllAll2017 | K19: AllAllAllVoluntary2016
A21: =$G$8&$G$5&$D$5&$B$21&$J$8&$D$9 -> All children's homesAllAllHealth AuthorityFull Inspection2017 | B21: Health Authority | C21: =IF(OR($J$8="Emergency Inspection",$J$8="Monitoring Inspection"), IFERROR(VLOOKUP(A21,'Inspection Outcome data'!$A:$L,12,0),0), SUM(D21,E21,F21,G21)) -> 8 | D21: =IF(ISERROR( VLOOKUP(A21,'Inspection Outcome data'!$A:$K,8,0))=TRUE,0, VLOOKUP(A21,'Inspection Outcome data'!$A:$K,8,0)) -> 0 | E21: =IF(ISERROR( VLOOKUP(A21,'Inspection Outcome data'!$A:$K,9,0))=TRUE,0, VLOOKUP(A21,'Inspection Outcome data'!$A:$K,9,0)) -> 7 | F21: =IF(ISERROR( VLOOKUP(A21,'Inspection Outcome data'!$A:$K,10,0))=TRUE,0, VLOOKUP(A21,'Inspection Outcome data'!$A:$K,10,0)) -> 1 | G21: =IF(ISERROR( VLOOKUP(A21,'Inspection Outcome data'!$A:$K,11,0))=TRUE,0, VLOOKUP(A21,'Inspection Outcome data'!$A:$K,11,0)) -> 0 | H21: =IF(AND($H$9,$C21 = 0),0,IF($H9,IFERROR(I21-C21,""),"")) -> 2 | I21: =IF($H$9,IF(ISERROR( VLOOKUP($J21,pandp!$A:$J,6,0))=TRUE,0, VLOOKUP($J21,pandp!$A:$J,6,0)),"") -> 10 | J21: =$G$8&$G$5&$D$5&$D$9 -> All children's homesAllAll2017 | K21: AllAllAllHealth Authority2016
B26: =IF(D5<>"All",D5,IF(_ddla<>"All",VLOOKUP(_ddla,'Region Lookups'!C:D,2,0),"All")) -> All
F27: 8 | H27: 9
C28: Total number inspected | D28: Outstanding | E28: Good | F28: Requires Improvement | G28: Inadequate
D29: 6 | E29: 7 | F29: 8 | G29: 9
B30: England | C30: =SUM(D30:G30) -> 2065 | D30: =IF(ISERROR(VLOOKUP($G$8&"All"&"All"&"All"&$J$8&$D$9,'Inspection Outcome data'!$A:$K,8,0))=TRUE,0,VLOOKUP($G$8&"All"&"All"&"All"&$J$8&$D$9,'Inspection Outcome data'!$A:$K,8,0)) -> 378 | E30: =IF(ISERROR(VLOOKUP($G$8&"All"&"All"&"All"&$J$8&$D$9,'Inspection Outcome data'!$A:$K,9,0))=TRUE,0,VLOOKUP($G$8&"All"&"All"&"All"&$J$8&$D$9,'Inspection Outcome data'!$A:$K,9,0)) -> 1323 | F30: =IF(ISERROR(VLOOKUP($G$8&"All"&"All"&"All"&$J$8&$D$9,'Inspection Outcome data'!$A:$K,10,0))=TRUE,0,VLOOKUP($G$8&"All"&"All"&"All"&$J$8&$D$9,'Inspection Outcome data'!$A:$K,10,0)) -> 298 | G30: =IF(ISERROR(VLOOKUP($G$8&"All"&"All"&"All"&$J$8&$D$9,'Inspection Outcome data'!$A:$K,11,0))=TRUE,0,VLOOKUP($G$8&"All"&"All"&"All"&$J$8&$D$9,'Inspection Outcome data'!$A:$K,11,0)) -> 66
B32: =IFERROR(IF(B26="All",NA(),B26),"") ->  | C32: =IF(B32="","",IF(ISERROR(VLOOKUP($G$8&"All"&$B$32&$B$13&$J$8&$D$9,'Inspection Outcome data'!$A:$K,8,0)),"",SUM(D32:G32))) ->  | D32: =IF(B32="","",IFERROR(VLOOKUP($G$8&"All"&$B$32&$B$13&$J$8&$D$9,'Inspection Outcome data'!$A:$K,8,0),"")) ->  | E32: =IF(B32="","",IFERROR(VLOOKUP($G$8&"All"&$B$32&$B$13&$J$8&$D$9,'Inspection Outcome data'!$A:$K,9,0),"")) ->  | F32: =IF(B32="","",IFERROR(VLOOKUP($G$8&"All"&$B$32&$B$13&$J$8&$D$9,'Inspection Outcome data'!$A:$K,10,0),"")) ->  | G32: =IF(B32="","",IFERROR(VLOOKUP($G$8&"All"&$B$32&$B$13&$J$8&$D$9,'Inspection Outcome data'!$A:$K,11,0),"")) -> 
A33: 1 | B33: =IFERROR(VLOOKUP($B$26&A33,'Region Lookups'!A:C,3,0),"") ->  | C33: =IF(B32="","",IF(ISERROR(VLOOKUP($G$8&$B33&"All"&$B$13&$J$8&$D$9,'Inspection Outcome data'!$A:$K,8,0)),"",SUM(D33:G33))) ->  | D33: =IF(B32="","",IFERROR(VLOOKUP($G$8&$B33&"All"&$B$13&$J$8&$D$9,'Inspection Outcome data'!$A:$K,8,0),IF(B33="","",0))) ->  | E33: =IF(B32="","",IFERROR(VLOOKUP($G$8&$B33&"All"&$B$13&$J$8&$D$9,'Inspection Outcome data'!$A:$K,9,0),IF(B33="","",0))) ->  | F33: =IF(B32="","",IFERROR(VLOOKUP($G$8&$B33&"All"&$B$13&$J$8&$D$9,'Inspection Outcome data'!$A:$K,10,0),IF(B33="","",0))) ->  | G33: =IF(B32="","",IFERROR(VLOOKUP($G$8&$B33&"All"&$B$13&$J$8&$D$9,'Inspection Outcome data'!$A:$K,11,0),IF(B33="","",0))) -> 
A34: 2 | B34: =IFERROR(VLOOKUP($B$26&A34,'Region Lookups'!A:C,3,0),"") ->  | C34: =IF(B33="","",IF(ISERROR(VLOOKUP($G$8&$B34&"All"&$B$13&$J$8&$D$9,'Inspection Outcome data'!$A:$K,8,0)),"",SUM(D34:G34))) ->  | D34: =IF(B33="","",IFERROR(VLOOKUP($G$8&$B34&"All"&$B$13&$J$8&$D$9,'Inspection Outcome data'!$A:$K,8,0),IF(B34="","",0))) ->  | E34: =IF(B33="","",IFERROR(VLOOKUP($G$8&$B34&"All"&$B$13&$J$8&$D$9,'Inspection Outcome data'!$A:$K,9,0),IF(B34="","",0))) ->  | F34: =IF(B33="","",IFERROR(VLOOKUP($G$8&$B34&"All"&$B$13&$J$8&$D$9,'Inspection Outcome data'!$A:$K,10,0),IF(B34="","",0))) ->  | G34: =IF(B33="","",IFERROR(VLOOKUP($G$8&$B34&"All"&$B$13&$J$8&$D$9,'Inspection Outcome data'!$A:$K,11,0),IF(B34="","",0))) -> 
A35: 3 | B35: =IFERROR(VLOOKUP($B$26&A35,'Region Lookups'!A:C,3,0),"") ->  | C35: =IF(B34="","",IF(ISERROR(VLOOKUP($G$8&$B35&"All"&$B$13&$J$8&$D$9,'Inspection Outcome data'!$A:$K,8,0)),"",SUM(D35:G35))) ->  | D35: =IF(B34="","",IFERROR(VLOOKUP($G$8&$B35&"All"&$B$13&$J$8&$D$9,'Inspection Outcome data'!$A:$K,8,0),IF(B35="","",0))) ->  | E35: =IF(B34="","",IFERROR(VLOOKUP($G$8&$B35&"All"&$B$13&$J$8&$D$9,'Inspection Outcome data'!$A:$K,9,0),IF(B35="","",0))) ->  | F35: =IF(B34="","",IFERROR(VLOOKUP($G$8&$B35&"All"&$B$13&$J$8&$D$9,'Inspection Outcome data'!$A:$K,10,0),IF(B35="","",0))) ->  | G35: =IF(B34="","",IFERROR(VLOOKUP($G$8&$B35&"All"&$B$13&$J$8&$D$9,'Inspection Outcome data'!$A:$K,11,0),IF(B35="","",0))) -> 
A36: 4 | B36: =IFERROR(VLOOKUP($B$26&A36,'Region Lookups'!A:C,3,0),"") ->  | C36: =IF(B35="","",IF(ISERROR(VLOOKUP($G$8&$B36&"All"&$B$13&$J$8&$D$9,'Inspection Outcome data'!$A:$K,8,0)),"",SUM(D36:G36))) ->  | D36: =IF(B35="","",IFERROR(VLOOKUP($G$8&$B36&"All"&$B$13&$J$8&$D$9,'Inspection Outcome data'!$A:$K,8,0),IF(B36="","",0))) ->  | E36: =IF(B35="","",IFERROR(VLOOKUP($G$8&$B36&"All"&$B$13&$J$8&$D$9,'Inspection Outcome data'!$A:$K,9,0),IF(B36="","",0))) ->  | F36: =IF(B35="","",IFERROR(VLOOKUP($G$8&$B36&"All"&$B$13&$J$8&$D$9,'Inspection Outcome data'!$A:$K,10,0),IF(B36="","",0))) ->  | G36: =IF(B35="","",IFERROR(VLOOKUP($G$8&$B36&"All"&$B$13&$J$8&$D$9,'Inspection Outcome data'!$A:$K,11,0),IF(B36="","",0))) -> 
A37: 5 | B37: =IFERROR(VLOOKUP($B$26&A37,'Region Lookups'!A:C,3,0),"") ->  | C37: =IF(B36="","",IF(ISERROR(VLOOKUP($G$8&$B37&"All"&$B$13&$J$8&$D$9,'Inspection Outcome data'!$A:$K,8,0)),"",SUM(D37:G37))) ->  | D37: =IF(B36="","",IFERROR(VLOOKUP($G$8&$B37&"All"&$B$13&$J$8&$D$9,'Inspection Outcome data'!$A:$K,8,0),IF(B37="","",0))) ->  | E37: =IF(B36="","",IFERROR(VLOOKUP($G$8&$B37&"All"&$B$13&$J$8&$D$9,'Inspection Outcome data'!$A:$K,9,0),IF(B37="","",0))) ->  | F37: =IF(B36="","",IFERROR(VLOOKUP($G$8&$B37&"All"&$B$13&$J$8&$D$9,'Inspection Outcome data'!$A:$K,10,0),IF(B37="","",0))) ->  | G37: =IF(B36="","",IFERROR(VLOOKUP($G$8&$B37&"All"&$B$13&$J$8&$D$9,'Inspection Outcome data'!$A:$K,11,0),IF(B37="","",0))) -> 
A38: 6 | B38: =IFERROR(VLOOKUP($B$26&A38,'Region Lookups'!A:C,3,0),"") ->  | C38: =IF(B37="","",IF(ISERROR(VLOOKUP($G$8&$B38&"All"&$B$13&$J$8&$D$9,'Inspection Outcome data'!$A:$K,8,0)),"",SUM(D38:G38))) ->  | D38: =IF(B37="","",IFERROR(VLOOKUP($G$8&$B38&"All"&$B$13&$J$8&$D$9,'Inspection Outcome data'!$A:$K,8,0),IF(B38="","",0))) ->  | E38: =IF(B37="","",IFERROR(VLOOKUP($G$8&$B38&"All"&$B$13&$J$8&$D$9,'Inspection Outcome data'!$A:$K,9,0),IF(B38="","",0))) ->  | F38: =IF(B37="","",IFERROR(VLOOKUP($G$8&$B38&"All"&$B$13&$J$8&$D$9,'Inspection Outcome data'!$A:$K,10,0),IF(B38="","",0))) ->  | G38: =IF(B37="","",IFERROR(VLOOKUP($G$8&$B38&"All"&$B$13&$J$8&$D$9,'Inspection Outcome data'!$A:$K,11,0),IF(B38="","",0))) -> 
A39: 7 | B39: =IFERROR(VLOOKUP($B$26&A39,'Region Lookups'!A:C,3,0),"") ->  | C39: =IF(B38="","",IF(ISERROR(VLOOKUP($G$8&$B39&"All"&$B$13&$J$8&$D$9,'Inspection Outcome data'!$A:$K,8,0)),"",SUM(D39:G39))) ->  | D39: =IF(B38="","",IFERROR(VLOOKUP($G$8&$B39&"All"&$B$13&$J$8&$D$9,'Inspection Outcome data'!$A:$K,8,0),IF(B39="","",0))) ->  | E39: =IF(B38="","",IFERROR(VLOOKUP($G$8&$B39&"All"&$B$13&$J$8&$D$9,'Inspection Outcome data'!$A:$K,9,0),IF(B39="","",0))) ->  | F39: =IF(B38="","",IFERROR(VLOOKUP($G$8&$B39&"All"&$B$13&$J$8&$D$9,'Inspection Outcome data'!$A:$K,10,0),IF(B39="","",0))) ->  | G39: =IF(B38="","",IFERROR(VLOOKUP($G$8&$B39&"All"&$B$13&$J$8&$D$9,'Inspection Outcome data'!$A:$K,11,0),IF(B39="","",0))) -> 
A40: 8 | B40: =IFERROR(VLOOKUP($B$26&A40,'Region Lookups'!A:C,3,0),"") ->  | C40: =IF(B39="","",IF(ISERROR(VLOOKUP($G$8&$B40&"All"&$B$13&$J$8&$D$9,'Inspection Outcome data'!$A:$K,8,0)),"",SUM(D40:G40))) ->  | D40: =IF(B39="","",IFERROR(VLOOKUP($G$8&$B40&"All"&$B$13&$J$8&$D$9,'Inspection Outcome data'!$A:$K,8,0),IF(B40="","",0))) ->  | E40: =IF(B39="","",IFERROR(VLOOKUP($G$8&$B40&"All"&$B$13&$J$8&$D$9,'Inspection Outcome data'!$A:$K,9,0),IF(B40="","",0))) ->  | F40: =IF(B39="","",IFERROR(VLOOKUP($G$8&$B40&"All"&$B$13&$J$8&$D$9,'Inspection Outcome data'!$A:$K,10,0),IF(B40="","",0))) ->  | G40: =IF(B39="","",IFERROR(VLOOKUP($G$8&$B40&"All"&$B$13&$J$8&$D$9,'Inspection Outcome data'!$A:$K,11,0),IF(B40="","",0))) -> 
A41: 9 | B41: =IFERROR(VLOOKUP($B$26&A41,'Region Lookups'!A:C,3,0),"") ->  | C41: =IF(B40="","",IF(ISERROR(VLOOKUP($G$8&$B41&"All"&$B$13&$J$8&$D$9,'Inspection Outcome data'!$A:$K,8,0)),"",SUM(D41:G41))) ->  | D41: =IF(B40="","",IFERROR(VLOOKUP($G$8&$B41&"All"&$B$13&$J$8&$D$9,'Inspection Outcome data'!$A:$K,8,0),IF(B41="","",0))) ->  | E41: =IF(B40="","",IFERROR(VLOOKUP($G$8&$B41&"All"&$B$13&$J$8&$D$9,'Inspection Outcome data'!$A:$K,9,0),IF(B41="","",0))) ->  | F41: =IF(B40="","",IFERROR(VLOOKUP($G$8&$B41&"All"&$B$13&$J$8&$D$9,'Inspection Outcome data'!$A:$K,10,0),IF(B41="","",0))) ->  | G41: =IF(B40="","",IFERROR(VLOOKUP($G$8&$B41&"All"&$B$13&$J$8&$D$9,'Inspection Outcome data'!$A:$K,11,0),IF(B41="","",0))) -> 
A42: 10 | B42: =IFERROR(VLOOKUP($B$26&A42,'Region Lookups'!A:C,3,0),"") ->  | C42: =IF(B41="","",IF(ISERROR(VLOOKUP($G$8&$B42&"All"&$B$13&$J$8&$D$9,'Inspection Outcome data'!$A:$K,8,0)),"",SUM(D42:G42))) ->  | D42: =IF(B41="","",IFERROR(VLOOKUP($G$8&$B42&"All"&$B$13&$J$8&$D$9,'Inspection Outcome data'!$A:$K,8,0),IF(B42="","",0))) ->  | E42: =IF(B41="","",IFERROR(VLOOKUP($G$8&$B42&"All"&$B$13&$J$8&$D$9,'Inspection Outcome data'!$A:$K,9,0),IF(B42="","",0))) ->  | F42: =IF(B41="","",IFERROR(VLOOKUP($G$8&$B42&"All"&$B$13&$J$8&$D$9,'Inspection Outcome data'!$A:$K,10,0),IF(B42="","",0))) ->  | G42: =IF(B41="","",IFERROR(VLOOKUP($G$8&$B42&"All"&$B$13&$J$8&$D$9,'Inspection Outcome data'!$A:$K,11,0),IF(B42="","",0))) -> 
A43: 11 | B43: =IFERROR(VLOOKUP($B$26&A43,'Region Lookups'!A:C,3,0),"") ->  | C43: =IF(B42="","",IF(ISERROR(VLOOKUP($G$8&$B43&"All"&$B$13&$J$8&$D$9,'Inspection Outcome data'!$A:$K,8,0)),"",SUM(D43:G43))) ->  | D43: =IF(B42="","",IFERROR(VLOOKUP($G$8&$B43&"All"&$B$13&$J$8&$D$9,'Inspection Outcome data'!$A:$K,8,0),IF(B43="","",0))) ->  | E43: =IF(B42="","",IFERROR(VLOOKUP($G$8&$B43&"All"&$B$13&$J$8&$D$9,'Inspection Outcome data'!$A:$K,9,0),IF(B43="","",0))) ->  | F43: =IF(B42="","",IFERROR(VLOOKUP($G$8&$B43&"All"&$B$13&$J$8&$D$9,'Inspection Outcome data'!$A:$K,10,0),IF(B43="","",0))) ->  | G43: =IF(B42="","",IFERROR(VLOOKUP($G$8&$B43&"All"&$B$13&$J$8&$D$9,'Inspection Outcome data'!$A:$K,11,0),IF(B43="","",0))) -> 
A44: 12 | B44: =IFERROR(VLOOKUP($B$26&A44,'Region Lookups'!A:C,3,0),"") ->  | C44: =IF(B43="","",IF(ISERROR(VLOOKUP($G$8&$B44&"All"&$B$13&$J$8&$D$9,'Inspection Outcome data'!$A:$K,8,0)),"",SUM(D44:G44))) ->  | D44: =IF(B43="","",IFERROR(VLOOKUP($G$8&$B44&"All"&$B$13&$J$8&$D$9,'Inspection Outcome data'!$A:$K,8,0),IF(B44="","",0))) ->  | E44: =IF(B43="","",IFERROR(VLOOKUP($G$8&$B44&"All"&$B$13&$J$8&$D$9,'Inspection Outcome data'!$A:$K,9,0),IF(B44="","",0))) ->  | F44: =IF(B43="","",IFERROR(VLOOKUP($G$8&$B44&"All"&$B$13&$J$8&$D$9,'Inspection Outcome data'!$A:$K,10,0),IF(B44="","",0))) ->  | G44: =IF(B43="","",IFERROR(VLOOKUP($G$8&$B44&"All"&$B$13&$J$8&$D$9,'Inspection Outcome data'!$A:$K,11,0),IF(B44="","",0))) -> 
A45: 13 | B45: =IFERROR(VLOOKUP($B$26&A45,'Region Lookups'!A:C,3,0),"") ->  | C45: =IF(B44="","",IF(ISERROR(VLOOKUP($G$8&$B45&"All"&$B$13&$J$8&$D$9,'Inspection Outcome data'!$A:$K,8,0)),"",SUM(D45:G45))) ->  | D45: =IF(B44="","",IFERROR(VLOOKUP($G$8&$B45&"All"&$B$13&$J$8&$D$9,'Inspection Outcome data'!$A:$K,8,0),IF(B45="","",0))) ->  | E45: =IF(B44="","",IFERROR(VLOOKUP($G$8&$B45&"All"&$B$13&$J$8&$D$9,'Inspection Outcome data'!$A:$K,9,0),IF(B45="","",0))) ->  | F45: =IF(B44="","",IFERROR(VLOOKUP($G$8&$B45&"All"&$B$13&$J$8&$D$9,'Inspection Outcome data'!$A:$K,10,0),IF(B45="","",0))) ->  | G45: =IF(B44="","",IFERROR(VLOOKUP($G$8&$B45&"All"&$B$13&$J$8&$D$9,'Inspection Outcome data'!$A:$K,11,0),IF(B45="","",0))) -> 
A46: 14 | B46: =IFERROR(VLOOKUP($B$26&A46,'Region Lookups'!A:C,3,0),"") ->  | C46: =IF(B45="","",IF(ISERROR(VLOOKUP($G$8&$B46&"All"&$B$13&$J$8&$D$9,'Inspection Outcome data'!$A:$K,8,0)),"",SUM(D46:G46))) ->  | D46: =IF(B45="","",IFERROR(VLOOKUP($G$8&$B46&"All"&$B$13&$J$8&$D$9,'Inspection Outcome data'!$A:$K,8,0),IF(B46="","",0))) ->  | E46: =IF(B45="","",IFERROR(VLOOKUP($G$8&$B46&"All"&$B$13&$J$8&$D$9,'Inspection Outcome data'!$A:$K,9,0),IF(B46="","",0))) ->  | F46: =IF(B45="","",IFERROR(VLOOKUP($G$8&$B46&"All"&$B$13&$J$8&$D$9,'Inspection Outcome data'!$A:$K,10,0),IF(B46="","",0))) ->  | G46: =IF(B45="","",IFERROR(VLOOKUP($G$8&$B46&"All"&$B$13&$J$8&$D$9,'Inspection Outcome data'!$A:$K,11,0),IF(B46="","",0))) -> 
A47: 15 | B47: =IFERROR(VLOOKUP($B$26&A47,'Region Lookups'!A:C,3,0),"") ->  | C47: =IF(B46="","",IF(ISERROR(VLOOKUP($G$8&$B47&"All"&$B$13&$J$8&$D$9,'Inspection Outcome data'!$A:$K,8,0)),"",SUM(D47:G47))) ->  | D47: =IF(B46="","",IFERROR(VLOOKUP($G$8&$B47&"All"&$B$13&$J$8&$D$9,'Inspection Outcome data'!$A:$K,8,0),IF(B47="","",0))) ->  | E47: =IF(B46="","",IFERROR(VLOOKUP($G$8&$B47&"All"&$B$13&$J$8&$D$9,'Inspection Outcome data'!$A:$K,9,0),IF(B47="","",0))) ->  | F47: =IF(B46="","",IFERROR(VLOOKUP($G$8&$B47&"All"&$B$13&$J$8&$D$9,'Inspection Outcome data'!$A:$K,10,0),IF(B47="","",0))) ->  | G47: =IF(B46="","",IFERROR(VLOOKUP($G$8&$B47&"All"&$B$13&$J$8&$D$9,'Inspection Outcome data'!$A:$K,11,0),IF(B47="","",0))) -> 
A48: 16 | B48: =IFERROR(VLOOKUP($B$26&A48,'Region Lookups'!A:C,3,0),"") ->  | C48: =IF(B47="","",IF(ISERROR(VLOOKUP($G$8&$B48&"All"&$B$13&$J$8&$D$9,'Inspection Outcome data'!$A:$K,8,0)),"",SUM(D48:G48))) ->  | D48: =IF(B47="","",IFERROR(VLOOKUP($G$8&$B48&"All"&$B$13&$J$8&$D$9,'Inspection Outcome data'!$A:$K,8,0),IF(B48="","",0))) ->  | E48: =IF(B47="","",IFERROR(VLOOKUP($G$8&$B48&"All"&$B$13&$J$8&$D$9,'Inspection Outcome data'!$A:$K,9,0),IF(B48="","",0))) ->  | F48: =IF(B47="","",IFERROR(VLOOKUP($G$8&$B48&"All"&$B$13&$J$8&$D$9,'Inspection Outcome data'!$A:$K,10,0),IF(B48="","",0))) ->  | G48: =IF(B47="","",IFERROR(VLOOKUP($G$8&$B48&"All"&$B$13&$J$8&$D$9,'Inspection Outcome data'!$A:$K,11,0),IF(B48="","",0))) -> 
A49: 17 | B49: =IFERROR(VLOOKUP($B$26&A49,'Region Lookups'!A:C,3,0),"") ->  | C49: =IF(B48="","",IF(ISERROR(VLOOKUP($G$8&$B49&"All"&$B$13&$J$8&$D$9,'Inspection Outcome data'!$A:$K,8,0)),"",SUM(D49:G49))) ->  | D49: =IF(B48="","",IFERROR(VLOOKUP($G$8&$B49&"All"&$B$13&$J$8&$D$9,'Inspection Outcome data'!$A:$K,8,0),IF(B49="","",0))) ->  | E49: =IF(B48="","",IFERROR(VLOOKUP($G$8&$B49&"All"&$B$13&$J$8&$D$9,'Inspection Outcome data'!$A:$K,9,0),IF(B49="","",0))) ->  | F49: =IF(B48="","",IFERROR(VLOOKUP($G$8&$B49&"All"&$B$13&$J$8&$D$9,'Inspection Outcome data'!$A:$K,10,0),IF(B49="","",0))) ->  | G49: =IF(B48="","",IFERROR(VLOOKUP($G$8&$B49&"All"&$B$13&$J$8&$D$9,'Inspection Outcome data'!$A:$K,11,0),IF(B49="","",0))) -> 
A50: 18 | B50: =IFERROR(VLOOKUP($B$26&A50,'Region Lookups'!A:C,3,0),"") ->  | C50: =IF(B49="","",IF(ISERROR(VLOOKUP($G$8&$B50&"All"&$B$13&$J$8&$D$9,'Inspection Outcome data'!$A:$K,8,0)),"",SUM(D50:G50))) ->  | D50: =IF(B49="","",IFERROR(VLOOKUP($G$8&$B50&"All"&$B$13&$J$8&$D$9,'Inspection Outcome data'!$A:$K,8,0),IF(B50="","",0))) ->  | E50: =IF(B49="","",IFERROR(VLOOKUP($G$8&$B50&"All"&$B$13&$J$8&$D$9,'Inspection Outcome data'!$A:$K,9,0),IF(B50="","",0))) ->  | F50: =IF(B49="","",IFERROR(VLOOKUP($G$8&$B50&"All"&$B$13&$J$8&$D$9,'Inspection Outcome data'!$A:$K,10,0),IF(B50="","",0))) ->  | G50: =IF(B49="","",IFERROR(VLOOKUP($G$8&$B50&"All"&$B$13&$J$8&$D$9,'Inspection Outcome data'!$A:$K,11,0),IF(B50="","",0))) -> 
A51: 19 | B51: =IFERROR(VLOOKUP($B$26&A51,'Region Lookups'!A:C,3,0),"") ->  | C51: =IF(B50="","",IF(ISERROR(VLOOKUP($G$8&$B51&"All"&$B$13&$J$8&$D$9,'Inspection Outcome data'!$A:$K,8,0)),"",SUM(D51:G51))) ->  | D51: =IF(B50="","",IFERROR(VLOOKUP($G$8&$B51&"All"&$B$13&$J$8&$D$9,'Inspection Outcome data'!$A:$K,8,0),IF(B51="","",0))) ->  | E51: =IF(B50="","",IFERROR(VLOOKUP($G$8&$B51&"All"&$B$13&$J$8&$D$9,'Inspection Outcome data'!$A:$K,9,0),IF(B51="","",0))) ->  | F51: =IF(B50="","",IFERROR(VLOOKUP($G$8&$B51&"All"&$B$13&$J$8&$D$9,'Inspection Outcome data'!$A:$K,10,0),IF(B51="","",0))) ->  | G51: =IF(B50="","",IFERROR(VLOOKUP($G$8&$B51&"All"&$B$13&$J$8&$D$9,'Inspection Outcome data'!$A:$K,11,0),IF(B51="","",0))) -> 
A52: 20 | B52: =IFERROR(VLOOKUP($B$26&A52,'Region Lookups'!A:C,3,0),"") ->  | C52: =IF(B51="","",IF(ISERROR(VLOOKUP($G$8&$B52&"All"&$B$13&$J$8&$D$9,'Inspection Outcome data'!$A:$K,8,0)),"",SUM(D52:G52))) ->  | D52: =IF(B51="","",IFERROR(VLOOKUP($G$8&$B52&"All"&$B$13&$J$8&$D$9,'Inspection Outcome data'!$A:$K,8,0),IF(B52="","",0))) ->  | E52: =IF(B51="","",IFERROR(VLOOKUP($G$8&$B52&"All"&$B$13&$J$8&$D$9,'Inspection Outcome data'!$A:$K,9,0),IF(B52="","",0))) ->  | F52: =IF(B51="","",IFERROR(VLOOKUP($G$8&$B52&"All"&$B$13&$J$8&$D$9,'Inspection Outcome data'!$A:$K,10,0),IF(B52="","",0))) ->  | G52: =IF(B51="","",IFERROR(VLOOKUP($G$8&$B52&"All"&$B$13&$J$8&$D$9,'Inspection Outcome data'!$A:$K,11,0),IF(B52="","",0))) -> 
A53: 21 | B53: =IFERROR(VLOOKUP($B$26&A53,'Region Lookups'!A:C,3,0),"") ->  | C53: =IF(B52="","",IF(ISERROR(VLOOKUP($G$8&$B53&"All"&$B$13&$J$8&$D$9,'Inspection Outcome data'!$A:$K,8,0)),"",SUM(D53:G53))) ->  | D53: =IF(B52="","",IFERROR(VLOOKUP($G$8&$B53&"All"&$B$13&$J$8&$D$9,'Inspection Outcome data'!$A:$K,8,0),IF(B53="","",0))) ->  | E53: =IF(B52="","",IFERROR(VLOOKUP($G$8&$B53&"All"&$B$13&$J$8&$D$9,'Inspection Outcome data'!$A:$K,9,0),IF(B53="","",0))) ->  | F53: =IF(B52="","",IFERROR(VLOOKUP($G$8&$B53&"All"&$B$13&$J$8&$D$9,'Inspection Outcome data'!$A:$K,10,0),IF(B53="","",0))) ->  | G53: =IF(B52="","",IFERROR(VLOOKUP($G$8&$B53&"All"&$B$13&$J$8&$D$9,'Inspection Outcome data'!$A:$K,11,0),IF(B53="","",0))) -> 
A54: 22 | B54: =IFERROR(VLOOKUP($B$26&A54,'Region Lookups'!A:C,3,0),"") ->  | C54: =IF(B53="","",IF(ISERROR(VLOOKUP($G$8&$B54&"All"&$B$13&$J$8&$D$9,'Inspection Outcome data'!$A:$K,8,0)),"",SUM(D54:G54))) ->  | D54: =IF(B53="","",IFERROR(VLOOKUP($G$8&$B54&"All"&$B$13&$J$8&$D$9,'Inspection Outcome data'!$A:$K,8,0),IF(B54="","",0))) ->  | E54: =IF(B53="","",IFERROR(VLOOKUP($G$8&$B54&"All"&$B$13&$J$8&$D$9,'Inspection Outcome data'!$A:$K,9,0),IF(B54="","",0))) ->  | F54: =IF(B53="","",IFERROR(VLOOKUP($G$8&$B54&"All"&$B$13&$J$8&$D$9,'Inspection Outcome data'!$A:$K,10,0),IF(B54="","",0))) ->  | G54: =IF(B53="","",IFERROR(VLOOKUP($G$8&$B54&"All"&$B$13&$J$8&$D$9,'Inspection Outcome data'!$A:$K,11,0),IF(B54="","",0))) -> 
A55: 23 | B55: =IFERROR(VLOOKUP($B$26&A55,'Region Lookups'!A:C,3,0),"") ->  | C55: =IF(B54="","",IF(ISERROR(VLOOKUP($G$8&$B55&"All"&$B$13&$J$8&$D$9,'Inspection Outcome data'!$A:$K,8,0)),"",SUM(D55:G55))) ->  | D55: =IF(B54="","",IFERROR(VLOOKUP($G$8&$B55&"All"&$B$13&$J$8&$D$9,'Inspection Outcome data'!$A:$K,8,0),IF(B55="","",0))) ->  | E55: =IF(B54="","",IFERROR(VLOOKUP($G$8&$B55&"All"&$B$13&$J$8&$D$9,'Inspection Outcome data'!$A:$K,9,0),IF(B55="","",0))) ->  | F55: =IF(B54="","",IFERROR(VLOOKUP($G$8&$B55&"All"&$B$13&$J$8&$D$9,'Inspection Outcome data'!$A:$K,10,0),IF(B55="","",0))) ->  | G55: =IF(B54="","",IFERROR(VLOOKUP($G$8&$B55&"All"&$B$13&$J$8&$D$9,'Inspection Outcome data'!$A:$K,11,0),IF(B55="","",0))) -> 
A56: 24 | B56: =IFERROR(VLOOKUP($B$26&A56,'Region Lookups'!A:C,3,0),"") ->  | C56: =IF(B55="","",IF(ISERROR(VLOOKUP($G$8&$B56&"All"&$B$13&$J$8&$D$9,'Inspection Outcome data'!$A:$K,8,0)),"",SUM(D56:G56))) ->  | D56: =IF(B55="","",IFERROR(VLOOKUP($G$8&$B56&"All"&$B$13&$J$8&$D$9,'Inspection Outcome data'!$A:$K,8,0),IF(B56="","",0))) ->  | E56: =IF(B55="","",IFERROR(VLOOKUP($G$8&$B56&"All"&$B$13&$J$8&$D$9,'Inspection Outcome data'!$A:$K,9,0),IF(B56="","",0))) ->  | F56: =IF(B55="","",IFERROR(VLOOKUP($G$8&$B56&"All"&$B$13&$J$8&$D$9,'Inspection Outcome data'!$A:$K,10,0),IF(B56="","",0))) ->  | G56: =IF(B55="","",IFERROR(VLOOKUP($G$8&$B56&"All"&$B$13&$J$8&$D$9,'Inspection Outcome data'!$A:$K,11,0),IF(B56="","",0))) -> 
A57: 25 | B57: =IFERROR(VLOOKUP($B$26&A57,'Region Lookups'!A:C,3,0),"") ->  | C57: =IF(B56="","",IF(ISERROR(VLOOKUP($G$8&$B57&"All"&$B$13&$J$8&$D$9,'Inspection Outcome data'!$A:$K,8,0)),"",SUM(D57:G57))) ->  | D57: =IF(B56="","",IFERROR(VLOOKUP($G$8&$B57&"All"&$B$13&$J$8&$D$9,'Inspection Outcome data'!$A:$K,8,0),IF(B57="","",0))) ->  | E57: =IF(B56="","",IFERROR(VLOOKUP($G$8&$B57&"All"&$B$13&$J$8&$D$9,'Inspection Outcome data'!$A:$K,9,0),IF(B57="","",0))) ->  | F57: =IF(B56="","",IFERROR(VLOOKUP($G$8&$B57&"All"&$B$13&$J$8&$D$9,'Inspection Outcome data'!$A:$K,10,0),IF(B57="","",0))) ->  | G57: =IF(B56="","",IFERROR(VLOOKUP($G$8&$B57&"All"&$B$13&$J$8&$D$9,'Inspection Outcome data'!$A:$K,11,0),IF(B57="","",0))) -> 
A58: 26 | B58: =IFERROR(VLOOKUP($B$26&A58,'Region Lookups'!A:C,3,0),"") ->  | C58: =IF(B57="","",IF(ISERROR(VLOOKUP($G$8&$B58&"All"&$B$13&$J$8&$D$9,'Inspection Outcome data'!$A:$K,8,0)),"",SUM(D58:G58))) ->  | D58: =IF(B57="","",IFERROR(VLOOKUP($G$8&$B58&"All"&$B$13&$J$8&$D$9,'Inspection Outcome data'!$A:$K,8,0),IF(B58="","",0))) ->  | E58: =IF(B57="","",IFERROR(VLOOKUP($G$8&$B58&"All"&$B$13&$J$8&$D$9,'Inspection Outcome data'!$A:$K,9,0),IF(B58="","",0))) ->  | F58: =IF(B57="","",IFERROR(VLOOKUP($G$8&$B58&"All"&$B$13&$J$8&$D$9,'Inspection Outcome data'!$A:$K,10,0),IF(B58="","",0))) ->  | G58: =IF(B57="","",IFERROR(VLOOKUP($G$8&$B58&"All"&$B$13&$J$8&$D$9,'Inspection Outcome data'!$A:$K,11,0),IF(B58="","",0))) -> 
A59: 27 | B59: =IFERROR(VLOOKUP($B$26&A59,'Region Lookups'!A:C,3,0),"") ->  | C59: =IF(B58="","",IF(ISERROR(VLOOKUP($G$8&$B59&"All"&$B$13&$J$8&$D$9,'Inspection Outcome data'!$A:$K,8,0)),"",SUM(D59:G59))) ->  | D59: =IF(B58="","",IFERROR(VLOOKUP($G$8&$B59&"All"&$B$13&$J$8&$D$9,'Inspection Outcome data'!$A:$K,8,0),IF(B59="","",0))) ->  | E59: =IF(B58="","",IFERROR(VLOOKUP($G$8&$B59&"All"&$B$13&$J$8&$D$9,'Inspection Outcome data'!$A:$K,9,0),IF(B59="","",0))) ->  | F59: =IF(B58="","",IFERROR(VLOOKUP($G$8&$B59&"All"&$B$13&$J$8&$D$9,'Inspection Outcome data'!$A:$K,10,0),IF(B59="","",0))) ->  | G59: =IF(B58="","",IFERROR(VLOOKUP($G$8&$B59&"All"&$B$13&$J$8&$D$9,'Inspection Outcome data'!$A:$K,11,0),IF(B59="","",0))) -> 
A60: 28 | B60: =IFERROR(VLOOKUP($B$26&A60,'Region Lookups'!A:C,3,0),"") ->  | C60: =IF(B59="","",IF(ISERROR(VLOOKUP($G$8&$B60&"All"&$B$13&$J$8&$D$9,'Inspection Outcome data'!$A:$K,8,0)),"",SUM(D60:G60))) ->  | D60: =IF(B59="","",IFERROR(VLOOKUP($G$8&$B60&"All"&$B$13&$J$8&$D$9,'Inspection Outcome data'!$A:$K,8,0),IF(B60="","",0))) ->  | E60: =IF(B59="","",IFERROR(VLOOKUP($G$8&$B60&"All"&$B$13&$J$8&$D$9,'Inspection Outcome data'!$A:$K,9,0),IF(B60="","",0))) ->  | F60: =IF(B59="","",IFERROR(VLOOKUP($G$8&$B60&"All"&$B$13&$J$8&$D$9,'Inspection Outcome data'!$A:$K,10,0),IF(B60="","",0))) ->  | G60: =IF(B59="","",IFERROR(VLOOKUP($G$8&$B60&"All"&$B$13&$J$8&$D$9,'Inspection Outcome data'!$A:$K,11,0),IF(B60="","",0))) -> 
A61: 29 | B61: =IFERROR(VLOOKUP($B$26&A61,'Region Lookups'!A:C,3,0),"") ->  | C61: =IF(B60="","",IF(ISERROR(VLOOKUP($G$8&$B61&"All"&$B$13&$J$8&$D$9,'Inspection Outcome data'!$A:$K,8,0)),"",SUM(D61:G61))) ->  | D61: =IF(B60="","",IFERROR(VLOOKUP($G$8&$B61&"All"&$B$13&$J$8&$D$9,'Inspection Outcome data'!$A:$K,8,0),IF(B61="","",0))) ->  | E61: =IF(B60="","",IFERROR(VLOOKUP($G$8&$B61&"All"&$B$13&$J$8&$D$9,'Inspection Outcome data'!$A:$K,9,0),IF(B61="","",0))) ->  | F61: =IF(B60="","",IFERROR(VLOOKUP($G$8&$B61&"All"&$B$13&$J$8&$D$9,'Inspection Outcome data'!$A:$K,10,0),IF(B61="","",0))) ->  | G61: =IF(B60="","",IFERROR(VLOOKUP($G$8&$B61&"All"&$B$13&$J$8&$D$9,'Inspection Outcome data'!$A:$K,11,0),IF(B61="","",0))) -> 
A62: 30 | B62: =IFERROR(VLOOKUP($B$26&A62,'Region Lookups'!A:C,3,0),"") ->  | C62: =IF(B61="","",IF(ISERROR(VLOOKUP($G$8&$B62&"All"&$B$13&$J$8&$D$9,'Inspection Outcome data'!$A:$K,8,0)),"",SUM(D62:G62))) ->  | D62: =IF(B61="","",IFERROR(VLOOKUP($G$8&$B62&"All"&$B$13&$J$8&$D$9,'Inspection Outcome data'!$A:$K,8,0),IF(B62="","",0))) ->  | E62: =IF(B61="","",IFERROR(VLOOKUP($G$8&$B62&"All"&$B$13&$J$8&$D$9,'Inspection Outcome data'!$A:$K,9,0),IF(B62="","",0))) ->  | F62: =IF(B61="","",IFERROR(VLOOKUP($G$8&$B62&"All"&$B$13&$J$8&$D$9,'Inspection Outcome data'!$A:$K,10,0),IF(B62="","",0))) ->  | G62: =IF(B61="","",IFERROR(VLOOKUP($G$8&$B62&"All"&$B$13&$J$8&$D$9,'Inspection Outcome data'!$A:$K,11,0),IF(B62="","",0))) -> 
A63: 31 | B63: =IFERROR(VLOOKUP($B$26&A63,'Region Lookups'!A:C,3,0),"") ->  | C63: =IF(B62="","",IF(ISERROR(VLOOKUP($G$8&$B63&"All"&$B$13&$J$8&$D$9,'Inspection Outcome data'!$A:$K,8,0)),"",SUM(D63:G63))) ->  | D63: =IF(B62="","",IFERROR(VLOOKUP($G$8&$B63&"All"&$B$13&$J$8&$D$9,'Inspection Outcome data'!$A:$K,8,0),IF(B63="","",0))) ->  | E63: =IF(B62="","",IFERROR(VLOOKUP($G$8&$B63&"All"&$B$13&$J$8&$D$9,'Inspection Outcome data'!$A:$K,9,0),IF(B63="","",0))) ->  | F63: =IF(B62="","",IFERROR(VLOOKUP($G$8&$B63&"All"&$B$13&$J$8&$D$9,'Inspection Outcome data'!$A:$K,10,0),IF(B63="","",0))) ->  | G63: =IF(B62="","",IFERROR(VLOOKUP($G$8&$B63&"All"&$B$13&$J$8&$D$9,'Inspection Outcome data'!$A:$K,11,0),IF(B63="","",0))) -> 
A64: 32 | B64: =IFERROR(VLOOKUP($B$26&A64,'Region Lookups'!A:C,3,0),"") ->  | C64: =IF(B63="","",IF(ISERROR(VLOOKUP($G$8&$B64&"All"&$B$13&$J$8&$D$9,'Inspection Outcome data'!$A:$K,8,0)),"",SUM(D64:G64))) ->  | D64: =IF(B63="","",IFERROR(VLOOKUP($G$8&$B64&"All"&$B$13&$J$8&$D$9,'Inspection Outcome data'!$A:$K,8,0),IF(B64="","",0))) ->  | E64: =IF(B63="","",IFERROR(VLOOKUP($G$8&$B64&"All"&$B$13&$J$8&$D$9,'Inspection Outcome data'!$A:$K,9,0),IF(B64="","",0))) ->  | F64: =IF(B63="","",IFERROR(VLOOKUP($G$8&$B64&"All"&$B$13&$J$8&$D$9,'Inspection Outcome data'!$A:$K,10,0),IF(B64="","",0))) ->  | G64: =IF(B63="","",IFERROR(VLOOKUP($G$8&$B64&"All"&$B$13&$J$8&$D$9,'Inspection Outcome data'!$A:$K,11,0),IF(B64="","",0))) -> 
A65: 33 | B65: =IFERROR(VLOOKUP($B$26&A65,'Region Lookups'!A:C,3,0),"") ->  | C65: =IF(B64="","",IF(ISERROR(VLOOKUP($G$8&$B65&"All"&$B$13&$J$8&$D$9,'Inspection Outcome data'!$A:$K,8,0)),"",SUM(D65:G65))) ->  | D65: =IF(B64="","",IFERROR(VLOOKUP($G$8&$B65&"All"&$B$13&$J$8&$D$9,'Inspection Outcome data'!$A:$K,8,0),IF(B65="","",0))) ->  | E65: =IF(B64="","",IFERROR(VLOOKUP($G$8&$B65&"All"&$B$13&$J$8&$D$9,'Inspection Outcome data'!$A:$K,9,0),IF(B65="","",0))) ->  | F65: =IF(B64="","",IFERROR(VLOOKUP($G$8&$B65&"All"&$B$13&$J$8&$D$9,'Inspection Outcome data'!$A:$K,10,0),IF(B65="","",0))) ->  | G65: =IF(B64="","",IFERROR(VLOOKUP($G$8&$B65&"All"&$B$13&$J$8&$D$9,'Inspection Outcome data'!$A:$K,11,0),IF(B65="","",0))) -> 
B66: =IFERROR(VLOOKUP($B$26&A66,'Region Lookups'!A:C,3,0),"") -> 
B67: =IFERROR(VLOOKUP($B$26&A67,'Region Lookups'!A:C,3,0),"") -> 
B68: =IFERROR(VLOOKUP($B$26&A68,'Region Lookups'!A:C,3,0),"") -> 
B69: =IFERROR(VLOOKUP($B$26&A69,'Region Lookups'!A:C,3,0),"") -> 

Sheet Sub-Judgements
S1: 1
B2: Statistical First Release - Children's Homes (Sub-Judgements) | S2: 2
S3: 3
C4: Region: | F4: Local Authority: | I4: Sector: | S4: 4
C5: All | F5: All | H5: =IF(C5="All",TRUE,NOT(ISERROR(MATCH(F5,INDIRECT(SUBSTITUTE(SUBSTITUTE(C5," ","_"),",","")),0)))) -> TRUE | I5: All | S5: 5
S6: 6
C7: Date: | F7: Provision Type:
C8: as at 30 September 2017 | F8: All children's homes
D9: =VLOOKUP(C8,_PeriodLookup,2,0) -> 2017
B10: Judgements | C10: Total number of inspections | D10: Inspection Outcomes
D11: Outstanding | E11: Good | F11: Requires Improvement / Adequate | G11: Inadequate
A14: Overall effectiveness | B14: =IF(IF(ISERROR(VLOOKUP($D$9&$F$8&$S1,_Subjudgements,4,0))=TRUE,0,VLOOKUP($D$9&$F$8&$S1,_Subjudgements,4,0))=0,"",IF(ISERROR(VLOOKUP($D$9&$F$8&$S1,_Subjudgements,4,0))=TRUE,0,VLOOKUP($D$9&$F$8&$S1,_Subjudgements,4,0))) -> The overall experiences and progress of children and young people living in the home are | C14: =IF($B14 = "","",IF(SUM(D14,E14,F14,G14)=0,0,SUM(D14,E14,F14,G14))) -> 2065 | D14: =IF($B$14="","",IF(ISERROR( VLOOKUP(A15,DataSubJudgements!$A:$K,8,0))=TRUE,0, VLOOKUP(A15,DataSubJudgements!$A:$K,8,0))) -> 378 | E14: =IF($B$14="","",IF(ISERROR( VLOOKUP(A15,DataSubJudgements!$A:$K,9,0))=TRUE,0, VLOOKUP(A15,DataSubJudgements!$A:$K,9,0))) -> 1323 | F14: =IF($B$14="","",IF(ISERROR( VLOOKUP(A15,DataSubJudgements!$A:$K,10,0))=TRUE,0, VLOOKUP(A15,DataSubJudgements!$A:$K,10,0))) -> 298 | G14: =IF($B$14="","",IF(ISERROR( VLOOKUP(A15,DataSubJudgements!$A:$K,11,0))=TRUE,0, VLOOKUP(A15,DataSubJudgements!$A:$K,11,0))) -> 66
A15: =$C$5&$F$5&$I$5&$F$8&$A$14&$D$9 -> AllAllAllAll children's homesOverall effectiveness2017
A17: Outcomes for children and young people | B17: =IF(IF(ISERROR( VLOOKUP($D$9&$F$8&$S2,_Subjudgements,4,0))=TRUE,0, VLOOKUP($D$9&$F$8&$S2,_Subjudgements,4,0))=0,"", IF(ISERROR( VLOOKUP($D$9&$F$8&$S2,_Subjudgements,4,0))=TRUE,0, VLOOKUP($D$9&$F$8&$S2,_Subjudgements,4,0))) -> Outcomes for children and young people | C17: =IF($B17 = "","",IF(SUM(D17,E17,F17,G17)=0,0,SUM(D17,E17,F17,G17))) -> 14 | D17: =IF($B$17="","",IF(ISERROR( VLOOKUP(A18,DataSubJudgements!$A:$K,8,0))=TRUE,0, VLOOKUP(A18,DataSubJudgements!$A:$K,8,0))) -> 3 | E17: =IF($B$17="","",IF(ISERROR( VLOOKUP(A18,DataSubJudgements!$A:$K,9,0))=TRUE,0, VLOOKUP(A18,DataSubJudgements!$A:$K,9,0))) -> 8 | F17: =IF($B$17="","",IF(ISERROR( VLOOKUP(A18,DataSubJudgements!$A:$K,10,0))=TRUE,0, VLOOKUP(A18,DataSubJudgements!$A:$K,10,0))) -> 3 | G17: =IF($B$17="","",IF(ISERROR( VLOOKUP(A18,DataSubJudgements!$A:$K,11,0))=TRUE,0, VLOOKUP(A18,DataSubJudgements!$A:$K,11,0))) -> 0
A18: =$C$5&$F$5&$I$5&$F$8&$A$17&$D$9 -> AllAllAllAll children's homesOutcomes for children and young people2017
A20: Quality of care | B20: =IF(IF(ISERROR(VLOOKUP($D$9&$F$8&$S3,_Subjudgements,4,0))=TRUE,0,VLOOKUP($D$9&$F$8&$S3,_Subjudgements,4,0))=0,"",IF(ISERROR(VLOOKUP($D$9&$F$8&$S3,_Subjudgements,4,0))=TRUE,0,VLOOKUP($D$9&$F$8&$S3,_Subjudgements,4,0))) -> Quality of care | C20: =IF($B20 = "","",IF(SUM(D20,E20,F20,G20)=0,0,SUM(D20,E20,F20,G20))) -> 7 | D20: =IF($B$20="","",IF(ISERROR( VLOOKUP(A21,DataSubJudgements!$A:$K,8,0))=TRUE,0, VLOOKUP(A21,DataSubJudgements!$A:$K,8,0))) -> 0 | E20: =IF($B$20="","",IF(ISERROR( VLOOKUP(A21,DataSubJudgements!$A:$K,9,0))=TRUE,0, VLOOKUP(A21,DataSubJudgements!$A:$K,9,0))) -> 4 | F20: =IF($B$20="","",IF(ISERROR( VLOOKUP(A21,DataSubJudgements!$A:$K,10,0))=TRUE,0, VLOOKUP(A21,DataSubJudgements!$A:$K,10,0))) -> 3 | G20: =IF($B$20="","",IF(ISERROR( VLOOKUP(A21,DataSubJudgements!$A:$K,11,0))=TRUE,0, VLOOKUP(A21,DataSubJudgements!$A:$K,11,0))) -> 0
A21: =$C$5&$F$5&$I$5&$F$8&$A$20&$D$9 -> AllAllAllAll children's homesQuality of care2017
A23: Safeguarding children and young people | B23: =IF(IF(ISERROR(VLOOKUP($D$9&$F$8&$S4,_Subjudgements,4,0))=TRUE,0,VLOOKUP($D$9&$F$8&$S4,_Subjudgements,4,0))=0,"",IF(ISERROR(VLOOKUP($D$9&$F$8&$S4,_Subjudgements,4,0))=TRUE,0,VLOOKUP($D$9&$F$8&$S4,_Subjudgements,4,0))) -> How well children and young people are helped and protected | C23: =IF($B23 = "","",IF(SUM(D23,E23,F23,G23)=0,0,SUM(D23,E23,F23,G23))) -> 2064 | D23: =IF($B$23="","",IF(ISERROR( VLOOKUP(A24,DataSubJudgements!$A:$K,8,0))=TRUE,0, VLOOKUP(A24,DataSubJudgements!$A:$K,8,0))) -> 320 | E23: =IF($B$23="","",IF(ISERROR( VLOOKUP(A24,DataSubJudgements!$A:$K,9,0))=TRUE,0, VLOOKUP(A24,DataSubJudgements!$A:$K,9,0))) -> 1318 | F23: =IF($B$23="","",IF(ISERROR( VLOOKUP(A24,DataSubJudgements!$A:$K,10,0))=TRUE,0, VLOOKUP(A24,DataSubJudgements!$A:$K,10,0))) -> 360 | G23: =IF($B$23="","",IF(ISERROR( VLOOKUP(A24,DataSubJudgements!$A:$K,11,0))=TRUE,0, VLOOKUP(A24,DataSubJudgements!$A:$K,11,0))) -> 66
A24: =$C$5&$F$5&$I$5&$F$8&$A$23&$D$9 -> AllAllAllAll children's homesSafeguarding children and young people2017
A26: Leadership and management | B26: =IF(IF(ISERROR(VLOOKUP($D$9&$F$8&$S5,_Subjudgements,4,0))=TRUE,0,VLOOKUP($D$9&$F$8&$S5,_Subjudgements,4,0))=0,"",IF(ISERROR(VLOOKUP($D$9&$F$8&$S5,_Subjudgements,4,0))=TRUE,0,VLOOKUP($D$9&$F$8&$S5,_Subjudgements,4,0))) -> The impact and effectiveness of leaders and managers | C26: =IF($B26 = "","",IF(SUM(D26,E26,F26,G26)=0,0,SUM(D26,E26,F26,G26))) -> 2063 | D26: =IF($B$26="","",IF(ISERROR( VLOOKUP(A27,DataSubJudgements!$A:$K,8,0))=TRUE,0, VLOOKUP(A27,DataSubJudgements!$A:$K,8,0))) -> 411 | E26: =IF($B$26="","",IF(ISERROR( VLOOKUP(A27,DataSubJudgements!$A:$K,9,0))=TRUE,0, VLOOKUP(A27,DataSubJudgements!$A:$K,9,0))) -> 1072 | F26: =IF($B$26="","",IF(ISERROR( VLOOKUP(A27,DataSubJudgements!$A:$K,10,0))=TRUE,0, VLOOKUP(A27,DataSubJudgements!$A:$K,10,0))) -> 457 | G26: =IF($B$26="","",IF(ISERROR( VLOOKUP(A27,DataSubJudgements!$A:$K,11,0))=TRUE,0, VLOOKUP(A27,DataSubJudgements!$A:$K,11,0))) -> 123
A27: =$C$5&$F$5&$I$5&$F$8&$A$26&$D$9 -> AllAllAllAll children's homesLeadership and management2017
B32: =IF(C5<>"All",C5,IF(F5<>"All",VLOOKUP(F5,'Region Lookups'!C:D,2,0),"All")) -> All
F33: 8 | H33: 9 | J33: 10 | M33: 11
D34: Total number inspected | F34: Outstanding | H34: Good | J34: Requires Improvement/ Adequate | M34: Inadequate
F35: 6 | H35: 7 | J35: 8 | M35: 9
B36: England | D36: =IF(ISERROR(VLOOKUP("All"&"All"&$I$5&$F$8&$A$14&$D$9,DataSubJudgements!$A:$K,8,0)),"",SUM(F36:M36)) -> 2065 | F36: =IFERROR(VLOOKUP("All"&"All"&$I$5&$F$8&$A$14&$D$9,DataSubJudgements!$A:$K,8,0),"") -> 378 | H36: =IFERROR(VLOOKUP("All"&"All"&$I$5&$F$8&$A$14&$D$9,DataSubJudgements!$A:$K,9,0),"") -> 1323 | J36: =IFERROR(VLOOKUP("All"&"All"&$I$5&$F$8&$A$14&$D$9,DataSubJudgements!$A:$K,10,0),"") -> 298 | M36: =IFERROR(VLOOKUP("All"&"All"&$I$5&$F$8&$A$14&$D$9,DataSubJudgements!$A:$K,11,0),"") -> 66
B38: =IFERROR(IF(B32="All",NA(),B32),"") ->  | D38: =IF(ISERROR(VLOOKUP($B38&"All"&$I$5&$F$8&$A$14&$D$9,DataSubJudgements!$A:$K,8,0)),IF(B38="","",0),SUM(F38:M38)) ->  | F38: =IF(ISERROR(VLOOKUP($B38&"All"&$I$5&$F$8&$A$14&$D$9,DataSubJudgements!$A:$K,F$33,0)),IF($B38="","",0),VLOOKUP($B38&"All"&$I$5&$F$8&$A$14&$D$9,DataSubJudgements!$A:$K,F$33,0)) ->  | H38: =IF(ISERROR(VLOOKUP($B38&"All"&$I$5&$F$8&$A$14&$D$9,DataSubJudgements!$A:$K,H$33,0)),IF($B38="","",0),VLOOKUP($B38&"All"&$I$5&$F$8&$A$14&$D$9,DataSubJudgements!$A:$K,H$33,0)) ->  | J38: =IF(ISERROR(VLOOKUP($B38&"All"&$I$5&$F$8&$A$14&$D$9,DataSubJudgements!$A:$K,J$33,0)),IF($B38="","",0),VLOOKUP($B38&"All"&$I$5&$F$8&$A$14&$D$9,DataSubJudgements!$A:$K,J$33,0)) ->  | M38: =IF(ISERROR(VLOOKUP($B38&"All"&$I$5&$F$8&$A$14&$D$9,DataSubJudgements!$A:$K,M$33,0)),IF($B38="","",0),VLOOKUP($B38&"All"&$I$5&$F$8&$A$14&$D$9,DataSubJudgements!$A:$K,M$33,0)) -> 
A39: 1 | B39: =IFERROR(VLOOKUP($B$32&A39,'Region Lookups'!A:C,3,0),"") ->  | D39: =IF(ISERROR(VLOOKUP("All"&$B39&$I$5&$F$8&$A$14&$D$9,DataSubJudgements!$A:$K,8,0)),IF(B39="","",0),SUM(F39:M39)) ->  | F39: =IF(ISERROR(VLOOKUP("All"&$B39&$I$5&$F$8&$A$14&$D$9,DataSubJudgements!$A:$K,F$33,0)),IF($B39="","",0),VLOOKUP("All"&$B39&$I$5&$F$8&$A$14&$D$9,DataSubJudgements!$A:$K,F$33,0)) ->  | H39: =IF(ISERROR(VLOOKUP("All"&$B39&$I$5&$F$8&$A$14&$D$9,DataSubJudgements!$A:$K,H$33,0)),IF($B39="","",0),VLOOKUP("All"&$B39&$I$5&$F$8&$A$14&$D$9,DataSubJudgements!$A:$K,H$33,0)) ->  | J39: =IF(ISERROR(VLOOKUP("All"&$B39&$I$5&$F$8&$A$14&$D$9,DataSubJudgements!$A:$K,J$33,0)),IF($B39="","",0),VLOOKUP("All"&$B39&$I$5&$F$8&$A$14&$D$9,DataSubJudgements!$A:$K,J$33,0)) ->  | M39: =IF(ISERROR(VLOOKUP("All"&$B39&$I$5&$F$8&$A$14&$D$9,DataSubJudgements!$A:$K,M$33,0)),IF($B39="","",0),VLOOKUP("All"&$B39&$I$5&$F$8&$A$14&$D$9,DataSubJudgements!$A:$K,M$33,0)) -> 
A40: 2 | B40: =IFERROR(VLOOKUP($B$32&A40,'Region Lookups'!A:C,3,0),"") ->  | D40: =IF(ISERROR(VLOOKUP("All"&$B40&$I$5&$F$8&$A$14&$D$9,DataSubJudgements!$A:$K,8,0)),IF(B40="","",0),SUM(F40:M40)) ->  | F40: =IF(ISERROR(VLOOKUP("All"&$B40&$I$5&$F$8&$A$14&$D$9,DataSubJudgements!$A:$K,F$33,0)),IF($B40="","",0),VLOOKUP("All"&$B40&$I$5&$F$8&$A$14&$D$9,DataSubJudgements!$A:$K,F$33,0)) ->  | H40: =IF(ISERROR(VLOOKUP("All"&$B40&$I$5&$F$8&$A$14&$D$9,DataSubJudgements!$A:$K,H$33,0)),IF($B40="","",0),VLOOKUP("All"&$B40&$I$5&$F$8&$A$14&$D$9,DataSubJudgements!$A:$K,H$33,0)) ->  | J40: =IF(ISERROR(VLOOKUP("All"&$B40&$I$5&$F$8&$A$14&$D$9,DataSubJudgements!$A:$K,J$33,0)),IF($B40="","",0),VLOOKUP("All"&$B40&$I$5&$F$8&$A$14&$D$9,DataSubJudgements!$A:$K,J$33,0)) ->  | M40: =IF(ISERROR(VLOOKUP("All"&$B40&$I$5&$F$8&$A$14&$D$9,DataSubJudgements!$A:$K,M$33,0)),IF($B40="","",0),VLOOKUP("All"&$B40&$I$5&$F$8&$A$14&$D$9,DataSubJudgements!$A:$K,M$33,0)) -> 
A41: 3 | B41: =IFERROR(VLOOKUP($B$32&A41,'Region Lookups'!A:C,3,0),"") ->  | D41: =IF(ISERROR(VLOOKUP("All"&$B41&$I$5&$F$8&$A$14&$D$9,DataSubJudgements!$A:$K,8,0)),IF(B41="","",0),SUM(F41:M41)) ->  | F41: =IF(ISERROR(VLOOKUP("All"&$B41&$I$5&$F$8&$A$14&$D$9,DataSubJudgements!$A:$K,F$33,0)),IF($B41="","",0),VLOOKUP("All"&$B41&$I$5&$F$8&$A$14&$D$9,DataSubJudgements!$A:$K,F$33,0)) ->  | H41: =IF(ISERROR(VLOOKUP("All"&$B41&$I$5&$F$8&$A$14&$D$9,DataSubJudgements!$A:$K,H$33,0)),IF($B41="","",0),VLOOKUP("All"&$B41&$I$5&$F$8&$A$14&$D$9,DataSubJudgements!$A:$K,H$33,0)) ->  | J41: =IF(ISERROR(VLOOKUP("All"&$B41&$I$5&$F$8&$A$14&$D$9,DataSubJudgements!$A:$K,J$33,0)),IF($B41="","",0),VLOOKUP("All"&$B41&$I$5&$F$8&$A$14&$D$9,DataSubJudgements!$A:$K,J$33,0)) ->  | M41: =IF(ISERROR(VLOOKUP("All"&$B41&$I$5&$F$8&$A$14&$D$9,DataSubJudgements!$A:$K,M$33,0)),IF($B41="","",0),VLOOKUP("All"&$B41&$I$5&$F$8&$A$14&$D$9,DataSubJudgements!$A:$K,M$33,0)) -> 
A42: 4 | B42: =IFERROR(VLOOKUP($B$32&A42,'Region Lookups'!A:C,3,0),"") ->  | D42: =IF(ISERROR(VLOOKUP("All"&$B42&$I$5&$F$8&$A$14&$D$9,DataSubJudgements!$A:$K,8,0)),IF(B42="","",0),SUM(F42:M42)) ->  | F42: =IF(ISERROR(VLOOKUP("All"&$B42&$I$5&$F$8&$A$14&$D$9,DataSubJudgements!$A:$K,F$33,0)),IF($B42="","",0),VLOOKUP("All"&$B42&$I$5&$F$8&$A$14&$D$9,DataSubJudgements!$A:$K,F$33,0)) ->  | H42: =IF(ISERROR(VLOOKUP("All"&$B42&$I$5&$F$8&$A$14&$D$9,DataSubJudgements!$A:$K,H$33,0)),IF($B42="","",0),VLOOKUP("All"&$B42&$I$5&$F$8&$A$14&$D$9,DataSubJudgements!$A:$K,H$33,0)) ->  | J42: =IF(ISERROR(VLOOKUP("All"&$B42&$I$5&$F$8&$A$14&$D$9,DataSubJudgements!$A:$K,J$33,0)),IF($B42="","",0),VLOOKUP("All"&$B42&$I$5&$F$8&$A$14&$D$9,DataSubJudgements!$A:$K,J$33,0)) ->  | M42: =IF(ISERROR(VLOOKUP("All"&$B42&$I$5&$F$8&$A$14&$D$9,DataSubJudgements!$A:$K,M$33,0)),IF($B42="","",0),VLOOKUP("All"&$B42&$I$5&$F$8&$A$14&$D$9,DataSubJudgements!$A:$K,M$33,0)) -> 
A43: 5 | B43: =IFERROR(VLOOKUP($B$32&A43,'Region Lookups'!A:C,3,0),"") ->  | D43: =IF(ISERROR(VLOOKUP("All"&$B43&$I$5&$F$8&$A$14&$D$9,DataSubJudgements!$A:$K,8,0)),IF(B43="","",0),SUM(F43:M43)) ->  | F43: =IF(ISERROR(VLOOKUP("All"&$B43&$I$5&$F$8&$A$14&$D$9,DataSubJudgements!$A:$K,F$33,0)),IF($B43="","",0),VLOOKUP("All"&$B43&$I$5&$F$8&$A$14&$D$9,DataSubJudgements!$A:$K,F$33,0)) ->  | H43: =IF(ISERROR(VLOOKUP("All"&$B43&$I$5&$F$8&$A$14&$D$9,DataSubJudgements!$A:$K,H$33,0)),IF($B43="","",0),VLOOKUP("All"&$B43&$I$5&$F$8&$A$14&$D$9,DataSubJudgements!$A:$K,H$33,0)) ->  | J43: =IF(ISERROR(VLOOKUP("All"&$B43&$I$5&$F$8&$A$14&$D$9,DataSubJudgements!$A:$K,J$33,0)),IF($B43="","",0),VLOOKUP("All"&$B43&$I$5&$F$8&$A$14&$D$9,DataSubJudgements!$A:$K,J$33,0)) ->  | M43: =IF(ISERROR(VLOOKUP("All"&$B43&$I$5&$F$8&$A$14&$D$9,DataSubJudgements!$A:$K,M$33,0)),IF($B43="","",0),VLOOKUP("All"&$B43&$I$5&$F$8&$A$14&$D$9,DataSubJudgements!$A:$K,M$33,0)) -> 
A44: 6 | B44: =IFERROR(VLOOKUP($B$32&A44,'Region Lookups'!A:C,3,0),"") ->  | D44: =IF(ISERROR(VLOOKUP("All"&$B44&$I$5&$F$8&$A$14&$D$9,DataSubJudgements!$A:$K,8,0)),IF(B44="","",0),SUM(F44:M44)) ->  | F44: =IF(ISERROR(VLOOKUP("All"&$B44&$I$5&$F$8&$A$14&$D$9,DataSubJudgements!$A:$K,F$33,0)),IF($B44="","",0),VLOOKUP("All"&$B44&$I$5&$F$8&$A$14&$D$9,DataSubJudgements!$A:$K,F$33,0)) ->  | H44: =IF(ISERROR(VLOOKUP("All"&$B44&$I$5&$F$8&$A$14&$D$9,DataSubJudgements!$A:$K,H$33,0)),IF($B44="","",0),VLOOKUP("All"&$B44&$I$5&$F$8&$A$14&$D$9,DataSubJudgements!$A:$K,H$33,0)) ->  | J44: =IF(ISERROR(VLOOKUP("All"&$B44&$I$5&$F$8&$A$14&$D$9,DataSubJudgements!$A:$K,J$33,0)),IF($B44="","",0),VLOOKUP("All"&$B44&$I$5&$F$8&$A$14&$D$9,DataSubJudgements!$A:$K,J$33,0)) ->  | M44: =IF(ISERROR(VLOOKUP("All"&$B44&$I$5&$F$8&$A$14&$D$9,DataSubJudgements!$A:$K,M$33,0)),IF($B44="","",0),VLOOKUP("All"&$B44&$I$5&$F$8&$A$14&$D$9,DataSubJudgements!$A:$K,M$33,0)) -> 
A45: 7 | B45: =IFERROR(VLOOKUP($B$32&A45,'Region Lookups'!A:C,3,0),"") ->  | D45: =IF(ISERROR(VLOOKUP("All"&$B45&$I$5&$F$8&$A$14&$D$9,DataSubJudgements!$A:$K,8,0)),IF(B45="","",0),SUM(F45:M45)) ->  | F45: =IF(ISERROR(VLOOKUP("All"&$B45&$I$5&$F$8&$A$14&$D$9,DataSubJudgements!$A:$K,F$33,0)),IF($B45="","",0),VLOOKUP("All"&$B45&$I$5&$F$8&$A$14&$D$9,DataSubJudgements!$A:$K,F$33,0)) ->  | H45: =IF(ISERROR(VLOOKUP("All"&$B45&$I$5&$F$8&$A$14&$D$9,DataSubJudgements!$A:$K,H$33,0)),IF($B45="","",0),VLOOKUP("All"&$B45&$I$5&$F$8&$A$14&$D$9,DataSubJudgements!$A:$K,H$33,0)) ->  | J45: =IF(ISERROR(VLOOKUP("All"&$B45&$I$5&$F$8&$A$14&$D$9,DataSubJudgements!$A:$K,J$33,0)),IF($B45="","",0),VLOOKUP("All"&$B45&$I$5&$F$8&$A$14&$D$9,DataSubJudgements!$A:$K,J$33,0)) ->  | M45: =IF(ISERROR(VLOOKUP("All"&$B45&$I$5&$F$8&$A$14&$D$9,DataSubJudgements!$A:$K,M$33,0)),IF($B45="","",0),VLOOKUP("All"&$B45&$I$5&$F$8&$A$14&$D$9,DataSubJudgements!$A:$K,M$33,0)) -> 
A46: 8 | B46: =IFERROR(VLOOKUP($B$32&A46,'Region Lookups'!A:C,3,0),"") ->  | D46: =IF(ISERROR(VLOOKUP("All"&$B46&$I$5&$F$8&$A$14&$D$9,DataSubJudgements!$A:$K,8,0)),IF(B46="","",0),SUM(F46:M46)) ->  | F46: =IF(ISERROR(VLOOKUP("All"&$B46&$I$5&$F$8&$A$14&$D$9,DataSubJudgements!$A:$K,F$33,0)),IF($B46="","",0),VLOOKUP("All"&$B46&$I$5&$F$8&$A$14&$D$9,DataSubJudgements!$A:$K,F$33,0)) ->  | H46: =IF(ISERROR(VLOOKUP("All"&$B46&$I$5&$F$8&$A$14&$D$9,DataSubJudgements!$A:$K,H$33,0)),IF($B46="","",0),VLOOKUP("All"&$B46&$I$5&$F$8&$A$14&$D$9,DataSubJudgements!$A:$K,H$33,0)) ->  | J46: =IF(ISERROR(VLOOKUP("All"&$B46&$I$5&$F$8&$A$14&$D$9,DataSubJudgements!$A:$K,J$33,0)),IF($B46="","",0),VLOOKUP("All"&$B46&$I$5&$F$8&$A$14&$D$9,DataSubJudgements!$A:$K,J$33,0)) ->  | M46: =IF(ISERROR(VLOOKUP("All"&$B46&$I$5&$F$8&$A$14&$D$9,DataSubJudgements!$A:$K,M$33,0)),IF($B46="","",0),VLOOKUP("All"&$B46&$I$5&$F$8&$A$14&$D$9,DataSubJudgements!$A:$K,M$33,0)) -> 
A47: 9 | B47: =IFERROR(VLOOKUP($B$32&A47,'Region Lookups'!A:C,3,0),"") ->  | D47: =IF(ISERROR(VLOOKUP("All"&$B47&$I$5&$F$8&$A$14&$D$9,DataSubJudgements!$A:$K,8,0)),IF(B47="","",0),SUM(F47:M47)) ->  | F47: =IF(ISERROR(VLOOKUP("All"&$B47&$I$5&$F$8&$A$14&$D$9,DataSubJudgements!$A:$K,F$33,0)),IF($B47="","",0),VLOOKUP("All"&$B47&$I$5&$F$8&$A$14&$D$9,DataSubJudgements!$A:$K,F$33,0)) ->  | H47: =IF(ISERROR(VLOOKUP("All"&$B47&$I$5&$F$8&$A$14&$D$9,DataSubJudgements!$A:$K,H$33,0)),IF($B47="","",0),VLOOKUP("All"&$B47&$I$5&$F$8&$A$14&$D$9,DataSubJudgements!$A:$K,H$33,0)) ->  | J47: =IF(ISERROR(VLOOKUP("All"&$B47&$I$5&$F$8&$A$14&$D$9,DataSubJudgements!$A:$K,J$33,0)),IF($B47="","",0),VLOOKUP("All"&$B47&$I$5&$F$8&$A$14&$D$9,DataSubJudgements!$A:$K,J$33,0)) ->  | M47: =IF(ISERROR(VLOOKUP("All"&$B47&$I$5&$F$8&$A$14&$D$9,DataSubJudgements!$A:$K,M$33,0)),IF($B47="","",0),VLOOKUP("All"&$B47&$I$5&$F$8&$A$14&$D$9,DataSubJudgements!$A:$K,M$33,0)) -> 
A48: 10 | B48: =IFERROR(VLOOKUP($B$32&A48,'Region Lookups'!A:C,3,0),"") ->  | D48: =IF(ISERROR(VLOOKUP("All"&$B48&$I$5&$F$8&$A$14&$D$9,DataSubJudgements!$A:$K,8,0)),IF(B48="","",0),SUM(F48:M48)) ->  | F48: =IF(ISERROR(VLOOKUP("All"&$B48&$I$5&$F$8&$A$14&$D$9,DataSubJudgements!$A:$K,F$33,0)),IF($B48="","",0),VLOOKUP("All"&$B48&$I$5&$F$8&$A$14&$D$9,DataSubJudgements!$A:$K,F$33,0)) ->  | H48: =IF(ISERROR(VLOOKUP("All"&$B48&$I$5&$F$8&$A$14&$D$9,DataSubJudgements!$A:$K,H$33,0)),IF($B48="","",0),VLOOKUP("All"&$B48&$I$5&$F$8&$A$14&$D$9,DataSubJudgements!$A:$K,H$33,0)) ->  | J48: =IF(ISERROR(VLOOKUP("All"&$B48&$I$5&$F$8&$A$14&$D$9,DataSubJudgements!$A:$K,J$33,0)),IF($B48="","",0),VLOOKUP("All"&$B48&$I$5&$F$8&$A$14&$D$9,DataSubJudgements!$A:$K,J$33,0)) ->  | M48: =IF(ISERROR(VLOOKUP("All"&$B48&$I$5&$F$8&$A$14&$D$9,DataSubJudgements!$A:$K,M$33,0)),IF($B48="","",0),VLOOKUP("All"&$B48&$I$5&$F$8&$A$14&$D$9,DataSubJudgements!$A:$K,M$33,0)) -> 
A49: 11 | B49: =IFERROR(VLOOKUP($B$32&A49,'Region Lookups'!A:C,3,0),"") ->  | D49: =IF(ISERROR(VLOOKUP("All"&$B49&$I$5&$F$8&$A$14&$D$9,DataSubJudgements!$A:$K,8,0)),IF(B49="","",0),SUM(F49:M49)) ->  | F49: =IF(ISERROR(VLOOKUP("All"&$B49&$I$5&$F$8&$A$14&$D$9,DataSubJudgements!$A:$K,F$33,0)),IF($B49="","",0),VLOOKUP("All"&$B49&$I$5&$F$8&$A$14&$D$9,DataSubJudgements!$A:$K,F$33,0)) ->  | H49: =IF(ISERROR(VLOOKUP("All"&$B49&$I$5&$F$8&$A$14&$D$9,DataSubJudgements!$A:$K,H$33,0)),IF($B49="","",0),VLOOKUP("All"&$B49&$I$5&$F$8&$A$14&$D$9,DataSubJudgements!$A:$K,H$33,0)) ->  | J49: =IF(ISERROR(VLOOKUP("All"&$B49&$I$5&$F$8&$A$14&$D$9,DataSubJudgements!$A:$K,J$33,0)),IF($B49="","",0),VLOOKUP("All"&$B49&$I$5&$F$8&$A$14&$D$9,DataSubJudgements!$A:$K,J$33,0)) ->  | M49: =IF(ISERROR(VLOOKUP("All"&$B49&$I$5&$F$8&$A$14&$D$9,DataSubJudgements!$A:$K,M$33,0)),IF($B49="","",0),VLOOKUP("All"&$B49&$I$5&$F$8&$A$14&$D$9,DataSubJudgements!$A:$K,M$33,0)) -> 
A50: 12 | B50: =IFERROR(VLOOKUP($B$32&A50,'Region Lookups'!A:C,3,0),"") ->  | D50: =IF(ISERROR(VLOOKUP("All"&$B50&$I$5&$F$8&$A$14&$D$9,DataSubJudgements!$A:$K,8,0)),IF(B50="","",0),SUM(F50:M50)) ->  | F50: =IF(ISERROR(VLOOKUP("All"&$B50&$I$5&$F$8&$A$14&$D$9,DataSubJudgements!$A:$K,F$33,0)),IF($B50="","",0),VLOOKUP("All"&$B50&$I$5&$F$8&$A$14&$D$9,DataSubJudgements!$A:$K,F$33,0)) ->  | H50: =IF(ISERROR(VLOOKUP("All"&$B50&$I$5&$F$8&$A$14&$D$9,DataSubJudgements!$A:$K,H$33,0)),IF($B50="","",0),VLOOKUP("All"&$B50&$I$5&$F$8&$A$14&$D$9,DataSubJudgements!$A:$K,H$33,0)) ->  | J50: =IF(ISERROR(VLOOKUP("All"&$B50&$I$5&$F$8&$A$14&$D$9,DataSubJudgements!$A:$K,J$33,0)),IF($B50="","",0),VLOOKUP("All"&$B50&$I$5&$F$8&$A$14&$D$9,DataSubJudgements!$A:$K,J$33,0)) ->  | M50: =IF(ISERROR(VLOOKUP("All"&$B50&$I$5&$F$8&$A$14&$D$9,DataSubJudgements!$A:$K,M$33,0)),IF($B50="","",0),VLOOKUP("All"&$B50&$I$5&$F$8&$A$14&$D$9,DataSubJudgements!$A:$K,M$33,0)) -> 
A51: 13 | B51: =IFERROR(VLOOKUP($B$32&A51,'Region Lookups'!A:C,3,0),"") ->  | D51: =IF(ISERROR(VLOOKUP("All"&$B51&$I$5&$F$8&$A$14&$D$9,DataSubJudgements!$A:$K,8,0)),IF(B51="","",0),SUM(F51:M51)) ->  | F51: =IF(ISERROR(VLOOKUP("All"&$B51&$I$5&$F$8&$A$14&$D$9,DataSubJudgements!$A:$K,F$33,0)),IF($B51="","",0),VLOOKUP("All"&$B51&$I$5&$F$8&$A$14&$D$9,DataSubJudgements!$A:$K,F$33,0)) ->  | H51: =IF(ISERROR(VLOOKUP("All"&$B51&$I$5&$F$8&$A$14&$D$9,DataSubJudgements!$A:$K,H$33,0)),IF($B51="","",0),VLOOKUP("All"&$B51&$I$5&$F$8&$A$14&$D$9,DataSubJudgements!$A:$K,H$33,0)) ->  | J51: =IF(ISERROR(VLOOKUP("All"&$B51&$I$5&$F$8&$A$14&$D$9,DataSubJudgements!$A:$K,J$33,0)),IF($B51="","",0),VLOOKUP("All"&$B51&$I$5&$F$8&$A$14&$D$9,DataSubJudgements!$A:$K,J$33,0)) ->  | M51: =IF(ISERROR(VLOOKUP("All"&$B51&$I$5&$F$8&$A$14&$D$9,DataSubJudgements!$A:$K,M$33,0)),IF($B51="","",0),VLOOKUP("All"&$B51&$I$5&$F$8&$A$14&$D$9,DataSubJudgements!$A:$K,M$33,0)) -> 
A52: 14 | B52: =IFERROR(VLOOKUP($B$32&A52,'Region Lookups'!A:C,3,0),"") ->  | D52: =IF(ISERROR(VLOOKUP("All"&$B52&$I$5&$F$8&$A$14&$D$9,DataSubJudgements!$A:$K,8,0)),IF(B52="","",0),SUM(F52:M52)) ->  | F52: =IF(ISERROR(VLOOKUP("All"&$B52&$I$5&$F$8&$A$14&$D$9,DataSubJudgements!$A:$K,F$33,0)),IF($B52="","",0),VLOOKUP("All"&$B52&$I$5&$F$8&$A$14&$D$9,DataSubJudgements!$A:$K,F$33,0)) ->  | H52: =IF(ISERROR(VLOOKUP("All"&$B52&$I$5&$F$8&$A$14&$D$9,DataSubJudgements!$A:$K,H$33,0)),IF($B52="","",0),VLOOKUP("All"&$B52&$I$5&$F$8&$A$14&$D$9,DataSubJudgements!$A:$K,H$33,0)) ->  | J52: =IF(ISERROR(VLOOKUP("All"&$B52&$I$5&$F$8&$A$14&$D$9,DataSubJudgements!$A:$K,J$33,0)),IF($B52="","",0),VLOOKUP("All"&$B52&$I$5&$F$8&$A$14&$D$9,DataSubJudgements!$A:$K,J$33,0)) ->  | M52: =IF(ISERROR(VLOOKUP("All"&$B52&$I$5&$F$8&$A$14&$D$9,DataSubJudgements!$A:$K,M$33,0)),IF($B52="","",0),VLOOKUP("All"&$B52&$I$5&$F$8&$A$14&$D$9,DataSubJudgements!$A:$K,M$33,0)) -> 
A53: 15 | B53: =IFERROR(VLOOKUP($B$32&A53,'Region Lookups'!A:C,3,0),"") ->  | D53: =IF(ISERROR(VLOOKUP("All"&$B53&$I$5&$F$8&$A$14&$D$9,DataSubJudgements!$A:$K,8,0)),IF(B53="","",0),SUM(F53:M53)) ->  | F53: =IF(ISERROR(VLOOKUP("All"&$B53&$I$5&$F$8&$A$14&$D$9,DataSubJudgements!$A:$K,F$33,0)),IF($B53="","",0),VLOOKUP("All"&$B53&$I$5&$F$8&$A$14&$D$9,DataSubJudgements!$A:$K,F$33,0)) ->  | H53: =IF(ISERROR(VLOOKUP("All"&$B53&$I$5&$F$8&$A$14&$D$9,DataSubJudgements!$A:$K,H$33,0)),IF($B53="","",0),VLOOKUP("All"&$B53&$I$5&$F$8&$A$14&$D$9,DataSubJudgements!$A:$K,H$33,0)) ->  | J53: =IF(ISERROR(VLOOKUP("All"&$B53&$I$5&$F$8&$A$14&$D$9,DataSubJudgements!$A:$K,J$33,0)),IF($B53="","",0),VLOOKUP("All"&$B53&$I$5&$F$8&$A$14&$D$9,DataSubJudgements!$A:$K,J$33,0)) ->  | M53: =IF(ISERROR(VLOOKUP("All"&$B53&$I$5&$F$8&$A$14&$D$9,DataSubJudgements!$A:$K,M$33,0)),IF($B53="","",0),VLOOKUP("All"&$B53&$I$5&$F$8&$A$14&$D$9,DataSubJudgements!$A:$K,M$33,0)) -> 
A54: 16 | B54: =IFERROR(VLOOKUP($B$32&A54,'Region Lookups'!A:C,3,0),"") ->  | D54: =IF(ISERROR(VLOOKUP("All"&$B54&$I$5&$F$8&$A$14&$D$9,DataSubJudgements!$A:$K,8,0)),IF(B54="","",0),SUM(F54:M54)) ->  | F54: =IF(ISERROR(VLOOKUP("All"&$B54&$I$5&$F$8&$A$14&$D$9,DataSubJudgements!$A:$K,F$33,0)),IF($B54="","",0),VLOOKUP("All"&$B54&$I$5&$F$8&$A$14&$D$9,DataSubJudgements!$A:$K,F$33,0)) ->  | H54: =IF(ISERROR(VLOOKUP("All"&$B54&$I$5&$F$8&$A$14&$D$9,DataSubJudgements!$A:$K,H$33,0)),IF($B54="","",0),VLOOKUP("All"&$B54&$I$5&$F$8&$A$14&$D$9,DataSubJudgements!$A:$K,H$33,0)) ->  | J54: =IF(ISERROR(VLOOKUP("All"&$B54&$I$5&$F$8&$A$14&$D$9,DataSubJudgements!$A:$K,J$33,0)),IF($B54="","",0),VLOOKUP("All"&$B54&$I$5&$F$8&$A$14&$D$9,DataSubJudgements!$A:$K,J$33,0)) ->  | M54: =IF(ISERROR(VLOOKUP("All"&$B54&$I$5&$F$8&$A$14&$D$9,DataSubJudgements!$A:$K,M$33,0)),IF($B54="","",0),VLOOKUP("All"&$B54&$I$5&$F$8&$A$14&$D$9,DataSubJudgements!$A:$K,M$33,0)) -> 
A55: 17 | B55: =IFERROR(VLOOKUP($B$32&A55,'Region Lookups'!A:C,3,0),"") ->  | D55: =IF(ISERROR(VLOOKUP("All"&$B55&$I$5&$F$8&$A$14&$D$9,DataSubJudgements!$A:$K,8,0)),IF(B55="","",0),SUM(F55:M55)) ->  | F55: =IF(ISERROR(VLOOKUP("All"&$B55&$I$5&$F$8&$A$14&$D$9,DataSubJudgements!$A:$K,F$33,0)),IF($B55="","",0),VLOOKUP("All"&$B55&$I$5&$F$8&$A$14&$D$9,DataSubJudgements!$A:$K,F$33,0)) ->  | H55: =IF(ISERROR(VLOOKUP("All"&$B55&$I$5&$F$8&$A$14&$D$9,DataSubJudgements!$A:$K,H$33,0)),IF($B55="","",0),VLOOKUP("All"&$B55&$I$5&$F$8&$A$14&$D$9,DataSubJudgements!$A:$K,H$33,0)) ->  | J55: =IF(ISERROR(VLOOKUP("All"&$B55&$I$5&$F$8&$A$14&$D$9,DataSubJudgements!$A:$K,J$33,0)),IF($B55="","",0),VLOOKUP("All"&$B55&$I$5&$F$8&$A$14&$D$9,DataSubJudgements!$A:$K,J$33,0)) ->  | M55: =IF(ISERROR(VLOOKUP("All"&$B55&$I$5&$F$8&$A$14&$D$9,DataSubJudgements!$A:$K,M$33,0)),IF($B55="","",0),VLOOKUP("All"&$B55&$I$5&$F$8&$A$14&$D$9,DataSubJudgements!$A:$K,M$33,0)) -> 
A56: 18 | B56: =IFERROR(VLOOKUP($B$32&A56,'Region Lookups'!A:C,3,0),"") ->  | F56: =IF(ISERROR(VLOOKUP("All"&$B56&$I$5&$F$8&$A$14&$D$9,DataSubJudgements!$A:$K,F$33,0)),IF($B56="","",0),VLOOKUP("All"&$B56&$I$5&$F$8&$A$14&$D$9,DataSubJudgements!$A:$K,F$33,0)) ->  | H56: =IF(ISERROR(VLOOKUP("All"&$B56&$I$5&$F$8&$A$14&$D$9,DataSubJudgements!$A:$K,H$33,0)),IF($B56="","",0),VLOOKUP("All"&$B56&$I$5&$F$8&$A$14&$D$9,DataSubJudgements!$A:$K,H$33,0)) ->  | J56: =IF(ISERROR(VLOOKUP("All"&$B56&$I$5&$F$8&$A$14&$D$9,DataSubJudgements!$A:$K,J$33,0)),IF($B56="","",0),VLOOKUP("All"&$B56&$I$5&$F$8&$A$14&$D$9,DataSubJudgements!$A:$K,J$33,0)) ->  | M56: =IF(ISERROR(VLOOKUP("All"&$B56&$I$5&$F$8&$A$14&$D$9,DataSubJudgements!$A:$K,M$33,0)),IF($B56="","",0),VLOOKUP("All"&$B56&$I$5&$F$8&$A$14&$D$9,DataSubJudgements!$A:$K,M$33,0)) -> 
A57: 19 | B57: =IFERROR(VLOOKUP($B$32&A57,'Region Lookups'!A:C,3,0),"") ->  | D57: =IF(ISERROR(VLOOKUP("All"&$B57&$I$5&$F$8&$A$14&$D$9,DataSubJudgements!$A:$K,8,0)),IF(B57="","",0),SUM(F57:M57)) ->  | F57: =IF(ISERROR(VLOOKUP("All"&$B57&$I$5&$F$8&$A$14&$D$9,DataSubJudgements!$A:$K,F$33,0)),IF($B57="","",0),VLOOKUP("All"&$B57&$I$5&$F$8&$A$14&$D$9,DataSubJudgements!$A:$K,F$33,0)) ->  | H57: =IF(ISERROR(VLOOKUP("All"&$B57&$I$5&$F$8&$A$14&$D$9,DataSubJudgements!$A:$K,H$33,0)),IF($B57="","",0),VLOOKUP("All"&$B57&$I$5&$F$8&$A$14&$D$9,DataSubJudgements!$A:$K,H$33,0)) ->  | J57: =IF(ISERROR(VLOOKUP("All"&$B57&$I$5&$F$8&$A$14&$D$9,DataSubJudgements!$A:$K,J$33,0)),IF($B57="","",0),VLOOKUP("All"&$B57&$I$5&$F$8&$A$14&$D$9,DataSubJudgements!$A:$K,J$33,0)) ->  | M57: =IF(ISERROR(VLOOKUP("All"&$B57&$I$5&$F$8&$A$14&$D$9,DataSubJudgements!$A:$K,M$33,0)),IF($B57="","",0),VLOOKUP("All"&$B57&$I$5&$F$8&$A$14&$D$9,DataSubJudgements!$A:$K,M$33,0)) -> 
A58: 20 | B58: =IFERROR(VLOOKUP($B$32&A58,'Region Lookups'!A:C,3,0),"") ->  | D58: =IF(ISERROR(VLOOKUP("All"&$B58&$I$5&$F$8&$A$14&$D$9,DataSubJudgements!$A:$K,8,0)),IF(B58="","",0),SUM(F58:M58)) ->  | F58: =IF(ISERROR(VLOOKUP("All"&$B58&$I$5&$F$8&$A$14&$D$9,DataSubJudgements!$A:$K,F$33,0)),IF($B58="","",0),VLOOKUP("All"&$B58&$I$5&$F$8&$A$14&$D$9,DataSubJudgements!$A:$K,F$33,0)) ->  | H58: =IF(ISERROR(VLOOKUP("All"&$B58&$I$5&$F$8&$A$14&$D$9,DataSubJudgements!$A:$K,H$33,0)),IF($B58="","",0),VLOOKUP("All"&$B58&$I$5&$F$8&$A$14&$D$9,DataSubJudgements!$A:$K,H$33,0)) ->  | J58: =IF(ISERROR(VLOOKUP("All"&$B58&$I$5&$F$8&$A$14&$D$9,DataSubJudgements!$A:$K,J$33,0)),IF($B58="","",0),VLOOKUP("All"&$B58&$I$5&$F$8&$A$14&$D$9,DataSubJudgements!$A:$K,J$33,0)) ->  | M58: =IF(ISERROR(VLOOKUP("All"&$B58&$I$5&$F$8&$A$14&$D$9,DataSubJudgements!$A:$K,M$33,0)),IF($B58="","",0),VLOOKUP("All"&$B58&$I$5&$F$8&$A$14&$D$9,DataSubJudgements!$A:$K,M$33,0)) -> 
A59: 21 | B59: =IFERROR(VLOOKUP($B$32&A59,'Region Lookups'!A:C,3,0),"") ->  | D59: =IF(ISERROR(VLOOKUP("All"&$B59&$I$5&$F$8&$A$14&$D$9,DataSubJudgements!$A:$K,8,0)),IF(B59="","",0),SUM(F59:M59)) ->  | F59: =IF(ISERROR(VLOOKUP("All"&$B59&$I$5&$F$8&$A$14&$D$9,DataSubJudgements!$A:$K,F$33,0)),IF($B59="","",0),VLOOKUP("All"&$B59&$I$5&$F$8&$A$14&$D$9,DataSubJudgements!$A:$K,F$33,0)) ->  | H59: =IF(ISERROR(VLOOKUP("All"&$B59&$I$5&$F$8&$A$14&$D$9,DataSubJudgements!$A:$K,H$33,0)),IF($B59="","",0),VLOOKUP("All"&$B59&$I$5&$F$8&$A$14&$D$9,DataSubJudgements!$A:$K,H$33,0)) ->  | J59: =IF(ISERROR(VLOOKUP("All"&$B59&$I$5&$F$8&$A$14&$D$9,DataSubJudgements!$A:$K,J$33,0)),IF($B59="","",0),VLOOKUP("All"&$B59&$I$5&$F$8&$A$14&$D$9,DataSubJudgements!$A:$K,J$33,0)) ->  | M59: =IF(ISERROR(VLOOKUP("All"&$B59&$I$5&$F$8&$A$14&$D$9,DataSubJudgements!$A:$K,M$33,0)),IF($B59="","",0),VLOOKUP("All"&$B59&$I$5&$F$8&$A$14&$D$9,DataSubJudgements!$A:$K,M$33,0)) -> 
A60: 22 | B60: =IFERROR(VLOOKUP($B$32&A60,'Region Lookups'!A:C,3,0),"") ->  | D60: =IF(ISERROR(VLOOKUP("All"&$B60&$I$5&$F$8&$A$14&$D$9,DataSubJudgements!$A:$K,8,0)),IF(B60="","",0),SUM(F60:M60)) ->  | F60: =IF(ISERROR(VLOOKUP("All"&$B60&$I$5&$F$8&$A$14&$D$9,DataSubJudgements!$A:$K,F$33,0)),IF($B60="","",0),VLOOKUP("All"&$B60&$I$5&$F$8&$A$14&$D$9,DataSubJudgements!$A:$K,F$33,0)) ->  | H60: =IF(ISERROR(VLOOKUP("All"&$B60&$I$5&$F$8&$A$14&$D$9,DataSubJudgements!$A:$K,H$33,0)),IF($B60="","",0),VLOOKUP("All"&$B60&$I$5&$F$8&$A$14&$D$9,DataSubJudgements!$A:$K,H$33,0)) ->  | J60: =IF(ISERROR(VLOOKUP("All"&$B60&$I$5&$F$8&$A$14&$D$9,DataSubJudgements!$A:$K,J$33,0)),IF($B60="","",0),VLOOKUP("All"&$B60&$I$5&$F$8&$A$14&$D$9,DataSubJudgements!$A:$K,J$33,0)) ->  | M60: =IF(ISERROR(VLOOKUP("All"&$B60&$I$5&$F$8&$A$14&$D$9,DataSubJudgements!$A:$K,M$33,0)),IF($B60="","",0),VLOOKUP("All"&$B60&$I$5&$F$8&$A$14&$D$9,DataSubJudgements!$A:$K,M$33,0)) -> 
A61: 23 | B61: =IFERROR(VLOOKUP($B$32&A61,'Region Lookups'!A:C,3,0),"") ->  | D61: =IF(ISERROR(VLOOKUP("All"&$B61&$I$5&$F$8&$A$14&$D$9,DataSubJudgements!$A:$K,8,0)),IF(B61="","",0),SUM(F61:M61)) ->  | F61: =IF(ISERROR(VLOOKUP("All"&$B61&$I$5&$F$8&$A$14&$D$9,DataSubJudgements!$A:$K,F$33,0)),IF($B61="","",0),VLOOKUP("All"&$B61&$I$5&$F$8&$A$14&$D$9,DataSubJudgements!$A:$K,F$33,0)) ->  | H61: =IF(ISERROR(VLOOKUP("All"&$B61&$I$5&$F$8&$A$14&$D$9,DataSubJudgements!$A:$K,H$33,0)),IF($B61="","",0),VLOOKUP("All"&$B61&$I$5&$F$8&$A$14&$D$9,DataSubJudgements!$A:$K,H$33,0)) ->  | J61: =IF(ISERROR(VLOOKUP("All"&$B61&$I$5&$F$8&$A$14&$D$9,DataSubJudgements!$A:$K,J$33,0)),IF($B61="","",0),VLOOKUP("All"&$B61&$I$5&$F$8&$A$14&$D$9,DataSubJudgements!$A:$K,J$33,0)) ->  | M61: =IF(ISERROR(VLOOKUP("All"&$B61&$I$5&$F$8&$A$14&$D$9,DataSubJudgements!$A:$K,M$33,0)),IF($B61="","",0),VLOOKUP("All"&$B61&$I$5&$F$8&$A$14&$D$9,DataSubJudgements!$A:$K,M$33,0)) -> 
A62: 24 | B62: =IFERROR(VLOOKUP($B$32&A62,'Region Lookups'!A:C,3,0),"") ->  | D62: =IF(ISERROR(VLOOKUP("All"&$B62&$I$5&$F$8&$A$14&$D$9,DataSubJudgements!$A:$K,8,0)),IF(B62="","",0),SUM(F62:M62)) ->  | F62: =IF(ISERROR(VLOOKUP("All"&$B62&$I$5&$F$8&$A$14&$D$9,DataSubJudgements!$A:$K,F$33,0)),IF($B62="","",0),VLOOKUP("All"&$B62&$I$5&$F$8&$A$14&$D$9,DataSubJudgements!$A:$K,F$33,0)) ->  | H62: =IF(ISERROR(VLOOKUP("All"&$B62&$I$5&$F$8&$A$14&$D$9,DataSubJudgements!$A:$K,H$33,0)),IF($B62="","",0),VLOOKUP("All"&$B62&$I$5&$F$8&$A$14&$D$9,DataSubJudgements!$A:$K,H$33,0)) ->  | J62: =IF(ISERROR(VLOOKUP("All"&$B62&$I$5&$F$8&$A$14&$D$9,DataSubJudgements!$A:$K,J$33,0)),IF($B62="","",0),VLOOKUP("All"&$B62&$I$5&$F$8&$A$14&$D$9,DataSubJudgements!$A:$K,J$33,0)) ->  | M62: =IF(ISERROR(VLOOKUP("All"&$B62&$I$5&$F$8&$A$14&$D$9,DataSubJudgements!$A:$K,M$33,0)),IF($B62="","",0),VLOOKUP("All"&$B62&$I$5&$F$8&$A$14&$D$9,DataSubJudgements!$A:$K,M$33,0)) -> 
A63: 25 | B63: =IFERROR(VLOOKUP($B$32&A63,'Region Lookups'!A:C,3,0),"") ->  | D63: =IF(ISERROR(VLOOKUP("All"&$B63&$I$5&$F$8&$A$14&$D$9,DataSubJudgements!$A:$K,8,0)),IF(B63="","",0),SUM(F63:M63)) ->  | F63: =IF(ISERROR(VLOOKUP("All"&$B63&$I$5&$F$8&$A$14&$D$9,DataSubJudgements!$A:$K,F$33,0)),IF($B63="","",0),VLOOKUP("All"&$B63&$I$5&$F$8&$A$14&$D$9,DataSubJudgements!$A:$K,F$33,0)) ->  | H63: =IF(ISERROR(VLOOKUP("All"&$B63&$I$5&$F$8&$A$14&$D$9,DataSubJudgements!$A:$K,H$33,0)),IF($B63="","",0),VLOOKUP("All"&$B63&$I$5&$F$8&$A$14&$D$9,DataSubJudgements!$A:$K,H$33,0)) ->  | J63: =IF(ISERROR(VLOOKUP("All"&$B63&$I$5&$F$8&$A$14&$D$9,DataSubJudgements!$A:$K,J$33,0)),IF($B63="","",0),VLOOKUP("All"&$B63&$I$5&$F$8&$A$14&$D$9,DataSubJudgements!$A:$K,J$33,0)) ->  | M63: =IF(ISERROR(VLOOKUP("All"&$B63&$I$5&$F$8&$A$14&$D$9,DataSubJudgements!$A:$K,M$33,0)),IF($B63="","",0),VLOOKUP("All"&$B63&$I$5&$F$8&$A$14&$D$9,DataSubJudgements!$A:$K,M$33,0)) -> 
A64: 26 | B64: =IFERROR(VLOOKUP($B$32&A64,'Region Lookups'!A:C,3,0),"") ->  | D64: =IF(ISERROR(VLOOKUP("All"&$B64&$I$5&$F$8&$A$14&$D$9,DataSubJudgements!$A:$K,8,0)),IF(B64="","",0),SUM(F64:M64)) ->  | F64: =IF(ISERROR(VLOOKUP("All"&$B64&$I$5&$F$8&$A$14&$D$9,DataSubJudgements!$A:$K,F$33,0)),IF($B64="","",0),VLOOKUP("All"&$B64&$I$5&$F$8&$A$14&$D$9,DataSubJudgements!$A:$K,F$33,0)) ->  | H64: =IF(ISERROR(VLOOKUP("All"&$B64&$I$5&$F$8&$A$14&$D$9,DataSubJudgements!$A:$K,H$33,0)),IF($B64="","",0),VLOOKUP("All"&$B64&$I$5&$F$8&$A$14&$D$9,DataSubJudgements!$A:$K,H$33,0)) ->  | J64: =IF(ISERROR(VLOOKUP("All"&$B64&$I$5&$F$8&$A$14&$D$9,DataSubJudgements!$A:$K,J$33,0)),IF($B64="","",0),VLOOKUP("All"&$B64&$I$5&$F$8&$A$14&$D$9,DataSubJudgements!$A:$K,J$33,0)) ->  | M64: =IF(ISERROR(VLOOKUP("All"&$B64&$I$5&$F$8&$A$14&$D$9,DataSubJudgements!$A:$K,M$33,0)),IF($B64="","",0),VLOOKUP("All"&$B64&$I$5&$F$8&$A$14&$D$9,DataSubJudgements!$A:$K,M$33,0)) -> 
A65: 27 | B65: =IFERROR(VLOOKUP($B$32&A65,'Region Lookups'!A:C,3,0),"") ->  | D65: =IF(ISERROR(VLOOKUP("All"&$B65&$I$5&$F$8&$A$14&$D$9,DataSubJudgements!$A:$K,8,0)),IF(B65="","",0),SUM(F65:M65)) ->  | F65: =IF(ISERROR(VLOOKUP("All"&$B65&$I$5&$F$8&$A$14&$D$9,DataSubJudgements!$A:$K,F$33,0)),IF($B65="","",0),VLOOKUP("All"&$B65&$I$5&$F$8&$A$14&$D$9,DataSubJudgements!$A:$K,F$33,0)) ->  | H65: =IF(ISERROR(VLOOKUP("All"&$B65&$I$5&$F$8&$A$14&$D$9,DataSubJudgements!$A:$K,H$33,0)),IF($B65="","",0),VLOOKUP("All"&$B65&$I$5&$F$8&$A$14&$D$9,DataSubJudgements!$A:$K,H$33,0)) ->  | J65: =IF(ISERROR(VLOOKUP("All"&$B65&$I$5&$F$8&$A$14&$D$9,DataSubJudgements!$A:$K,J$33,0)),IF($B65="","",0),VLOOKUP("All"&$B65&$I$5&$F$8&$A$14&$D$9,DataSubJudgements!$A:$K,J$33,0)) ->  | M65: =IF(ISERROR(VLOOKUP("All"&$B65&$I$5&$F$8&$A$14&$D$9,DataSubJudgements!$A:$K,M$33,0)),IF($B65="","",0),VLOOKUP("All"&$B65&$I$5&$F$8&$A$14&$D$9,DataSubJudgements!$A:$K,M$33,0)) -> 
A66: 28 | B66: =IFERROR(VLOOKUP($B$32&A66,'Region Lookups'!A:C,3,0),"") ->  | D66: =IF(ISERROR(VLOOKUP("All"&$B66&$I$5&$F$8&$A$14&$D$9,DataSubJudgements!$A:$K,8,0)),IF(B66="","",0),SUM(F66:M66)) ->  | F66: =IF(ISERROR(VLOOKUP("All"&$B66&$I$5&$F$8&$A$14&$D$9,DataSubJudgements!$A:$K,F$33,0)),IF($B66="","",0),VLOOKUP("All"&$B66&$I$5&$F$8&$A$14&$D$9,DataSubJudgements!$A:$K,F$33,0)) ->  | H66: =IF(ISERROR(VLOOKUP("All"&$B66&$I$5&$F$8&$A$14&$D$9,DataSubJudgements!$A:$K,H$33,0)),IF($B66="","",0),VLOOKUP("All"&$B66&$I$5&$F$8&$A$14&$D$9,DataSubJudgements!$A:$K,H$33,0)) ->  | J66: =IF(ISERROR(VLOOKUP("All"&$B66&$I$5&$F$8&$A$14&$D$9,DataSubJudgements!$A:$K,J$33,0)),IF($B66="","",0),VLOOKUP("All"&$B66&$I$5&$F$8&$A$14&$D$9,DataSubJudgements!$A:$K,J$33,0)) ->  | M66: =IF(ISERROR(VLOOKUP("All"&$B66&$I$5&$F$8&$A$14&$D$9,DataSubJudgements!$A:$K,M$33,0)),IF($B66="","",0),VLOOKUP("All"&$B66&$I$5&$F$8&$A$14&$D$9,DataSubJudgements!$A:$K,M$33,0)) -> 
A67: 29 | B67: =IFERROR(VLOOKUP($B$32&A67,'Region Lookups'!A:C,3,0),"") ->  | D67: =IF(ISERROR(VLOOKUP("All"&$B67&$I$5&$F$8&$A$14&$D$9,DataSubJudgements!$A:$K,8,0)),IF(B67="","",0),SUM(F67:M67)) ->  | F67: =IF(ISERROR(VLOOKUP("All"&$B67&$I$5&$F$8&$A$14&$D$9,DataSubJudgements!$A:$K,F$33,0)),IF($B67="","",0),VLOOKUP("All"&$B67&$I$5&$F$8&$A$14&$D$9,DataSubJudgements!$A:$K,F$33,0)) ->  | H67: =IF(ISERROR(VLOOKUP("All"&$B67&$I$5&$F$8&$A$14&$D$9,DataSubJudgements!$A:$K,H$33,0)),IF($B67="","",0),VLOOKUP("All"&$B67&$I$5&$F$8&$A$14&$D$9,DataSubJudgements!$A:$K,H$33,0)) ->  | J67: =IF(ISERROR(VLOOKUP("All"&$B67&$I$5&$F$8&$A$14&$D$9,DataSubJudgements!$A:$K,J$33,0)),IF($B67="","",0),VLOOKUP("All"&$B67&$I$5&$F$8&$A$14&$D$9,DataSubJudgements!$A:$K,J$33,0)) ->  | M67: =IF(ISERROR(VLOOKUP("All"&$B67&$I$5&$F$8&$A$14&$D$9,DataSubJudgements!$A:$K,M$33,0)),IF($B67="","",0),VLOOKUP("All"&$B67&$I$5&$F$8&$A$14&$D$9,DataSubJudgements!$A:$K,M$33,0)) -> 
A68: 30 | B68: =IFERROR(VLOOKUP($B$32&A68,'Region Lookups'!A:C,3,0),"") ->  | D68: =IF(ISERROR(VLOOKUP("All"&$B68&$I$5&$F$8&$A$14&$D$9,DataSubJudgements!$A:$K,8,0)),IF(B68="","",0),SUM(F68:M68)) ->  | F68: =IF(ISERROR(VLOOKUP("All"&$B68&$I$5&$F$8&$A$14&$D$9,DataSubJudgements!$A:$K,F$33,0)),IF($B68="","",0),VLOOKUP("All"&$B68&$I$5&$F$8&$A$14&$D$9,DataSubJudgements!$A:$K,F$33,0)) ->  | H68: =IF(ISERROR(VLOOKUP("All"&$B68&$I$5&$F$8&$A$14&$D$9,DataSubJudgements!$A:$K,H$33,0)),IF($B68="","",0),VLOOKUP("All"&$B68&$I$5&$F$8&$A$14&$D$9,DataSubJudgements!$A:$K,H$33,0)) ->  | J68: =IF(ISERROR(VLOOKUP("All"&$B68&$I$5&$F$8&$A$14&$D$9,DataSubJudgements!$A:$K,J$33,0)),IF($B68="","",0),VLOOKUP("All"&$B68&$I$5&$F$8&$A$14&$D$9,DataSubJudgements!$A:$K,J$33,0)) ->  | M68: =IF(ISERROR(VLOOKUP("All"&$B68&$I$5&$F$8&$A$14&$D$9,DataSubJudgements!$A:$K,M$33,0)),IF($B68="","",0),VLOOKUP("All"&$B68&$I$5&$F$8&$A$14&$D$9,DataSubJudgements!$A:$K,M$33,0)) -> 
A69: 31 | B69: =IFERROR(VLOOKUP($B$32&A69,'Region Lookups'!A:C,3,0),"") ->  | D69: =IF(ISERROR(VLOOKUP("All"&$B69&$I$5&$F$8&$A$14&$D$9,DataSubJudgements!$A:$K,8,0)),IF(B69="","",0),SUM(F69:M69)) ->  | F69: =IF(ISERROR(VLOOKUP("All"&$B69&$I$5&$F$8&$A$14&$D$9,DataSubJudgements!$A:$K,F$33,0)),IF($B69="","",0),VLOOKUP("All"&$B69&$I$5&$F$8&$A$14&$D$9,DataSubJudgements!$A:$K,F$33,0)) ->  | H69: =IF(ISERROR(VLOOKUP("All"&$B69&$I$5&$F$8&$A$14&$D$9,DataSubJudgements!$A:$K,H$33,0)),IF($B69="","",0),VLOOKUP("All"&$B69&$I$5&$F$8&$A$14&$D$9,DataSubJudgements!$A:$K,H$33,0)) ->  | J69: =IF(ISERROR(VLOOKUP("All"&$B69&$I$5&$F$8&$A$14&$D$9,DataSubJudgements!$A:$K,J$33,0)),IF($B69="","",0),VLOOKUP("All"&$B69&$I$5&$F$8&$A$14&$D$9,DataSubJudgements!$A:$K,J$33,0)) ->  | M69: =IF(ISERROR(VLOOKUP("All"&$B69&$I$5&$F$8&$A$14&$D$9,DataSubJudgements!$A:$K,M$33,0)),IF($B69="","",0),VLOOKUP("All"&$B69&$I$5&$F$8&$A$14&$D$9,DataSubJudgements!$A:$K,M$33,0)) -> 
A70: 32 | B70: =IFERROR(VLOOKUP($B$32&A70,'Region Lookups'!A:C,3,0),"") ->  | D70: =IF(ISERROR(VLOOKUP("All"&$B70&$I$5&$F$8&$A$14&$D$9,DataSubJudgements!$A:$K,8,0)),IF(B70="","",0),SUM(F70:M70)) ->  | F70: =IF(ISERROR(VLOOKUP("All"&$B70&$I$5&$F$8&$A$14&$D$9,DataSubJudgements!$A:$K,F$33,0)),IF($B70="","",0),VLOOKUP("All"&$B70&$I$5&$F$8&$A$14&$D$9,DataSubJudgements!$A:$K,F$33,0)) ->  | H70: =IF(ISERROR(VLOOKUP("All"&$B70&$I$5&$F$8&$A$14&$D$9,DataSubJudgements!$A:$K,H$33,0)),IF($B70="","",0),VLOOKUP("All"&$B70&$I$5&$F$8&$A$14&$D$9,DataSubJudgements!$A:$K,H$33,0)) ->  | J70: =IF(ISERROR(VLOOKUP("All"&$B70&$I$5&$F$8&$A$14&$D$9,DataSubJudgements!$A:$K,J$33,0)),IF($B70="","",0),VLOOKUP("All"&$B70&$I$5&$F$8&$A$14&$D$9,DataSubJudgements!$A:$K,J$33,0)) ->  | M70: =IF(ISERROR(VLOOKUP("All"&$B70&$I$5&$F$8&$A$14&$D$9,DataSubJudgements!$A:$K,M$33,0)),IF($B70="","",0),VLOOKUP("All"&$B70&$I$5&$F$8&$A$14&$D$9,DataSubJudgements!$A:$K,M$33,0)) -> 
A71: 33 | B71: =IFERROR(VLOOKUP($B$32&A71,'Region Lookups'!A:C,3,0),"") ->  | D71: =IF(ISERROR(VLOOKUP("All"&$B71&$I$5&$F$8&$A$14&$D$9,DataSubJudgements!$A:$K,8,0)),IF(B71="","",0),SUM(F71:M71)) ->  | F71: =IF(ISERROR(VLOOKUP("All"&$B71&$I$5&$F$8&$A$14&$D$9,DataSubJudgements!$A:$K,F$33,0)),IF($B71="","",0),VLOOKUP("All"&$B71&$I$5&$F$8&$A$14&$D$9,DataSubJudgements!$A:$K,F$33,0)) ->  | H71: =IF(ISERROR(VLOOKUP("All"&$B71&$I$5&$F$8&$A$14&$D$9,DataSubJudgements!$A:$K,H$33,0)),IF($B71="","",0),VLOOKUP("All"&$B71&$I$5&$F$8&$A$14&$D$9,DataSubJudgements!$A:$K,H$33,0)) ->  | J71: =IF(ISERROR(VLOOKUP("All"&$B71&$I$5&$F$8&$A$14&$D$9,DataSubJudgements!$A:$K,J$33,0)),IF($B71="","",0),VLOOKUP("All"&$B71&$I$5&$F$8&$A$14&$D$9,DataSubJudgements!$A:$K,J$33,0)) ->  | M71: =IF(ISERROR(VLOOKUP("All"&$B71&$I$5&$F$8&$A$14&$D$9,DataSubJudgements!$A:$K,M$33,0)),IF($B71="","",0),VLOOKUP("All"&$B71&$I$5&$F$8&$A$14&$D$9,DataSubJudgements!$A:$K,M$33,0)) -> 
B72: =IFERROR(VLOOKUP($B$32&A72,'Region Lookups'!A:C,3,0),"") -> 
B73: =IFERROR(VLOOKUP($B$32&A73,'Region Lookups'!A:C,3,0),"") -> 
B74: =IFERROR(VLOOKUP($B$32&A74,'Region Lookups'!A:C,3,0),"") -> 
B75: =IFERROR(VLOOKUP($B$32&A75,'Region Lookups'!A:C,3,0),"") -> 
B76: =IFERROR(VLOOKUP($B$32&A76,'Region Lookups'!A:C,3,0),"") -> 
B77: =IFERROR(VLOOKUP($B$32&A77,'Region Lookups'!A:C,3,0),"") -> 

Sheet LA level at 30 Sep 2017
A1: Web link | B1: Local authority name | C1: Region | D1: Inspection date | E1: Overall judgement (OE) | F1: Children who need help and protection | G1: Children looked after and achieving permanence | H1: CLA sub: adoption performance | I1: CLA sub: experiences and progress of care leavers | J1: Leadership, management and governance | K1: LSCB overall effectiveness | L1: Local authority type
A2: =IF(B2="","",HYPERLINK("http://reports.ofsted.gov.uk/local-authorities/barking-and-dagenham","Ofsted Local Authority Webpage")) -> Ofsted Local Authority Webpage | B2: Barking and Dagenham | C2: London | D2: 2014-05-22 | E2: Requires improvement | F2: Requires improvement | G2: Requires improvement | H2: Requires improvement | I2: Requires improvement | J2: Requires improvement | K2: Requires improvement | L2: London Borough
A3: =IF(B3="","",HYPERLINK("http://reports.ofsted.gov.uk/local-authorities/"&B3,"Ofsted Local Authority Webpage")) -> Ofsted Local Authority Webpage | B3: Barnet | C3: London | D3: 2017-05-18 | E3: Inadequate | F3: Inadequate | G3: Inadequate | H3: Requires improvement | I3: Requires improvement | J3: Inadequate | K3: Inadequate | L3: London Borough
A4: =IF(B4="","",HYPERLINK("http://reports.ofsted.gov.uk/local-authorities/"&B4,"Ofsted Local Authority Webpage")) -> Ofsted Local Authority Webpage | B4: Barnsley | C4: Yorkshire and The Humber | D4: 2014-06-25 | E4: Requires improvement | F4: Requires improvement | G4: Requires improvement | H4: Requires improvement | I4: Good | J4: Requires improvement | K4: Requires improvement | L4: Metropolitan District
A5: =IF(B5="","",HYPERLINK("http://reports.ofsted.gov.uk/local-authorities/bath-and-ne-somerset","Ofsted Local Authority Webpage")) -> Ofsted Local Authority Webpage | B5: Bath and North East Somerset | C5: South West | D5: 2017-05-18 | E5: Good | F5: Requires improvement | G5: Good | H5: Outstanding | I5: Requires improvement | J5: Good | K5: Good | L5: Unitary
A6: =IF(B6="","",HYPERLINK("http://reports.ofsted.gov.uk/local-authorities/Bedford","Ofsted Local Authority Webpage")) -> Ofsted Local Authority Webpage | B6: Bedford | C6: East of England | D6: 2017-02-16 | E6: Requires improvement | F6: Requires improvement | G6: Requires improvement | H6: Good | I6: Good | J6: Requires improvement | K6: Good | L6: Unitary
A7: =IF(B7="","",HYPERLINK("http://reports.ofsted.gov.uk/local-authorities/"&B7,"Ofsted Local Authority Webpage")) -> Ofsted Local Authority Webpage | B7: Bexley | C7: London | D7: 2014-04-02 | E7: Requires improvement | F7: Requires improvement | G7: Requires improvement | H7: Requires improvement | I7: Requires improvement | J7: Requires improvement | K7: Inadequate | L7: London Borough
A8: =IF(B8="","",HYPERLINK("http://reports.ofsted.gov.uk/local-authorities/"&B8,"Ofsted Local Authority Webpage")) -> Ofsted Local Authority Webpage | B8: Birmingham | C8: West Midlands | D8: 2016-10-06 | E8: Inadequate | F8: Inadequate | G8: Requires improvement | H8: Requires improvement | I8: Requires improvement | J8: Inadequate | K8: Inadequate | L8: Metropolitan District
A9: =IF(B9="","",HYPERLINK("http://reports.ofsted.gov.uk/local-authorities/blackburn-darwen","Ofsted Local Authority Webpage")) -> Ofsted Local Authority Webpage | B9: Blackburn with Darwen | C9: North West | D9: 2017-10-19 | E9: Good | F9: Requires improvement | G9: Good | H9: Good | I9: Good | J9: Good | K9: Good | L9: Unitary
A10: =IF(B10="","",HYPERLINK("http://reports.ofsted.gov.uk/local-authorities/"&B10,"Ofsted Local Authority Webpage")) -> Ofsted Local Authority Webpage | B10: Blackpool | C10: North West | D10: 2014-07-23 | E10: Requires improvement | F10: Requires improvement | G10: Requires improvement | H10: Requires improvement | I10: Requires improvement | J10: Requires improvement | K10: Requires improvement | L10: Unitary
A11: =IF(B11="","",HYPERLINK("http://reports.ofsted.gov.uk/local-authorities/"&B11,"Ofsted Local Authority Webpage")) -> Ofsted Local Authority Webpage | B11: Bolton | C11: North West | D11: 2014-02-05 | E11: Requires improvement | F11: Requires improvement | G11: Good | H11: Good | I11: Good | J11: Requires improvement | K11: Requires improvement | L11: Metropolitan District
A12: =IF(B12="","",HYPERLINK("http://reports.ofsted.gov.uk/local-authorities/"&B12,"Ofsted Local Authority Webpage")) -> Ofsted Local Authority Webpage | B12: Bournemouth | C12: South West | D12: 2014-05-21 | E12: Requires improvement | F12: Requires improvement | G12: Requires improvement | H12: Good | I12: Requires improvement | J12: Requires improvement | K12: Requires improvement | L12: Unitary
A13: =IF(B13="","",HYPERLINK("http://reports.ofsted.gov.uk/local-authorities/bracknell-forest","Ofsted Local Authority Webpage")) -> Ofsted Local Authority Webpage | B13: Bracknell Forest | C13: South East | D13: 2017-05-25 | E13: Good | F13: Good | G13: Outstanding | H13: Outstanding | I13: Outstanding | J13: Good | K13: Good | L13: Unitary
A14: =IF(B14="","",HYPERLINK("http://reports.ofsted.gov.uk/local-authorities/"&B14,"Ofsted Local Authority Webpage")) -> Ofsted Local Authority Webpage | B14: Bradford | C14: Yorkshire and The Humber | D14: 2014-03-12 | E14: Requires improvement | F14: Requires improvement | G14: Good | H14: Good | I14: Good | J14: Good | K14: Good | L14: Metropolitan District
A15: =IF(B15="","",HYPERLINK("http://reports.ofsted.gov.uk/local-authorities/"&B15,"Ofsted Local Authority Webpage")) -> Ofsted Local Authority Webpage | B15: Brent | C15: London | D15: 2015-10-08 | E15: Requires improvement | F15: Requires improvement | G15: Requires improvement | H15: Good | I15: Requires improvement | J15: Requires improvement | K15: Requires improvement | L15: London Borough
A16: =IF(B16="","",HYPERLINK("http://reports.ofsted.gov.uk/local-authorities/brighton-and-hove","Ofsted Local Authority Webpage")) -> Ofsted Local Authority Webpage | B16: Brighton and Hove | C16: South East | D16: 2015-05-07 | E16: Requires improvement | F16: Requires improvement | G16: Good | H16: Good | I16: Good | J16: Good | K16: Good | L16: Unitary
A17: =IF(B17="","",HYPERLINK("http://reports.ofsted.gov.uk/local-authorities/bristol-city","Ofsted Local Authority Webpage")) -> Ofsted Local Authority Webpage | B17: Bristol | C17: South West | D17: 2014-10-22 | E17: Requires improvement | F17: Requires improvement | G17: Requires improvement | H17: Good | I17: Inadequate | J17: Requires improvement | K17: Requires improvement | L17: Unitary
A18: =IF(B18="","",HYPERLINK("http://reports.ofsted.gov.uk/local-authorities/"&B18,"Ofsted Local Authority Webpage")) -> Ofsted Local Authority Webpage | B18: Bromley | C18: London | D18: 2016-05-05 | E18: Inadequate | F18: Inadequate | G18: Inadequate | H18: Inadequate | I18: Inadequate | J18: Inadequate | K18: Requires improvement | L18: London Borough
A19: Ofsted Local Authority Webpage | B19: Buckinghamshire | C19: South East | D19: 2014-06-25 | E19: Inadequate | F19: Inadequate | G19: Inadequate | H19: Requires improvement | I19: Requires improvement | J19: Inadequate | K19: Inadequate | L19: Shire County
A20: Ofsted Local Authority Webpage | B20: Bury | C20: North West | D20: 2016-03-17 | E20: Requires improvement | F20: Good | G20: Requires improvement | H20: Good | I20: Requires improvement | J20: Good | K20: Good | L20: Metropolitan District
A21: Ofsted Local Authority Webpage | B21: Calderdale | C21: Yorkshire and The Humber | D21: 2015-02-04 | E21: Requires improvement | F21: Requires improvement | G21: Requires improvement | H21: Inadequate | I21: Requires improvement | J21: Requires improvement | K21: Requires improvement | L21: Metropolitan District
A22: Ofsted Local Authority Webpage | B22: Cambridgeshire | C22: East of England | D22: 2014-06-25 | E22: Good | F22: Requires improvement | G22: Good | H22: Good | I22: Good | J22: Good | K22: Good | L22: Shire County
A23: Ofsted Local Authority Webpage | B23: Camden | C23: London | D23: 2017-10-05 | E23: Good | F23: Good | G23: Good | H23: Outstanding | I23: Good | J23: Outstanding | K23: Outstanding | L23: London Borough
A24: =IF(B24="","",HYPERLINK("http://reports.ofsted.gov.uk/local-authorities/central-bedfordshire","Ofsted Local Authority Webpage")) -> Ofsted Local Authority Webpage | B24: Central Bedfordshire | C24: East of England | D24: 2017-07-06 | E24: Good | F24: Good | G24: Requires improvement | H24: Good | I24: Good | J24: Good | K24: Good | L24: Unitary
A25: =IF(B25="","",HYPERLINK("http://reports.ofsted.gov.uk/local-authorities/cheshire-east","Ofsted Local Authority Webpage")) -> Ofsted Local Authority Webpage | B25: Cheshire East | C25: North West | D25: 2015-07-30 | E25: Requires improvement | F25: Requires improvement | G25: Requires improvement | H25: Good | I25: Requires improvement | J25: Requires improvement | K25: Requires improvement | L25: Unitary
A26: =IF(B26="","",HYPERLINK("http://reports.ofsted.gov.uk/local-authorities/cheshire-west-and-chester","Ofsted Local Authority Webpage")) -> Ofsted Local Authority Webpage | B26: Cheshire West and Chester | C26: North West | D26: 2015-12-17 | E26: Good | F26: Good | G26: Good | H26: Outstanding | I26: Good | J26: Outstanding | K26: Good | L26: Unitary
A27: =IF(B27="","",HYPERLINK("http://reports.ofsted.gov.uk/local-authorities/city-of-london","Ofsted Local Authority Webpage")) -> Ofsted Local Authority Webpage | B27: City of London | C27: London | D27: 2016-07-28 | E27: Good | F27: Good | G27: Good | H27: - | I27: Good | J27: Outstanding | K27: Outstanding | L27: London Borough
A28: =IF(B28="","",HYPERLINK("http://reports.ofsted.gov.uk/local-authorities/"&B28,"Ofsted Local Authority Webpage")) -> Ofsted Local Authority Webpage | B28: Cornwall | C28: South West | D28: 2016-05-06 | E28: Good | F28: Requires improvement | G28: Good | H28: Good | I28: Good | J28: Good | K28: Requires improvement | L28: Unitary
A29: =IF(B29="","",HYPERLINK("http://reports.ofsted.gov.uk/local-authorities/"&B29,"Ofsted Local Authority Webpage")) -> Ofsted Local Authority Webpage | B29: Coventry | C29: West Midlands | D29: 2017-03-30 | E29: Requires improvement | F29: Requires improvement | G29: Requires improvement | H29: Requires improvement | I29: Good | J29: Requires improvement | K29: Inadequate | L29: Metropolitan District
A30: =IF(B30="","",HYPERLINK("http://reports.ofsted.gov.uk/local-authorities/"&B30,"Ofsted Local Authority Webpage")) -> Ofsted Local Authority Webpage | B30: Croydon | C30: London | D30: 2017-07-13 | E30: Inadequate | F30: Inadequate | G30: Inadequate | H30: Requires improvement | I30: Requires improvement | J30: Inadequate | K30: Inadequate | L30: London Borough
A31: =IF(B31="","",HYPERLINK("http://reports.ofsted.gov.uk/local-authorities/"&B31,"Ofsted Local Authority Webpage")) -> Ofsted Local Authority Webpage | B31: Cumbria | C31: North West | D31: 2015-03-25 | E31: Inadequate | F31: Requires improvement | G31: Inadequate | H31: Requires improvement | I31: Requires improvement | J31: Inadequate | K31: Requires improvement | L31: Shire County
A32: =IF(B32="","",HYPERLINK("http://reports.ofsted.gov.uk/local-authorities/"&B32,"Ofsted Local Authority Webpage")) -> Ofsted Local Authority Webpage | B32: Darlington | C32: North East | D32: 2015-07-16 | E32: Inadequate | F32: Inadequate | G32: Requires improvement | H32: Good | I32: Good | J32: Inadequate | K32: Requires improvement | L32: Unitary
A33: =IF(B33="","",HYPERLINK("http://reports.ofsted.gov.uk/local-authorities/derby","Ofsted Local Authority Webpage")) -> Ofsted Local Authority Webpage | B33: Derby | C33: East Midlands | D33: 2017-03-30 | E33: Good | F33: Requires improvement | G33: Good | H33: Good | I33: Good | J33: Good | K33: Outstanding | L33: Unitary
A34: =IF(B34="","",HYPERLINK("http://reports.ofsted.gov.uk/local-authorities/"&B34,"Ofsted Local Authority Webpage")) -> Ofsted Local Authority Webpage | B34: Derbyshire | C34: East Midlands | D34: 2013-12-11 | E34: Good | F34: Good | G34: Good | H34: Good | I34: Good | J34: Good | K34: Requires improvement | L34: Shire County
A35: Ofsted Local Authority Webpage | B35: Devon | C35: South West | D35: 2015-03-18 | E35: Requires improvement | F35: Requires improvement | G35: Requires improvement | H35: Good | I35: Inadequate | J35: Requires improvement | K35: Inadequate | L35: Shire County
A36: Ofsted Local Authority Webpage | B36: Doncaster | C36: Yorkshire and The Humber | D36: 2015-10-08 | E36: Inadequate | F36: Inadequate | G36: Requires improvement | H36: Good | I36: Requires improvement | J36: Requires improvement | K36: Requires improvement | L36: Metropolitan District
A37: Ofsted Local Authority Webpage | B37: Dorset | C37: South West | D37: 2016-03-17 | E37: Requires improvement | F37: Requires improvement | G37: Requires improvement | H37: Good | I37: Requires improvement | J37: Requires improvement | K37: Inadequate | L37: Shire County
A38: Ofsted Local Authority Webpage | B38: Dudley | C38: West Midlands | D38: 2016-02-08 | E38: Inadequate | F38: Inadequate | G38: Inadequate | H38: Inadequate | I38: Requires improvement | J38: Inadequate | K38: Inadequate | L38: Metropolitan District
A39: Ofsted Local Authority Webpage | B39: Durham | C39: North East | D39: 2016-03-18 | E39: Requires improvement | F39: Requires improvement | G39: Requires improvement | H39: Good | I39: Good | J39: Requires improvement | K39: Good | L39: Unitary
A40: Ofsted Local Authority Webpage | B40: Ealing | C40: London | D40: 2016-07-07 | E40: Good | F40: Good | G40: Good | H40: Good | I40: Outstanding | J40: Good | K40: Requires improvement | L40: London Borough
A41: =IF(B41="","",HYPERLINK("http://reports.ofsted.gov.uk/local-authorities/east-riding-of-yorkshire","Ofsted Local Authority Webpage")) -> Ofsted Local Authority Webpage | B41: East Riding of Yorkshire | C41: Yorkshire and The Humber | D41: 2016-12-15 | E41: Good | F41: Good | G41: Good | H41: Good | I41: Outstanding | J41: Good | K41: Good | L41: Unitary
A42: =IF(B42="","",HYPERLINK("http://reports.ofsted.gov.uk/local-authorities/East-Sussex","Ofsted Local Authority Webpage")) -> Ofsted Local Authority Webpage | B42: East Sussex | C42: South East | D42: 2014-02-05 | E42: Good | F42: Good | G42: Good | H42: Outstanding | I42: Requires improvement | J42: Good | K42: Good | L42: Shire County
A43: =IF(B43="","",HYPERLINK("http://reports.ofsted.gov.uk/local-authorities/"&B43,"Ofsted Local Authority Webpage")) -> Ofsted Local Authority Webpage | B43: Enfield | C43: London | D43: 2015-02-11 | E43: Good | F43: Requires improvement | G43: Good | H43: Good | I43: Good | J43: Good | K43: Good | L43: London Borough
A44: Ofsted Local Authority Webpage | B44: Essex | C44: East of England | D44: 2014-02-05 | E44: Good | F44: Good | G44: Good | H44: Good | I44: Good | J44: Good | K44: Requires improvement | L44: Shire County
A45: Ofsted Local Authority Webpage | B45: Gateshead | C45: North East | D45: 2015-11-19 | E45: Good | F45: Good | G45: Good | H45: Good | I45: Requires improvement | J45: Good | K45: Requires improvement | L45: Metropolitan District
A46: Ofsted Local Authority Webpage | B46: Gloucestershire | C46: South West | D46: 2017-03-23 | E46: Inadequate | F46: Inadequate | G46: Requires improvement | H46: Good | I46: Requires improvement | J46: Inadequate | K46: Requires improvement | L46: Shire County
A47: Ofsted Local Authority Webpage | B47: Greenwich | C47: London | D47: 2016-06-16 | E47: Good | F47: Good | G47: Good | H47: Good | I47: Good | J47: Good | K47: Good | L47: London Borough
A48: Ofsted Local Authority Webpage | B48: Hackney | C48: London | D48: 2016-07-28 | E48: Good | F48: Good | G48: Good | H48: Good | I48: Outstanding | J48: Good | K48: Outstanding | L48: London Borough
A49: Ofsted Local Authority Webpage | B49: Halton | C49: North West | D49: 2014-12-10 | E49: Requires improvement | F49: Requires improvement | G49: Good | H49: Good | I49: Good | J49: Requires improvement | K49: Requires improvement | L49: Unitary
A50: =IF(B50="","",HYPERLINK("http://reports.ofsted.gov.uk/local-authorities/hammersmith-and-fulham","Ofsted Local Authority Webpage")) -> Ofsted Local Authority Webpage | B50: Hammersmith and Fulham | C50: London | D50: 2016-02-04 | E50: Good | F50: Good | G50: Good | H50: Outstanding | I50: Good | J50: Outstanding | K50: Good | L50: London Borough
A51: =IF(B51="","",HYPERLINK("http://reports.ofsted.gov.uk/local-authorities/"&B51,"Ofsted Local Authority Webpage")) -> Ofsted Local Authority Webpage | B51: Hampshire | C51: South East | D51: 2014-03-12 | E51: Good | F51: Good | G51: Good | H51: Outstanding | I51: Good | J51: Outstanding | K51: Good | L51: Shire County
A52: Ofsted Local Authority Webpage | B52: Haringey | C52: London | D52: 2014-06-11 | E52: Requires improvement | F52: Requires improvement | G52: Requires improvement | H52: Requires improvement | I52: Requires improvement | J52: Requires improvement | K52: Requires improvement | L52: London Borough
A53: Ofsted Local Authority Webpage | B53: Harrow | C53: London | D53: 2017-02-09 | E53: Good | F53: Requires improvement | G53: Good | H53: Good | I53: Good | J53: Good | K53: Requires improvement | L53: London Borough
A54: Ofsted Local Authority Webpage | B54: Hartlepool | C54: North East | D54: 2013-12-11 | E54: Good | F54: Good | G54: Good | H54: Good | I54: Good | J54: Good | K54: Requires improvement | L54: Unitary
A55: Ofsted Local Authority Webpage | B55: Havering | C55: London | D55: 2016-10-20 | E55: Requires improvement | F55: Requires improvement | G55: Requires improvement | H55: Requires improvement | I55: Inadequate | J55: Requires improvement | K55: Requires improvement | L55: London Borough
A56: Ofsted Local Authority Webpage | B56: Herefordshire | C56: West Midlands | D56: 2014-05-21 | E56: Requires improvement | F56: Requires improvement | G56: Requires improvement | H56: Good | I56: Requires improvement | J56: Requires improvement | K56: Requires improvement | L56: Unitary
A57: Ofsted Local Authority Webpage | B57: Hertfordshire | C57: East of England | D57: 2015-10-08 | E57: Good | F57: Requires improvement | G57: Good | H57: Good | I57: Good | J57: Good | K57: Good | L57: Shire County
A58: Ofsted Local Authority Webpage | B58: Hillingdon | C58: London | D58: 2013-12-05 | E58: Requires improvement | F58: Requires improvement | G58: Requires improvement | H58: Good | I58: Requires improvement | J58: Requires improvement | K58: Requires improvement | L58: London Borough
A59: Ofsted Local Authority Webpage | B59: Hounslow | C59: London | D59: 2014-02-05 | E59: Requires improvement | F59: Requires improvement | G59: Requires improvement | H59: Requires improvement | I59: Requires improvement | J59: Requires improvement | K59: Requires improvement | L59: London Borough
A60: =IF(B60="","",HYPERLINK("http://reports.ofsted.gov.uk/local-authorities/isle-of-wight","Ofsted Local Authority Webpage")) -> Ofsted Local Authority Webpage | B60: Isle of Wight | C60: South East | D60: 2014-10-08 | E60: Requires improvement | F60: Requires improvement | G60: Requires improvement | H60: Requires improvement | I60: Requires improvement | J60: Requires improvement | K60: Requires improvement | L60: Unitary
A61: =IF(B61="","",HYPERLINK("http://reports.ofsted.gov.uk/local-authorities/isles-of-scilly","Ofsted Local Authority Webpage")) -> Ofsted Local Authority Webpage | B61: Isles of Scilly | C61: South West | D61: 2016-04-28 | E61: Good | F61: Good | G61: - | H61: - | I61: - | J61: Good | K61: Requires improvement | L61: Unitary
A62: =IF(B62="","",HYPERLINK("http://reports.ofsted.gov.uk/local-authorities/"&B62,"Ofsted Local Authority Webpage")) -> Ofsted Local Authority Webpage | B62: Islington | C62: London | D62: 2017-05-25 | E62: Good | F62: Good | G62: Good | H62: Good | I62: Good | J62: Outstanding | K62: Good | L62: London Borough
A63: =IF(B63="","",HYPERLINK("http://reports.ofsted.gov.uk/local-authorities/kensington-and-chelsea","Ofsted Local Authority Webpage")) -> Ofsted Local Authority Webpage | B63: Kensington and Chelsea | C63: London | D63: 2016-02-04 | E63: Outstanding | F63: Good | G63: Outstanding | H63: Outstanding | I63: Outstanding | J63: Outstanding | K63: Good | L63: London Borough
A64: =IF(B64="","",HYPERLINK("http://reports.ofsted.gov.uk/local-authorities/"&B64,"Ofsted Local Authority Webpage")) -> Ofsted Local Authority Webpage | B64: Kent | C64: South East | D64: 2017-03-30 | E64: Good | F64: Requires improvement | G64: Good | H64: Good | I64: Good | J64: Good | K64: Requires improvement | L64: Shire County
A65: =IF(B65="","",HYPERLINK("http://reports.ofsted.gov.uk/local-authorities/kingston-upon-hull","Ofsted Local Authority Webpage")) -> Ofsted Local Authority Webpage | B65: Kingston upon Hull | C65: Yorkshire and The Humber | D65: 2014-12-10 | E65: Requires improvement | F65: Requires improvement | G65: Requires improvement | H65: Requires improvement | I65: Requires improvement | J65: Requires improvement | K65: Requires improvement | L65: Unitary
A66: =IF(B66="","",HYPERLINK("http://reports.ofsted.gov.uk/local-authorities/kingston-upon-thames","Ofsted Local Authority Webpage")) -> Ofsted Local Authority Webpage | B66: Kingston upon Thames | C66: London | D66: 2015-06-18 | E66: Good | F66: Good | G66: Good | H66: Good | I66: Good | J66: Good | K66: Good | L66: London Borough
A67: =IF(B67="","",HYPERLINK("http://reports.ofsted.gov.uk/local-authorities/"&B67,"Ofsted Local Authority Webpage")) -> Ofsted Local Authority Webpage | B67: Kirklees | C67: Yorkshire and The Humber | D67: 2016-10-06 | E67: Inadequate | F67: Inadequate | G67: Inadequate | H67: Requires improvement | I67: Requires improvement | J67: Inadequate | K67: Inadequate | L67: Metropolitan District
A68: =IF(B68="","",HYPERLINK("http://reports.ofsted.gov.uk/local-authorities/"&B68,"Ofsted Local Authority Webpage")) -> Ofsted Local Authority Webpage | B68: Knowsley | C68: North West | D68: 2017-03-24 | E68: Requires improvement | F68: Requires improvement | G68: Requires improvement | H68: Good | I68: Good | J68: Good | K68: Inadequate | L68: Metropolitan District
A69: =IF(B69="","",HYPERLINK("http://reports.ofsted.gov.uk/local-authorities/"&B69,"Ofsted Local Authority Webpage")) -> Ofsted Local Authority Webpage | B69: Lambeth | C69: London | D69: 2015-03-18 | E69: Inadequate | F69: Requires improvement | G69: Inadequate | H69: Inadequate | I69: Requires improvement | J69: Inadequate | K69: Inadequate | L69: London Borough
A70: =IF(B70="","",HYPERLINK("http://reports.ofsted.gov.uk/local-authorities/"&B70,"Ofsted Local Authority Webpage")) -> Ofsted Local Authority Webpage | B70: Lancashire | C70: North West | D70: 2015-10-08 | E70: Inadequate | F70: Inadequate | G70: Requires improvement | H70: Requires improvement | I70: Inadequate | J70: Inadequate | K70: Good | L70: Shire County
A71: =IF(B71="","",HYPERLINK("http://reports.ofsted.gov.uk/local-authorities/"&B71,"Ofsted Local Authority Webpage")) -> Ofsted Local Authority Webpage | B71: Leeds | C71: Yorkshire and The Humber | D71: 2015-02-11 | E71: Good | F71: Good | G71: Good | H71: Good | I71: Good | J71: Outstanding | K71: Good | L71: Metropolitan District
A72: =IF(B72="","",HYPERLINK("http://reports.ofsted.gov.uk/local-authorities/leicester-city","Ofsted Local Authority Webpage")) -> Ofsted Local Authority Webpage | B72: Leicester | C72: East Midlands | D72: 2017-07-13 | E72: Requires improvement | F72: Requires improvement | G72: Requires improvement | H72: Good | I72: Requires improvement | J72: Good | K72: Inadequate | L72: Unitary
A73: =IF(B73="","",HYPERLINK("http://reports.ofsted.gov.uk/local-authorities/"&B73,"Ofsted Local Authority Webpage")) -> Ofsted Local Authority Webpage | B73: Leicestershire | C73: East Midlands | D73: 2016-12-08 | E73: Requires improvement | F73: Requires improvement | G73: Requires improvement | H73: Requires improvement | I73: Requires improvement | J73: Requires improvement | K73: Good | L73: Shire County
A74: Ofsted Local Authority Webpage | B74: Lewisham | C74: London | D74: 2015-11-20 | E74: Requires improvement | F74: Requires improvement | G74: Good | H74: Good | I74: Good | J74: Requires improvement | K74: Requires improvement | L74: London Borough
A75: Ofsted Local Authority Webpage | B75: Lincolnshire | C75: East Midlands | D75: 2014-11-12 | E75: Good | F75: Good | G75: Good | H75: Outstanding | I75: Good | J75: Good | K75: Good | L75: Shire County
A76: Ofsted Local Authority Webpage | B76: Liverpool | C76: North West | D76: 2014-06-11 | E76: Requires improvement | F76: Requires improvement | G76: Requires improvement | H76: Requires improvement | I76: Requires improvement | J76: Requires improvement | K76: Requires improvement | L76: Metropolitan District
A77: Ofsted Local Authority Webpage | B77: Luton | C77: East of England | D77: 2016-02-04 | E77: Requires improvement | F77: Requires improvement | G77: Requires improvement | H77: Requires improvement | I77: Good | J77: Requires improvement | K77: Requires improvement | L77: Unitary
A78: Ofsted Local Authority Webpage | B78: Manchester | C78: North West | D78: 2014-07-16 | E78: Inadequate | F78: Inadequate | G78: Requires improvement | H78: Inadequate | I78: Requires improvement | J78: Inadequate | K78: Inadequate | L78: Metropolitan District
A79: Ofsted Local Authority Webpage | B79: Medway | C79: South East | D79: 2015-10-08 | E79: Requires improvement | F79: Requires improvement | G79: Requires improvement | H79: Requires improvement | I79: Good | J79: Requires improvement | K79: Requires improvement | L79: Unitary
A80: Ofsted Local Authority Webpage | B80: Merton | C80: London | D80: 2017-07-06 | E80: Good | F80: Good | G80: Good | H80: Outstanding | I80: Good | J80: Outstanding | K80: Outstanding | L80: London Borough
A81: Ofsted Local Authority Webpage | B81: Middlesbrough | C81: North East | D81: 2015-12-17 | E81: Requires improvement | F81: Requires improvement | G81: Requires improvement | H81: Good | I81: Good | J81: Requires improvement | K81: Requires improvement | L81: Unitary
A82: =IF(B82="","",HYPERLINK("http://reports.ofsted.gov.uk/local-authorities/milton-keynes","Ofsted Local Authority Webpage")) -> Ofsted Local Authority Webpage | B82: Milton Keynes | C82: South East | D82: 2016-10-06 | E82: Requires improvement | F82: Requires improvement | G82: Requires improvement | H82: Requires improvement | I82: Requires improvement | J82: Requires improvement | K82: Requires improvement | L82: Unitary
A83: =IF(B83="","",HYPERLINK("http://reports.ofsted.gov.uk/local-authorities/newcastle-upon-tyne","Ofsted Local Authority Webpage")) -> Ofsted Local Authority Webpage | B83: Newcastle upon Tyne | C83: North East | D83: 2017-05-18 | E83: Requires improvement | F83: Requires improvement | G83: Requires improvement | H83: Good | I83: Good | J83: Good | K83: Good | L83: Metropolitan District
A84: =IF(B84="","",HYPERLINK("http://reports.ofsted.gov.uk/local-authorities/"&B84,"Ofsted Local Authority Webpage")) -> Ofsted Local Authority Webpage | B84: Newham | C84: London | D84: 2014-06-25 | E84: Requires improvement | F84: Requires improvement | G84: Requires improvement | H84: Good | I84: Good | J84: Requires improvement | K84: Good | L84: London Borough
A85: =IF(B85="","",HYPERLINK("http://reports.ofsted.gov.uk/local-authorities/"&B85,"Ofsted Local Authority Webpage")) -> Ofsted Local Authority Webpage | B85: Norfolk | C85: East of England | D85: 2015-07-30 | E85: Inadequate | F85: Requires improvement | G85: Inadequate | H85: Requires improvement | I85: Inadequate | J85: Requires improvement | K85: Requires improvement | L85: Shire County
A86: =IF(B86="","",HYPERLINK("http://reports.ofsted.gov.uk/local-authorities/north-east-lincolnshire","Ofsted Local Authority Webpage")) -> Ofsted Local Authority Webpage | B86: North East Lincolnshire | C86: Yorkshire and The Humber | D86: 2017-08-03 | E86: Good | F86: Requires improvement | G86: Good | H86: Good | I86: Good | J86: Good | K86: Requires improvement | L86: Unitary
A87: =IF(B87="","",HYPERLINK("http://reports.ofsted.gov.uk/local-authorities/north-lincolnshire","Ofsted Local Authority Webpage")) -> Ofsted Local Authority Webpage | B87: North Lincolnshire | C87: Yorkshire and The Humber | D87: 2017-07-13 | E87: Outstanding | F87: Good | G87: Outstanding | H87: Outstanding | I87: Outstanding | J87: Outstanding | K87: Outstanding | L87: Unitary
A88: =IF(B88="","",HYPERLINK("http://reports.ofsted.gov.uk/local-authorities/north-somerset","Ofsted Local Authority Webpage")) -> Ofsted Local Authority Webpage | B88: North Somerset | C88: South West | D88: 2017-07-07 | E88: Requires improvement | F88: Requires improvement | G88: Requires improvement | H88: Good | I88: Good | J88: Requires improvement | K88: Inadequate | L88: Unitary
A89: =IF(B89="","",HYPERLINK("http://reports.ofsted.gov.uk/local-authorities/north-tyneside","Ofsted Local Authority Webpage")) -> Ofsted Local Authority Webpage | B89: North Tyneside | C89: North East | D89: 2017-03-23 | E89: Good | F89: Good | G89: Good | H89: Good | I89: Outstanding | J89: Good | K89: Good | L89: Metropolitan District
A90: =IF(B90="","",HYPERLINK("http://reports.ofsted.gov.uk/local-authorities/north-yorkshire","Ofsted Local Authority Webpage")) -> Ofsted Local Authority Webpage | B90: North Yorkshire | C90: Yorkshire and The Humber | D90: 2014-05-21 | E90: Good | F90: Good | G90: Good | H90: Good | I90: Good | J90: Good | K90: Good | L90: Shire County
A91: =IF(B91="","",HYPERLINK("http://reports.ofsted.gov.uk/local-authorities/"&B91,"Ofsted Local Authority Webpage")) -> Ofsted Local Authority Webpage | B91: Northamptonshire | C91: East Midlands | D91: 2016-03-10 | E91: Requires improvement | F91: Requires improvement | G91: Requires improvement | H91: Requires improvement | I91: Requires improvement | J91: Requires improvement | K91: Requires improvement | L91: Shire County
A92: =IF(B92="","",HYPERLINK("http://reports.ofsted.gov.uk/local-authorities/"&B92,"Ofsted Local Authority Webpage")) -> Ofsted Local Authority Webpage | B92: Northumberland | C92: North East | D92: 2016-02-18 | E92: Requires improvement | F92: Requires improvement | G92: Requires improvement | H92: Good | I92: Requires improvement | J92: Requires improvement | K92: Good | L92: Unitary
A93: =IF(B93="","",HYPERLINK("http://reports.ofsted.gov.uk/local-authorities/nottingham","Ofsted Local Authority Webpage")) -> Ofsted Local Authority Webpage | B93: Nottingham | C93: East Midlands | D93: 2014-04-02 | E93: Requires improvement | F93: Requires improvement | G93: Requires improvement | H93: Requires improvement | I93: Requires improvement | J93: Requires improvement | K93: Requires improvement | L93: Unitary
A94: =IF(B94="","",HYPERLINK("http://reports.ofsted.gov.uk/local-authorities/"&B94,"Ofsted Local Authority Webpage")) -> Ofsted Local Authority Webpage | B94: Nottinghamshire | C94: East Midlands | D94: 2015-06-04 | E94: Good | F94: Good | G94: Good | H94: Good | I94: Requires improvement | J94: Good | K94: Good | L94: Shire County
A95: Ofsted Local Authority Webpage | B95: Oldham | C95: North West | D95: 2015-06-18 | E95: Requires improvement | F95: Requires improvement | G95: Requires improvement | H95: Good | I95: Requires improvement | J95: Requires improvement | K95: Requires improvement | L95: Metropolitan District
A96: Ofsted Local Authority Webpage | B96: Oxfordshire | C96: South East | D96: 2014-05-21 | E96: Good | F96: Good | G96: Good | H96: Good | I96: Good | J96: Good | K96: Good | L96: Shire County
A97: Ofsted Local Authority Webpage | B97: Peterborough | C97: East of England | D97: 2015-05-08 | E97: Requires improvement | F97: Requires improvement | G97: Requires improvement | H97: Good | I97: Requires improvement | J97: Requires improvement | K97: Good | L97: Unitary
A98: Ofsted Local Authority Webpage | B98: Plymouth | C98: South West | D98: 2014-11-12 | E98: Requires improvement | F98: Requires improvement | G98: Requires improvement | H98: Requires improvement | I98: Requires improvement | J98: Requires improvement | K98: Requires improvement | L98: Unitary
A99: Ofsted Local Authority Webpage | B99: Poole | C99: South West | D99: 2017-10-05 | E99: Requires improvement | F99: Requires improvement | G99: Requires improvement | H99: Good | I99: Good | J99: Requires improvement | K99: Good | L99: Unitary
A100: Ofsted Local Authority Webpage | B100: Portsmouth | C100: South East | D100: 2014-07-06 | E100: Requires improvement | F100: Requires improvement | G100: Good | H100: Good | I100: Requires improvement | J100: Good | K100: Good | L100: Unitary
A101: Ofsted Local Authority Webpage | B101: Reading | C101: South East | D101: 2016-06-16 | E101: Inadequate | F101: Inadequate | G101: Inadequate | H101: Requires improvement | I101: Requires improvement | J101: Inadequate | K101: Requires improvement | L101: Unitary
A102: Ofsted Local Authority Webpage | B102: Redbridge | C102: London | D102: 2016-10-06 | E102: Good | F102: Good | G102: Good | H102: Good | I102: Requires improvement | J102: Good | K102: Good | L102: London Borough
A103: =IF(B103="","",HYPERLINK("http://reports.ofsted.gov.uk/local-authorities/redcar-and-cleveland","Ofsted Local Authority Webpage")) -> Ofsted Local Authority Webpage | B103: Redcar and Cleveland | C103: North East | D103: 2017-02-09 | E103: Requires improvement | F103: Requires improvement | G103: Good | H103: Good | I103: Good | J103: Requires improvement | K103: Requires improvement | L103: Unitary
A104: =IF(B104="","",HYPERLINK("http://reports.ofsted.gov.uk/local-authorities/richmond-upon-thames","Ofsted Local Authority Webpage")) -> Ofsted Local Authority Webpage | B104: Richmond Upon Thames | C104: London | D104: 2017-10-19 | E104: Good | F104: Good | G104: Good | H104: Good | I104: Good | J104: Good | K104: Good | L104: London Borough
A105: =IF(B105="","",HYPERLINK("http://reports.ofsted.gov.uk/local-authorities/"&B105,"Ofsted Local Authority Webpage")) -> Ofsted Local Authority Webpage | B105: Rochdale | C105: North West | D105: 2014-10-22 | E105: Requires improvement | F105: Requires improvement | G105: Requires improvement | H105: Requires improvement | I105: Inadequate | J105: Requires improvement | K105: Requires improvement | L105: Metropolitan District
A106: Ofsted Local Authority Webpage | B106: Rotherham | C106: Yorkshire and The Humber | D106: 2014-10-08 | E106: Inadequate | F106: Inadequate | G106: Inadequate | H106: Requires improvement | I106: Inadequate | J106: Inadequate | K106: Inadequate | L106: Metropolitan District
A107: Ofsted Local Authority Webpage | B107: Rutland | C107: East Midlands | D107: 2016-12-07 | E107: Requires improvement | F107: Requires improvement | G107: Requires improvement | H107: Requires improvement | I107: Good | J107: Requires improvement | K107: Good | L107: Unitary
A108: Ofsted Local Authority Webpage | B108: Salford | C108: North West | D108: 2015-05-08 | E108: Good | F108: Good | G108: Good | H108: Requires improvement | I108: Good | J108: Good | K108: Good | L108: Metropolitan District
A109: Ofsted Local Authority Webpage | B109: Sandwell | C109: West Midlands | D109: 2015-02-19 | E109: Inadequate | F109: Inadequate | G109: Requires improvement | H109: Requires improvement | I109: Requires improvement | J109: Inadequate | K109: Inadequate | L109: Metropolitan District
A110: Ofsted Local Authority Webpage | B110: Sefton | C110: North West | D110: 2016-05-05 | E110: Requires improvement | F110: Requires improvement | G110: Requires improvement | H110: Requires improvement | I110: Requires improvement | J110: Requires improvement | K110: Inadequate | L110: Metropolitan District
A111: Ofsted Local Authority Webpage | B111: Sheffield | C111: Yorkshire and The Humber | D111: 2014-01-20 | E111: Requires improvement | F111: Good | G111: Requires improvement | H111: Requires improvement | I111: Good | J111: Good | K111: Good | L111: Metropolitan District
A112: Ofsted Local Authority Webpage | B112: Shropshire | C112: West Midlands | D112: 2017-10-05 | E112: Good | F112: Good | G112: Requires improvement | H112: Good | I112: Requires improvement | J112: Good | K112: Good | L112: Unitary
A113: Ofsted Local Authority Webpage | B113: Slough | C113: South East | D113: 2015-12-17 | E113: Inadequate | F113: Inadequate | G113: Inadequate | H113: Requires improvement | I113: Inadequate | J113: Inadequate | K113: Inadequate | L113: Unitary
A114: Ofsted Local Authority Webpage | B114: Solihull | C114: West Midlands | D114: 2016-05-19 | E114: Requires improvement | F114: Requires improvement | G114: Requires improvement | H114: Good | I114: Requires improvement | J114: Requires improvement | K114: Good | L114: Metropolitan District
A115: Ofsted Local Authority Webpage | B115: Somerset | C115: South West | D115: 2015-02-11 | E115: Inadequate | F115: Inadequate | G115: Inadequate | H115: Requires improvement | I115: Inadequate | J115: Inadequate | K115: Inadequate | L115: Shire County
A116: =IF(B116="","",HYPERLINK("http://reports.ofsted.gov.uk/local-authorities/south-gloucestershire","Ofsted Local Authority Webpage")) -> Ofsted Local Authority Webpage | B116: South Gloucestershire | C116: South West | D116: 2016-12-15 | E116: Inadequate | F116: Inadequate | G116: Requires improvement | H116: Good | I116: Requires improvement | J116: Inadequate | K116: Inadequate | L116: Unitary
A117: =IF(B117="","",HYPERLINK("http://reports.ofsted.gov.uk/local-authorities/south-tyneside","Ofsted Local Authority Webpage")) -> Ofsted Local Authority Webpage | B117: South Tyneside | C117: North East | D117: 2017-10-05 | E117: Good | F117: Good | G117: Good | H117: Outstanding | I117: Good | J117: Good | K117: Good | L117: Metropolitan District
A118: =IF(B118="","",HYPERLINK("http://reports.ofsted.gov.uk/local-authorities/"&B118,"Ofsted Local Authority Webpage")) -> Ofsted Local Authority Webpage | B118: Southampton | C118: South East | D118: 2014-07-30 | E118: Requires improvement | F118: Requires improvement | G118: Requires improvement | H118: Requires improvement | I118: Inadequate | J118: Requires improvement | K118: Requires improvement | L118: Unitary
A119: =IF(B119="","",HYPERLINK("http://reports.ofsted.gov.uk/local-authorities/southend-sea","Ofsted Local Authority Webpage")) -> Ofsted Local Authority Webpage | B119: Southend on Sea | C119: East of England | D119: 2016-05-19 | E119: Requires improvement | F119: Requires improvement | G119: Requires improvement | H119: Good | I119: Good | J119: Requires improvement | K119: Requires improvement | L119: Unitary
A120: =IF(B120="","",HYPERLINK("http://reports.ofsted.gov.uk/local-authorities/"&B120,"Ofsted Local Authority Webpage")) -> Ofsted Local Authority Webpage | B120: Southwark | C120: London | D120: 2017-03-30 | E120: Good | F120: Good | G120: Requires improvement | H120: Outstanding | I120: Requires improvement | J120: Good | K120: Good | L120: London Borough
A121: =IF(B121="","",HYPERLINK("http://reports.ofsted.gov.uk/local-authorities/st-helens","Ofsted Local Authority Webpage")) -> Ofsted Local Authority Webpage | B121: St Helens | C121: North West | D121: 2014-11-25 | E121: Requires improvement | F121: Requires improvement | G121: Requires improvement | H121: Requires improvement | I121: Requires improvement | J121: Requires improvement | K121: Requires improvement | L121: Metropolitan District
A122: =IF(B122="","",HYPERLINK("http://reports.ofsted.gov.uk/local-authorities/"&B122,"Ofsted Local Authority Webpage")) -> Ofsted Local Authority Webpage | B122: Staffordshire | C122: West Midlands | D122: 2014-02-05 | E122: Good | F122: Good | G122: Good | H122: Good | I122: Good | J122: Good | K122: Good | L122: Shire County
A123: =IF(B123="","",HYPERLINK("http://reports.ofsted.gov.uk/local-authorities/"&B123,"Ofsted Local Authority Webpage")) -> Ofsted Local Authority Webpage | B123: Stockport | C123: North West | D123: 2017-07-06 | E123: Good | F123: Good | G123: Good | H123: Outstanding | I123: Good | J123: Good | K123: Requires improvement | L123: Metropolitan District
A124: =IF(B124="","",HYPERLINK("http://reports.ofsted.gov.uk/local-authorities/stockton-tees","Ofsted Local Authority Webpage")) -> Ofsted Local Authority Webpage | B124: Stockton-on-Tees | C124: North East | D124: 2016-06-16 | E124: Good | F124: Good | G124: Requires improvement | H124: Requires improvement | I124: Outstanding | J124: Good | K124: Requires improvement | L124: Unitary
A125: =IF(B125="","",HYPERLINK("http://reports.ofsted.gov.uk/local-authorities/stoke-trent","Ofsted Local Authority Webpage")) -> Ofsted Local Authority Webpage | B125: Stoke-on-Trent | C125: West Midlands | D125: 2015-06-25 | E125: Requires improvement | F125: Requires improvement | G125: Requires improvement | H125: Good | I125: Requires improvement | J125: Requires improvement | K125: Requires improvement | L125: Unitary
A126: =IF(B126="","",HYPERLINK("http://reports.ofsted.gov.uk/local-authorities/"&B126,"Ofsted Local Authority Webpage")) -> Ofsted Local Authority Webpage | B126: Suffolk | C126: East of England | D126: 2015-12-17 | E126: Good | F126: Requires improvement | G126: Good | H126: Good | I126: Requires improvement | J126: Good | K126: Good | L126: Shire County
A127: Ofsted Local Authority Webpage | B127: Sunderland | C127: North East | D127: 2015-06-04 | E127: Inadequate | F127: Inadequate | G127: Inadequate | H127: Inadequate | I127: Inadequate | J127: Inadequate | K127: Inadequate | L127: Metropolitan District
A128: Ofsted Local Authority Webpage | B128: Surrey | C128: South East | D128: 2014-11-12 | E128: Inadequate | F128: Inadequate | G128: Requires improvement | H128: Good | I128: Requires improvement | J128: Inadequate | K128: Requires improvement | L128: Shire County
A129: Ofsted Local Authority Webpage | B129: Sutton | C129: London | D129: 2016-12-08 | E129: Good | F129: Good | G129: Good | H129: Good | I129: Requires improvement | J129: Good | K129: Good | L129: London Borough
A130: Ofsted Local Authority Webpage | B130: Swindon | C130: South West | D130: 2014-04-02 | E130: Requires improvement | F130: Requires improvement | G130: Requires improvement | H130: Good | I130: Requires improvement | J130: Requires improvement | K130: Good | L130: Unitary
A131: Ofsted Local Authority Webpage | B131: Tameside | C131: North West | D131: 2016-10-20 | E131: Inadequate | F131: Inadequate | G131: Requires improvement | H131: Good | I131: Requires improvement | J131: Inadequate | K131: Requires improvement | L131: Metropolitan District
A132: =IF(B132="","",HYPERLINK("http://reports.ofsted.gov.uk/local-authorities/telford-and-wrekin","Ofsted Local Authority Webpage")) -> Ofsted Local Authority Webpage | B132: Telford and Wrekin | C132: West Midlands | D132: 2016-07-07 | E132: Requires improvement | F132: Requires improvement | G132: Requires improvement | H132: Good | I132: Good | J132: Requires improvement | K132: Good | L132: Unitary
A133: =IF(B133="","",HYPERLINK("http://reports.ofsted.gov.uk/local-authorities/"&B133,"Ofsted Local Authority Webpage")) -> Ofsted Local Authority Webpage | B133: Thurrock | C133: East of England | D133: 2016-03-17 | E133: Requires improvement | F133: Requires improvement | G133: Requires improvement | H133: Requires improvement | I133: Requires improvement | J133: Requires improvement | K133: Good | L133: Unitary
A134: =IF(B134="","",HYPERLINK("http://reports.ofsted.gov.uk/local-authorities/"&B134,"Ofsted Local Authority Webpage")) -> Ofsted Local Authority Webpage | B134: Torbay | C134: South West | D134: 2015-11-05 | E134: Inadequate | F134: Inadequate | G134: Requires improvement | H134: Requires improvement | I134: Requires improvement | J134: Inadequate | K134: Inadequate | L134: Unitary
A135: =IF(B135="","",HYPERLINK("http://reports.ofsted.gov.uk/local-authorities/tower-hamlets","Ofsted Local Authority Webpage")) -> Ofsted Local Authority Webpage | B135: Tower Hamlets | C135: London | D135: 2017-02-16 | E135: Inadequate | F135: Inadequate | G135: Requires improvement | H135: Requires improvement | I135: Requires improvement | J135: Inadequate | K135: Inadequate | L135: London Borough
A136: =IF(B136="","",HYPERLINK("http://reports.ofsted.gov.uk/local-authorities/"&B136,"Ofsted Local Authority Webpage")) -> Ofsted Local Authority Webpage | B136: Trafford | C136: North West | D136: 2015-02-18 | E136: Good | F136: Good | G136: Good | H136: Good | I136: Outstanding | J136: Outstanding | K136: Good | L136: Metropolitan District
A137: =IF(B137="","",HYPERLINK("http://reports.ofsted.gov.uk/local-authorities/"&B137,"Ofsted Local Authority Webpage")) -> Ofsted Local Authority Webpage | B137: Wakefield | C137: Yorkshire and The Humber | D137: 2016-07-28 | E137: Requires improvement | F137: Requires improvement | G137: Requires improvement | H137: Good | I137: Good | J137: Requires improvement | K137: Good | L137: Metropolitan District
A138: =IF(B138="","",HYPERLINK("http://reports.ofsted.gov.uk/local-authorities/"&B138,"Ofsted Local Authority Webpage")) -> Ofsted Local Authority Webpage | B138: Walsall | C138: West Midlands | D138: 2017-07-13 | E138: Requires improvement | F138: Requires improvement | G138: Requires improvement | H138: Good | I138: Requires improvement | J138: Requires improvement | K138: Requires improvement | L138: Metropolitan District
A139: =IF(B139="","",HYPERLINK("http://reports.ofsted.gov.uk/local-authorities/waltham-forest","Ofsted Local Authority Webpage")) -> Ofsted Local Authority Webpage | B139: Waltham Forest | C139: London | D139: 2014-11-26 | E139: Requires improvement | F139: Requires improvement | G139: Requires improvement | H139: Requires improvement | I139: Requires improvement | J139: Requires improvement | K139: Requires improvement | L139: London Borough
A140: =IF(B140="","",HYPERLINK("http://reports.ofsted.gov.uk/local-authorities/"&B140,"Ofsted Local Authority Webpage")) -> Ofsted Local Authority Webpage | B140: Wandsworth | C140: London | D140: 2015-12-17 | E140: Inadequate | F140: Inadequate | G140: Requires improvement | H140: Requires improvement | I140: Inadequate | J140: Inadequate | K140: Requires improvement | L140: London Borough
A141: =IF(B141="","",HYPERLINK("http://reports.ofsted.gov.uk/local-authorities/"&B141,"Ofsted Local Authority Webpage")) -> Ofsted Local Authority Webpage | B141: Warrington | C141: North West | D141: 2015-03-20 | E141: Requires improvement | F141: Requires improvement | G141: Good | H141: Good | I141: Good | J141: Requires improvement | K141: Requires improvement | L141: Unitary
A142: =IF(B142="","",HYPERLINK("http://reports.ofsted.gov.uk/local-authorities/"&B142,"Ofsted Local Authority Webpage")) -> Ofsted Local Authority Webpage | B142: Warwickshire | C142: West Midlands | D142: 2017-05-25 | E142: Requires improvement | F142: Requires improvement | G142: Requires improvement | H142: Good | I142: Requires improvement | J142: Requires improvement | K142: Requires improvement | L142: Shire County
A143: =IF(B143="","",HYPERLINK("http://reports.ofsted.gov.uk/local-authorities/west-berkshire","Ofsted Local Authority Webpage")) -> Ofsted Local Authority Webpage | B143: West Berkshire | C143: South East | D143: 2017-05-19 | E143: Good | F143: Requires improvement | G143: Good | H143: Good | I143: Good | J143: Good | K143: Requires improvement | L143: Unitary
A144: =IF(B144="","",HYPERLINK("http://reports.ofsted.gov.uk/local-authorities/west-sussex","Ofsted Local Authority Webpage")) -> Ofsted Local Authority Webpage | B144: West Sussex | C144: South East | D144: 2015-11-19 | E144: Requires improvement | F144: Requires improvement | G144: Requires improvement | H144: Requires improvement | I144: Requires improvement | J144: Requires improvement | K144: Requires improvement | L144: Shire County
A145: =IF(B145="","",HYPERLINK("http://reports.ofsted.gov.uk/local-authorities/"&B145,"Ofsted Local Authority Webpage")) -> Ofsted Local Authority Webpage | B145: Westminster | C145: London | D145: 2016-02-04 | E145: Outstanding | F145: Good | G145: Outstanding | H145: Outstanding | I145: Good | J145: Outstanding | K145: Good | L145: London Borough
A146: =IF(B146="","",HYPERLINK("http://reports.ofsted.gov.uk/local-authorities/"&B146,"Ofsted Local Authority Webpage")) -> Ofsted Local Authority Webpage | B146: Wigan | C146: North West | D146: 2017-02-09 | E146: Good | F146: Requires improvement | G146: Good | H146: Outstanding | I146: Good | J146: Good | K146: Requires improvement | L146: Metropolitan District
A147: =IF(B147="","",HYPERLINK("http://reports.ofsted.gov.uk/local-authorities/"&B147,"Ofsted Local Authority Webpage")) -> Ofsted Local Authority Webpage | B147: Wiltshire | C147: South West | D147: 2015-07-16 | E147: Requires improvement | F147: Requires improvement | G147: Requires improvement | H147: Requires improvement | I147: Requires improvement | J147: Requires improvement | K147: Requires improvement | L147: Unitary
A148: =IF(B148="","",HYPERLINK("http://reports.ofsted.gov.uk/local-authorities/windsor-and-maidenhead","Ofsted Local Authority Webpage")) -> Ofsted Local Authority Webpage | B148: Windsor and Maidenhead | C148: South East | D148: 2015-03-25 | E148: Requires improvement | F148: Requires improvement | G148: Requires improvement | H148: Requires improvement | I148: Requires improvement | J148: Requires improvement | K148: Requires improvement | L148: Unitary
A149: =IF(B149="","",HYPERLINK("http://reports.ofsted.gov.uk/local-authorities/"&B149,"Ofsted Local Authority Webpage")) -> Ofsted Local Authority Webpage | B149: Wirral | C149: North West | D149: 2016-07-28 | E149: Inadequate | F149: Inadequate | G149: Requires improvement | H149: Requires improvement | I149: Inadequate | J149: Inadequate | K149: Inadequate | L149: Metropolitan District
A150: =IF(B150="","",HYPERLINK("http://reports.ofsted.gov.uk/local-authorities/"&B150,"Ofsted Local Authority Webpage")) -> Ofsted Local Authority Webpage | B150: Wokingham | C150: South East | D150: 2015-11-05 | E150: Requires improvement | F150: Requires improvement | G150: Requires improvement | H150: Good | I150: Requires improvement | J150: Requires improvement | K150: Requires improvement | L150: Unitary
A151: =IF(B151="","",HYPERLINK("http://reports.ofsted.gov.uk/local-authorities/"&B151,"Ofsted Local Authority Webpage")) -> Ofsted Local Authority Webpage | B151: Wolverhampton | C151: West Midlands | D151: 2017-02-09 | E151: Good | F151: Requires improvement | G151: Good | H151: Good | I151: Good | J151: Good | K151: Requires improvement | L151: Metropolitan District
A152: =IF(B152="","",HYPERLINK("http://reports.ofsted.gov.uk/local-authorities/"&B152,"Ofsted Local Authority Webpage")) -> Ofsted Local Authority Webpage | B152: Worcestershire | C152: West Midlands | D152: 2016-11-17 | E152: Inadequate | F152: Inadequate | G152: Inadequate | H152: Requires improvement | I152: Inadequate | J152: Inadequate | K152: Requires improvement | L152: Shire County
A153: =IF(B153="","",HYPERLINK("http://reports.ofsted.gov.uk/local-authorities/"&B153,"Ofsted Local Authority Webpage")) -> Ofsted Local Authority Webpage | B153: York | C153: Yorkshire and The Humber | D153: 2016-12-08 | E153: Good | F153: Requires improvement | G153: Good | H153: Good | I153: Good | J153: Good | K153: Outstanding | L153: Unitary

Sheet Provider level at 30 Sep 2017
A1: Provider information | Q1: Latest Full Inspection
A2: Web link | B2: URN | C2: Provision type | D2: Registration status | E2: Name | F2: Address 1 | G2: Address 2 | H2: Town | I2: County | J2: Postcode | K2: Ofsted region | L2: Government Office Region | M2: Local authority | N2: Parliamentary constituency | O2: Sector | P2: Organisation which owns the children's home | Q2: Event type | R2: Inspection date | S2: Publication date | T2: Event number | U2: Overall experiences and progress of children and young people | V2: Outcomes in education and related learning activities | W2: Quality of care | X2: How well children and young people are helped and protected | Y2: The effectiveness of leaders and managers
A3: =HYPERLINK("http://reports.ofsted.gov.uk/inspection-reports/find-inspection-report/provider/CARE/1027158","Ofsted Social Care Provider Webpage") -> Ofsted Social Care Provider Webpage | B3: 1027158 | C3: Children's home | D3: Active | E3: REDACTED | F3: REDACTED | G3: REDACTED | H3: REDACTED | I3: REDACTED | J3: REDACTED | K3: East of England | L3: East of England | M3: Norfolk | N3: South West Norfolk | O3: Private | P3: Unique Care Homes Support Limited | Q3: Full inspection | R3: 2017-05-18 | S3: 2017-06-08 | T3: 10028797 | U3: Requires improvement to be good | X3: Requires improvement to be good | Y3: Requires improvement to be good
A4: =HYPERLINK("http://reports.ofsted.gov.uk/inspection-reports/find-inspection-report/provider/CARE/1027164","Ofsted Social Care Provider Webpage") -> Ofsted Social Care Provider Webpage | B4: 1027164 | C4: Children's home | D4: Active | E4: REDACTED | F4: REDACTED | G4: REDACTED | H4: REDACTED | I4: REDACTED | J4: REDACTED | K4: North West | L4: North West | M4: Cheshire West and Chester | N4: Eddisbury | O4: Private | P4: Care 4 Children Residential Services Ltd | Q4: Full inspection | R4: 2017-08-31 | S4: 2017-09-27 | T4: 10028790 | U4: Outstanding | X4: Outstanding | Y4: Outstanding
A5: =HYPERLINK("http://reports.ofsted.gov.uk/inspection-reports/find-inspection-report/provider/CARE/1155757","Ofsted Social Care Provider Webpage") -> Ofsted Social Care Provider Webpage | B5: 1155757 | C5: Children's home | D5: Active | E5: REDACTED | F5: REDACTED | G5: REDACTED | H5: REDACTED | I5: REDACTED | J5: REDACTED | K5: North East, Yorkshire and the Humber | L5: North East | M5: Northumberland | N5: Wansbeck | O5: Local Authority | P5: Northumberland County Council | Q5: Full inspection | R5: 2017-05-17 | S5: 2017-06-15 | T5: 10028767 | U5: Good | X5: Good | Y5: Outstanding
A6: =HYPERLINK("http://reports.ofsted.gov.uk/inspection-reports/find-inspection-report/provider/CARE/1155761","Ofsted Social Care Provider Webpage") -> Ofsted Social Care Provider Webpage | B6: 1155761 | C6: Children's home | D6: Active | E6: REDACTED | F6: REDACTED | G6: REDACTED | H6: REDACTED | I6: REDACTED | J6: REDACTED | K6: South West | L6: South West | M6: Gloucestershire | N6: Gloucester | O6: Private | P6: Carbrey Care Ltd | Q6: Full inspection | R6: 2017-08-02 | S6: 2017-08-22 | T6: 10028813 | U6: Good | X6: Good | Y6: Good
A7: =HYPERLINK("http://reports.ofsted.gov.uk/inspection-reports/find-inspection-report/provider/CARE/1155768","Ofsted Social Care Provider Webpage") -> Ofsted Social Care Provider Webpage | B7: 1155768 | C7: Children's home | D7: Active | E7: REDACTED | F7: REDACTED | G7: REDACTED | H7: REDACTED | I7: REDACTED | J7: REDACTED | K7: West Midlands | L7: West Midlands | M7: Worcestershire | N7: Worcester | O7: Local Authority | P7: Worcestershire County Council | Q7: Full inspection | R7: 2016-09-07 | S7: 2016-10-20 | T7: 10015163 | U7: Outstanding | X7: Outstanding | Y7: Outstanding
A8: =HYPERLINK("http://reports.ofsted.gov.uk/inspection-reports/find-inspection-report/provider/CARE/1155775","Ofsted Social Care Provider Webpage") -> Ofsted Social Care Provider Webpage | B8: 1155775 | C8: Children's home | D8: Active | E8: REDACTED | F8: REDACTED | G8: REDACTED | H8: REDACTED | I8: REDACTED | J8: REDACTED | K8: North West | L8: North West | M8: Manchester | N8: Manchester, Gorton | O8: Private | P8: Cambian Childcare Ltd | Q8: Full inspection | R8: 2017-06-22 | S8: 2017-07-12 | T8: 10028804 | U8: Good | X8: Good | Y8: Good
A9: =HYPERLINK("http://reports.ofsted.gov.uk/inspection-reports/find-inspection-report/provider/CARE/1155780","Ofsted Social Care Provider Webpage") -> Ofsted Social Care Provider Webpage | B9: 1155780 | C9: Children's home | D9: Active | E9: REDACTED | F9: REDACTED | G9: REDACTED | H9: REDACTED | I9: REDACTED | J9: REDACTED | K9: West Midlands | L9: West Midlands | M9: Shropshire | N9: North Shropshire | O9: Private | P9: Cambian Childcare Ltd | Q9: Full inspection | R9: 2016-08-02 | S9: 2016-09-15 | T9: 10019003 | U9: Good | X9: Good | Y9: Good
A10: =HYPERLINK("http://reports.ofsted.gov.uk/inspection-reports/find-inspection-report/provider/CARE/1156098","Ofsted Social Care Provider Webpage") -> Ofsted Social Care Provider Webpage | B10: 1156098 | C10: Children's home | D10: Active | E10: REDACTED | F10: REDACTED | G10: REDACTED | H10: REDACTED | I10: REDACTED | J10: REDACTED | K10: North West | L10: North West | M10: Bolton | N10: Bolton South East | O10: Private | P10: Cambian Childcare Ltd | Q10: Full inspection | R10: 2017-07-25 | S10: 2017-08-21 | T10: 10028854 | U10: Good | X10: Good | Y10: Good
A11: =HYPERLINK("http://reports.ofsted.gov.uk/inspection-reports/find-inspection-report/provider/CARE/1156103","Ofsted Social Care Provider Webpage") -> Ofsted Social Care Provider Webpage | B11: 1156103 | C11: Children's home | D11: Active | E11: REDACTED | F11: REDACTED | G11: REDACTED | H11: REDACTED | I11: REDACTED | J11: REDACTED | K11: West Midlands | L11: West Midlands | M11: Shropshire | N11: Shrewsbury and Atcham | O11: Private | P11: Cambian Childcare Ltd | Q11: Full inspection | R11: 2016-08-11 | S11: 2016-09-14 | T11: 10018821 | U11: Good | X11: Good | Y11: Good
A12: =HYPERLINK("http://reports.ofsted.gov.uk/inspection-reports/find-inspection-report/provider/CARE/1159258","Ofsted Social Care Provider Webpage") -> Ofsted Social Care Provider Webpage | B12: 1159258 | C12: Children's home | D12: Active | E12: REDACTED | F12: REDACTED | G12: REDACTED | H12: REDACTED | I12: REDACTED | J12: REDACTED | K12: North West | L12: North West | M12: Manchester | N12: Blackley and Broughton | O12: Private | P12: Cambian Childcare Ltd | Q12: Full inspection | R12: 2017-05-05 | S12: 2017-05-25 | T12: 10028821 | U12: Good | X12: Good | Y12: Good
A13: =HYPERLINK("http://reports.ofsted.gov.uk/inspection-reports/find-inspection-report/provider/CARE/1159272","Ofsted Social Care Provider Webpage") -> Ofsted Social Care Provider Webpage | B13: 1159272 | C13: Children's home | D13: Active | E13: REDACTED | F13: REDACTED | G13: REDACTED | H13: REDACTED | I13: REDACTED | J13: REDACTED | K13: North East, Yorkshire and the Humber | L13: Yorkshire and The Humber | M13: North Yorkshire | N13: Selby and Ainsty | O13: Private | P13: Cambian Childcare Ltd | Q13: Full inspection | R13: 2017-08-01 | S13: 2017-08-22 | T13: 10028811 | U13: Good | X13: Good | Y13: Good
A14: =HYPERLINK("http://reports.ofsted.gov.uk/inspection-reports/find-inspection-report/provider/CARE/1159385","Ofsted Social Care Provider Webpage") -> Ofsted Social Care Provider Webpage | B14: 1159385 | C14: Children's home | D14: Active | E14: REDACTED | F14: REDACTED | G14: REDACTED | H14: REDACTED | I14: REDACTED | J14: REDACTED | K14: West Midlands | L14: West Midlands | M14: Shropshire | N14: North Shropshire | O14: Private | P14: Cambian Childcare Ltd | Q14: Full inspection | R14: 2017-07-28 | S14: 2017-08-18 | T14: 10028934 | U14: Good | X14: Good | Y14: Good
A15: =HYPERLINK("http://reports.ofsted.gov.uk/inspection-reports/find-inspection-report/provider/CARE/1159397","Ofsted Social Care Provider Webpage") -> Ofsted Social Care Provider Webpage | B15: 1159397 | C15: Children's home | D15: Active | E15: REDACTED | F15: REDACTED | G15: REDACTED | H15: REDACTED | I15: REDACTED | J15: REDACTED | K15: North East, Yorkshire and the Humber | L15: Yorkshire and The Humber | M15: North Yorkshire | N15: Selby and Ainsty | O15: Private | P15: Cambian Childcare Ltd | Q15: Full inspection | R15: 2017-04-25 | S15: 2017-06-19 | T15: 10028892 | U15: Requires improvement to be good | X15: Good | Y15: Requires improvement to be good
A16: =HYPERLINK("http://reports.ofsted.gov.uk/inspection-reports/find-inspection-report/provider/CARE/1159682","Ofsted Social Care Provider Webpage") -> Ofsted Social Care Provider Webpage | B16: 1159682 | C16: Children's home | D16: Active | E16: REDACTED | F16: REDACTED | G16: REDACTED | H16: REDACTED | I16: REDACTED | J16: REDACTED | K16: London | L16: London | M16: Islington | N16: Islington South and Finsbury | O16: Voluntary | P16: St Christopher's Fellowship | Q16: Full inspection | R16: 2017-05-10 | S16: 2017-05-30 | T16: 10028802 | U16: Good | X16: Good | Y16: Good
A17: =HYPERLINK("http://reports.ofsted.gov.uk/inspection-reports/find-inspection-report/provider/CARE/1159755","Ofsted Social Care Provider Webpage") -> Ofsted Social Care Provider Webpage | B17: 1159755 | C17: Children's home | D17: Active | E17: REDACTED | F17: REDACTED | G17: REDACTED | H17: REDACTED | I17: REDACTED | J17: REDACTED | K17: London | L17: London | M17: Ealing | N17: Ealing Central and Acton | O17: Voluntary | P17: St Christopher's Fellowship | Q17: Full inspection | R17: 2017-07-12 | S17: 2017-08-08 | T17: 10028810 | U17: Good | X17: Good | Y17: Good
A18: =HYPERLINK("http://reports.ofsted.gov.uk/inspection-reports/find-inspection-report/provider/CARE/1159763","Ofsted Social Care Provider Webpage") -> Ofsted Social Care Provider Webpage | B18: 1159763 | C18: Children's home | D18: Active | E18: REDACTED | F18: REDACTED | G18: REDACTED | H18: REDACTED | I18: REDACTED | J18: REDACTED | K18: North East, Yorkshire and the Humber | L18: North East | M18: Darlington | N18: Sedgefield | O18: Private | P18: Witherslack Group Ltd | Q18: Full inspection | R18: 2016-04-28 | S18: 2016-05-31 | T18: 10015172 | U18: Outstanding | X18: Outstanding | Y18: Good
A19: =HYPERLINK("http://reports.ofsted.gov.uk/inspection-reports/find-inspection-report/provider/CARE/1159868","Ofsted Social Care Provider Webpage") -> Ofsted Social Care Provider Webpage | B19: 1159868 | C19: Children's home | D19: Active | E19: REDACTED | F19: REDACTED | G19: REDACTED | H19: REDACTED | I19: REDACTED | J19: REDACTED | K19: South West | L19: South West | M19: Dorset | N19: West Dorset | O19: Private | P19: Cambian Childcare Ltd | Q19: Full inspection | R19: 2016-04-27 | S19: 2016-05-17 | T19: 10018458 | U19: Requires improvement to be good | X19: Requires improvement to be good | Y19: Good
A20: =HYPERLINK("http://reports.ofsted.gov.uk/inspection-reports/find-inspection-report/provider/CARE/1159884","Ofsted Social Care Provider Webpage") -> Ofsted Social Care Provider Webpage | B20: 1159884 | C20: Children's home | D20: Active | E20: REDACTED | F20: REDACTED | G20: REDACTED | H20: REDACTED | I20: REDACTED | J20: REDACTED | K20: North East, Yorkshire and the Humber | L20: North East | M20: Stockton-on-Tees | N20: Stockton North | O20: Private | P20: Spark Of Genius North East Llp | Q20: Full inspection | R20: 2017-06-07 | S20: 2017-07-03 | T20: 10028883 | U20: Good | X20: Good | Y20: Good
A21: =HYPERLINK("http://reports.ofsted.gov.uk/inspection-reports/find-inspection-report/provider/CARE/1159903","Ofsted Social Care Provider Webpage") -> Ofsted Social Care Provider Webpage | B21: 1159903 | C21: Children's home | D21: Active | E21: REDACTED | F21: REDACTED | G21: REDACTED | H21: REDACTED | I21: REDACTED | J21: REDACTED | K21: North West | L21: North West | M21: Salford | N21: Salford and Eccles | O21: Private | P21: Holistic Approach Ltd | Q21: Full inspection | R21: 2016-10-18 | S21: 2016-12-20 | T21: 10015174 | U21: Good | X21: Outstanding | Y21: Outstanding
A22: =HYPERLINK("http://reports.ofsted.gov.uk/inspection-reports/find-inspection-report/provider/CARE/1164089","Ofsted Social Care Provider Webpage") -> Ofsted Social Care Provider Webpage | B22: 1164089 | C22: Children's home | D22: Active | E22: REDACTED | F22: REDACTED | G22: REDACTED | H22: REDACTED | I22: REDACTED | J22: REDACTED | K22: East of England | L22: East of England | M22: Hertfordshire | N22: St Albans | O22: Private | P22: Broadwood Residential Limited | Q22: Full inspection | R22: 2016-06-16 | S22: 2016-07-04 | T22: 10015175 | U22: Good | X22: Good | Y22: Good
A23: =HYPERLINK("http://reports.ofsted.gov.uk/inspection-reports/find-inspection-report/provider/CARE/1164379","Ofsted Social Care Provider Webpage") -> Ofsted Social Care Provider Webpage | B23: 1164379 | C23: Children's home | D23: Active | E23: REDACTED | F23: REDACTED | G23: REDACTED | H23: REDACTED | I23: REDACTED | J23: REDACTED | K23: West Midlands | L23: West Midlands | M23: Sandwell | N23: West Bromwich East | O23: Private | P23: Icare Children's Services Ltd | Q23: Full inspection | R23: 2017-05-24 | S23: 2017-06-13 | T23: 10028823 | U23: Good | X23: Good | Y23: Good
A24: =HYPERLINK("http://reports.ofsted.gov.uk/inspection-reports/find-inspection-report/provider/CARE/1179497","Ofsted Social Care Provider Webpage") -> Ofsted Social Care Provider Webpage | B24: 1179497 | C24: Children's home | D24: Active | E24: REDACTED | F24: REDACTED | G24: REDACTED | H24: REDACTED | I24: REDACTED | J24: REDACTED | K24: North West | L24: North West | M24: Blackburn with Darwen | N24: Blackburn | O24: Private | P24: Paramount Care And Safety Ltd | Q24: Full inspection | R24: 2017-04-27 | S24: 2017-05-25 | T24: 10028800 | U24: Good | X24: Good | Y24: Good
A25: =HYPERLINK("http://reports.ofsted.gov.uk/inspection-reports/find-inspection-report/provider/CARE/1183069","Ofsted Social Care Provider Webpage") -> Ofsted Social Care Provider Webpage | B25: 1183069 | C25: Children's home | D25: Active | E25: REDACTED | F25: REDACTED | G25: REDACTED | H25: REDACTED | I25: REDACTED | J25: REDACTED | K25: East of England | L25: East of England | M25: Suffolk | N25: Ipswich | O25: Private | P25: Priory Education & Children's Services | Q25: Full inspection | R25: 2016-04-14 | S25: 2016-05-12 | T25: 10015179 | U25: Good | X25: Good | Y25: Good
A26: =HYPERLINK("http://reports.ofsted.gov.uk/inspection-reports/find-inspection-report/provider/CARE/1183136","Ofsted Social Care Provider Webpage") -> Ofsted Social Care Provider Webpage | B26: 1183136 | C26: Children's home | D26: Active | E26: REDACTED | F26: REDACTED | G26: REDACTED | H26: REDACTED | I26: REDACTED | J26: REDACTED | K26: East Midlands | L26: East Midlands | M26: Nottingham | N26: Nottingham North | O26: Voluntary | P26: Nottinghamshire Ymca | Q26: Full inspection | R26: 2017-01-24 | S26: 2017-02-10 | T26: 10015181 | U26: Good | X26: Good | Y26: Good
A27: =HYPERLINK("http://reports.ofsted.gov.uk/inspection-reports/find-inspection-report/provider/CARE/1183173","Ofsted Social Care Provider Webpage") -> Ofsted Social Care Provider Webpage | B27: 1183173 | C27: Children's home | D27: Active | E27: REDACTED | F27: REDACTED | G27: REDACTED | H27: REDACTED | I27: REDACTED | J27: REDACTED | K27: East Midlands | L27: East Midlands | M27: Northamptonshire | N27: Wellingborough | O27: Private | P27: Tlc Youth Care Limited | Q27: Full inspection | R27: 2017-05-03 | S27: 2017-05-22 | T27: 10028829 | U27: Good | X27: Good | Y27: Good
A28: =HYPERLINK("http://reports.ofsted.gov.uk/inspection-reports/find-inspection-report/provider/CARE/1183197","Ofsted Social Care Provider Webpage") -> Ofsted Social Care Provider Webpage | B28: 1183197 | C28: Children's home | D28: Active | E28: REDACTED | F28: REDACTED | G28: REDACTED | H28: REDACTED | I28: REDACTED | J28: REDACTED | K28: North East, Yorkshire and the Humber | L28: Yorkshire and The Humber | M28: Wakefield | N28: Hemsworth | O28: Private | P28: Keswick Care Limited | Q28: Full inspection | R28: 2017-06-07 | S28: 2017-07-19 | T28: 10028822 | U28: Outstanding | X28: Outstanding | Y28: Outstanding
A29: =HYPERLINK("http://reports.ofsted.gov.uk/inspection-reports/find-inspection-report/provider/CARE/1183479","Ofsted Social Care Provider Webpage") -> Ofsted Social Care Provider Webpage | B29: 1183479 | C29: Children's home | D29: Active | E29: REDACTED | F29: REDACTED | G29: REDACTED | H29: REDACTED | I29: REDACTED | J29: REDACTED | K29: South East | L29: South East | M29: Slough | N29: Slough | O29: Voluntary | P29: Slough Children's Services Trust Limited (09487106) | Q29: Full inspection | R29: 2017-08-23 | S29: 2017-09-19 | T29: 10028807 | U29: Good | X29: Outstanding | Y29: Good
A30: =HYPERLINK("http://reports.ofsted.gov.uk/inspection-reports/find-inspection-report/provider/CARE/1183494","Ofsted Social Care Provider Webpage") -> Ofsted Social Care Provider Webpage | B30: 1183494 | C30: Children's home | D30: Active | E30: REDACTED | F30: REDACTED | G30: REDACTED | H30: REDACTED | I30: REDACTED | J30: REDACTED | K30: South East | L30: South East | M30: Slough | N30: Slough | O30: Voluntary | P30: Slough Children's Services Trust Limited (09487106) | Q30: Full inspection | R30: 2017-05-17 | S30: 2017-06-01 | T30: 10028808 | U30: Requires improvement to be good | X30: Good | Y30: Good
A31: =HYPERLINK("http://reports.ofsted.gov.uk/inspection-reports/find-inspection-report/provider/CARE/1183574","Ofsted Social Care Provider Webpage") -> Ofsted Social Care Provider Webpage | B31: 1183574 | C31: Children's home | D31: Active | E31: REDACTED | F31: REDACTED | G31: REDACTED | H31: REDACTED | I31: REDACTED | J31: REDACTED | K31: North West | L31: North West | M31: Cheshire West and Chester | N31: City of Chester | O31: Local Authority | P31: Cheshire West And Chester Council | Q31: Full inspection | R31: 2017-06-21 | S31: 2017-07-19 | T31: 10028858 | U31: Outstanding | X31: Outstanding | Y31: Outstanding
A32: =HYPERLINK("http://reports.ofsted.gov.uk/inspection-reports/find-inspection-report/provider/CARE/1183605","Ofsted Social Care Provider Webpage") -> Ofsted Social Care Provider Webpage | B32: 1183605 | C32: Children's home | D32: Active | E32: REDACTED | F32: REDACTED | G32: REDACTED | H32: REDACTED | I32: REDACTED | J32: REDACTED | K32: North West | L32: North West | M32: Lancashire | N32: Lancaster and Fleetwood | O32: Private | P32: Lonsdale Care Ltd | Q32: Full inspection | R32: 2017-06-02 | S32: 2017-06-27 | T32: 10028881 | U32: Good | X32: Good | Y32: Good
A33: =HYPERLINK("http://reports.ofsted.gov.uk/inspection-reports/find-inspection-report/provider/CARE/1183618","Ofsted Social Care Provider Webpage") -> Ofsted Social Care Provider Webpage | B33: 1183618 | C33: Children's home | D33: Active | E33: REDACTED | F33: REDACTED | G33: REDACTED | H33: REDACTED | I33: REDACTED | J33: REDACTED | K33: South West | L33: South West | M33: Cornwall | N33: Camborne and Redruth | O33: Voluntary | P33: Devon And Cornwall Autistic Community Trust (t/a Spectrum) | Q33: Full inspection | R33: 2016-04-13 | S33: 2016-05-03 | T33: 10015186 | U33: Good | X33: Requires improvement to be good | Y33: Requires improvement to be good
A34: =HYPERLINK("http://reports.ofsted.gov.uk/inspection-reports/find-inspection-report/provider/CARE/1183621","Ofsted Social Care Provider Webpage") -> Ofsted Social Care Provider Webpage | B34: 1183621 | C34: Children's home | D34: Active | E34: REDACTED | F34: REDACTED | G34: REDACTED | H34: REDACTED | I34: REDACTED | J34: REDACTED | K34: East of England | L34: East of England | M34: Essex | N34: Harlow | O34: Private | P34: A & T Home Limited | Q34: Full inspection | R34: 2017-04-27 | S34: 2017-05-22 | T34: 10028863 | U34: Good | X34: Good | Y34: Requires improvement to be good
A35: =HYPERLINK("http://reports.ofsted.gov.uk/inspection-reports/find-inspection-report/provider/CARE/1183799","Ofsted Social Care Provider Webpage") -> Ofsted Social Care Provider Webpage | B35: 1183799 | C35: Children's home | D35: Active | E35: REDACTED | F35: REDACTED | G35: REDACTED | H35: REDACTED | I35: REDACTED | J35: REDACTED | K35: South East | L35: South East | M35: Slough | N35: Slough | O35: Private | P35: Quality Care Homes (uk) Limited | Q35: Full inspection | R35: 2016-04-27 | S35: 2016-05-16 | T35: 10015187 | U35: Good | X35: Good | Y35: Good
A36: =HYPERLINK("http://reports.ofsted.gov.uk/inspection-reports/find-inspection-report/provider/CARE/1183826","Ofsted Social Care Provider Webpage") -> Ofsted Social Care Provider Webpage | B36: 1183826 | C36: Children's home | D36: Active | E36: REDACTED | F36: REDACTED | G36: REDACTED | H36: REDACTED | I36: REDACTED | J36: REDACTED | K36: North East, Yorkshire and the Humber | L36: North East | M36: Sunderland | N36: Sunderland Central | O36: Private | P36: Sunderland Care And Support Limited | Q36: Full inspection | R36: 2016-09-26 | S36: 2016-10-28 | T36: 10018384 | U36: Good | X36: Good | Y36: Requires improvement to be good
A37: =HYPERLINK("http://reports.ofsted.gov.uk/inspection-reports/find-inspection-report/provider/CARE/1183911","Ofsted Social Care Provider Webpage") -> Ofsted Social Care Provider Webpage | B37: 1183911 | C37: Residential special school (registered as a children's home) | D37: Active | E37: REDACTED | F37: REDACTED | G37: REDACTED | H37: REDACTED | I37: REDACTED | J37: REDACTED | K37: North East, Yorkshire and the Humber | L37: Yorkshire and The Humber | M37: Calderdale | N37: Halifax | O37: Private | P37: Young Foundations Limited | Q37: Full inspection | R37: 2017-08-23 | S37: 2017-09-12 | T37: 10028828 | U37: Good | X37: Good | Y37: Good
A38: =HYPERLINK("http://reports.ofsted.gov.uk/inspection-reports/find-inspection-report/provider/CARE/1183936","Ofsted Social Care Provider Webpage") -> Ofsted Social Care Provider Webpage | B38: 1183936 | C38: Children's home | D38: Active | E38: REDACTED | F38: REDACTED | G38: REDACTED | H38: REDACTED | I38: REDACTED | J38: REDACTED | K38: London | L38: London | M38: Bromley | N38: Bromley and Chislehurst | O38: Private | P38: Acorn Homes (uk) Ltd | Q38: Full inspection | R38: 2017-05-25 | S38: 2017-06-21 | T38: 10028795 | U38: Good | X38: Good | Y38: Good
A39: =HYPERLINK("http://reports.ofsted.gov.uk/inspection-reports/find-inspection-report/provider/CARE/1183937","Ofsted Social Care Provider Webpage") -> Ofsted Social Care Provider Webpage | B39: 1183937 | C39: Children's home | D39: Active | E39: REDACTED | F39: REDACTED | G39: REDACTED | H39: REDACTED | I39: REDACTED | J39: REDACTED | K39: East Midlands | L39: East Midlands | M39: Northamptonshire | N39: Kettering | O39: Private | P39: Owned by an individual | Q39: Full inspection | R39: 2017-08-02 | S39: 2017-08-25 | T39: 10028826 | U39: Good | X39: Good | Y39: Requires improvement to be good
A40: =HYPERLINK("http://reports.ofsted.gov.uk/inspection-reports/find-inspection-report/provider/CARE/1184093","Ofsted Social Care Provider Webpage") -> Ofsted Social Care Provider Webpage | B40: 1184093 | C40: Children's home | D40: Active | E40: REDACTED | F40: REDACTED | G40: REDACTED | H40: REDACTED | I40: REDACTED | J40: REDACTED | K40: North West | L40: North West | M40: Blackpool | N40: Blackpool North and Cleveleys | O40: Private | P40: Sandcastle Care Ltd | Q40: Full inspection | R40: 2016-07-05 | S40: 2016-08-24 | T40: 10018471 | U40: Good | X40: Outstanding | Y40: Good
A41: =HYPERLINK("http://reports.ofsted.gov.uk/inspection-reports/find-inspection-report/provider/CARE/1185488","Ofsted Social Care Provider Webpage") -> Ofsted Social Care Provider Webpage | B41: 1185488 | C41: Children's home | D41: Active | E41: REDACTED | F41: REDACTED | G41: REDACTED | H41: REDACTED | I41: REDACTED | J41: REDACTED | K41: South East | L41: South East | M41: Reading | N41: Reading East | O41: Private | P41: Kennet Care Limited | Q41: Full inspection | R41: 2017-08-09 | S41: 2017-08-30 | T41: 10028839 | U41: Good | X41: Good | Y41: Good
A42: =HYPERLINK("http://reports.ofsted.gov.uk/inspection-reports/find-inspection-report/provider/CARE/1185765","Ofsted Social Care Provider Webpage") -> Ofsted Social Care Provider Webpage | B42: 1185765 | C42: Children's home | D42: Active | E42: REDACTED | F42: REDACTED | G42: REDACTED | H42: REDACTED | I42: REDACTED | J42: REDACTED | K42: West Midlands | L42: West Midlands | M42: Staffordshire | N42: Cannock Chase | O42: Private | P42: Horizon Care And Education Group Limited | Q42: Full inspection | R42: 2016-05-18 | S42: 2016-06-10 | T42: 10015192 | U42: Good | X42: Good | Y42: Good
A43: =HYPERLINK("http://reports.ofsted.gov.uk/inspection-reports/find-inspection-report/provider/CARE/1185768","Ofsted Social Care Provider Webpage") -> Ofsted Social Care Provider Webpage | B43: 1185768 | C43: Children's home | D43: Active | E43: REDACTED | F43: REDACTED | G43: REDACTED | H43: REDACTED | I43: REDACTED | J43: REDACTED | K43: South West | L43: South West | M43: Somerset | N43: Bridgwater and West Somerset | O43: Private | P43: South West Mental Health Ltd | Q43: Full inspection | R43: 2017-07-20 | S43: 2017-08-14 | T43: 10028825 | U43: Good | X43: Good | Y43: Requires improvement to be good
A44: =HYPERLINK("http://reports.ofsted.gov.uk/inspection-reports/find-inspection-report/provider/CARE/1185828","Ofsted Social Care Provider Webpage") -> Ofsted Social Care Provider Webpage | B44: 1185828 | C44: Children's home | D44: Active | E44: REDACTED | F44: REDACTED | G44: REDACTED | H44: REDACTED | I44: REDACTED | J44: REDACTED | K44: North West | L44: North West | M44: Wigan | N44: Wigan | O44: Private | P44: Next Stage 4 Life | Q44: Full inspection | R44: 2017-07-11 | S44: 2017-08-03 | T44: 10028873 | U44: Good | X44: Good | Y44: Outstanding
A45: =HYPERLINK("http://reports.ofsted.gov.uk/inspection-reports/find-inspection-report/provider/CARE/1205501","Ofsted Social Care Provider Webpage") -> Ofsted Social Care Provider Webpage | B45: 1205501 | C45: Children's home | D45: Active | E45: REDACTED | F45: REDACTED | G45: REDACTED | H45: REDACTED | I45: REDACTED | J45: REDACTED | K45: East Midlands | L45: East Midlands | M45: Nottinghamshire | N45: Newark | O45: Private | P45: Castle Homes Care Ltd | Q45: Full inspection | R45: 2017-04-26 | S45: 2017-05-15 | T45: 10028848 | U45: Requires improvement to be good | X45: Good | Y45: Inadequate
A46: =HYPERLINK("http://reports.ofsted.gov.uk/inspection-reports/find-inspection-report/provider/CARE/1211772","Ofsted Social Care Provider Webpage") -> Ofsted Social Care Provider Webpage | B46: 1211772 | C46: Children's home | D46: Active | E46: REDACTED | F46: REDACTED | G46: REDACTED | H46: REDACTED | I46: REDACTED | J46: REDACTED | K46: North East, Yorkshire and the Humber | L46: Yorkshire and The Humber | M46: North Yorkshire | N46: Richmond (Yorks) | O46: Private | P46: Priory Education & Children's Services | Q46: Full inspection | R46: 2017-08-09 | S46: 2017-09-18 | T46: 10028847 | U46: Good | X46: Good | Y46: Good
A47: =HYPERLINK("http://reports.ofsted.gov.uk/inspection-reports/find-inspection-report/provider/CARE/1212094","Ofsted Social Care Provider Webpage") -> Ofsted Social Care Provider Webpage | B47: 1212094 | C47: Children's home | D47: Active | E47: REDACTED | F47: REDACTED | G47: REDACTED | H47: REDACTED | I47: REDACTED | J47: REDACTED | K47: North West | L47: North West | M47: Salford | N47: Worsley and Eccles South | O47: Private | P47: Hexagon Care Services Limited | Q47: Full inspection | R47: 2017-05-03 | S47: 2017-06-01 | T47: 10028874 | U47: Good | X47: Good | Y47: Good
A48: =HYPERLINK("http://reports.ofsted.gov.uk/inspection-reports/find-inspection-report/provider/CARE/1212117","Ofsted Social Care Provider Webpage") -> Ofsted Social Care Provider Webpage | B48: 1212117 | C48: Children's home | D48: Active | E48: REDACTED | F48: REDACTED | G48: REDACTED | H48: REDACTED | I48: REDACTED | J48: REDACTED | K48: East Midlands | L48: East Midlands | M48: Nottinghamshire | N48: Gedling | O48: Private | P48: Pathway Care Solutions Ltd 04004053 | Q48: Full inspection | R48: 2017-08-04 | S48: 2017-08-29 | T48: 10028840 | U48: Good | X48: Good | Y48: Good
A49: =HYPERLINK("http://reports.ofsted.gov.uk/inspection-reports/find-inspection-report/provider/CARE/1212704","Ofsted Social Care Provider Webpage") -> Ofsted Social Care Provider Webpage | B49: 1212704 | C49: Children's home | D49: Active | E49: REDACTED | F49: REDACTED | G49: REDACTED | H49: REDACTED | I49: REDACTED | J49: REDACTED | K49: North East, Yorkshire and the Humber | L49: Yorkshire and The Humber | M49: North Yorkshire | N49: Skipton and Ripon | O49: Private | P49: Hexagon Care Services Limited | Q49: Full inspection | R49: 2017-02-23 | S49: 2017-03-24 | T49: 10025932 | U49: Outstanding | X49: Good | Y49: Good
A50: =HYPERLINK("http://reports.ofsted.gov.uk/inspection-reports/find-inspection-report/provider/CARE/1212708","Ofsted Social Care Provider Webpage") -> Ofsted Social Care Provider Webpage | B50: 1212708 | C50: Children's home | D50: Active | E50: REDACTED | F50: REDACTED | G50: REDACTED | H50: REDACTED | I50: REDACTED | J50: REDACTED | K50: East Midlands | L50: East Midlands | M50: Nottingham | N50: Nottingham North | O50: Private | P50: Pathway Care Solutions Ltd 04004053 | Q50: Full inspection | R50: 2017-05-17 | S50: 2017-06-06 | T50: 10028844 | U50: Requires improvement to be good | X50: Requires improvement to be good | Y50: Requires improvement to be good
A51: =HYPERLINK("http://reports.ofsted.gov.uk/inspection-reports/find-inspection-report/provider/CARE/1213416","Ofsted Social Care Provider Webpage") -> Ofsted Social Care Provider Webpage | B51: 1213416 | C51: Children's home | D51: Active | E51: REDACTED | F51: REDACTED | G51: REDACTED | H51: REDACTED | I51: REDACTED | J51: REDACTED | K51: West Midlands | L51: West Midlands | M51: Shropshire | N51: Ludlow | O51: Private | P51: Reflexion Care Group Limited | Q51: Full inspection | R51: 2016-07-28 | S51: 2016-09-08 | T51: 10015196 | U51: Good | X51: Good | Y51: Outstanding
A52: =HYPERLINK("http://reports.ofsted.gov.uk/inspection-reports/find-inspection-report/provider/CARE/1213828","Ofsted Social Care Provider Webpage") -> Ofsted Social Care Provider Webpage | B52: 1213828 | C52: Children's home | D52: Active | E52: REDACTED | F52: REDACTED | G52: REDACTED | H52: REDACTED | I52: REDACTED | J52: REDACTED | K52: North West | L52: North West | M52: St Helens | N52: St Helens North | O52: Private | P52: Inspire Childrens Services Limited | Q52: Full inspection | R52: 2016-05-06 | S52: 2016-05-24 | T52: 10018227 | U52: Good | X52: Good | Y52: Good
A53: =HYPERLINK("http://reports.ofsted.gov.uk/inspection-reports/find-inspection-report/provider/CARE/1214266","Ofsted Social Care Provider Webpage") -> Ofsted Social Care Provider Webpage | B53: 1214266 | C53: Children's home | D53: Active | E53: REDACTED | F53: REDACTED | G53: REDACTED | H53: REDACTED | I53: REDACTED | J53: REDACTED | K53: East Midlands | L53: East Midlands | M53: Leicestershire | N53: Harborough | O53: Private | P53: Platform Childcare Ltd | Q53: Full inspection | R53: 2016-05-11 | S53: 2016-05-31 | T53: 10015197 | U53: Good | X53: Good | Y53: Good
A54: =HYPERLINK("http://reports.ofsted.gov.uk/inspection-reports/find-inspection-report/provider/CARE/1214270","Ofsted Social Care Provider Webpage") -> Ofsted Social Care Provider Webpage | B54: 1214270 | C54: Children's home | D54: Active | E54: REDACTED | F54: REDACTED | G54: REDACTED | H54: REDACTED | I54: REDACTED | J54: REDACTED | K54: North West | L54: North West | M54: Cheshire East | N54: Macclesfield | O54: Private | P54: Esland North Limited | Q54: Full inspection | R54: 2016-04-28 | S54: 2016-05-16 | T54: 10018255 | U54: Good | X54: Good | Y54: Good
A55: =HYPERLINK("http://reports.ofsted.gov.uk/inspection-reports/find-inspection-report/provider/CARE/1214396","Ofsted Social Care Provider Webpage") -> Ofsted Social Care Provider Webpage | B55: 1214396 | C55: Children's home | D55: Active | E55: REDACTED | F55: REDACTED | G55: REDACTED | H55: REDACTED | I55: REDACTED | J55: REDACTED | K55: West Midlands | L55: West Midlands | M55: Herefordshire | N55: North Herefordshire | O55: Private | P55: River Valley Care Ltd | Q55: Full inspection | R55: 2016-07-28 | S55: 2016-08-25 | T55: 10018276 | U55: Good | X55: Good | Y55: Good
A56: =HYPERLINK("http://reports.ofsted.gov.uk/inspection-reports/find-inspection-report/provider/CARE/1214688","Ofsted Social Care Provider Webpage") -> Ofsted Social Care Provider Webpage | B56: 1214688 | C56: Children's home | D56: Active | E56: REDACTED | F56: REDACTED | G56: REDACTED | H56: REDACTED | I56: REDACTED | J56: REDACTED | K56: South East | L56: South East | M56: Southampton | N56: Southampton, Test | O56: Private | P56: Headway House Limited | Q56: Full inspection | R56: 2017-05-04 | S56: 2017-05-30 | T56: 10028837 | U56: Requires improvement to be good | X56: Requires improvement to be good | Y56: Requires improvement to be good
A57: =HYPERLINK("http://reports.ofsted.gov.uk/inspection-reports/find-inspection-report/provider/CARE/1215521","Ofsted Social Care Provider Webpage") -> Ofsted Social Care Provider Webpage | B57: 1215521 | C57: Children's home | D57: Active | E57: REDACTED | F57: REDACTED | G57: REDACTED | H57: REDACTED | I57: REDACTED | J57: REDACTED | K57: East Midlands | L57: East Midlands | M57: Nottingham | N57: Nottingham South | O57: Private | P57: Resolute Care Ltd | Q57: Full inspection | R57: 2017-07-05 | S57: 2017-07-25 | T57: 10028841 | U57: Outstanding | X57: Outstanding | Y57: Good
A58: =HYPERLINK("http://reports.ofsted.gov.uk/inspection-reports/find-inspection-report/provider/CARE/1216505","Ofsted Social Care Provider Webpage") -> Ofsted Social Care Provider Webpage | B58: 1216505 | C58: Children's home | D58: Active | E58: REDACTED | F58: REDACTED | G58: REDACTED | H58: REDACTED | I58: REDACTED | J58: REDACTED | K58: North East, Yorkshire and the Humber | L58: North East | M58: Newcastle upon Tyne | N58: Newcastle upon Tyne East | O58: Private | P58: Hennessy Living Group Ltd | Q58: Full inspection | R58: 2017-09-06 | S58: 2017-10-24 | T58: 10028870 | U58: Good | X58: Good | Y58: Good
A59: =HYPERLINK("http://reports.ofsted.gov.uk/inspection-reports/find-inspection-report/provider/CARE/1216657","Ofsted Social Care Provider Webpage") -> Ofsted Social Care Provider Webpage | B59: 1216657 | C59: Children's home | D59: Active | E59: REDACTED | F59: REDACTED | G59: REDACTED | H59: REDACTED | I59: REDACTED | J59: REDACTED | K59: East Midlands | L59: East Midlands | M59: Nottingham | N59: Nottingham East | O59: Voluntary | P59: Nottinghamshire Ymca | Q59: Full inspection | R59: 2017-08-08 | S59: 2017-08-25 | T59: 10028851 | U59: Good | X59: Good | Y59: Good
A60: =HYPERLINK("http://reports.ofsted.gov.uk/inspection-reports/find-inspection-report/provider/CARE/1220887","Ofsted Social Care Provider Webpage") -> Ofsted Social Care Provider Webpage | B60: 1220887 | C60: Children's home | D60: Active | E60: REDACTED | F60: REDACTED | G60: REDACTED | H60: REDACTED | I60: REDACTED | J60: REDACTED | K60: West Midlands | L60: West Midlands | M60: Staffordshire | N60: Stafford | O60: Private | P60: Hygge Care Limited | Q60: Full inspection | R60: 2016-06-09 | S60: 2016-06-23 | T60: 10015200 | U60: Good | X60: Good | Y60: Good
A61: =HYPERLINK("http://reports.ofsted.gov.uk/inspection-reports/find-inspection-report/provider/CARE/1221357","Ofsted Social Care Provider Webpage") -> Ofsted Social Care Provider Webpage | B61: 1221357 | C61: Children's home | D61: Active | E61: REDACTED | F61: REDACTED | G61: REDACTED | H61: REDACTED | I61: REDACTED | J61: REDACTED | K61: North West | L61: North West | M61: Blackpool | N61: Blackpool South | O61: Private | P61: Hexagon Care Services Limited | Q61: Full inspection | R61: 2017-01-26 | S61: 2017-03-02 | T61: 10025917 | U61: Good | X61: Requires improvement to be good | Y61: Requires improvement to be good
A62: =HYPERLINK("http://reports.ofsted.gov.uk/inspection-reports/find-inspection-report/provider/CARE/1221437","Ofsted Social Care Provider Webpage") -> Ofsted Social Care Provider Webpage | B62: 1221437 | C62: Children's home | D62: Active | E62: REDACTED | F62: REDACTED | G62: REDACTED | H62: REDACTED | I62: REDACTED | J62: REDACTED | K62: South West | L62: South West | M62: Dorset | N62: South Dorset | O62: Private | P62: Potensial Ltd | Q62: Full inspection | R62: 2017-05-12 | S62: 2017-06-07 | T62: 10028886 | U62: Good | X62: Good | Y62: Good
A63: =HYPERLINK("http://reports.ofsted.gov.uk/inspection-reports/find-inspection-report/provider/CARE/1221700","Ofsted Social Care Provider Webpage") -> Ofsted Social Care Provider Webpage | B63: 1221700 | C63: Children's home | D63: Active | E63: REDACTED | F63: REDACTED | G63: REDACTED | H63: REDACTED | I63: REDACTED | J63: REDACTED | K63: North West | L63: North West | M63: Lancashire | N63: Ribble Valley | O63: Private | P63: Hexagon Care Services Limited | Q63: Full inspection | R63: 2016-09-20 | S63: 2016-10-27 | T63: 10021582 | U63: Good | X63: Good | Y63: Good
A64: =HYPERLINK("http://reports.ofsted.gov.uk/inspection-reports/find-inspection-report/provider/CARE/1222089","Ofsted Social Care Provider Webpage") -> Ofsted Social Care Provider Webpage | B64: 1222089 | C64: Children's home | D64: Active | E64: REDACTED | F64: REDACTED | G64: REDACTED | H64: REDACTED | I64: REDACTED | J64: REDACTED | K64: West Midlands | L64: West Midlands | M64: Stoke-on-Trent | N64: Stoke-on-Trent South | O64: Private | P64: Platinum Services For Children (residential Care) Ltd | Q64: Full inspection | R64: 2017-08-31 | S64: 2017-10-10 | T64: 10028877 | U64: Requires improvement to be good | X64: Requires improvement to be good | Y64: Requires improvement to be good
A65: =HYPERLINK("http://reports.ofsted.gov.uk/inspection-reports/find-inspection-report/provider/CARE/1223201","Ofsted Social Care Provider Webpage") -> Ofsted Social Care Provider Webpage | B65: 1223201 | C65: Children's home | D65: Active | E65: REDACTED | F65: REDACTED | G65: REDACTED | H65: REDACTED | I65: REDACTED | J65: REDACTED | K65: North East, Yorkshire and the Humber | L65: Yorkshire and The Humber | M65: Leeds | N65: Leeds Central | O65: Local Authority | P65: Leeds City Council | Q65: Full inspection | R65: 2016-06-09 | S65: 2016-07-04 | T65: 10019082 | U65: Outstanding | X65: Outstanding | Y65: Outstanding
A66: =HYPERLINK("http://reports.ofsted.gov.uk/inspection-reports/find-inspection-report/provider/CARE/1223491","Ofsted Social Care Provider Webpage") -> Ofsted Social Care Provider Webpage | B66: 1223491 | C66: Children's home | D66: Active | E66: REDACTED | F66: REDACTED | G66: REDACTED | H66: REDACTED | I66: REDACTED | J66: REDACTED | K66: West Midlands | L66: West Midlands | M66: Shropshire | N66: North Shropshire | O66: Private | P66: Bryn Melyn Care | Q66: Full inspection | R66: 2017-05-24 | S66: 2017-06-21 | T66: 10028901 | U66: Good | X66: Good | Y66: Good
A67: =HYPERLINK("http://reports.ofsted.gov.uk/inspection-reports/find-inspection-report/provider/CARE/1223501","Ofsted Social Care Provider Webpage") -> Ofsted Social Care Provider Webpage | B67: 1223501 | C67: Children's home | D67: Active | E67: REDACTED | F67: REDACTED | G67: REDACTED | H67: REDACTED | I67: REDACTED | J67: REDACTED | K67: North West | L67: North West | M67: Lancashire | N67: Fylde | O67: Private | P67: Hexagon Care Services Limited | Q67: Full inspection | R67: 2016-07-20 | S67: 2016-08-23 | T67: 10018261 | U67: Outstanding | X67: Outstanding | Y67: Outstanding
A68: =HYPERLINK("http://reports.ofsted.gov.uk/inspection-reports/find-inspection-report/provider/CARE/1223681","Ofsted Social Care Provider Webpage") -> Ofsted Social Care Provider Webpage | B68: 1223681 | C68: Children's home | D68: Active | E68: REDACTED | F68: REDACTED | G68: REDACTED | H68: REDACTED | I68: REDACTED | J68: REDACTED | K68: North West | L68: North West | M68: Lancashire | N68: Burnley | O68: Private | P68: Sandcastle Care Ltd | Q68: Full inspection | R68: 2017-05-09 | S68: 2017-05-31 | T68: 10028898 | U68: Good | X68: Good | Y68: Good
A69: =HYPERLINK("http://reports.ofsted.gov.uk/inspection-reports/find-inspection-report/provider/CARE/1224093","Ofsted Social Care Provider Webpage") -> Ofsted Social Care Provider Webpage | B69: 1224093 | C69: Children's home | D69: Active | E69: REDACTED | F69: REDACTED | G69: REDACTED | H69: REDACTED | I69: REDACTED | J69: REDACTED | K69: East of England | L69: East of England | M69: Hertfordshire | N69: Hemel Hempstead | O69: Private | P69: Broadwood Residential Ltd | Q69: Full inspection | R69: 2017-05-18 | S69: 2017-06-07 | T69: 10028827 | U69: Requires improvement to be good | X69: Requires improvement to be good | Y69: Requires improvement to be good
A70: =HYPERLINK("http://reports.ofsted.gov.uk/inspection-reports/find-inspection-report/provider/CARE/1224251","Ofsted Social Care Provider Webpage") -> Ofsted Social Care Provider Webpage | B70: 1224251 | C70: Children's home | D70: Active | E70: REDACTED | F70: REDACTED | G70: REDACTED | H70: REDACTED | I70: REDACTED | J70: REDACTED | K70: North West | L70: North West | M70: Wigan | N70: Makerfield | O70: Private | P70: Inspire Childrens Services Limited | Q70: Full inspection | R70: 2016-09-01 | S70: 2016-10-06 | T70: 10018934 | U70: Good | X70: Good | Y70: Good
A71: =HYPERLINK("http://reports.ofsted.gov.uk/inspection-reports/find-inspection-report/provider/CARE/1224663","Ofsted Social Care Provider Webpage") -> Ofsted Social Care Provider Webpage | B71: 1224663 | C71: Children's home | D71: Active | E71: REDACTED | F71: REDACTED | G71: REDACTED | H71: REDACTED | I71: REDACTED | J71: REDACTED | K71: East Midlands | L71: East Midlands | M71: Leicestershire | N71: Charnwood | O71: Private | P71: Horizon Care And Education Group Limited | Q71: Full inspection | R71: 2017-07-18 | S71: 2017-08-11 | T71: 10028853 | U71: Good | X71: Good | Y71: Outstanding
A72: =HYPERLINK("http://reports.ofsted.gov.uk/inspection-reports/find-inspection-report/provider/CARE/1224674","Ofsted Social Care Provider Webpage") -> Ofsted Social Care Provider Webpage | B72: 1224674 | C72: Children's home | D72: Active | E72: REDACTED | F72: REDACTED | G72: REDACTED | H72: REDACTED | I72: REDACTED | J72: REDACTED | K72: East Midlands | L72: East Midlands | M72: Rutland | N72: Rutland and Melton | O72: Private | P72: Hopscotch Solutions Limited | Q72: Full inspection | R72: 2016-04-27 | S72: 2016-05-18 | T72: 10018138 | U72: Good | X72: Good | Y72: Good
A73: =HYPERLINK("http://reports.ofsted.gov.uk/inspection-reports/find-inspection-report/provider/CARE/1225136","Ofsted Social Care Provider Webpage") -> Ofsted Social Care Provider Webpage | B73: 1225136 | C73: Children's home | D73: Active | E73: REDACTED | F73: REDACTED | G73: REDACTED | H73: REDACTED | I73: REDACTED | J73: REDACTED | K73: North West | L73: North West | M73: Lancashire | N73: Preston | O73: Private | P73: Cambian Childcare Ltd | Q73: Full inspection | R73: 2017-05-12 | S73: 2017-05-30 | T73: 10028917 | U73: Good | X73: Good | Y73: Good
A74: =HYPERLINK("http://reports.ofsted.gov.uk/inspection-reports/find-inspection-report/provider/CARE/1225371","Ofsted Social Care Provider Webpage") -> Ofsted Social Care Provider Webpage | B74: 1225371 | C74: Children's home | D74: Active | E74: REDACTED | F74: REDACTED | G74: REDACTED | H74: REDACTED | I74: REDACTED | J74: REDACTED | K74: North West | L74: North West | M74: Warrington | N74: Warrington South | O74: Private | P74: Cambian Childcare Ltd | Q74: Full inspection | R74: 2017-04-20 | S74: 2017-05-26 | T74: 10028904 | U74: Good | X74: Good | Y74: Good
A75: =HYPERLINK("http://reports.ofsted.gov.uk/inspection-reports/find-inspection-report/provider/CARE/1225887","Ofsted Social Care Provider Webpage") -> Ofsted Social Care Provider Webpage | B75: 1225887 | C75: Children's home | D75: Active | E75: REDACTED | F75: REDACTED | G75: REDACTED | H75: REDACTED | I75: REDACTED | J75: REDACTED | K75: South East | L75: South East | M75: Kent | N75: Sittingbourne and Sheppey | O75: Private | P75: Benecare Limited | Q75: Full inspection | R75: 2017-07-12 | S75: 2017-09-04 | T75: 10028862 | U75: Good | X75: Good | Y75: Good
A76: =HYPERLINK("http://reports.ofsted.gov.uk/inspection-reports/find-inspection-report/provider/CARE/1226266","Ofsted Social Care Provider Webpage") -> Ofsted Social Care Provider Webpage | B76: 1226266 | C76: Children's home | D76: Active | E76: REDACTED | F76: REDACTED | G76: REDACTED | H76: REDACTED | I76: REDACTED | J76: REDACTED | K76: South East | L76: South East | M76: West Sussex | N76: Arundel and South Downs | O76: Private | P76: Kingdom Care Childrens Homes Ltd | Q76: Full inspection | R76: 2016-09-23 | S76: 2016-11-18 | T76: 10018379 | U76: Good | X76: Good | Y76: Good
A77: =HYPERLINK("http://reports.ofsted.gov.uk/inspection-reports/find-inspection-report/provider/CARE/1226397","Ofsted Social Care Provider Webpage") -> Ofsted Social Care Provider Webpage | B77: 1226397 | C77: Children's home | D77: Active | E77: REDACTED | F77: REDACTED | G77: REDACTED | H77: REDACTED | I77: REDACTED | J77: REDACTED | K77: West Midlands | L77: West Midlands | M77: Birmingham | N77: Birmingham, Erdington | O77: Private | P77: Compass Children's Homes Ltd | Q77: Full inspection | R77: 2017-05-11 | S77: 2017-06-16 | T77: 10029019 | U77: Good | X77: Good | Y77: Outstanding
A78: =HYPERLINK("http://reports.ofsted.gov.uk/inspection-reports/find-inspection-report/provider/CARE/1226495","Ofsted Social Care Provider Webpage") -> Ofsted Social Care Provider Webpage | B78: 1226495 | C78: Children's home | D78: Active | E78: REDACTED | F78: REDACTED | G78: REDACTED | H78: REDACTED | I78: REDACTED | J78: REDACTED | K78: South East | L78: South East | M78: West Sussex | N78: East Worthing and Shoreham | O78: Private | P78: Kingdom Care Childrens Homes Ltd | Q78: Full inspection | R78: 2017-07-19 | S78: 2017-08-07 | T78: 10028856 | U78: Good | X78: Good | Y78: Good
A79: =HYPERLINK("http://reports.ofsted.gov.uk/inspection-reports/find-inspection-report/provider/CARE/1226612","Ofsted Social Care Provider Webpage") -> Ofsted Social Care Provider Webpage | B79: 1226612 | C79: Children's home | D79: Active | E79: REDACTED | F79: REDACTED | G79: REDACTED | H79: REDACTED | I79: REDACTED | J79: REDACTED | K79: East of England | L79: East of England | M79: Essex | N79: Harlow | O79: Private | P79: Harmony Residential Homes Ltd | Q79: Full inspection | R79: 2017-09-13 | S79: 2017-10-05 | T79: 10028951 | U79: Requires improvement to be good | X79: Requires improvement to be good | Y79: Inadequate
A80: =HYPERLINK("http://reports.ofsted.gov.uk/inspection-reports/find-inspection-report/provider/CARE/1226757","Ofsted Social Care Provider Webpage") -> Ofsted Social Care Provider Webpage | B80: 1226757 | C80: Children's home | D80: Active | E80: REDACTED | F80: REDACTED | G80: REDACTED | H80: REDACTED | I80: REDACTED | J80: REDACTED | K80: East of England | L80: East of England | M80: Thurrock | N80: South Basildon and East Thurrock | O80: Private | P80: Potton Homes Ltd | Q80: Full inspection | R80: 2017-05-16 | S80: 2017-06-08 | T80: 10028887 | U80: Requires improvement to be good | X80: Requires improvement to be good | Y80: Inadequate
A81: =HYPERLINK("http://reports.ofsted.gov.uk/inspection-reports/find-inspection-report/provider/CARE/1226969","Ofsted Social Care Provider Webpage") -> Ofsted Social Care Provider Webpage | B81: 1226969 | C81: Children's home | D81: Active | E81: REDACTED | F81: REDACTED | G81: REDACTED | H81: REDACTED | I81: REDACTED | J81: REDACTED | K81: East of England | L81: East of England | M81: Cambridgeshire | N81: South Cambridgeshire | O81: Voluntary | P81: Action For Children | Q81: Full inspection | R81: 2017-05-12 | S81: 2017-05-30 | T81: 10028865 | U81: Good | X81: Good | Y81: Good
A82: =HYPERLINK("http://reports.ofsted.gov.uk/inspection-reports/find-inspection-report/provider/CARE/1226971","Ofsted Social Care Provider Webpage") -> Ofsted Social Care Provider Webpage | B82: 1226971 | C82: Residential special school (registered as a children's home) | D82: Active | E82: REDACTED | F82: REDACTED | G82: REDACTED | H82: REDACTED | I82: REDACTED | J82: REDACTED | K82: South West | L82: South West | M82: South Gloucestershire | N82: Thornbury and Yate | O82: Voluntary | P82: Thornleigh Camphill Communities Ltd | Q82: Full inspection | R82: 2017-06-22 | S82: 2017-07-17 | T82: 10028895 | U82: Requires improvement to be good | X82: Requires improvement to be good | Y82: Requires improvement to be good
A83: =HYPERLINK("http://reports.ofsted.gov.uk/inspection-reports/find-inspection-report/provider/CARE/1226975","Ofsted Social Care Provider Webpage") -> Ofsted Social Care Provider Webpage | B83: 1226975 | C83: Children's home | D83: Active | E83: REDACTED | F83: REDACTED | G83: REDACTED | H83: REDACTED | I83: REDACTED | J83: REDACTED | K83: East Midlands | L83: East Midlands | M83: Leicestershire | N83: Bosworth | O83: Private | P83: Horizon Care And Education Group Limited | Q83: Full inspection | R83: 2017-09-06 | S83: 2017-09-29 | T83: 10028866 | U83: Good | X83: Good | Y83: Good
A84: =HYPERLINK("http://reports.ofsted.gov.uk/inspection-reports/find-inspection-report/provider/CARE/1226977","Ofsted Social Care Provider Webpage") -> Ofsted Social Care Provider Webpage | B84: 1226977 | C84: Children's home | D84: Active | E84: REDACTED | F84: REDACTED | G84: REDACTED | H84: REDACTED | I84: REDACTED | J84: REDACTED | K84: South East | L84: South East | M84: Kent | N84: Dover | O84: Private | P84: Moonreach Ltd | Q84: Full inspection | R84: 2017-08-17 | S84: 2017-10-02 | T84: 10028896 | U84: Good | X84: Good | Y84: Good
A85: =HYPERLINK("http://reports.ofsted.gov.uk/inspection-reports/find-inspection-report/provider/CARE/1226978","Ofsted Social Care Provider Webpage") -> Ofsted Social Care Provider Webpage | B85: 1226978 | C85: Children's home | D85: Active | E85: REDACTED | F85: REDACTED | G85: REDACTED | H85: REDACTED | I85: REDACTED | J85: REDACTED | K85: North East, Yorkshire and the Humber | L85: Yorkshire and The Humber | M85: North Yorkshire | N85: Scarborough and Whitby | O85: Private | P85: Cambian Childcare Ltd | Q85: Full inspection | R85: 2016-09-20 | S85: 2016-10-27 | T85: 10021409 | U85: Good | X85: Requires improvement to be good | Y85: Good
A86: =HYPERLINK("http://reports.ofsted.gov.uk/inspection-reports/find-inspection-report/provider/CARE/1227060","Ofsted Social Care Provider Webpage") -> Ofsted Social Care Provider Webpage | B86: 1227060 | C86: Residential special school (registered as a children's home) | D86: Active | E86: REDACTED | F86: REDACTED | G86: REDACTED | H86: REDACTED | I86: REDACTED | J86: REDACTED | K86: North East, Yorkshire and the Humber | L86: Yorkshire and The Humber | M86: North Yorkshire | N86: Skipton and Ripon | O86: Private | P86: Cambian Autism Services Ltd | Q86: Full inspection | R86: 2016-11-24 | S86: 2017-02-06 | T86: 10015203 | U86: Good | X86: Good | Y86: Good
A87: =HYPERLINK("http://reports.ofsted.gov.uk/inspection-reports/find-inspection-report/provider/CARE/1227330","Ofsted Social Care Provider Webpage") -> Ofsted Social Care Provider Webpage | B87: 1227330 | C87: Children's home | D87: Active | E87: REDACTED | F87: REDACTED | G87: REDACTED | H87: REDACTED | I87: REDACTED | J87: REDACTED | K87: West Midlands | L87: West Midlands | M87: Telford and Wrekin | N87: The Wrekin | O87: Private | P87: Positive Outcomes Childcare Limited | Q87: Full inspection | R87: 2017-05-24 | S87: 2017-06-13 | T87: 10028908 | U87: Good | X87: Good | Y87: Requires improvement to be good
A88: =HYPERLINK("http://reports.ofsted.gov.uk/inspection-reports/find-inspection-report/provider/CARE/1227335","Ofsted Social Care Provider Webpage") -> Ofsted Social Care Provider Webpage | B88: 1227335 | C88: Children's home | D88: Active | E88: REDACTED | F88: REDACTED | G88: REDACTED | H88: REDACTED | I88: REDACTED | J88: REDACTED | K88: North West | L88: North West | M88: Lancashire | N88: West Lancashire | O88: Private | P88: Exceptional Care Ltd | Q88: Full inspection | R88: 2017-04-27 | S88: 2017-05-31 | T88: 10028931 | U88: Good | X88: Good | Y88: Good
A89: =HYPERLINK("http://reports.ofsted.gov.uk/inspection-reports/find-inspection-report/provider/CARE/1227596","Ofsted Social Care Provider Webpage") -> Ofsted Social Care Provider Webpage | B89: 1227596 | C89: Children's home | D89: Active | E89: REDACTED | F89: REDACTED | G89: REDACTED | H89: REDACTED | I89: REDACTED | J89: REDACTED | K89: West Midlands | L89: West Midlands | M89: Staffordshire | N89: Stafford | O89: Private | P89: Reflexion Care Group Limited | Q89: Full inspection | R89: 2016-11-04 | S89: 2017-01-18 | T89: 10018791 | U89: Good | X89: Outstanding | Y89: Outstanding
A90: =HYPERLINK("http://reports.ofsted.gov.uk/inspection-reports/find-inspection-report/provider/CARE/1227788","Ofsted Social Care Provider Webpage") -> Ofsted Social Care Provider Webpage | B90: 1227788 | C90: Children's home | D90: Active | E90: REDACTED | F90: REDACTED | G90: REDACTED | H90: REDACTED | I90: REDACTED | J90: REDACTED | K90: South West | L90: South West | M90: Somerset | N90: Somerton and Frome | O90: Private | P90: Solent Child Care Ltd | Q90: Full inspection | R90: 2016-08-10 | S90: 2016-09-02 | T90: 10018455 | U90: Good | X90: Good | Y90: Good
A91: =HYPERLINK("http://reports.ofsted.gov.uk/inspection-reports/find-inspection-report/provider/CARE/1227869","Ofsted Social Care Provider Webpage") -> Ofsted Social Care Provider Webpage | B91: 1227869 | C91: Children's home | D91: Active | E91: REDACTED | F91: REDACTED | G91: REDACTED | H91: REDACTED | I91: REDACTED | J91: REDACTED | K91: West Midlands | L91: West Midlands | M91: Walsall | N91: Aldridge-Brownhills | O91: Private | P91: Compass Children's Homes Ltd | Q91: Full inspection | R91: 2017-05-05 | S91: 2017-06-06 | T91: 10029007 | U91: Good | X91: Good | Y91: Requires improvement to be good
A92: =HYPERLINK("http://reports.ofsted.gov.uk/inspection-reports/find-inspection-report/provider/CARE/1228090","Ofsted Social Care Provider Webpage") -> Ofsted Social Care Provider Webpage | B92: 1228090 | C92: Children's home | D92: Active | E92: REDACTED | F92: REDACTED | G92: REDACTED | H92: REDACTED | I92: REDACTED | J92: REDACTED | K92: West Midlands | L92: West Midlands | M92: Birmingham | N92: Sutton Coldfield | O92: Private | P92: Meadows Care Ltd | Q92: Full inspection | R92: 2017-07-12 | S92: 2017-08-18 | T92: 10028905 | U92: Requires improvement to be good | X92: Requires improvement to be good | Y92: Requires improvement to be good
A93: =HYPERLINK("http://reports.ofsted.gov.uk/inspection-reports/find-inspection-report/provider/CARE/1228091","Ofsted Social Care Provider Webpage") -> Ofsted Social Care Provider Webpage | B93: 1228091 | C93: Children's home | D93: Active | E93: REDACTED | F93: REDACTED | G93: REDACTED | H93: REDACTED | I93: REDACTED | J93: REDACTED | K93: North West | L93: North West | M93: Cheshire West and Chester | N93: Ellesmere Port and Neston | O93: Private | P93: Phoenix Care And Education Ltd | Q93: Full inspection | R93: 2017-08-03 | S93: 2017-08-23 | T93: 10038693 | U93: Requires improvement to be good | X93: Good | Y93: Requires improvement to be good
A94: =HYPERLINK("http://reports.ofsted.gov.uk/inspection-reports/find-inspection-report/provider/CARE/1228092","Ofsted Social Care Provider Webpage") -> Ofsted Social Care Provider Webpage | B94: 1228092 | C94: Children's home | D94: Active | E94: REDACTED | F94: REDACTED | G94: REDACTED | H94: REDACTED | I94: REDACTED | J94: REDACTED | K94: East of England | L94: East of England | M94: Essex | N94: Witham | O94: Private | P94: Personal Security Service Ltd | Q94: Full inspection | R94: 2017-08-09 | S94: 2017-08-25 | T94: 10028902 | U94: Good | X94: Good | Y94: Good
A95: =HYPERLINK("http://reports.ofsted.gov.uk/inspection-reports/find-inspection-report/provider/CARE/1228191","Ofsted Social Care Provider Webpage") -> Ofsted Social Care Provider Webpage | B95: 1228191 | C95: Children's home | D95: Active | E95: REDACTED | F95: REDACTED | G95: REDACTED | H95: REDACTED | I95: REDACTED | J95: REDACTED | K95: West Midlands | L95: West Midlands | M95: Staffordshire | N95: Staffordshire Moorlands | O95: Private | P95: Aspireone Care Ltd | Q95: Full inspection | R95: 2017-09-20 | S95: 2017-10-11 | T95: 10028907 | U95: Good | X95: Good | Y95: Outstanding
A96: =HYPERLINK("http://reports.ofsted.gov.uk/inspection-reports/find-inspection-report/provider/CARE/1228522","Ofsted Social Care Provider Webpage") -> Ofsted Social Care Provider Webpage | B96: 1228522 | C96: Children's home | D96: Active | E96: REDACTED | F96: REDACTED | G96: REDACTED | H96: REDACTED | I96: REDACTED | J96: REDACTED | K96: North West | L96: North West | M96: Lancashire | N96: Morecambe and Lunesdale | O96: Private | P96: Wood Grove (childcare) Ltd | Q96: Full inspection | R96: 2016-08-05 | S96: 2016-09-16 | T96: 10017651 | U96: Good | X96: Good | Y96: Good
A97: =HYPERLINK("http://reports.ofsted.gov.uk/inspection-reports/find-inspection-report/provider/CARE/1228919","Ofsted Social Care Provider Webpage") -> Ofsted Social Care Provider Webpage | B97: 1228919 | C97: Children's home | D97: Active | E97: REDACTED | F97: REDACTED | G97: REDACTED | H97: REDACTED | I97: REDACTED | J97: REDACTED | K97: South East | L97: South East | M97: East Sussex | N97: Bexhill and Battle | O97: Private | P97: Anderida Adolescent Care | Q97: Full inspection | R97: 2017-08-04 | S97: 2017-08-31 | T97: 10028890 | U97: Good | X97: Good | Y97: Good
A98: =HYPERLINK("http://reports.ofsted.gov.uk/inspection-reports/find-inspection-report/provider/CARE/1229229","Ofsted Social Care Provider Webpage") -> Ofsted Social Care Provider Webpage | B98: 1229229 | C98: Children's home | D98: Active | E98: REDACTED | F98: REDACTED | G98: REDACTED | H98: REDACTED | I98: REDACTED | J98: REDACTED | K98: East Midlands | L98: East Midlands | M98: Nottinghamshire | N98: Newark | O98: Private | P98: Esland North Limited | Q98: Full inspection | R98: 2016-10-12 | S98: 2016-10-28 | T98: 10018179 | U98: Outstanding | X98: Outstanding | Y98: Good
A99: =HYPERLINK("http://reports.ofsted.gov.uk/inspection-reports/find-inspection-report/provider/CARE/1229417","Ofsted Social Care Provider Webpage") -> Ofsted Social Care Provider Webpage | B99: 1229417 | C99: Children's home | D99: Active | E99: REDACTED | F99: REDACTED | G99: REDACTED | H99: REDACTED | I99: REDACTED | J99: REDACTED | K99: North East, Yorkshire and the Humber | L99: North East | M99: Middlesbrough | N99: Middlesbrough | O99: Private | P99: Cambian Childcare Ltd | Q99: Full inspection | R99: 2017-05-16 | S99: 2017-06-08 | T99: 10028894 | U99: Outstanding | X99: Outstanding | Y99: Outstanding
A100: =HYPERLINK("http://reports.ofsted.gov.uk/inspection-reports/find-inspection-report/provider/CARE/1229534","Ofsted Social Care Provider Webpage") -> Ofsted Social Care Provider Webpage | B100: 1229534 | C100: Children's home | D100: Active | E100: REDACTED | F100: REDACTED | G100: REDACTED | H100: REDACTED | I100: REDACTED | J100: REDACTED | K100: North West | L100: North West | M100: Lancashire | N100: Hyndburn | O100: Private | P100: Halliwell Homes Limited | Q100: Full inspection | R100: 2016-11-10 | S100: 2016-12-23 | T100: 10021577 | U100: Good | X100: Good | Y100: Requires improvement to be good
A101: =HYPERLINK("http://reports.ofsted.gov.uk/inspection-reports/find-inspection-report/provider/CARE/1229762","Ofsted Social Care Provider Webpage") -> Ofsted Social Care Provider Webpage | B101: 1229762 | C101: Children's home | D101: Active | E101: REDACTED | F101: REDACTED | G101: REDACTED | H101: REDACTED | I101: REDACTED | J101: REDACTED | K101: East Midlands | L101: East Midlands | M101: Leicestershire | N101: Charnwood | O101: Private | P101: Horizon Care And Education Group Limited | Q101: Full inspection | R101: 2016-09-02 | S101: 2016-09-29 | T101: 10018078 | U101: Outstanding | X101: Outstanding | Y101: Outstanding
A102: =HYPERLINK("http://reports.ofsted.gov.uk/inspection-reports/find-inspection-report/provider/CARE/1229766","Ofsted Social Care Provider Webpage") -> Ofsted Social Care Provider Webpage | B102: 1229766 | C102: Residential special school (registered as a children's home) | D102: Active | E102: REDACTED | F102: REDACTED | G102: REDACTED | H102: REDACTED | I102: REDACTED | J102: REDACTED | K102: East of England | L102: East of England | M102: Cambridgeshire | N102: South Cambridgeshire | O102: Private | P102: Aurora Care and Education Opco Limited | Q102: Full inspection | R102: 2017-05-24 | S102: 2017-06-13 | T102: 10028861 | U102: Good | X102: Good | Y102: Good
A103: =HYPERLINK("http://reports.ofsted.gov.uk/inspection-reports/find-inspection-report/provider/CARE/1229977","Ofsted Social Care Provider Webpage") -> Ofsted Social Care Provider Webpage | B103: 1229977 | C103: Children's home | D103: Active | E103: REDACTED | F103: REDACTED | G103: REDACTED | H103: REDACTED | I103: REDACTED | J103: REDACTED | K103: South East | L103: South East | M103: Oxfordshire | N103: Henley | O103: Local Authority | P103: Oxfordshire County Council | Q103: Full inspection | R103: 2017-05-12 | S103: 2017-07-11 | T103: 10028980 | U103: Inadequate | X103: Inadequate | Y103: Inadequate
A104: =HYPERLINK("http://reports.ofsted.gov.uk/inspection-reports/find-inspection-report/provider/CARE/1230268","Ofsted Social Care Provider Webpage") -> Ofsted Social Care Provider Webpage | B104: 1230268 | C104: Children's home | D104: Active | E104: REDACTED | F104: REDACTED | G104: REDACTED | H104: REDACTED | I104: REDACTED | J104: REDACTED | K104: East of England | L104: East of England | M104: Southend on Sea | N104: Southend West | O104: Private | P104: Kites Children Service's Ltd | Q104: Full inspection | R104: 2017-06-15 | S104: 2017-07-04 | T104: 10028909 | U104: Good | X104: Good | Y104: Good
A105: =HYPERLINK("http://reports.ofsted.gov.uk/inspection-reports/find-inspection-report/provider/CARE/1230411","Ofsted Social Care Provider Webpage") -> Ofsted Social Care Provider Webpage | B105: 1230411 | C105: Children's home | D105: Active | E105: REDACTED | F105: REDACTED | G105: REDACTED | H105: REDACTED | I105: REDACTED | J105: REDACTED | K105: South East | L105: South East | M105: Surrey | N105: Guildford | O105: Local Authority | P105: Surrey County Council | Q105: Full inspection | R105: 2017-07-21 | S105: 2017-08-14 | T105: 10028903 | U105: Good | X105: Good | Y105: Requires improvement to be good
A106: =HYPERLINK("http://reports.ofsted.gov.uk/inspection-reports/find-inspection-report/provider/CARE/1230415","Ofsted Social Care Provider Webpage") -> Ofsted Social Care Provider Webpage | B106: 1230415 | C106: Children's home | D106: Active | E106: REDACTED | F106: REDACTED | G106: REDACTED | H106: REDACTED | I106: REDACTED | J106: REDACTED | K106: West Midlands | L106: West Midlands | M106: Birmingham | N106: Birmingham, Perry Barr | O106: Private | P106: Beacon Child Care Ltd | Q106: Full inspection | R106: 2017-06-06 | S106: 2017-07-03 | T106: 10028944 | U106: Requires improvement to be good | X106: Requires improvement to be good | Y106: Requires improvement to be good
A107: =HYPERLINK("http://reports.ofsted.gov.uk/inspection-reports/find-inspection-report/provider/CARE/1230416","Ofsted Social Care Provider Webpage") -> Ofsted Social Care Provider Webpage | B107: 1230416 | C107: Children's home | D107: Active | E107: REDACTED | F107: REDACTED | G107: REDACTED | H107: REDACTED | I107: REDACTED | J107: REDACTED | K107: East of England | L107: East of England | M107: Bedford | N107: North East Bedfordshire | O107: Private | P107: Cambian Childcare Ltd | Q107: Full inspection | R107: 2017-05-19 | S107: 2017-06-13 | T107: 10028911 | U107: Good | X107: Good | Y107: Requires improvement to be good
A108: =HYPERLINK("http://reports.ofsted.gov.uk/inspection-reports/find-inspection-report/provider/CARE/1230725","Ofsted Social Care Provider Webpage") -> Ofsted Social Care Provider Webpage | B108: 1230725 | C108: Children's home | D108: Active | E108: REDACTED | F108: REDACTED | G108: REDACTED | H108: REDACTED | I108: REDACTED | J108: REDACTED | K108: East of England | L108: East of England | M108: Essex | N108: Harwich and North Essex | O108: Private | P108: Pathways Care Group Limited | Q108: Full inspection | R108: 2017-08-23 | S108: 2017-09-11 | T108: 10028927 | U108: Good | X108: Good | Y108: Requires improvement to be good
A109: =HYPERLINK("http://reports.ofsted.gov.uk/inspection-reports/find-inspection-report/provider/CARE/1231066","Ofsted Social Care Provider Webpage") -> Ofsted Social Care Provider Webpage | B109: 1231066 | C109: Children's home | D109: Active | E109: REDACTED | F109: REDACTED | G109: REDACTED | H109: REDACTED | I109: REDACTED | J109: REDACTED | K109: South West | L109: South West | M109: Devon | N109: Newton Abbot | O109: Private | P109: One To One Crisis Intervention Ltd | Q109: Full inspection | R109: 2017-07-04 | S109: 2017-07-24 | T109: 10028878 | U109: Good | X109: Good | Y109: Good
A110: =HYPERLINK("http://reports.ofsted.gov.uk/inspection-reports/find-inspection-report/provider/CARE/1231067","Ofsted Social Care Provider Webpage") -> Ofsted Social Care Provider Webpage | B110: 1231067 | C110: Children's home | D110: Active | E110: REDACTED | F110: REDACTED | G110: REDACTED | H110: REDACTED | I110: REDACTED | J110: REDACTED | K110: South West | L110: South West | M110: Devon | N110: Newton Abbot | O110: Private | P110: One To One Crisis Intervention Ltd | Q110: Full inspection | R110: 2017-05-24 | S110: 2017-06-12 | T110: 10028885 | U110: Good | X110: Requires improvement to be good | Y110: Good
A111: =HYPERLINK("http://reports.ofsted.gov.uk/inspection-reports/find-inspection-report/provider/CARE/1231311","Ofsted Social Care Provider Webpage") -> Ofsted Social Care Provider Webpage | B111: 1231311 | C111: Children's home | D111: Active | E111: REDACTED | F111: REDACTED | G111: REDACTED | H111: REDACTED | I111: REDACTED | J111: REDACTED | K111: West Midlands | L111: West Midlands | M111: Telford and Wrekin | N111: The Wrekin | O111: Private | P111: Cove Care Residential Ltd | Q111: Full inspection | R111: 2017-09-20 | S111: 2017-10-16 | T111: 10028960 | U111: Requires improvement to be good | X111: Requires improvement to be good | Y111: Requires improvement to be good
A112: =HYPERLINK("http://reports.ofsted.gov.uk/inspection-reports/find-inspection-report/provider/CARE/1231399","Ofsted Social Care Provider Webpage") -> Ofsted Social Care Provider Webpage | B112: 1231399 | C112: Children's home | D112: Active | E112: REDACTED | F112: REDACTED | G112: REDACTED | H112: REDACTED | I112: REDACTED | J112: REDACTED | K112: North West | L112: North West | M112: Blackpool | N112: Blackpool North and Cleveleys | O112: Private | P112: Sandcastle Care Ltd | Q112: Full inspection | R112: 2017-08-16 | S112: 2017-09-12 | T112: 10028943 | U112: Outstanding | X112: Outstanding | Y112: Outstanding
A113: =HYPERLINK("http://reports.ofsted.gov.uk/inspection-reports/find-inspection-report/provider/CARE/1231404","Ofsted Social Care Provider Webpage") -> Ofsted Social Care Provider Webpage | B113: 1231404 | C113: Children's home | D113: Active | E113: REDACTED | F113: REDACTED | G113: REDACTED | H113: REDACTED | I113: REDACTED | J113: REDACTED | K113: North West | L113: North West | M113: Liverpool | N113: Liverpool, Walton | O113: Private | P113: Courtyard Care Limited | Q113: Full inspection | R113: 2017-08-09 | S113: 2017-09-19 | T113: 10037499 | U113: Good | X113: Good | Y113: Good
A114: =HYPERLINK("http://reports.ofsted.gov.uk/inspection-reports/find-inspection-report/provider/CARE/1231405","Ofsted Social Care Provider Webpage") -> Ofsted Social Care Provider Webpage | B114: 1231405 | C114: Children's home | D114: Active | E114: REDACTED | F114: REDACTED | G114: REDACTED | H114: REDACTED | I114: REDACTED | J114: REDACTED | K114: North West | L114: North West | M114: Lancashire | N114: Ribble Valley | O114: Local Authority | P114: Lancashire County Council | Q114: Full inspection | R114: 2017-09-13 | S114: 2017-10-04 | T114: 10028872 | U114: Good | X114: Good | Y114: Good
A115: =HYPERLINK("http://reports.ofsted.gov.uk/inspection-reports/find-inspection-report/provider/CARE/1231458","Ofsted Social Care Provider Webpage") -> Ofsted Social Care Provider Webpage | B115: 1231458 | C115: Children's home | D115: Active | E115: REDACTED | F115: REDACTED | G115: REDACTED | H115: REDACTED | I115: REDACTED | J115: REDACTED | K115: West Midlands | L115: West Midlands | M115: Birmingham | N115: Birmingham, Selly Oak | O115: Private | P115: Sherlock Healthcare Services Ltd | Q115: Full inspection | R115: 2017-04-26 | S115: 2017-05-11 | T115: 10028914 | U115: Good | X115: Good | Y115: Outstanding
A116: =HYPERLINK("http://reports.ofsted.gov.uk/inspection-reports/find-inspection-report/provider/CARE/1231525","Ofsted Social Care Provider Webpage") -> Ofsted Social Care Provider Webpage | B116: 1231525 | C116: Children's home | D116: Active | E116: REDACTED | F116: REDACTED | G116: REDACTED | H116: REDACTED | I116: REDACTED | J116: REDACTED | K116: North East, Yorkshire and the Humber | L116: Yorkshire and The Humber | M116: East Riding of Yorkshire | N116: Brigg and Goole | O116: Private | P116: Cambian Childcare Ltd | Q116: Full inspection | R116: 2017-07-19 | S116: 2017-08-23 | T116: 10028899 | U116: Good | X116: Good | Y116: Requires improvement to be good
A117: =HYPERLINK("http://reports.ofsted.gov.uk/inspection-reports/find-inspection-report/provider/CARE/1231812","Ofsted Social Care Provider Webpage") -> Ofsted Social Care Provider Webpage | B117: 1231812 | C117: Children's home | D117: Active | E117: REDACTED | F117: REDACTED | G117: REDACTED | H117: REDACTED | I117: REDACTED | J117: REDACTED | K117: West Midlands | L117: West Midlands | M117: Birmingham | N117: Birmingham, Perry Barr | O117: Private | P117: Meadows Care Ltd | Q117: Full inspection | R117: 2017-03-22 | S117: 2017-05-02 | T117: 10025535 | U117: Good | X117: Good | Y117: Good
A118: =HYPERLINK("http://reports.ofsted.gov.uk/inspection-reports/find-inspection-report/provider/CARE/1232171","Ofsted Social Care Provider Webpage") -> Ofsted Social Care Provider Webpage | B118: 1232171 | C118: Children's home | D118: Active | E118: REDACTED | F118: REDACTED | G118: REDACTED | H118: REDACTED | I118: REDACTED | J118: REDACTED | K118: North East, Yorkshire and the Humber | L118: Yorkshire and The Humber | M118: Doncaster | N118: Doncaster Central | O118: Private | P118: In Safe Hands Care Ltd | Q118: Full inspection | R118: 2016-12-07 | S118: 2017-01-30 | T118: 10021406 | U118: Outstanding | X118: Good | Y118: Good
A119: =HYPERLINK("http://reports.ofsted.gov.uk/inspection-reports/find-inspection-report/provider/CARE/1232200","Ofsted Social Care Provider Webpage") -> Ofsted Social Care Provider Webpage | B119: 1232200 | C119: Children's home | D119: Active | E119: REDACTED | F119: REDACTED | G119: REDACTED | H119: REDACTED | I119: REDACTED | J119: REDACTED | K119: East Midlands | L119: East Midlands | M119: Northamptonshire | N119: Wellingborough | O119: Private | P119: Total Care Matters Limited | Q119: Full inspection | R119: 2017-04-19 | S119: 2017-05-10 | T119: 10028928 | U119: Good | X119: Requires improvement to be good | Y119: Good
A120: =HYPERLINK("http://reports.ofsted.gov.uk/inspection-reports/find-inspection-report/provider/CARE/1232271","Ofsted Social Care Provider Webpage") -> Ofsted Social Care Provider Webpage | B120: 1232271 | C120: Children's home | D120: Active | E120: REDACTED | F120: REDACTED | G120: REDACTED | H120: REDACTED | I120: REDACTED | J120: REDACTED | K120: South West | L120: South West | M120: Gloucestershire | N120: Stroud | O120: Private | P120: G.V Kids Ltd | Q120: Full inspection | R120: 2017-02-14 | S120: 2017-03-09 | T120: 10021637 | U120: Good | X120: Good | Y120: Good
A121: =HYPERLINK("http://reports.ofsted.gov.uk/inspection-reports/find-inspection-report/provider/CARE/1232380","Ofsted Social Care Provider Webpage") -> Ofsted Social Care Provider Webpage | B121: 1232380 | C121: Children's home | D121: Active | E121: REDACTED | F121: REDACTED | G121: REDACTED | H121: REDACTED | I121: REDACTED | J121: REDACTED | K121: North West | L121: North West | M121: Bolton | N121: Bolton North East | O121: Voluntary | P121: Birtenshaw - company number 02978546 | Q121: Full inspection | R121: 2017-08-25 | S121: 2017-09-15 | T121: 10028888 | U121: Good | X121: Good | Y121: Requires improvement to be good
A122: =HYPERLINK("http://reports.ofsted.gov.uk/inspection-reports/find-inspection-report/provider/CARE/1232649","Ofsted Social Care Provider Webpage") -> Ofsted Social Care Provider Webpage | B122: 1232649 | C122: Children's home | D122: Active | E122: REDACTED | F122: REDACTED | G122: REDACTED | H122: REDACTED | I122: REDACTED | J122: REDACTED | K122: North East, Yorkshire and the Humber | L122: North East | M122: Gateshead | N122: Blaydon | O122: Private | P122: Artemis Support Ltd | Q122: Full inspection | R122: 2016-11-23 | S122: 2017-01-17 | T122: 10021448 | U122: Good | X122: Good | Y122: Good
A123: =HYPERLINK("http://reports.ofsted.gov.uk/inspection-reports/find-inspection-report/provider/CARE/1232650","Ofsted Social Care Provider Webpage") -> Ofsted Social Care Provider Webpage | B123: 1232650 | C123: Children's home | D123: Active | E123: REDACTED | F123: REDACTED | G123: REDACTED | H123: REDACTED | I123: REDACTED | J123: REDACTED | K123: North East, Yorkshire and the Humber | L123: Yorkshire and The Humber | M123: Doncaster | N123: Don Valley | O123: Private | P123: Friends Together Care Homes Ltd | Q123: Full inspection | R123: 2017-08-16 | S123: 2017-09-25 | T123: 10038763 | U123: Good | X123: Good | Y123: Good
A124: =HYPERLINK("http://reports.ofsted.gov.uk/inspection-reports/find-inspection-report/provider/CARE/1232657","Ofsted Social Care Provider Webpage") -> Ofsted Social Care Provider Webpage | B124: 1232657 | C124: Children's home | D124: Active | E124: REDACTED | F124: REDACTED | G124: REDACTED | H124: REDACTED | I124: REDACTED | J124: REDACTED | K124: West Midlands | L124: West Midlands | M124: Solihull | N124: Solihull | O124: Private | P124: Compass Children's Homes Ltd | Q124: Full inspection | R124: 2017-08-04 | S124: 2017-09-18 | T124: 10035661 | U124: Requires improvement to be good | X124: Requires improvement to be good | Y124: Requires improvement to be good
A125: =HYPERLINK("http://reports.ofsted.gov.uk/inspection-reports/find-inspection-report/provider/CARE/1232658","Ofsted Social Care Provider Webpage") -> Ofsted Social Care Provider Webpage | B125: 1232658 | C125: Children's home | D125: Active | E125: REDACTED | F125: REDACTED | G125: REDACTED | H125: REDACTED | I125: REDACTED | J125: REDACTED | K125: North West | L125: North West | M125: Cheshire East | N125: Congleton | O125: Private | P125: Compass Children's Homes Ltd | Q125: Full inspection | R125: 2017-05-05 | S125: 2017-05-26 | T125: 10029008 | U125: Good | X125: Good | Y125: Good
A126: =HYPERLINK("http://reports.ofsted.gov.uk/inspection-reports/find-inspection-report/provider/CARE/1233307","Ofsted Social Care Provider Webpage") -> Ofsted Social Care Provider Webpage | B126: 1233307 | C126: Children's home | D126: Active | E126: REDACTED | F126: REDACTED | G126: REDACTED | H126: REDACTED | I126: REDACTED | J126: REDACTED | K126: North East, Yorkshire and the Humber | L126: North East | M126: Newcastle upon Tyne | N126: Newcastle upon Tyne East | O126: Local Authority | P126: Newcastle City Council | Q126: Full inspection | R126: 2017-05-10 | S126: 2017-06-27 | T126: 10029033 | U126: Outstanding | X126: Outstanding | Y126: Outstanding
A127: =HYPERLINK("http://reports.ofsted.gov.uk/inspection-reports/find-inspection-report/provider/CARE/1233310","Ofsted Social Care Provider Webpage") -> Ofsted Social Care Provider Webpage | B127: 1233310 | C127: Children's home | D127: Active | E127: REDACTED | F127: REDACTED | G127: REDACTED | H127: REDACTED | I127: REDACTED | J127: REDACTED | K127: North West | L127: North West | M127: Bolton | N127: Bolton North East | O127: Voluntary | P127: Birtenshaw - company number 02978546 | Q127: Full inspection | R127: 2017-04-25 | S127: 2017-05-23 | T127: 10028961 | U127: Good | X127: Good | Y127: Good
A128: =HYPERLINK("http://reports.ofsted.gov.uk/inspection-reports/find-inspection-report/provider/CARE/1233899","Ofsted Social Care Provider Webpage") -> Ofsted Social Care Provider Webpage | B128: 1233899 | C128: Children's home | D128: Active | E128: REDACTED | F128: REDACTED | G128: REDACTED | H128: REDACTED | I128: REDACTED | J128: REDACTED | K128: North West | L128: North West | M128: Cumbria | N128: Carlisle | O128: Private | P128: Active Ark Limited | Q128: Full inspection | R128: 2017-09-07 | S128: 2017-10-27 | T128: 10029003 | U128: Good | X128: Good | Y128: Good
A129: =HYPERLINK("http://reports.ofsted.gov.uk/inspection-reports/find-inspection-report/provider/CARE/1233981","Ofsted Social Care Provider Webpage") -> Ofsted Social Care Provider Webpage | B129: 1233981 | C129: Children's home | D129: Active | E129: REDACTED | F129: REDACTED | G129: REDACTED | H129: REDACTED | I129: REDACTED | J129: REDACTED | K129: North East, Yorkshire and the Humber | L129: Yorkshire and The Humber | M129: Kirklees | N129: Huddersfield | O129: Private | P129: Time-Out Children's Homes Limited | Q129: Full inspection | R129: 2017-08-03 | S129: 2017-08-21 | T129: 10028968 | U129: Good | X129: Good | Y129: Requires improvement to be good
A130: =HYPERLINK("http://reports.ofsted.gov.uk/inspection-reports/find-inspection-report/provider/CARE/1234163","Ofsted Social Care Provider Webpage") -> Ofsted Social Care Provider Webpage | B130: 1234163 | C130: Children's home | D130: Active | E130: REDACTED | F130: REDACTED | G130: REDACTED | H130: REDACTED | I130: REDACTED | J130: REDACTED | K130: South East | L130: South East | M130: Kent | N130: Sittingbourne and Sheppey | O130: Private | P130: Jamores Limited | Q130: Full inspection | R130: 2017-06-12 | S130: 2017-07-05 | T130: 10028991 | U130: Inadequate | X130: Inadequate | Y130: Inadequate
A131: =HYPERLINK("http://reports.ofsted.gov.uk/inspection-reports/find-inspection-report/provider/CARE/1234166","Ofsted Social Care Provider Webpage") -> Ofsted Social Care Provider Webpage | B131: 1234166 | C131: Children's home | D131: Active | E131: REDACTED | F131: REDACTED | G131: REDACTED | H131: REDACTED | I131: REDACTED | J131: REDACTED | K131: London | L131: London | M131: Newham | N131: West Ham | O131: Private | P131: Jamores Limited | Q131: Full inspection | R131: 2017-07-18 | S131: 2017-08-10 | T131: 10028988 | U131: Requires improvement to be good | X131: Requires improvement to be good | Y131: Requires improvement to be good
A132: =HYPERLINK("http://reports.ofsted.gov.uk/inspection-reports/find-inspection-report/provider/CARE/1234243","Ofsted Social Care Provider Webpage") -> Ofsted Social Care Provider Webpage | B132: 1234243 | C132: Children's home | D132: Active | E132: REDACTED | F132: REDACTED | G132: REDACTED | H132: REDACTED | I132: REDACTED | J132: REDACTED | K132: East Midlands | L132: East Midlands | M132: Leicestershire | N132: Charnwood | O132: Private | P132: Horizon Care And Education Group Limited | Q132: Full inspection | R132: 2017-09-20 | S132: 2017-10-10 | T132: 10028923 | U132: Good | X132: Good | Y132: Good
A133: =HYPERLINK("http://reports.ofsted.gov.uk/inspection-reports/find-inspection-report/provider/CARE/1234244","Ofsted Social Care Provider Webpage") -> Ofsted Social Care Provider Webpage | B133: 1234244 | C133: Children's home | D133: Active | E133: REDACTED | F133: REDACTED | G133: REDACTED | H133: REDACTED | I133: REDACTED | J133: REDACTED | K133: East Midlands | L133: East Midlands | M133: Leicestershire | N133: Loughborough | O133: Private | P133: Horizon Care And Education Group Limited | Q133: Full inspection | R133: 2017-05-18 | S133: 2017-06-14 | T133: 10028912 | U133: Good | X133: Good | Y133: Good
A134: =HYPERLINK("http://reports.ofsted.gov.uk/inspection-reports/find-inspection-report/provider/CARE/1234317","Ofsted Social Care Provider Webpage") -> Ofsted Social Care Provider Webpage | B134: 1234317 | C134: Children's home | D134: Active | E134: REDACTED | F134: REDACTED | G134: REDACTED | H134: REDACTED | I134: REDACTED | J134: REDACTED | K134: North East, Yorkshire and the Humber | L134: Yorkshire and The Humber | M134: Calderdale | N134: Halifax | O134: Private | P134: Care 4 Children Residential Services Ltd | Q134: Full inspection | R134: 2016-11-30 | S134: 2017-01-25 | T134: 10022999 | U134: Requires improvement to be good | X134: Good | Y134: Requires improvement to be good
A135: =HYPERLINK("http://reports.ofsted.gov.uk/inspection-reports/find-inspection-report/provider/CARE/1234319","Ofsted Social Care Provider Webpage") -> Ofsted Social Care Provider Webpage | B135: 1234319 | C135: Children's home | D135: Active | E135: REDACTED | F135: REDACTED | G135: REDACTED | H135: REDACTED | I135: REDACTED | J135: REDACTED | K135: North East, Yorkshire and the Humber | L135: North East | M135: North Tyneside | N135: North Tyneside | O135: Voluntary | P135: The Percy Hedley Foundation | Q135: Full inspection | R135: 2017-07-19 | S135: 2017-08-22 | T135: 10028933 | U135: Outstanding | X135: Outstanding | Y135: Outstanding
A136: =HYPERLINK("http://reports.ofsted.gov.uk/inspection-reports/find-inspection-report/provider/CARE/1234323","Ofsted Social Care Provider Webpage") -> Ofsted Social Care Provider Webpage | B136: 1234323 | C136: Children's home | D136: Active | E136: REDACTED | F136: REDACTED | G136: REDACTED | H136: REDACTED | I136: REDACTED | J136: REDACTED | K136: North East, Yorkshire and the Humber | L136: North East | M136: North Tyneside | N136: North Tyneside | O136: Voluntary | P136: The Percy Hedley Foundation | Q136: Full inspection | R136: 2017-06-07 | S136: 2017-07-03 | T136: 10028935 | U136: Good | X136: Requires improvement to be good | Y136: Requires improvement to be good
A137: =HYPERLINK("http://reports.ofsted.gov.uk/inspection-reports/find-inspection-report/provider/CARE/1234374","Ofsted Social Care Provider Webpage") -> Ofsted Social Care Provider Webpage | B137: 1234374 | C137: Children's home | D137: Active | E137: REDACTED | F137: REDACTED | G137: REDACTED | H137: REDACTED | I137: REDACTED | J137: REDACTED | K137: South West | L137: South West | M137: Cornwall | N137: North Cornwall | O137: Private | P137: Phoenix Child Care Limited | Q137: Full inspection | R137: 2017-05-10 | S137: 2017-06-01 | T137: 10028913 | U137: Requires improvement to be good | X137: Requires improvement to be good | Y137: Requires improvement to be good
A138: =HYPERLINK("http://reports.ofsted.gov.uk/inspection-reports/find-inspection-report/provider/CARE/1234430","Ofsted Social Care Provider Webpage") -> Ofsted Social Care Provider Webpage | B138: 1234430 | C138: Children's home | D138: Active | E138: REDACTED | F138: REDACTED | G138: REDACTED | H138: REDACTED | I138: REDACTED | J138: REDACTED | K138: West Midlands | L138: West Midlands | M138: Birmingham | N138: Birmingham, Erdington | O138: Private | P138: Positive Pathways Limited | Q138: Full inspection | R138: 2017-01-25 | S138: 2017-02-16 | T138: 10022392 | U138: Outstanding | X138: Outstanding | Y138: Outstanding
A139: =HYPERLINK("http://reports.ofsted.gov.uk/inspection-reports/find-inspection-report/provider/CARE/1234432","Ofsted Social Care Provider Webpage") -> Ofsted Social Care Provider Webpage | B139: 1234432 | C139: Children's home | D139: Active | E139: REDACTED | F139: REDACTED | G139: REDACTED | H139: REDACTED | I139: REDACTED | J139: REDACTED | K139: North West | L139: North West | M139: Knowsley | N139: Knowsley | O139: Private | P139: Lytham Care Limited | Q139: Full inspection | R139: 2017-05-19 | S139: 2017-06-06 | T139: 10028924 | U139: Good | X139: Good | Y139: Good
A140: =HYPERLINK("http://reports.ofsted.gov.uk/inspection-reports/find-inspection-report/provider/CARE/1234621","Ofsted Social Care Provider Webpage") -> Ofsted Social Care Provider Webpage | B140: 1234621 | C140: Children's home | D140: Active | E140: REDACTED | F140: REDACTED | G140: REDACTED | H140: REDACTED | I140: REDACTED | J140: REDACTED | K140: East of England | L140: East of England | M140: Essex | N140: Clacton | O140: Private | P140: Priory Education & Children's Services | Q140: Full inspection | R140: 2017-06-01 | S140: 2017-06-21 | T140: 10028954 | U140: Good | X140: Outstanding | Y140: Good
A141: =HYPERLINK("http://reports.ofsted.gov.uk/inspection-reports/find-inspection-report/provider/CARE/1234624","Ofsted Social Care Provider Webpage") -> Ofsted Social Care Provider Webpage | B141: 1234624 | C141: Children's home | D141: Active | E141: REDACTED | F141: REDACTED | G141: REDACTED | H141: REDACTED | I141: REDACTED | J141: REDACTED | K141: South West | L141: South West | M141: Wiltshire | N141: Devizes | O141: Private | P141: Esland North Limited | Q141: Full inspection | R141: 2017-05-05 | S141: 2017-06-05 | T141: 10028981 | U141: Requires improvement to be good | X141: Requires improvement to be good | Y141: Requires improvement to be good
A142: =HYPERLINK("http://reports.ofsted.gov.uk/inspection-reports/find-inspection-report/provider/CARE/1234626","Ofsted Social Care Provider Webpage") -> Ofsted Social Care Provider Webpage | B142: 1234626 | C142: Children's home | D142: Active | E142: REDACTED | F142: REDACTED | G142: REDACTED | H142: REDACTED | I142: REDACTED | J142: REDACTED | K142: South West | L142: South West | M142: Wiltshire | N142: Devizes | O142: Private | P142: Esland North Limited | Q142: Full inspection | R142: 2017-02-22 | S142: 2017-03-29 | T142: 10022917 | U142: Requires improvement to be good | X142: Requires improvement to be good | Y142: Inadequate
A143: =HYPERLINK("http://reports.ofsted.gov.uk/inspection-reports/find-inspection-report/provider/CARE/1234990","Ofsted Social Care Provider Webpage") -> Ofsted Social Care Provider Webpage | B143: 1234990 | C143: Children's home | D143: Active | E143: REDACTED | F143: REDACTED | G143: REDACTED | H143: REDACTED | I143: REDACTED | J143: REDACTED | K143: North East, Yorkshire and the Humber | L143: North East | M143: Newcastle upon Tyne | N143: Newcastle upon Tyne East | O143: Voluntary | P143: The Percy Hedley Foundation | Q143: Full inspection | R143: 2017-06-15 | S143: 2017-07-28 | T143: 10035607 | U143: Outstanding | X143: Good | Y143: Good
A144: =HYPERLINK("http://reports.ofsted.gov.uk/inspection-reports/find-inspection-report/provider/CARE/1235384","Ofsted Social Care Provider Webpage") -> Ofsted Social Care Provider Webpage | B144: 1235384 | C144: Children's home | D144: Active | E144: REDACTED | F144: REDACTED | G144: REDACTED | H144: REDACTED | I144: REDACTED | J144: REDACTED | K144: North West | L144: North West | M144: Lancashire | N144: South Ribble | O144: Private | P144: New Horizons (nw) Ltd | Q144: Full inspection | R144: 2017-01-24 | S144: 2017-02-27 | T144: 10025924 | U144: Good | X144: Requires improvement to be good | Y144: Good
A145: =HYPERLINK("http://reports.ofsted.gov.uk/inspection-reports/find-inspection-report/provider/CARE/1235576","Ofsted Social Care Provider Webpage") -> Ofsted Social Care Provider Webpage | B145: 1235576 | C145: Children's home | D145: Active | E145: REDACTED | F145: REDACTED | G145: REDACTED | H145: REDACTED | I145: REDACTED | J145: REDACTED | K145: South West | L145: South West | M145: Plymouth | N145: Plymouth, Sutton and Devonport | O145: Private | P145: South West Childcare Services | Q145: Full inspection | R145: 2017-02-08 | S145: 2017-02-24 | T145: 10033399 | U145: Good | X145: Good | Y145: Good
A146: =HYPERLINK("http://reports.ofsted.gov.uk/inspection-reports/find-inspection-report/provider/CARE/1235653","Ofsted Social Care Provider Webpage") -> Ofsted Social Care Provider Webpage | B146: 1235653 | C146: Children's home | D146: Active | E146: REDACTED | F146: REDACTED | G146: REDACTED | H146: REDACTED | I146: REDACTED | J146: REDACTED | K146: London | L146: London | M146: Merton | N146: Wimbledon | O146: Private | P146: Children Of The Mangrove Limited | Q146: Full inspection | R146: 2017-03-01 | S146: 2017-04-04 | T146: 10025479 | U146: Requires improvement to be good | X146: Requires improvement to be good | Y146: Requires improvement to be good
A147: =HYPERLINK("http://reports.ofsted.gov.uk/inspection-reports/find-inspection-report/provider/CARE/1235654","Ofsted Social Care Provider Webpage") -> Ofsted Social Care Provider Webpage | B147: 1235654 | C147: Children's home | D147: Active | E147: REDACTED | F147: REDACTED | G147: REDACTED | H147: REDACTED | I147: REDACTED | J147: REDACTED | K147: East Midlands | L147: East Midlands | M147: Leicestershire | N147: Charnwood | O147: Private | P147: Horizon Care And Education Group Limited | Q147: Full inspection | R147: 2017-06-14 | S147: 2017-07-05 | T147: 10028952 | U147: Good | X147: Good | Y147: Good
A148: =HYPERLINK("http://reports.ofsted.gov.uk/inspection-reports/find-inspection-report/provider/CARE/1235818","Ofsted Social Care Provider Webpage") -> Ofsted Social Care Provider Webpage | B148: 1235818 | C148: Children's home | D148: Active | E148: REDACTED | F148: REDACTED | G148: REDACTED | H148: REDACTED | I148: REDACTED | J148: REDACTED | K148: North East, Yorkshire and the Humber | L148: Yorkshire and The Humber | M148: North Yorkshire | N148: Selby and Ainsty | O148: Private | P148: Cambian Childcare Ltd | Q148: Full inspection | R148: 2017-06-27 | S148: 2017-07-27 | T148: 10028932 | U148: Requires improvement to be good | X148: Requires improvement to be good | Y148: Requires improvement to be good
A149: =HYPERLINK("http://reports.ofsted.gov.uk/inspection-reports/find-inspection-report/provider/CARE/1236026","Ofsted Social Care Provider Webpage") -> Ofsted Social Care Provider Webpage | B149: 1236026 | C149: Children's home | D149: Active | E149: REDACTED | F149: REDACTED | G149: REDACTED | H149: REDACTED | I149: REDACTED | J149: REDACTED | K149: North East, Yorkshire and the Humber | L149: North East | M149: Durham | N149: Sedgefield | O149: Private | P149: Cambian Childcare Ltd | Q149: Full inspection | R149: 2017-08-09 | S149: 2017-08-30 | T149: 10028910 | U149: Good | X149: Requires improvement to be good | Y149: Good
A150: =HYPERLINK("http://reports.ofsted.gov.uk/inspection-reports/find-inspection-report/provider/CARE/1236278","Ofsted Social Care Provider Webpage") -> Ofsted Social Care Provider Webpage | B150: 1236278 | C150: Children's home | D150: Active | E150: REDACTED | F150: REDACTED | G150: REDACTED | H150: REDACTED | I150: REDACTED | J150: REDACTED | K150: South West | L150: South West | M150: Cornwall | N150: South East Cornwall | O150: Private | P150: Priory Education Services Limited | Q150: Full inspection | R150: 2017-05-05 | S150: 2017-05-30 | T150: 10028926 | U150: Requires improvement to be good | X150: Requires improvement to be good | Y150: Requires improvement to be good
A151: =HYPERLINK("http://reports.ofsted.gov.uk/inspection-reports/find-inspection-report/provider/CARE/1236387","Ofsted Social Care Provider Webpage") -> Ofsted Social Care Provider Webpage | B151: 1236387 | C151: Children's home | D151: Active | E151: REDACTED | F151: REDACTED | G151: REDACTED | H151: REDACTED | I151: REDACTED | J151: REDACTED | K151: South East | L151: South East | M151: Hampshire | N151: New Forest East | O151: Private | P151: Priory Education Services Limited | Q151: Full inspection | R151: 2017-01-31 | S151: 2017-02-21 | T151: 10021568 | U151: Good | X151: Good | Y151: Requires improvement to be good
A152: =HYPERLINK("http://reports.ofsted.gov.uk/inspection-reports/find-inspection-report/provider/CARE/1236450","Ofsted Social Care Provider Webpage") -> Ofsted Social Care Provider Webpage | B152: 1236450 | C152: Children's home | D152: Active | E152: REDACTED | F152: REDACTED | G152: REDACTED | H152: REDACTED | I152: REDACTED | J152: REDACTED | K152: North East, Yorkshire and the Humber | L152: Yorkshire and The Humber | M152: Kirklees | N152: Dewsbury | O152: Private | P152: CareTech Community Services Limited | Q152: Full inspection | R152: 2017-06-14 | S152: 2017-07-10 | T152: 10028967 | U152: Outstanding | X152: Outstanding | Y152: Outstanding
A153: =HYPERLINK("http://reports.ofsted.gov.uk/inspection-reports/find-inspection-report/provider/CARE/1236532","Ofsted Social Care Provider Webpage") -> Ofsted Social Care Provider Webpage | B153: 1236532 | C153: Children's home | D153: Active | E153: REDACTED | F153: REDACTED | G153: REDACTED | H153: REDACTED | I153: REDACTED | J153: REDACTED | K153: South East | L153: South East | M153: Oxfordshire | N153: Henley | O153: Private | P153: Calcot Services For Children | Q153: Full inspection | R153: 2017-01-12 | S153: 2017-02-13 | T153: 10022347 | U153: Good | X153: Good | Y153: Good
A154: =HYPERLINK("http://reports.ofsted.gov.uk/inspection-reports/find-inspection-report/provider/CARE/1236540","Ofsted Social Care Provider Webpage") -> Ofsted Social Care Provider Webpage | B154: 1236540 | C154: Children's home | D154: Active | E154: REDACTED | F154: REDACTED | G154: REDACTED | H154: REDACTED | I154: REDACTED | J154: REDACTED | K154: North East, Yorkshire and the Humber | L154: Yorkshire and The Humber | M154: Calderdale | N154: Halifax | O154: Local Authority | P154: Calderdale Metropolitan Borough Council | Q154: Full inspection | R154: 2017-04-26 | S154: 2017-05-30 | T154: 10028936 | U154: Good | X154: Good | Y154: Outstanding
A155: =HYPERLINK("http://reports.ofsted.gov.uk/inspection-reports/find-inspection-report/provider/CARE/1236620","Ofsted Social Care Provider Webpage") -> Ofsted Social Care Provider Webpage | B155: 1236620 | C155: Children's home | D155: Active | E155: REDACTED | F155: REDACTED | G155: REDACTED | H155: REDACTED | I155: REDACTED | J155: REDACTED | K155: South West | L155: South West | M155: Somerset | N155: Bridgwater and West Somerset | O155: Private | P155: Cambian Childcare Ltd | Q155: Full inspection | R155: 2017-08-09 | S155: 2017-09-01 | T155: 10035622 | U155: Requires improvement to be good | X155: Requires improvement to be good | Y155: Inadequate
A156: =HYPERLINK("http://reports.ofsted.gov.uk/inspection-reports/find-inspection-report/provider/CARE/1236625","Ofsted Social Care Provider Webpage") -> Ofsted Social Care Provider Webpage | B156: 1236625 | C156: Children's home | D156: Active | E156: REDACTED | F156: REDACTED | G156: REDACTED | H156: REDACTED | I156: REDACTED | J156: REDACTED | K156: East Midlands | L156: East Midlands | M156: Leicestershire | N156: Charnwood | O156: Private | P156: Happy Children's Home Limited | Q156: Full inspection | R156: 2017-01-25 | S156: 2017-02-10 | T156: 10021785 | U156: Good | X156: Outstanding | Y156: Good
A157: =HYPERLINK("http://reports.ofsted.gov.uk/inspection-reports/find-inspection-report/provider/CARE/1236771","Ofsted Social Care Provider Webpage") -> Ofsted Social Care Provider Webpage | B157: 1236771 | C157: Children's home | D157: Active | E157: REDACTED | F157: REDACTED | G157: REDACTED | H157: REDACTED | I157: REDACTED | J157: REDACTED | K157: North West | L157: North West | M157: Sefton | N157: Southport | O157: Private | P157: Hexagon Care Services Limited | Q157: Full inspection | R157: 2017-03-15 | S157: 2017-05-05 | T157: 10025930 | U157: Requires improvement to be good | X157: Requires improvement to be good | Y157: Requires improvement to be good
A158: =HYPERLINK("http://reports.ofsted.gov.uk/inspection-reports/find-inspection-report/provider/CARE/1236773","Ofsted Social Care Provider Webpage") -> Ofsted Social Care Provider Webpage | B158: 1236773 | C158: Children's home | D158: Active | E158: REDACTED | F158: REDACTED | G158: REDACTED | H158: REDACTED | I158: REDACTED | J158: REDACTED | K158: North East, Yorkshire and the Humber | L158: Yorkshire and The Humber | M158: Kirklees | N158: Batley and Spen | O158: Private | P158: Cambian Childcare Ltd | Q158: Full inspection | R158: 2017-04-19 | S158: 2017-05-10 | T158: 10034598 | U158: Good | X158: Good | Y158: Good
A159: =HYPERLINK("http://reports.ofsted.gov.uk/inspection-reports/find-inspection-report/provider/CARE/1236832","Ofsted Social Care Provider Webpage") -> Ofsted Social Care Provider Webpage | B159: 1236832 | C159: Children's home | D159: Active | E159: REDACTED | F159: REDACTED | G159: REDACTED | H159: REDACTED | I159: REDACTED | J159: REDACTED | K159: East of England | L159: East of England | M159: Central Bedfordshire | N159: South West Bedfordshire | O159: Private | P159: Benjamin Uk Ltd | Q159: Full inspection | R159: 2016-12-13 | S159: 2017-01-17 | T159: 10022957 | U159: Good | X159: Good | Y159: Requires improvement to be good
A160: =HYPERLINK("http://reports.ofsted.gov.uk/inspection-reports/find-inspection-report/provider/CARE/1236916","Ofsted Social Care Provider Webpage") -> Ofsted Social Care Provider Webpage | B160: 1236916 | C160: Children's home | D160: Active | E160: REDACTED | F160: REDACTED | G160: REDACTED | H160: REDACTED | I160: REDACTED | J160: REDACTED | K160: South West | L160: South West | M160: North Somerset | N160: Weston-Super-Mare | O160: Private | P160: Utopia Children's Services Ltd | Q160: Full inspection | R160: 2017-02-13 | S160: 2017-03-07 | T160: 10021635 | U160: Requires improvement to be good | X160: Requires improvement to be good | Y160: Inadequate
A161: =HYPERLINK("http://reports.ofsted.gov.uk/inspection-reports/find-inspection-report/provider/CARE/1237027","Ofsted Social Care Provider Webpage") -> Ofsted Social Care Provider Webpage | B161: 1237027 | C161: Children's home | D161: Active | E161: REDACTED | F161: REDACTED | G161: REDACTED | H161: REDACTED | I161: REDACTED | J161: REDACTED | K161: London | L161: London | M161: Greenwich | N161: Eltham | O161: Private | P161: Jamores Limited | Q161: Full inspection | R161: 2017-06-21 | S161: 2017-08-02 | T161: 10028942 | U161: Inadequate | X161: Inadequate | Y161: Inadequate
A162: =HYPERLINK("http://reports.ofsted.gov.uk/inspection-reports/find-inspection-report/provider/CARE/1237090","Ofsted Social Care Provider Webpage") -> Ofsted Social Care Provider Webpage | B162: 1237090 | C162: Children's home | D162: Active | E162: REDACTED | F162: REDACTED | G162: REDACTED | H162: REDACTED | I162: REDACTED | J162: REDACTED | K162: West Midlands | L162: West Midlands | M162: Sandwell | N162: West Bromwich West | O162: Private | P162: Horizon Care And Education Group Limited | Q162: Full inspection | R162: 2017-02-09 | S162: 2017-02-27 | T162: 10021924 | U162: Good | X162: Good | Y162: Good
A163: =HYPERLINK("http://reports.ofsted.gov.uk/inspection-reports/find-inspection-report/provider/CARE/1237582","Ofsted Social Care Provider Webpage") -> Ofsted Social Care Provider Webpage | B163: 1237582 | C163: Children's home | D163: Active | E163: REDACTED | F163: REDACTED | G163: REDACTED | H163: REDACTED | I163: REDACTED | J163: REDACTED | K163: North West | L163: North West | M163: Rochdale | N163: Rochdale | O163: Local Authority | P163: Rochdale Metropolitan Borough Council | Q163: Full inspection | R163: 2017-09-19 | S163: 2017-10-10 | T163: 10028915 | U163: Good | X163: Good | Y163: Good
A164: =HYPERLINK("http://reports.ofsted.gov.uk/inspection-reports/find-inspection-report/provider/CARE/1237583","Ofsted Social Care Provider Webpage") -> Ofsted Social Care Provider Webpage | B164: 1237583 | C164: Children's home | D164: Active | E164: REDACTED | F164: REDACTED | G164: REDACTED | H164: REDACTED | I164: REDACTED | J164: REDACTED | K164: West Midlands | L164: West Midlands | M164: Staffordshire | N164: South Staffordshire | O164: Private | P164: Unity Residential Care Services | Q164: Full inspection | R164: 2017-05-31 | S164: 2017-07-11 | T164: 10028966 | U164: Requires improvement to be good | X164: Requires improvement to be good | Y164: Inadequate
A165: =HYPERLINK("http://reports.ofsted.gov.uk/inspection-reports/find-inspection-report/provider/CARE/1238043","Ofsted Social Care Provider Webpage") -> Ofsted Social Care Provider Webpage | B165: 1238043 | C165: Children's home | D165: Active | E165: REDACTED | F165: REDACTED | G165: REDACTED | H165: REDACTED | I165: REDACTED | J165: REDACTED | K165: North West | L165: North West | M165: Lancashire | N165: Wyre and Preston North | O165: Private | P165: Nurture Childcare Services Ltd | Q165: Full inspection | R165: 2017-06-23 | S165: 2017-07-20 | T165: 10035617 | U165: Requires improvement to be good | X165: Requires improvement to be good | Y165: Requires improvement to be good
A166: =HYPERLINK("http://reports.ofsted.gov.uk/inspection-reports/find-inspection-report/provider/CARE/1239948","Ofsted Social Care Provider Webpage") -> Ofsted Social Care Provider Webpage | B166: 1239948 | C166: Children's home | D166: Active | E166: REDACTED | F166: REDACTED | G166: REDACTED | H166: REDACTED | I166: REDACTED | J166: REDACTED | K166: South East | L166: South East | M166: Portsmouth | N166: Portsmouth South | O166: Local Authority | P166: Portsmouth City Council | Q166: Full inspection | R166: 2017-08-16 | S166: 2017-09-04 | T166: 10028920 | U166: Good | X166: Good | Y166: Outstanding
A167: =HYPERLINK("http://reports.ofsted.gov.uk/inspection-reports/find-inspection-report/provider/CARE/1239953","Ofsted Social Care Provider Webpage") -> Ofsted Social Care Provider Webpage | B167: 1239953 | C167: Children's home | D167: Active | E167: REDACTED | F167: REDACTED | G167: REDACTED | H167: REDACTED | I167: REDACTED | J167: REDACTED | K167: South West | L167: South West | M167: Somerset | N167: Taunton Deane | O167: Private | P167: Broadwood Education Services | Q167: Full inspection | R167: 2016-11-15 | S167: 2017-01-10 | T167: 10022231 | U167: Good | X167: Good | Y167: Good
A168: =HYPERLINK("http://reports.ofsted.gov.uk/inspection-reports/find-inspection-report/provider/CARE/1240269","Ofsted Social Care Provider Webpage") -> Ofsted Social Care Provider Webpage | B168: 1240269 | C168: Children's home | D168: Active | E168: REDACTED | F168: REDACTED | G168: REDACTED | H168: REDACTED | I168: REDACTED | J168: REDACTED | K168: West Midlands | L168: West Midlands | M168: Sandwell | N168: Warley | O168: Private | P168: Newrays Care Service Ltd | Q168: Full inspection | R168: 2017-04-21 | S168: 2017-05-17 | T168: 10029011 | U168: Requires improvement to be good | X168: Requires improvement to be good | Y168: Requires improvement to be good
A169: =HYPERLINK("http://reports.ofsted.gov.uk/inspection-reports/find-inspection-report/provider/CARE/1240397","Ofsted Social Care Provider Webpage") -> Ofsted Social Care Provider Webpage | B169: 1240397 | C169: Children's home | D169: Active | E169: REDACTED | F169: REDACTED | G169: REDACTED | H169: REDACTED | I169: REDACTED | J169: REDACTED | K169: East Midlands | L169: East Midlands | M169: Lincolnshire | N169: South Holland and The Deepings | O169: Private | P169: Direct Care Ltd | Q169: Full inspection | R169: 2017-02-09 | S169: 2017-03-20 | T169: 10022029 | U169: Good | X169: Good | Y169: Good
A170: =HYPERLINK("http://reports.ofsted.gov.uk/inspection-reports/find-inspection-report/provider/CARE/1240433","Ofsted Social Care Provider Webpage") -> Ofsted Social Care Provider Webpage | B170: 1240433 | C170: Children's home | D170: Active | E170: REDACTED | F170: REDACTED | G170: REDACTED | H170: REDACTED | I170: REDACTED | J170: REDACTED | K170: North East, Yorkshire and the Humber | L170: Yorkshire and The Humber | M170: North Lincolnshire | N170: Brigg and Goole | O170: Private | P170: Esland North Limited | Q170: Full inspection | R170: 2017-01-25 | S170: 2017-02-23 | T170: 10022681 | U170: Good | X170: Good | Y170: Good
A171: =HYPERLINK("http://reports.ofsted.gov.uk/inspection-reports/find-inspection-report/provider/CARE/1240449","Ofsted Social Care Provider Webpage") -> Ofsted Social Care Provider Webpage | B171: 1240449 | C171: Children's home | D171: Active | E171: REDACTED | F171: REDACTED | G171: REDACTED | H171: REDACTED | I171: REDACTED | J171: REDACTED | K171: North West | L171: North West | M171: Knowsley | N171: St Helens South and Whiston | O171: Private | P171: Idem Living Ltd | Q171: Full inspection | R171: 2017-06-07 | S171: 2017-06-29 | T171: 10028929 | U171: Good | X171: Good | Y171: Requires improvement to be good
A172: =HYPERLINK("http://reports.ofsted.gov.uk/inspection-reports/find-inspection-report/provider/CARE/1240572","Ofsted Social Care Provider Webpage") -> Ofsted Social Care Provider Webpage | B172: 1240572 | C172: Children's home | D172: Active | E172: REDACTED | F172: REDACTED | G172: REDACTED | H172: REDACTED | I172: REDACTED | J172: REDACTED | K172: North West | L172: North West | M172: Lancashire | N172: Preston | O172: Private | P172: Sandcastle Care Ltd | Q172: Full inspection | R172: 2017-06-20 | S172: 2017-07-19 | T172: 10029034 | U172: Good | X172: Good | Y172: Good
A173: =HYPERLINK("http://reports.ofsted.gov.uk/inspection-reports/find-inspection-report/provider/CARE/1240573","Ofsted Social Care Provider Webpage") -> Ofsted Social Care Provider Webpage | B173: 1240573 | C173: Children's home | D173: Active | E173: REDACTED | F173: REDACTED | G173: REDACTED | H173: REDACTED | I173: REDACTED | J173: REDACTED | K173: North West | L173: North West | M173: Lancashire | N173: Morecambe and Lunesdale | O173: Private | P173: Sandcastle Care Ltd | Q173: Full inspection | R173: 2017-05-10 | S173: 2017-06-14 | T173: 10035615 | U173: Good | X173: Good | Y173: Good
A174: =HYPERLINK("http://reports.ofsted.gov.uk/inspection-reports/find-inspection-report/provider/CARE/1240753","Ofsted Social Care Provider Webpage") -> Ofsted Social Care Provider Webpage | B174: 1240753 | C174: Children's home | D174: Active | E174: REDACTED | F174: REDACTED | G174: REDACTED | H174: REDACTED | I174: REDACTED | J174: REDACTED | K174: North West | L174: North West | M174: Lancashire | N174: Wyre and Preston North | O174: Private | P174: Care 4 Children | Q174: Full inspection | R174: 2017-05-31 | S174: 2017-07-05 | T174: 10028969 | U174: Good | X174: Good | Y174: Requires improvement to be good
A175: =HYPERLINK("http://reports.ofsted.gov.uk/inspection-reports/find-inspection-report/provider/CARE/1240754","Ofsted Social Care Provider Webpage") -> Ofsted Social Care Provider Webpage | B175: 1240754 | C175: Children's home | D175: Active | E175: REDACTED | F175: REDACTED | G175: REDACTED | H175: REDACTED | I175: REDACTED | J175: REDACTED | K175: North West | L175: North West | M175: Lancashire | N175: Fylde | O175: Private | P175: Care 4 Children | Q175: Full inspection | R175: 2017-01-24 | S175: 2017-02-23 | T175: 10025922 | U175: Good | X175: Good | Y175: Good
A176: =HYPERLINK("http://reports.ofsted.gov.uk/inspection-reports/find-inspection-report/provider/CARE/1240801","Ofsted Social Care Provider Webpage") -> Ofsted Social Care Provider Webpage | B176: 1240801 | C176: Children's home | D176: Active | E176: REDACTED | F176: REDACTED | G176: REDACTED | H176: REDACTED | I176: REDACTED | J176: REDACTED | K176: North West | L176: North West | M176: Wigan | N176: Wigan | O176: Private | P176: Inspire Childrens Services Limited | Q176: Full inspection | R176: 2016-12-02 | S176: 2017-02-03 | T176: 10022442 | U176: Good | X176: Requires improvement to be good | Y176: Good
A177: =HYPERLINK("http://reports.ofsted.gov.uk/inspection-reports/find-inspection-report/provider/CARE/1240802","Ofsted Social Care Provider Webpage") -> Ofsted Social Care Provider Webpage | B177: 1240802 | C177: Children's home | D177: Active | E177: REDACTED | F177: REDACTED | G177: REDACTED | H177: REDACTED | I177: REDACTED | J177: REDACTED | K177: South West | L177: South West | M177: Somerset | N177: Taunton Deane | O177: Private | P177: Cambian Childcare Ltd | Q177: Full inspection | R177: 2017-01-25 | S177: 2017-02-21 | T177: 10025919 | U177: Requires improvement to be good | X177: Requires improvement to be good | Y177: Requires improvement to be good
A178: =HYPERLINK("http://reports.ofsted.gov.uk/inspection-reports/find-inspection-report/provider/CARE/1240803","Ofsted Social Care Provider Webpage") -> Ofsted Social Care Provider Webpage | B178: 1240803 | C178: Children's home | D178: Active | E178: REDACTED | F178: REDACTED | G178: REDACTED | H178: REDACTED | I178: REDACTED | J178: REDACTED | K178: North West | L178: North West | M178: Blackpool | N178: Blackpool North and Cleveleys | O178: Private | P178: Care 4 Children Holdco Limited | Q178: Full inspection | R178: 2016-11-01 | S178: 2016-12-16 | T178: 10023046 | U178: Good | X178: Requires improvement to be good | Y178: Good
A179: =HYPERLINK("http://reports.ofsted.gov.uk/inspection-reports/find-inspection-report/provider/CARE/1240840","Ofsted Social Care Provider Webpage") -> Ofsted Social Care Provider Webpage | B179: 1240840 | C179: Children's home | D179: Active | E179: REDACTED | F179: REDACTED | G179: REDACTED | H179: REDACTED | I179: REDACTED | J179: REDACTED | K179: North West | L179: North West | M179: Blackpool | N179: Blackpool South | O179: Private | P179: Care 4 Children Holdco Limited | Q179: Full inspection | R179: 2017-01-19 | S179: 2017-02-28 | T179: 10025926 | U179: Outstanding | X179: Good | Y179: Good
A180: =HYPERLINK("http://reports.ofsted.gov.uk/inspection-reports/find-inspection-report/provider/CARE/1240844","Ofsted Social Care Provider Webpage") -> Ofsted Social Care Provider Webpage | B180: 1240844 | C180: Children's home | D180: Active | E180: REDACTED | F180: REDACTED | G180: REDACTED | H180: REDACTED | I180: REDACTED | J180: REDACTED | K180: North West | L180: North West | M180: Lancashire | N180: Wyre and Preston North | O180: Private | P180: Care 4 Children Holdco Limited | Q180: Full inspection | R180: 2017-05-04 | S180: 2017-05-30 | T180: 10035505 | U180: Good | X180: Good | Y180: Good
A181: =HYPERLINK("http://reports.ofsted.gov.uk/inspection-reports/find-inspection-report/provider/CARE/1240883","Ofsted Social Care Provider Webpage") -> Ofsted Social Care Provider Webpage | B181: 1240883 | C181: Children's home | D181: Active | E181: REDACTED | F181: REDACTED | G181: REDACTED | H181: REDACTED | I181: REDACTED | J181: REDACTED | K181: North West | L181: North West | M181: Lancashire | N181: Chorley | O181: Private | P181: Care 4 Children Holdco Limited | Q181: Full inspection | R181: 2017-02-03 | S181: 2017-02-28 | T181: 10025928 | U181: Requires improvement to be good | X181: Requires improvement to be good | Y181: Requires improvement to be good
